{"text_format":"1","workbook":"xlsx","n_sheets":12,"sheets":["PRESENTACIÓN","GRUPOS INVESTIGACIÓN","INFRAESTRUCTURA","LABORATORIO V.1","LABORATORIO","EQUIPOS","BD_INFRAESTRUCTURAS","BD_LAB","BD_GI_NO TOCAR","BD_EQ","INSTRUCCIONES INTERNAS","CONTROL DE CAMBIOS"],"not_rendered":{"charts":0,"images":4,"macros":1,"external_links":0,"defined_names":28,"comments":1,"pivot_tables":0},"unopened":[],"bounds":{"document_bytes":16777216,"sheet_cells":100000,"rows_first":2000,"rows_last":500,"rows_between":2000,"halvings":0,"cell_chars":16384,"cell_head_chars":4096},"cells_cut":0,"cells_raw":0,"read":"whole","date_system":"1900"}

{"sheet":"PRESENTACIÓN","index":0,"n_rows":0,"n_cols":0,"rows_kept":0,"cut":false,"hidden":false,"merged":[]}

{"sheet":"GRUPOS INVESTIGACIÓN","index":1,"n_rows":14,"n_cols":6,"rows_kept":14,"cut":false,"hidden":false,"merged":[[12,4,12,5],[2,4,3,4],[13,4,14,5]]}
[]
[]
[null,null,null,null,"GRUPO DE INVESTIGACIÓN:","Seleccionar…"]
[null,null,null,null,null,{"$f":"IFERROR(VLOOKUP(F3,TABLA_BD_GI_GI,2,FALSE),\"\")","v":""}]
[]
[]
[null,null,null,null,"LABORATORIOS:"]
[null,null,null,null,"INSTITUCIÓN:",{"$f":"IFERROR(HLOOKUP(F7,TABLA_BD_GI_HORIZ,3,FALSE),\"\")","v":""}]
[null,null,null,null,"LOCALIZACIÓN:",{"$f":"IFERROR(HLOOKUP(F7,TABLA_BD_GI_HORIZ,4,FALSE),\"\")","v":""}]
[null,null,null,null,"INVESTIGADOR PRINCIPAL:",{"$f":"IFERROR(HLOOKUP(F7,TABLA_BD_GI_HORIZ,2,FALSE),\"\")","v":""}]
[null,null,null,null,"CONTACTO:",{"$f":"IFERROR(HLOOKUP(F7,TABLA_BD_GI_HORIZ,5,FALSE),\"\")","v":""}]
[]
[null,null,null,null,"EQUIPOS:"]
[null,null,null,null,{"$f":"IFERROR(HLOOKUP(F7,TABLA_BD_GI_HORIZ,6,FALSE),\"\")","v":""}]

{"sheet":"INFRAESTRUCTURA","index":2,"n_rows":11,"n_cols":7,"rows_kept":11,"cut":false,"hidden":false,"merged":[[9,5,9,6],[10,5,10,6]]}
[]
[]
[null,null,null,null,null,"INFRAESTRUCTURA:"," Seleccionar…."]
[]
[]
[null,null,null,null,null,"INSTITUCIÓN:",{"$f":"VLOOKUP(G3,TABLA_BD_INFR,2,FALSE)","v":"  "}]
[null,null,null,null,null,"LOCALIZACIÓN:",{"$f":"VLOOKUP(G3,TABLA_BD_INFR,3,FALSE)","v":"  "}]
[null,null,null,null,null,"CONTACTO:",{"$f":"VLOOKUP(G3,TABLA_BD_INFR,5,FALSE)","v":"  "}]
[]
[null,null,null,null,null,"DESCRIPCIÓN:"]
[null,null,null,null,null,{"$f":"VLOOKUP(G3,TABLA_BD_INFR,4,FALSE)","v":"  "}]

{"sheet":"LABORATORIO V.1","index":3,"n_rows":14,"n_cols":2,"rows_kept":14,"cut":false,"hidden":true,"merged":[]}
["https://especialistasenexcel.com/lista-desplegable-en-excel-2016-sin-duplicados/"]
[]
["BUSQUEDA POR LABORATORIO","Fisiología vegetal"]
[]
[]
[]
[]
["Institución",{"$f":"VLOOKUP(B3,#REF!,4,FALSE)","v":{"$error":"#REF!"}}]
["Localización",{"$f":"VLOOKUP(B3,#REF!,5,FALSE)","v":{"$error":"#REF!"}}]
["Grupo de investigación",{"$f":"VLOOKUP(B3,#REF!,2,FALSE)","v":{"$error":"#REF!"}}]
["IP",{"$f":"VLOOKUP(B3,#REF!,3,FALSE)","v":{"$error":"#REF!"}}]
["Responsable laboratorio",{"$f":"VLOOKUP(B3,#REF!,6,FALSE)","v":{"$error":"#REF!"}}]
[]
["Equipos"]

{"sheet":"LABORATORIO","index":4,"n_rows":13,"n_cols":5,"rows_kept":13,"cut":false,"hidden":false,"merged":[[12,3,41,4]]}
[]
[]
[null,null,null,"LABORATORIO: ","Seleccionar…"]
[]
[null,null,null,"GRUPO DE INVESTIGACIÓN:",{"$f":"VLOOKUP(E3,TABLA_BD_LAB,2,FALSE)","v":" "}]
[null,null,null,"INVESTIGADOR PRINCIPAL: ",{"$f":"VLOOKUP(E3,TABLA_BD_LAB,3,FALSE)","v":" "}]
[null,null,null,"CONTACTO:",{"$f":"VLOOKUP(E3,TABLA_BD_LAB,6,FALSE)","v":" "}]
[null,null,null,"INSTITUCIÓN:",{"$f":"VLOOKUP(E3,TABLA_BD_LAB,4,FALSE)","v":" "}]
[null,null,null,"LOCALIZACIÓN:",{"$f":"VLOOKUP(E3,TABLA_BD_LAB,5,FALSE)","v":" "}]
[]
[]
[null,null,null,"EQUIPAMIENTO:"]
[null,null,null,{"$f":"VLOOKUP(E3,TABLA_BD_LAB,7,FALSE)","v":" "}]

{"sheet":"EQUIPOS","index":5,"n_rows":403,"n_cols":8,"rows_kept":403,"cut":false,"hidden":false,"merged":[]}
[]
[]
[]
[]
[]
[]
[]
[]
[]
[]
[]
[]
[]
[]
[]
[]
[]
[null,"CLASIFICACIÓN","EQUIPO","DETALLE","MARCA/MODELO","LABORATORIO ","GRUPO INVESTIGACIÓN","CONTACTO"]
[null,"Barreras de protección y seguridad biológica","Cabina de flujo laminar","Vertical","Telstar PV-30/70","Bioquímica de proteínas","A02_17R: El efecto del Procesado Tecnológico de los Alimentos en las Patologías Digestivas y Alérgicas (ALIPAT)"," Miguel calvo (calvoreb@unizar.es)"]
[null,"Técnicas instrumentales análisis químicos","Cromatógrafo","Cromatografía líquida. Purificación de proteinas","AKTA Start Protein Purification System","Bioquímica de proteínas","A02_17R: El efecto del Procesado Tecnológico de los Alimentos en las Patologías Digestivas y Alérgicas (ALIPAT)"," Miguel calvo (calvoreb@unizar.es)"]
[null,"Técnicas instrumentales análisis químicos","Espectrofotómetro","UV/Vis","Jenway 6505 UV/Vis","Bioquímica de proteínas","A02_17R: El efecto del Procesado Tecnológico de los Alimentos en las Patologías Digestivas y Alérgicas (ALIPAT)"," Miguel calvo (calvoreb@unizar.es)"]
[null,"Técnicas de análisis biológicos: INMUNOENSAYO","ELISA","Lavador de placas","Wellwash4MK 2. Thermo Scientific","Bioquímica de proteínas","A02_17R: El efecto del Procesado Tecnológico de los Alimentos en las Patologías Digestivas y Alérgicas (ALIPAT)"," Miguel calvo (calvoreb@unizar.es)"]
[null,"Técnicas de análisis biológicos: INMUNOENSAYO","ELISA","Lector de placas","Multiskan MS versión 3.0 Type352. Labsystems","Bioquímica de proteínas","A02_17R: El efecto del Procesado Tecnológico de los Alimentos en las Patologías Digestivas y Alérgicas (ALIPAT)"," Miguel calvo (calvoreb@unizar.es)"]
[null,"Técnicas de análisis biológicos: MOLECULAR","Electroforesis","Horizontal","Phast-System. Pharmacia","Bioquímica de proteínas","A02_17R: El efecto del Procesado Tecnológico de los Alimentos en las Patologías Digestivas y Alérgicas (ALIPAT)"," Miguel calvo (calvoreb@unizar.es)"]
[null,"Técnicas de análisis biológicos: MOLECULAR","Electroforesis","Vertical","Mini Protean® 3 Cell. Bio-Rad","Bioquímica de proteínas","A02_17R: El efecto del Procesado Tecnológico de los Alimentos en las Patologías Digestivas y Alérgicas (ALIPAT)"," Miguel calvo (calvoreb@unizar.es)"]
[null,"Técnicas de análisis biológicos: INMUNOENSAYO","Western Blotting","Sistema transferencia Western Blotting","TE-70 Semi-Dry-Transfer Unit . Amersham Bioscience","Bioquímica de proteínas","A02_17R: El efecto del Procesado Tecnológico de los Alimentos en las Patologías Digestivas y Alérgicas (ALIPAT)"," Miguel calvo (calvoreb@unizar.es)"]
[null,"Barreras de protección y seguridad biológica","Cabina de seguridad biológica ","Clase II","Bio II Advance. Telstar","Cultivos celulares","A02_17R: El efecto del Procesado Tecnológico de los Alimentos en las Patologías Digestivas y Alérgicas (ALIPAT)"," Miguel calvo (calvoreb@unizar.es)"]
[null,"Barreras de protección y seguridad biológica","Cabina de flujo laminar","Vertical/PCR","Micro-V. Telstar","Cultivos celulares","A02_17R: El efecto del Procesado Tecnológico de los Alimentos en las Patologías Digestivas y Alérgicas (ALIPAT)"," Miguel calvo (calvoreb@unizar.es)"]
[null,"Estufas, hornos, incubadoras, baños","Incubadora","CO2","B5060 EK/CO2. Heraeus","Cultivos celulares","A02_17R: El efecto del Procesado Tecnológico de los Alimentos en las Patologías Digestivas y Alérgicas (ALIPAT)"," Miguel calvo (calvoreb@unizar.es)"]
[null,"Microscopía","Microscopio","Invertido","TMS-F. Nikon","Cultivos celulares","A02_17R: El efecto del Procesado Tecnológico de los Alimentos en las Patologías Digestivas y Alérgicas (ALIPAT)"," Miguel calvo (calvoreb@unizar.es)"]
[null,"Técnicas de análisis biológicos: MOLECULAR","PCR","PCR (qPCR)","StepOneTM. Applied Biosystems®","Cultivos celulares","A02_17R: El efecto del Procesado Tecnológico de los Alimentos en las Patologías Digestivas y Alérgicas (ALIPAT)"," Miguel calvo (calvoreb@unizar.es)"]
[null,"Preparación, procesamiento y conservación de muestras","Agitadores","Agitador- plataforma","Duomax 1030. Heidolph Instruments GmbH & Co. KG","Fisiología","A02_17R: El efecto del Procesado Tecnológico de los Alimentos en las Patologías Digestivas y Alérgicas (ALIPAT)","José Emilio Mesonero Gutiérrez (mesonero@unizar.es)"]
[null,"Barreras de protección y seguridad biológica","Cabina de flujo laminar","Vertical","AV-100. Telstar","Fisiología","A02_17R: El efecto del Procesado Tecnológico de los Alimentos en las Patologías Digestivas y Alérgicas (ALIPAT)","José Emilio Mesonero Gutiérrez (mesonero@unizar.es)"]
[null,"Técnicas de análisis biológicos: MOLECULAR","Documentación de gel","Sistema de documentación de gel","BioDoc-it® Imaging System. UVP","Fisiología","A02_17R: El efecto del Procesado Tecnológico de los Alimentos en las Patologías Digestivas y Alérgicas (ALIPAT)","José Emilio Mesonero Gutiérrez (mesonero@unizar.es)"]
[null,"Estufas, hornos, incubadoras, baños","Incubadora","CO2","Heraeus® BB16","Fisiología","A02_17R: El efecto del Procesado Tecnológico de los Alimentos en las Patologías Digestivas y Alérgicas (ALIPAT)","José Emilio Mesonero Gutiérrez (mesonero@unizar.es)"]
[null,"Preparación, procesamiento y conservación de muestras","Homogenizador","Homogenizador","Precellys® Cryolis®. Bertin Instruments ","Fisiología","A02_17R: El efecto del Procesado Tecnológico de los Alimentos en las Patologías Digestivas y Alérgicas (ALIPAT)","José Emilio Mesonero Gutiérrez (mesonero@unizar.es)"]
[null,"Microscopía","Microscopio","Invertido","Olympus® CK2. Olympus Corporation ","Fisiología","A02_17R: El efecto del Procesado Tecnológico de los Alimentos en las Patologías Digestivas y Alérgicas (ALIPAT)","José Emilio Mesonero Gutiérrez (mesonero@unizar.es)"]
[null,"Técnicas de análisis biológicos: MOLECULAR","PCR","PCR (RT-PCR)","DNA Engine® Peltier Thermal Cycler. Bio-Rad","Fisiología","A02_17R: El efecto del Procesado Tecnológico de los Alimentos en las Patologías Digestivas y Alérgicas (ALIPAT)","José Emilio Mesonero Gutiérrez (mesonero@unizar.es)"]
[null,"Técnicas de análisis biológicos: MOLECULAR","PCR","PCR (qPCR)","StepOnePlusTM Real-Time PCR System. Applied Biosystems®. ThermoFisher Scientific","Fisiología","A02_17R: El efecto del Procesado Tecnológico de los Alimentos en las Patologías Digestivas y Alérgicas (ALIPAT)","José Emilio Mesonero Gutiérrez (mesonero@unizar.es)"]
[null,"Técnicas de análisis biológicos: GENÉTICA","Secuenciador","3ª generación","MinION. Oxford Nanopore Technologies ","Fisiología","A02_17R: El efecto del Procesado Tecnológico de los Alimentos en las Patologías Digestivas y Alérgicas (ALIPAT)","José Emilio Mesonero Gutiérrez (mesonero@unizar.es)"]
[null,"Técnicas de análisis biológicos: INMUNOENSAYO","Western Blotting","Sistema de transferencia húmeda de proteínas","Mini Trans-Blot® Cell. Bio-Rad","Fisiología","A02_17R: El efecto del Procesado Tecnológico de los Alimentos en las Patologías Digestivas y Alérgicas (ALIPAT)","José Emilio Mesonero Gutiérrez (mesonero@unizar.es)"]
[null,"Técnicas de análisis biológicos: MOLECULAR","Electroforesis","Vertical","Mini-PROTEAN® Tetra Cell. Bio-Rad ","Fisiología","A02_17R: El efecto del Procesado Tecnológico de los Alimentos en las Patologías Digestivas y Alérgicas (ALIPAT)","José Emilio Mesonero Gutiérrez (mesonero@unizar.es)"]
[null,"Preparación, procesamiento y conservación de muestras","Homogenizador","Homogenizador ultrasonidos","HD 2200. BANDELIN electronic GmbH & Co","Fisiología","A02_17R: El efecto del Procesado Tecnológico de los Alimentos en las Patologías Digestivas y Alérgicas (ALIPAT)","José Emilio Mesonero Gutiérrez (mesonero@unizar.es)"]
[null,"Estufas, hornos, incubadoras, baños","Baño de agua","Baño de agua","WNB10. Memmert","Fisiología","A02_17R: El efecto del Procesado Tecnológico de los Alimentos en las Patologías Digestivas y Alérgicas (ALIPAT)","José Emilio Mesonero Gutiérrez (mesonero@unizar.es)"]
[null,"Estufas, hornos, incubadoras, baños","Termostato de inmersión",null,"Digiterm 100. Selecta","Fisiología","A02_17R: El efecto del Procesado Tecnológico de los Alimentos en las Patologías Digestivas y Alérgicas (ALIPAT)","José Emilio Mesonero Gutiérrez (mesonero@unizar.es)"]
[null,"Fisiología","Específico: fisiología digestiva","Unidad de registro y análisis de motilidad gastrointestinal",null,"Fisiología","A02_17R: El efecto del Procesado Tecnológico de los Alimentos en las Patologías Digestivas y Alérgicas (ALIPAT)","José Emilio Mesonero Gutiérrez (mesonero@unizar.es)"]
[null,"Estufas, hornos, incubadoras, baños","Incubadora","Agitación","LabNet AccuThermTM","Investigación en nuevas tecnologías de procesado y conservación de alimentos","A03_17R: Nuevas tecnologías de procesado de los alimentos","Santiago Condón Usón (scondon@unizar.es)"]
[null,"Limpieza y esterilización","Baño de ultrasonidos","Baño ultrasonidos","Elma","Investigación en nuevas tecnologías de procesado y conservación de alimentos","A03_17R: Nuevas tecnologías de procesado de los alimentos","Santiago Condón Usón (scondon@unizar.es)"]
[null,"Limpieza y esterilización","Baño de ultrasonidos","Baño ultrasonidos","Bandelin","Investigación en nuevas tecnologías de procesado y conservación de alimentos","A03_17R: Nuevas tecnologías de procesado de los alimentos","Santiago Condón Usón (scondon@unizar.es)"]
[null,"Imagen y color","Fotografía/vídeo","Cámara fotográfica integrada","AxioCam MRc","Investigación en nuevas tecnologías de procesado y conservación de alimentos","A03_17R: Nuevas tecnologías de procesado de los alimentos","Santiago Condón Usón (scondon@unizar.es)"]
[null,"Estufas, hornos, incubadoras, baños","Incubadora","Anaerobiosis","Don Whitley MACS-VA500","Investigación en nuevas tecnologías de procesado y conservación de alimentos","A03_17R: Nuevas tecnologías de procesado de los alimentos","Santiago Condón Usón (scondon@unizar.es)"]
[null,"Barreras de protección y seguridad biológica","Cabina de flujo laminar","Vertical/PCR","Mini-V/PCR. Telstar","Investigación en nuevas tecnologías de procesado y conservación de alimentos","A03_17R: Nuevas tecnologías de procesado de los alimentos","Santiago Condón Usón (scondon@unizar.es)"]
[null,"Preparación, procesamiento y conservación de muestras","Centrífuga / Ultracentrífuga / Microcentrífuga","Centrífuga Vacío","GeneVacTM miVac","Investigación en nuevas tecnologías de procesado y conservación de alimentos","A03_17R: Nuevas tecnologías de procesado de los alimentos","Santiago Condón Usón (scondon@unizar.es)"]
[null,"Técnicas de análisis biológicos: CELULAR","Citómetro de flujo","Citómetro de flujo","Millipore Guava® easyCyte 6-2L","Investigación en nuevas tecnologías de procesado y conservación de alimentos","A03_17R: Nuevas tecnologías de procesado de los alimentos","Santiago Condón Usón (scondon@unizar.es)"]
[null,"Técnicas de análisis biológicos: CELULAR","Contador","Contador automático de colonias","Prototipo de la Universidad de Zaragoza","Investigación en nuevas tecnologías de procesado y conservación de alimentos","A03_17R: Nuevas tecnologías de procesado de los alimentos","Santiago Condón Usón (scondon@unizar.es)"]
[null,"Técnicas instrumentales análisis químicos","Cromatógrafo","Cromatografía líquida HPLC","HPLC ProStar 240 (Varian Inc., Walnut Creek, CA)","Investigación en nuevas tecnologías de procesado y conservación de alimentos","A03_17R: Nuevas tecnologías de procesado de los alimentos","Santiago Condón Usón (scondon@unizar.es)"]
[null,"Técnicas de análisis biológicos: MOLECULAR","Electroporación","Electroporador","Gene Pulse XCellTM. Bio-Rad","Investigación en nuevas tecnologías de procesado y conservación de alimentos","A03_17R: Nuevas tecnologías de procesado de los alimentos","Santiago Condón Usón (scondon@unizar.es)"]
[null,"Tecnologías de conservación y procesado","Pulsos eléctricos alto voltaje","Pulsos eléctricos alto voltaje","EPS","Investigación en nuevas tecnologías de procesado y conservación de alimentos","A03_17R: Nuevas tecnologías de procesado de los alimentos","Santiago Condón Usón (scondon@unizar.es)"]
[null,"Tecnologías de conservación y procesado","Pulsos eléctricos alto voltaje","Pulsos eléctricos alto voltaje","Scandinova","Investigación en nuevas tecnologías de procesado y conservación de alimentos","A03_17R: Nuevas tecnologías de procesado de los alimentos","Santiago Condón Usón (scondon@unizar.es)"]
[null,"Tecnologías de conservación y procesado","Pulsos eléctricos alto voltaje","Pulsos eléctricos alto voltaje","Nutri-pulse e-Cooker","Investigación en nuevas tecnologías de procesado y conservación de alimentos","A03_17R: Nuevas tecnologías de procesado de los alimentos","Santiago Condón Usón (scondon@unizar.es)"]
[null,"Tecnologías de conservación y procesado","Radiación UV","Equipo de radiación ultravioleta en flujo continuo","desarrollo propio Universidad de Zaragoza","Investigación en nuevas tecnologías de procesado y conservación de alimentos","A03_17R: Nuevas tecnologías de procesado de los alimentos","Santiago Condón Usón (scondon@unizar.es)"]
[null,"Técnicas instrumentales análisis químicos","Espectrofotómetro","UV/Vis","Biochrom Libra S12 UV/Vis","Investigación en nuevas tecnologías de procesado y conservación de alimentos","A03_17R: Nuevas tecnologías de procesado de los alimentos","Santiago Condón Usón (scondon@unizar.es)"]
[null,"Técnicas instrumentales análisis químicos","Espectrofotómetro","Microvolúmenes","SimpliNanoTM. General Electric ","Investigación en nuevas tecnologías de procesado y conservación de alimentos","A03_17R: Nuevas tecnologías de procesado de los alimentos","Santiago Condón Usón (scondon@unizar.es)"]
[null,"Estufas, hornos, incubadoras, baños","Incubadora","Estufas bacteriológicas y de cultivo","Selecta Incudigit ","Investigación en nuevas tecnologías de procesado y conservación de alimentos","A03_17R: Nuevas tecnologías de procesado de los alimentos","Santiago Condón Usón (scondon@unizar.es)"]
[null,"Estufas, hornos, incubadoras, baños","Incubadora","Refrigerada","Raypa IRE-160","Investigación en nuevas tecnologías de procesado y conservación de alimentos","A03_17R: Nuevas tecnologías de procesado de los alimentos","Santiago Condón Usón (scondon@unizar.es)"]
[null,"Estufas, hornos, incubadoras, baños","Incubadora","Refrigerada","Raypa IRE-475","Investigación en nuevas tecnologías de procesado y conservación de alimentos","A03_17R: Nuevas tecnologías de procesado de los alimentos","Santiago Condón Usón (scondon@unizar.es)"]
[null,"Técnicas instrumentales análisis químicos","Fluorímetro","Placas","TECAN GENios","Investigación en nuevas tecnologías de procesado y conservación de alimentos","A03_17R: Nuevas tecnologías de procesado de los alimentos","Santiago Condón Usón (scondon@unizar.es)"]
[null,"Preparación, procesamiento y conservación de muestras","Homogenizador","Homogenizador","Mini BeadBeater. BioSpec Products","Investigación en nuevas tecnologías de procesado y conservación de alimentos","A03_17R: Nuevas tecnologías de procesado de los alimentos","Santiago Condón Usón (scondon@unizar.es)"]
[null,"Estufas, hornos, incubadoras, baños","Incubadora","Placas","FX Incubator, mod. ZE/FX","Investigación en nuevas tecnologías de procesado y conservación de alimentos","A03_17R: Nuevas tecnologías de procesado de los alimentos","Santiago Condón Usón (scondon@unizar.es)"]
[null,"Tecnologías de conservación y procesado","Manotermosonicador","Manotemosonicador","MTS (Pat. 92-00686, PCT93/00021)","Investigación en nuevas tecnologías de procesado y conservación de alimentos","A03_17R: Nuevas tecnologías de procesado de los alimentos","Santiago Condón Usón (scondon@unizar.es)"]
[null,"Preparación, procesamiento y conservación de muestras","Centrífuga / Ultracentrífuga / Microcentrífuga","Centrífuga - Microcentrífuga","Eppendorf MiniSpin® plus","Investigación en nuevas tecnologías de procesado y conservación de alimentos","A03_17R: Nuevas tecnologías de procesado de los alimentos","Santiago Condón Usón (scondon@unizar.es)"]
[null,"Microscopía","Microscopio","Fluorescencia","Nikon® Eclipse E400 / Zeiss AxioCam MRc","Investigación en nuevas tecnologías de procesado y conservación de alimentos","A03_17R: Nuevas tecnologías de procesado de los alimentos","Santiago Condón Usón (scondon@unizar.es)"]
[null,"Técnicas de análisis biológicos: MOLECULAR","Electroforesis","Electroforesis","Fuente: PowerPacTM Basic Power Supply. Bio-Rad","Investigación en nuevas tecnologías de procesado y conservación de alimentos","A03_17R: Nuevas tecnologías de procesado de los alimentos","Santiago Condón Usón (scondon@unizar.es)"]
[null,"Técnicas de análisis biológicos: MOLECULAR","PCR","PCR","Labnet MultiGeneTM II","Investigación en nuevas tecnologías de procesado y conservación de alimentos","A03_17R: Nuevas tecnologías de procesado de los alimentos","Santiago Condón Usón (scondon@unizar.es)"]
[null,"Tecnologías de conservación y procesado","Termorresistómetro","Termorresistómetros","Adaptados de un prototipo de la Universidad de Zaragoza (Pat. ES2004913A6)","Investigación en nuevas tecnologías de procesado y conservación de alimentos","A03_17R: Nuevas tecnologías de procesado de los alimentos","Santiago Condón Usón (scondon@unizar.es)"]
[null,"Técnicas de análisis biológicos: MOLECULAR","Transiluminador","Transiluminador","UV Vilber Lourmat ECX-20.M","Investigación en nuevas tecnologías de procesado y conservación de alimentos","A03_17R: Nuevas tecnologías de procesado de los alimentos","Santiago Condón Usón (scondon@unizar.es)"]
[null,"Imagen y color","Fotografía/vídeo","Sistema móvil de 12 cámaras digitales de grabación día/noche",null,"Bienestar Animal","A04_17R: Calidad y tecnología de la carne","Gustavo María Levrino (levrino@unizar.es) "]
[null,"Imagen y color","Fotografía/vídeo","Sistema de visualización de los videos de comportamiento animal",null,"Bienestar Animal","A04_17R: Calidad y tecnología de la carne","Gustavo María Levrino (levrino@unizar.es) "]
[null,"Específico: Bienestar animal","Específico: Lab. Bienestar Animal","Laberinto en \"T\"",null,"Bienestar Animal","A04_17R: Calidad y tecnología de la carne","Gustavo María Levrino (levrino@unizar.es) "]
[null,"Específico: Bienestar animal","Específico: Lab. Bienestar Animal","Open Field Test",null,"Bienestar Animal","A04_17R: Calidad y tecnología de la carne","Gustavo María Levrino (levrino@unizar.es) "]
[null,"Técnicas instrumentales análisis físicos","Colorímetro","Portátil","CR400. Konica Minolta","Calidad de la carne y pescado","A04_17R: Calidad y tecnología de la carne","María del Mar Campo Arribas (marimar@unizar.es) "]
[null,"Técnicas instrumentales análisis químicos","Cromatógrafo","Cromatografía gases (GC)","6890 Series. Hewlett-Packard","Calidad de la carne y pescado","A04_17R: Calidad y tecnología de la carne","María del Mar Campo Arribas (marimar@unizar.es) "]
[null,"Análisis de agua, materia prima y alimentos","Equipo integrado EQM","Calidad huevo",null,"Calidad de la carne y pescado","A04_17R: Calidad y tecnología de la carne","María del Mar Campo Arribas (marimar@unizar.es) "]
[null,"Técnicas instrumentales análisis químicos","Espectrofotómetro","Portátil","CM-600d. Konica Minolta","Calidad de la carne y pescado","A04_17R: Calidad y tecnología de la carne","María del Mar Campo Arribas (marimar@unizar.es) "]
[null,"Técnicas instrumentales análisis químicos","Espectrofotómetro","UV/Vis","ONDA UV-20","Calidad de la carne y pescado","A04_17R: Calidad y tecnología de la carne","María del Mar Campo Arribas (marimar@unizar.es) "]
[null,"Estufas, hornos, incubadoras, baños","Incubadora","Huevo","Mod.870-I HLC. Masalles","Calidad de la carne y pescado","A04_17R: Calidad y tecnología de la carne","María del Mar Campo Arribas (marimar@unizar.es) "]
[null,"Técnicas instrumentales análisis físicos","Texturómetro",null,"INSTRON® Modelo 4301","Calidad de la carne y pescado","A04_17R: Calidad y tecnología de la carne","María del Mar Campo Arribas (marimar@unizar.es) "]
[null,"Análisis de agua, materia prima y alimentos","NIR / VNIR","VNIR","ASD LabSpec®4","Calidad de la carne y pescado","A04_17R: Calidad y tecnología de la carne","María del Mar Campo Arribas (marimar@unizar.es) "]
[null,"Técnicas instrumentales análisis químicos","Calorímetro","Calorímetro de barrido diferencial","910 DSC 10. Du Pont Instruments","Tecnología de la carne y del pescado","A04_17R: Calidad y tecnología de la carne","José Antonio Beltrán Gracia (jbeltran@unizar.es) "]
[null,"Preparación, procesamiento y conservación de muestras","Centrífuga / Ultracentrífuga / Microcentrífuga","Centrífuga Refrigerada","Universal 320R. Hettich Lab Technology™","Tecnología de la carne y del pescado","A04_17R: Calidad y tecnología de la carne","José Antonio Beltrán Gracia (jbeltran@unizar.es) "]
[null,"Análisis de agua, materia prima y alimentos","Análisis nitrógeno","Kjeldahl","UDK 129. VELP Scientifica ","Tecnología de la carne y del pescado","A04_17R: Calidad y tecnología de la carne","José Antonio Beltrán Gracia (jbeltran@unizar.es) "]
[null,"Técnicas instrumentales análisis químicos","Espectrofotómetro","UV/Vis","ONDA UV-20","Tecnología de la carne y del pescado","A04_17R: Calidad y tecnología de la carne","José Antonio Beltrán Gracia (jbeltran@unizar.es) "]
[null,"Técnicas instrumentales análisis químicos","Espectrofotómetro","UV","CM-3610. Konica Minolta","Tecnología de la carne y del pescado","A04_17R: Calidad y tecnología de la carne","José Antonio Beltrán Gracia (jbeltran@unizar.es) "]
[null,"Técnicas instrumentales análisis físicos","Texturómetro",null,"TA.XT2i Texture Analyser. Stable Micro Systems","Tecnología de la carne y del pescado","A04_17R: Calidad y tecnología de la carne","José Antonio Beltrán Gracia (jbeltran@unizar.es) "]
[null,"Preparación, procesamiento y conservación de muestras","Agitadores","Agitador - vortex","Genius 3. IKA®","Entomología sanitaria","A05_17R: Enfermedades priónicas, vectoriales y zoonosis emergentes","Javier Lucientes Curdi (jlucien@unizar.es) "]
[null,"Cámaras, armarios refrigerados","Armarios refrigerados",null,null,"Entomología sanitaria","A05_17R: Enfermedades priónicas, vectoriales y zoonosis emergentes","Javier Lucientes Curdi (jlucien@unizar.es) "]
[null,"Microscopía","Estereomicroscopio","Estereomicroscopio","SMZ 168 Motic","Entomología sanitaria","A05_17R: Enfermedades priónicas, vectoriales y zoonosis emergentes","Javier Lucientes Curdi (jlucien@unizar.es) "]
[null,"Microscopía","Estereomicroscopio","Estereomicroscopio","SMZ 745T. Nikon® ","Entomología sanitaria","A05_17R: Enfermedades priónicas, vectoriales y zoonosis emergentes","Javier Lucientes Curdi (jlucien@unizar.es) "]
[null,"Microscopía","Estereomicroscopio","Estereomicroscopio","Optika","Entomología sanitaria","A05_17R: Enfermedades priónicas, vectoriales y zoonosis emergentes","Javier Lucientes Curdi (jlucien@unizar.es) "]
[null,"Estufas, hornos, incubadoras, baños","Estufa de secado",null,"Heareus Function Line ","Entomología sanitaria","A05_17R: Enfermedades priónicas, vectoriales y zoonosis emergentes","Javier Lucientes Curdi (jlucien@unizar.es) "]
[null,"Estufas, hornos, incubadoras, baños","Incubadora","Refrigerada","Serie 639/250. Nahita®","Entomología sanitaria","A05_17R: Enfermedades priónicas, vectoriales y zoonosis emergentes","Javier Lucientes Curdi (jlucien@unizar.es) "]
[null,"Estufas, hornos, incubadoras, baños","Incubadora","Refrigerada","Serie 639/150. Nahita®","Entomología sanitaria","A05_17R: Enfermedades priónicas, vectoriales y zoonosis emergentes","Javier Lucientes Curdi (jlucien@unizar.es) "]
[null,"Estufas, hornos, incubadoras, baños","Incubadora","Visualización íntegra de muestras","Incubator S160. Stuart","Entomología sanitaria","A05_17R: Enfermedades priónicas, vectoriales y zoonosis emergentes","Javier Lucientes Curdi (jlucien@unizar.es) "]
[null,"Específico: entomología","Específico: Lab. Entomología","Material entomológico",null,"Entomología sanitaria","A05_17R: Enfermedades priónicas, vectoriales y zoonosis emergentes","Javier Lucientes Curdi (jlucien@unizar.es) "]
[null,"Preparación, procesamiento y conservación de muestras","Mesa fría","Mesa fría","Mod. 1431. Bioquip®Products","Entomología sanitaria","A05_17R: Enfermedades priónicas, vectoriales y zoonosis emergentes","Javier Lucientes Curdi (jlucien@unizar.es) "]
[null,"Específico: entomología","Específico: Lab. Entomología","Sistema alimentación artificial mosquito","Hemotek® Membrane Feeding System + Power unit PS5","Entomología sanitaria","A05_17R: Enfermedades priónicas, vectoriales y zoonosis emergentes","Javier Lucientes Curdi (jlucien@unizar.es) "]
[null,"Cámaras, armarios refrigerados","Cámara climática",null,"Dycometal","Parasitología","A05_17R: Enfermedades priónicas, vectoriales y zoonosis emergentes","Carlos Calvete Margollés (ccalvete@aragon.es)"]
[null,"Preparación, procesamiento y conservación de muestras","Centrífuga / Ultracentrífuga / Microcentrífuga","Centrífuga Hematocrito",null,"Parasitología","A05_17R: Enfermedades priónicas, vectoriales y zoonosis emergentes","Carlos Calvete Margollés (ccalvete@aragon.es)"]
[null,"Técnicas de análisis biológicos: CELULAR","Contador","Contador diferencial de células","DC Counter DBC-8E","Parasitología","A05_17R: Enfermedades priónicas, vectoriales y zoonosis emergentes","Carlos Calvete Margollés (ccalvete@aragon.es)"]
[null,"Microscopía","Estereomicroscopio","Estereomicroscopio","Wild ","Parasitología","A05_17R: Enfermedades priónicas, vectoriales y zoonosis emergentes","Carlos Calvete Margollés (ccalvete@aragon.es)"]
[null,"Microscopía","Estereomicroscopio","Estereomicroscopio","Nikon","Parasitología","A05_17R: Enfermedades priónicas, vectoriales y zoonosis emergentes","Carlos Calvete Margollés (ccalvete@aragon.es)"]
[null,"Microscopía","Microscopio","Convencional","Laborlux","Parasitología","A05_17R: Enfermedades priónicas, vectoriales y zoonosis emergentes","Carlos Calvete Margollés (ccalvete@aragon.es)"]
[null,"Microscopía","Microscopio","Convencional","Leitz","Parasitología","A05_17R: Enfermedades priónicas, vectoriales y zoonosis emergentes","Carlos Calvete Margollés (ccalvete@aragon.es)"]
[null,"Microscopía","Microscopio","Convencional","Reidret","Parasitología","A05_17R: Enfermedades priónicas, vectoriales y zoonosis emergentes","Carlos Calvete Margollés (ccalvete@aragon.es)"]
[null,"Microscopía","Microscopio","Convencional","Nikon","Parasitología","A05_17R: Enfermedades priónicas, vectoriales y zoonosis emergentes","Carlos Calvete Margollés (ccalvete@aragon.es)"]
[null,"Microscopía","Microscopio","Invertido","Microscopio Eclipse TE2000-U. Nikon","Parasitología","A05_17R: Enfermedades priónicas, vectoriales y zoonosis emergentes","Carlos Calvete Margollés (ccalvete@aragon.es)"]
[null,"Técnicas instrumentales análisis químicos","Cromatógrafo","Cromatografía gases (GC)","Hewlett-Packard ","Análisis y evaluación de la seguridad alimentaria","A06_17R: Análisis y evaluación de la seguridad alimentaria (AESA)","Agustín Ariño Moneva (aarino@unizar.es) "]
[null,"Técnicas instrumentales análisis químicos","Cromatógrafo","Cromatografía líquida","Hewlett-Packard","Análisis y evaluación de la seguridad alimentaria","A06_17R: Análisis y evaluación de la seguridad alimentaria (AESA)","Agustín Ariño Moneva (aarino@unizar.es) "]
[null,"Técnicas instrumentales análisis químicos","Espectrofotómetro",null,null,"Análisis y evaluación de la seguridad alimentaria","A06_17R: Análisis y evaluación de la seguridad alimentaria (AESA)","Agustín Ariño Moneva (aarino@unizar.es) "]
[null,"Técnicas de análisis biológicos: MOLECULAR","Electroforesis","Vertical","DCODETM . Bio-Rad","Análisis y evaluación de la seguridad alimentaria","A06_17R: Análisis y evaluación de la seguridad alimentaria (AESA)","Agustín Ariño Moneva (aarino@unizar.es) "]
[null,"Técnicas instrumentales análisis químicos","Espectrofotómetro","Microvolúmenes","Nanodrop™ 2000c. Thermo Scientific","Análisis y evaluación de la seguridad alimentaria","A06_17R: Análisis y evaluación de la seguridad alimentaria (AESA)","Agustín Ariño Moneva (aarino@unizar.es) "]
[null,"Preparación, procesamiento y conservación de muestras","Homogenizador","Homogenizador","Mini BeadBeater. BioSpec Products","Análisis y evaluación de la seguridad alimentaria","A06_17R: Análisis y evaluación de la seguridad alimentaria (AESA)","Agustín Ariño Moneva (aarino@unizar.es) "]
[null,"Preparación, procesamiento y conservación de muestras","Vacío","Sistema de vacío y vacuum","Manifold","Análisis y evaluación de la seguridad alimentaria","A06_17R: Análisis y evaluación de la seguridad alimentaria (AESA)","Agustín Ariño Moneva (aarino@unizar.es) "]
[null,"Técnicas de análisis biológicos: MOLECULAR","PCR","PCR (qPCR)","MiniOpticon Real-Time PCR System. Bio Rad","Análisis y evaluación de la seguridad alimentaria","A06_17R: Análisis y evaluación de la seguridad alimentaria (AESA)","Agustín Ariño Moneva (aarino@unizar.es) "]
[null,"Técnicas de análisis biológicos: INMUNOENSAYO","ELISA","Lector de placas",null,"Análisis y evaluación de la seguridad alimentaria","A06_17R: Análisis y evaluación de la seguridad alimentaria (AESA)","Agustín Ariño Moneva (aarino@unizar.es) "]
[null,"Técnicas de análisis biológicos: MOLECULAR","Electroforesis","Electroforesis gel de campo pulsante PFGE","CHEF-DR® III Variable Angle System + Cooling module + Variable speed pump. Bio-Rad","Análisis y evaluación de la seguridad alimentaria","A06_17R: Análisis y evaluación de la seguridad alimentaria (AESA)","Agustín Ariño Moneva (aarino@unizar.es) "]
[null,"Técnicas de análisis biológicos: MOLECULAR","Electroforesis","Horizontal","Mini-Sub® Cell GT Systems. Bio-Rad ","Análisis y evaluación de la seguridad alimentaria","A06_17R: Análisis y evaluación de la seguridad alimentaria (AESA)","Agustín Ariño Moneva (aarino@unizar.es) "]
[null,"Técnicas de análisis biológicos: MOLECULAR","Electroforesis","Horizontal","Sub-Cell® Model 192 Cell. Bio-Rad","Análisis y evaluación de la seguridad alimentaria","A06_17R: Análisis y evaluación de la seguridad alimentaria (AESA)","Agustín Ariño Moneva (aarino@unizar.es) "]
[null,"Técnicas de análisis biológicos: MOLECULAR","Electroforesis","Electroforesis","Fuente: PowerPacTM Basic Power Supply. Bio-Rad","Análisis y evaluación de la seguridad alimentaria","A06_17R: Análisis y evaluación de la seguridad alimentaria (AESA)","Agustín Ariño Moneva (aarino@unizar.es) "]
[null,"Técnicas de análisis biológicos: MOLECULAR","Termobloque","Termobloque","Grant Bio PCH1. Grant Instruments Ltd","Análisis y evaluación de la seguridad alimentaria","A06_17R: Análisis y evaluación de la seguridad alimentaria (AESA)","Agustín Ariño Moneva (aarino@unizar.es) "]
[null,"Limpieza y esterilización","Cámara UV","Cámara UV",null,"Análisis y evaluación de la seguridad alimentaria","A06_17R: Análisis y evaluación de la seguridad alimentaria (AESA)","Agustín Ariño Moneva (aarino@unizar.es) "]
[null,"Preparación, procesamiento y conservación de muestras","Homogenizador","Homogenizador","Stomacher®","Análisis y evaluación de la seguridad alimentaria","A06_17R: Análisis y evaluación de la seguridad alimentaria (AESA)","Agustín Ariño Moneva (aarino@unizar.es) "]
[null,"Técnicas instrumentales análisis químicos","Espectrofotómetro","UV/Vis",null,"Análisis y evaluación de la seguridad alimentaria","A06_17R: Análisis y evaluación de la seguridad alimentaria (AESA)","Agustín Ariño Moneva (aarino@unizar.es) "]
[null,"Técnicas instrumentales análisis químicos","Cromatógrafo","Inmunocromatografía",null,"Análisis y evaluación de la seguridad alimentaria","A06_17R: Análisis y evaluación de la seguridad alimentaria (AESA)","Agustín Ariño Moneva (aarino@unizar.es) "]
[null,"Técnicas instrumentales análisis químicos","Cromatógrafo","Cromatografía permeación en gel (GPC)",null,"Análisis y evaluación de la seguridad alimentaria","A06_17R: Análisis y evaluación de la seguridad alimentaria (AESA)","Agustín Ariño Moneva (aarino@unizar.es) "]
[null,"Preparación, procesamiento y conservación de muestras","Evaporador / Concentrador","Evaporador","TurboVap® II. Biotage","Análisis y evaluación de la seguridad alimentaria","A06_17R: Análisis y evaluación de la seguridad alimentaria (AESA)","Agustín Ariño Moneva (aarino@unizar.es) "]
[null,"Análisis de agua, materia prima y alimentos","Análisis grasa","Grasa Soxhlet","Soxtec® System HT-2","Análisis y evaluación de la seguridad alimentaria","A06_17R: Análisis y evaluación de la seguridad alimentaria (AESA)","Agustín Ariño Moneva (aarino@unizar.es) "]
[null,"Técnicas de análisis biológicos: MOLECULAR","PCR","PCR",null,"Biología molecular aplicada a la sanidad y producción vegetal.","A11_17R: Producción Vegetal Sostenible (PROVESOS)\nA12_17R: Fruticultura. Caracterización, adaptación y mejora genética","Pilar Errea Abad (perrea@aragon.es) "]
[null,"Técnicas de análisis biológicos: MOLECULAR","Electroforesis","Electroforesis",null,"Biología molecular aplicada a la sanidad y producción vegetal.","A11_17R: Producción Vegetal Sostenible (PROVESOS)\nA12_17R: Fruticultura. Caracterización, adaptación y mejora genética","Pilar Errea Abad (perrea@aragon.es) "]
[null,"Técnicas de análisis biológicos: MOLECULAR","Transiluminador","Transiluminador","Syngene™ Gbox","Biología molecular aplicada a la sanidad y producción vegetal.","A11_17R: Producción Vegetal Sostenible (PROVESOS)\nA12_17R: Fruticultura. Caracterización, adaptación y mejora genética","Pilar Errea Abad (perrea@aragon.es) "]
[null,"Técnicas de análisis biológicos: MOLECULAR","Fluorímetro","Fluorometría","Invitrogen™ Qubit™ 3.0","Biología molecular aplicada a la sanidad y producción vegetal.","A11_17R: Producción Vegetal Sostenible (PROVESOS)\nA12_17R: Fruticultura. Caracterización, adaptación y mejora genética","Pilar Errea Abad (perrea@aragon.es) "]
[null,"Preparación, procesamiento y conservación de muestras","Homogenizador","Homogenizador","TissueLyser II. Qiagen","Biología molecular aplicada a la sanidad y producción vegetal.","A11_17R: Producción Vegetal Sostenible (PROVESOS)\nA12_17R: Fruticultura. Caracterización, adaptación y mejora genética","Pilar Errea Abad (perrea@aragon.es) "]
[null,"Técnicas instrumentales análisis químicos","Espectrofotómetro","UV/Vis","SmartSpec™3000. Bio-Rad ","Biología molecular aplicada a la sanidad y producción vegetal.","A11_17R: Producción Vegetal Sostenible (PROVESOS)\nA12_17R: Fruticultura. Caracterización, adaptación y mejora genética","Pilar Errea Abad (perrea@aragon.es) "]
[null,"Técnicas instrumentales análisis químicos","Espectrofotómetro","UV/Vis","Libra S22 UV/Vis. Biochrom","Biología molecular aplicada a la sanidad y producción vegetal.","A11_17R: Producción Vegetal Sostenible (PROVESOS)\nA12_17R: Fruticultura. Caracterización, adaptación y mejora genética","Pilar Errea Abad (perrea@aragon.es) "]
[null,"Preparación, procesamiento y conservación de muestras","Centrífuga / Ultracentrífuga / Microcentrífuga","Centrífuga - Microcentrífuga","5415D. Eppendorf","Biología molecular aplicada a la sanidad y producción vegetal.","A11_17R: Producción Vegetal Sostenible (PROVESOS)\nA12_17R: Fruticultura. Caracterización, adaptación y mejora genética","Pilar Errea Abad (perrea@aragon.es) "]
[null,"Preparación, procesamiento y conservación de muestras","Centrífuga / Ultracentrífuga / Microcentrífuga","Centrífuga Refrigerada","3-15K. Sigma","Biología molecular aplicada a la sanidad y producción vegetal.","A11_17R: Producción Vegetal Sostenible (PROVESOS)\nA12_17R: Fruticultura. Caracterización, adaptación y mejora genética","Pilar Errea Abad (perrea@aragon.es) "]
[null,"Preparación, procesamiento y conservación de muestras","Centrífuga / Ultracentrífuga / Microcentrífuga","Centrífuga Vacío","miVac Duo Concentrator. Genevac™ ","Biología molecular aplicada a la sanidad y producción vegetal.","A11_17R: Producción Vegetal Sostenible (PROVESOS)\nA12_17R: Fruticultura. Caracterización, adaptación y mejora genética","Pilar Errea Abad (perrea@aragon.es) "]
[null,"Preparación, procesamiento y conservación de muestras","Centrífuga / Ultracentrífuga / Microcentrífuga","Placas","LMC-3000. Biosan","Biología molecular aplicada a la sanidad y producción vegetal.","A11_17R: Producción Vegetal Sostenible (PROVESOS)\nA12_17R: Fruticultura. Caracterización, adaptación y mejora genética","Pilar Errea Abad (perrea@aragon.es) "]
[null,"Técnicas de análisis biológicos: MOLECULAR","Crosslinker UV","Crosslinker",null,"Sanidad Vegetal","A11_17R: Producción Vegetal Sostenible (PROVESOS)","Fernando Escriu Paradell (fescriu@aragon.es) "]
[null,"Análisis de agua, materia prima y alimentos","Medidor radiación PAR","Fotosíntesis",null,"Sanidad Vegetal","A11_17R: Producción Vegetal Sostenible (PROVESOS)","Fernando Escriu Paradell (fescriu@aragon.es) "]
[null,"Preparación, procesamiento y conservación de muestras","Liofilizador","Liofilizador",null,"Sanidad Vegetal","A11_17R: Producción Vegetal Sostenible (PROVESOS)","Fernando Escriu Paradell (fescriu@aragon.es) "]
[null,"Análisis de agua, materia prima y alimentos","Penetrómetro",null,null,"Sanidad Vegetal","A11_17R: Producción Vegetal Sostenible (PROVESOS)","Fernando Escriu Paradell (fescriu@aragon.es) "]
[null,"Microscopía","Estereomicroscopio","Estereomicroscopio","Ivymen","Sanidad Vegetal","A11_17R: Producción Vegetal Sostenible (PROVESOS)","Fernando Escriu Paradell (fescriu@aragon.es) "]
[null,"Microscopía","Estereomicroscopio","Estereomicroscopio","Richer","Sanidad Vegetal","A11_17R: Producción Vegetal Sostenible (PROVESOS)","Fernando Escriu Paradell (fescriu@aragon.es) "]
[null,"Microscopía","Estereomicroscopio","Estereomicroscopio","Euromex","Sanidad Vegetal","A11_17R: Producción Vegetal Sostenible (PROVESOS)","Fernando Escriu Paradell (fescriu@aragon.es) "]
[null,"Cámaras, armarios refrigerados","Cámara climática",null,null,"Sanidad Vegetal","A11_17R: Producción Vegetal Sostenible (PROVESOS)","Fernando Escriu Paradell (fescriu@aragon.es) "]
[null,"Cámaras, armarios refrigerados","Cámara saneamiento","Material vegetal",null,"Sanidad Vegetal","A11_17R: Producción Vegetal Sostenible (PROVESOS)","Fernando Escriu Paradell (fescriu@aragon.es) "]
[null,"Cámaras, armarios refrigerados","Cámara climática",null,null,"Sanidad Vegetal","A11_17R: Producción Vegetal Sostenible (PROVESOS)","Fernando Escriu Paradell (fescriu@aragon.es) "]
[null,"Microscopía","Microscopio","Fluorescencia","Olympus CX 41","Producción Vegetal","A11_17R: Producción Vegetal Sostenible (PROVESOS)\nT07_17R: Alimentos de Origen Vegetal (GIAOVE)","A11_17R: Joaquín Aibar Lete (jaibar@unizar.es)\nT07_17R: Juan José Barriuso Vargas (barriuso@unizar.es)\n"]
[null,"Microscopía","Estereomicroscopio","Estereomicroscopio","Olympus SZX9 / optika 4083B9 ","Producción Vegetal","A11_17R: Producción Vegetal Sostenible (PROVESOS)\nT07_17R: Alimentos de Origen Vegetal (GIAOVE)","A11_17R: Joaquín Aibar Lete (jaibar@unizar.es)\nT07_17R: Juan José Barriuso Vargas (barriuso@unizar.es)\n"]
[null,"Barreras de protección y seguridad biológica","Cabina de flujo laminar","Vertical","BV-100. Telstar","Producción Vegetal","A11_17R: Producción Vegetal Sostenible (PROVESOS)\nT07_17R: Alimentos de Origen Vegetal (GIAOVE)","A11_17R: Joaquín Aibar Lete (jaibar@unizar.es)\nT07_17R: Juan José Barriuso Vargas (barriuso@unizar.es)\n"]
[null,"Preparación, procesamiento y conservación de muestras","Autoclaves","Gran capacidad 50L","Autester mod 437 G Pselecta","Producción Vegetal","A11_17R: Producción Vegetal Sostenible (PROVESOS)\nT07_17R: Alimentos de Origen Vegetal (GIAOVE)","A11_17R: Joaquín Aibar Lete (jaibar@unizar.es)\nT07_17R: Juan José Barriuso Vargas (barriuso@unizar.es)\n"]
[null,"Técnicas instrumentales análisis físicos","Medidor de clorofila","Clorofila","Chlorophyll Meter SPAD-502. Konica Minolta","Producción Vegetal","A11_17R: Producción Vegetal Sostenible (PROVESOS)","A11_17R: Joaquín Aibar Lete (jaibar@unizar.es)"]
[null,"Técnicas instrumentales análisis químicos","Fluorímetro","Clorofila","Fluorímetro PEA (Plant Eficiencia Analizer). Hansatech Instruments","Producción Vegetal","A11_17R: Producción Vegetal Sostenible (PROVESOS)","A11_17R: Joaquín Aibar Lete (jaibar@unizar.es)"]
[null,"Análisis de agua, materia prima y alimentos","Medidor de humedad y peso específico grano",null,"GAC® 2100 Grain Analysis Computer. Dickey John®","Producción Vegetal","A11_17R: Producción Vegetal Sostenible (PROVESOS)","A11_17R: Joaquín Aibar Lete (jaibar@unizar.es)"]
[null,"Análisis de agua, materia prima y alimentos","Ceptómetro",null,"AccuPAR PAR/LAI Ceptometer. Meter Group","Producción Vegetal","A11_17R: Producción Vegetal Sostenible (PROVESOS)","A11_17R: Joaquín Aibar Lete (jaibar@unizar.es)"]
[null,"Barreras de protección y seguridad biológica","Cabina de flujo laminar","Vertical/PCR","Mini V/PCR. Telstar","Cultivo in vitro de material vegetal","A12_17R: Fruticultura. Caracterización, adaptación y mejora genética","Pilar Errea Abad (perrea@aragon.es"]
[null,"Barreras de protección y seguridad biológica","Cabina de extracción de gases",null,"ESCO SMART CONTROL","Cultivo in vitro de material vegetal","A12_17R: Fruticultura. Caracterización, adaptación y mejora genética","Pilar Errea Abad (perrea@aragon.es"]
[null,"Cámaras, armarios refrigerados","Cámara","Cámara cultivo material vegetal in vitro",null,"Cultivo in vitro de material vegetal","A12_17R: Fruticultura. Caracterización, adaptación y mejora genética","Pilar Errea Abad (perrea@aragon.es"]
[null,"Específico: Histología","Específico: Lab. Histología","Estación de inclusión: parafina e historesina","EG-1140. Leica","Fisiología vegetal","A12_17R: Fruticultura. Caracterización, adaptación y mejora genética","Pilar Errea Abad (perrea@aragon.es) "]
[null,"Específico: Histología","Específico: Lab. Histología","Microtomo de rotación","Biocut","Fisiología vegetal","A12_17R: Fruticultura. Caracterización, adaptación y mejora genética","Pilar Errea Abad (perrea@aragon.es) "]
[null,"Específico: Histología","Específico: Lab. Histología","Ultramicrotomo: parafina y resina","Ultracut-E. Rechert-Jung","Fisiología vegetal","A12_17R: Fruticultura. Caracterización, adaptación y mejora genética","Pilar Errea Abad (perrea@aragon.es) "]
[null,"Específico: Histología","Específico: Lab. Histología","Vibratomo","OTS-4500. Warner Instruments","Fisiología vegetal","A12_17R: Fruticultura. Caracterización, adaptación y mejora genética","Pilar Errea Abad (perrea@aragon.es) "]
[null,"Microscopía","Microscopio","Fluorescencia","DM2500. Leica Microsystems","Fisiología vegetal","A12_17R: Fruticultura. Caracterización, adaptación y mejora genética","Pilar Errea Abad (perrea@aragon.es) "]
[null,"Microscopía","Microscopio","Fluorescencia","BH2-RFCA. Olimpus","Fisiología vegetal","A12_17R: Fruticultura. Caracterización, adaptación y mejora genética","Pilar Errea Abad (perrea@aragon.es) "]
[null,"Microscopía","Microscopio","Fluorescencia","Wetzlar Ortholux II. Leitz","Fisiología vegetal","A12_17R: Fruticultura. Caracterización, adaptación y mejora genética","Pilar Errea Abad (perrea@aragon.es) "]
[null,"Microscopía","Estereomicroscopio","Estereomicroscopio","WildM8. Leica","Fisiología vegetal","A12_17R: Fruticultura. Caracterización, adaptación y mejora genética","Pilar Errea Abad (perrea@aragon.es) "]
[null,"Imagen y color","Análisis de imagen","Analizador de imagen","Quantimet 570 C","Fisiología vegetal","A12_17R: Fruticultura. Caracterización, adaptación y mejora genética","Pilar Errea Abad (perrea@aragon.es) "]
[null,"Imagen y color","Análisis de imagen","Analizador de imagen","Quantimet Q550","Fisiología vegetal","A12_17R: Fruticultura. Caracterización, adaptación y mejora genética","Pilar Errea Abad (perrea@aragon.es) "]
[null,"Específico: Histología","Específico: Lab. Histología","Dispensador de formaldehido",null,"Fisiología vegetal","A12_17R: Fruticultura. Caracterización, adaptación y mejora genética","Pilar Errea Abad (perrea@aragon.es) "]
[null,"Preparación, procesamiento y conservación de muestras","Purificador de agua","Purificador agua","Wasserlab (tipo II)","Fisiología vegetal","A12_17R: Fruticultura. Caracterización, adaptación y mejora genética","Pilar Errea Abad (perrea@aragon.es) "]
[null,"Análisis de agua, materia prima y alimentos","Penetrómetro",null,null,"Material vegetal","A12_17R: Fruticultura. Caracterización, adaptación y mejora genética","Pilar Errea Abad (perrea@aragon.es) "]
[null,"Análisis de agua, materia prima y alimentos","Refractómetro",null,null,"Material vegetal","A12_17R: Fruticultura. Caracterización, adaptación y mejora genética","Pilar Errea Abad (perrea@aragon.es) "]
[null,"Análisis de agua, materia prima y alimentos","Almidómetro",null,null,"Material vegetal","A12_17R: Fruticultura. Caracterización, adaptación y mejora genética","Pilar Errea Abad (perrea@aragon.es) "]
[null,"Técnicas instrumentales análisis físicos","Colorímetro","Colorimetría",null,"Material vegetal","A12_17R: Fruticultura. Caracterización, adaptación y mejora genética","Pilar Errea Abad (perrea@aragon.es) "]
[null,"Análisis de agua, materia prima y alimentos","Titulador",null,"785DMP Titrino. Metrohm","Material vegetal","A12_17R: Fruticultura. Caracterización, adaptación y mejora genética","Pilar Errea Abad (perrea@aragon.es) "]
[null,"Técnicas de análisis biológicos: MOLECULAR","PCR","PCR (qPCR)","BIORAD CFX96TM Real Time System","Biología molecular aplicada a la sanidad y producción animal","A13_17R: Zoonosis Bacterianas: Brucelosis y Salmonelosis (ZooBac)\nA14_17R: Sistemas agroganaderos alimentarios sostenibles (SAGAS)","Jorge Hugo Calvo Lacosta (jhcalvo@aragon.es) "]
[null,"Técnicas de análisis biológicos: MOLECULAR","PCR","PCR (qPCR)","7500 Real Time PCR System Applied BiosistemTM","Biología molecular aplicada a la sanidad y producción animal","A13_17R: Zoonosis Bacterianas: Brucelosis y Salmonelosis (ZooBac)\nA14_17R: Sistemas agroganaderos alimentarios sostenibles (SAGAS)","Jorge Hugo Calvo Lacosta (jhcalvo@aragon.es) "]
[null,"Técnicas de análisis biológicos: MOLECULAR","Horno de hibridación","Horno de hibridación","ECOGEN","Biología molecular aplicada a la sanidad y producción animal","A13_17R: Zoonosis Bacterianas: Brucelosis y Salmonelosis (ZooBac)\nA14_17R: Sistemas agroganaderos alimentarios sostenibles (SAGAS)","Jorge Hugo Calvo Lacosta (jhcalvo@aragon.es) "]
[null,"Técnicas instrumentales análisis químicos","Nanofotómetro",null,"IMPLEN","Biología molecular aplicada a la sanidad y producción animal","A13_17R: Zoonosis Bacterianas: Brucelosis y Salmonelosis (ZooBac)\nA14_17R: Sistemas agroganaderos alimentarios sostenibles (SAGAS)","Jorge Hugo Calvo Lacosta (jhcalvo@aragon.es) "]
[null,"Técnicas de análisis biológicos: MOLECULAR","PCR","PCR (qPCR)","GeneAmp® PCR System. Applied Biosystems","Biología molecular aplicada a la sanidad y producción animal","A13_17R: Zoonosis Bacterianas: Brucelosis y Salmonelosis (ZooBac)\nA14_17R: Sistemas agroganaderos alimentarios sostenibles (SAGAS)","Jorge Hugo Calvo Lacosta (jhcalvo@aragon.es) "]
[null,"Técnicas de análisis biológicos: MOLECULAR","PCR","PCR","MyCycler™ Thermal Cycler. Bio-Rad","Biología molecular aplicada a la sanidad y producción animal","A13_17R: Zoonosis Bacterianas: Brucelosis y Salmonelosis (ZooBac)\nA14_17R: Sistemas agroganaderos alimentarios sostenibles (SAGAS)","Jorge Hugo Calvo Lacosta (jhcalvo@aragon.es) "]
[null,"Técnicas de análisis biológicos: MOLECULAR","PCR","PCR","Mastercycler® Gradient. Eppendorf","Biología molecular aplicada a la sanidad y producción animal","A13_17R: Zoonosis Bacterianas: Brucelosis y Salmonelosis (ZooBac)\nA14_17R: Sistemas agroganaderos alimentarios sostenibles (SAGAS)","Jorge Hugo Calvo Lacosta (jhcalvo@aragon.es) "]
[null,"Técnicas de análisis biológicos: MOLECULAR","PCR","PCR","Biometra T3000 Thermocycler","Biología molecular aplicada a la sanidad y producción animal","A13_17R: Zoonosis Bacterianas: Brucelosis y Salmonelosis (ZooBac)\nA14_17R: Sistemas agroganaderos alimentarios sostenibles (SAGAS)","Jorge Hugo Calvo Lacosta (jhcalvo@aragon.es) "]
[null,"Técnicas de análisis biológicos: MOLECULAR","Documentación de gel","Sistema de documentación de gel","Gel Doc™ 2000. Bio-Rad","Biología molecular aplicada a la sanidad y producción animal","A13_17R: Zoonosis Bacterianas: Brucelosis y Salmonelosis (ZooBac)\nA14_17R: Sistemas agroganaderos alimentarios sostenibles (SAGAS)","Jorge Hugo Calvo Lacosta (jhcalvo@aragon.es) "]
[null,"Técnicas de análisis biológicos: MOLECULAR","Extracción ácidos nucleicos","Extracción ácidos nucleicos","ABI PRISM™ 6100 Nucleic Acid Prep Station. Applied Biosystems","Biología molecular aplicada a la sanidad y producción animal","A13_17R: Zoonosis Bacterianas: Brucelosis y Salmonelosis (ZooBac)\nA14_17R: Sistemas agroganaderos alimentarios sostenibles (SAGAS)","Jorge Hugo Calvo Lacosta (jhcalvo@aragon.es) "]
[null,"Técnicas de análisis biológicos: MOLECULAR","Electroforesis","Horizontal","Wide Mini-Sub®Cell GT. Bio-Rad","Biología molecular aplicada a la sanidad y producción animal","A13_17R: Zoonosis Bacterianas: Brucelosis y Salmonelosis (ZooBac)\nA14_17R: Sistemas agroganaderos alimentarios sostenibles (SAGAS)","Jorge Hugo Calvo Lacosta (jhcalvo@aragon.es) "]
[null,"Técnicas de análisis biológicos: MOLECULAR","Electroforesis","Horizontal","Mini-Sub® Cell GT Systems. Bio-Rad ","Biología molecular aplicada a la sanidad y producción animal","A13_17R: Zoonosis Bacterianas: Brucelosis y Salmonelosis (ZooBac)\nA14_17R: Sistemas agroganaderos alimentarios sostenibles (SAGAS)","Jorge Hugo Calvo Lacosta (jhcalvo@aragon.es) "]
[null,"Técnicas de análisis biológicos: MOLECULAR","Electroforesis","Horizontal","Maxigel ECO 2. Apelex","Biología molecular aplicada a la sanidad y producción animal","A13_17R: Zoonosis Bacterianas: Brucelosis y Salmonelosis (ZooBac)\nA14_17R: Sistemas agroganaderos alimentarios sostenibles (SAGAS)","Jorge Hugo Calvo Lacosta (jhcalvo@aragon.es) "]
[null,"Técnicas de análisis biológicos: MOLECULAR","Electroforesis","Electroforesis","Fuente: PowerPac™ 200. Bio-Rad","Biología molecular aplicada a la sanidad y producción animal","A13_17R: Zoonosis Bacterianas: Brucelosis y Salmonelosis (ZooBac)\nA14_17R: Sistemas agroganaderos alimentarios sostenibles (SAGAS)","Jorge Hugo Calvo Lacosta (jhcalvo@aragon.es) "]
[null,"Barreras de protección y seguridad biológica","Cabina de extracción de gases ",null,"OR-ST 1500. Burdinola","Biología molecular aplicada a la sanidad y producción animal","A13_17R: Zoonosis Bacterianas: Brucelosis y Salmonelosis (ZooBac)\nA14_17R: Sistemas agroganaderos alimentarios sostenibles (SAGAS)","Jorge Hugo Calvo Lacosta (jhcalvo@aragon.es) "]
[null,"Preparación, procesamiento y conservación de muestras","Homogenizador","Homogenizador","Tissuelyser II. Qiagen","Biología molecular aplicada a la sanidad y producción animal","A13_17R: Zoonosis Bacterianas: Brucelosis y Salmonelosis (ZooBac)\nA14_17R: Sistemas agroganaderos alimentarios sostenibles (SAGAS)","Jorge Hugo Calvo Lacosta (jhcalvo@aragon.es) "]
[null,"Preparación, procesamiento y conservación de muestras","Centrífuga / Ultracentrífuga / Microcentrífuga","Centrífuga Vacío","miVac Duo Concentrator. Genevac™","Biología molecular aplicada a la sanidad y producción animal","A13_17R: Zoonosis Bacterianas: Brucelosis y Salmonelosis (ZooBac)\nA14_17R: Sistemas agroganaderos alimentarios sostenibles (SAGAS)","Jorge Hugo Calvo Lacosta (jhcalvo@aragon.es) "]
[null,"Preparación, procesamiento y conservación de muestras","Purificador de agua","Purificador agua","Ultramatic (tipo 1 y 2). Wasserlab","Biología molecular aplicada a la sanidad y producción animal","A13_17R: Zoonosis Bacterianas: Brucelosis y Salmonelosis (ZooBac)\nA14_17R: Sistemas agroganaderos alimentarios sostenibles (SAGAS)","Jorge Hugo Calvo Lacosta (jhcalvo@aragon.es) "]
[null,"Limpieza y esterilización","Termodesinfectadora","Termodesinfectadora","Miele","Biología molecular aplicada a la sanidad y producción animal","A13_17R: Zoonosis Bacterianas: Brucelosis y Salmonelosis (ZooBac)\nA14_17R: Sistemas agroganaderos alimentarios sostenibles (SAGAS)","Jorge Hugo Calvo Lacosta (jhcalvo@aragon.es) "]
[null,"Técnicas de análisis biológicos: GENÉTICA","NGS y Arrays","Estación de trabajo para análisis masivos de NGS y arrays",null,"Biología molecular aplicada a la sanidad y producción animal","A13_17R: Zoonosis Bacterianas: Brucelosis y Salmonelosis (ZooBac)\nA14_17R: Sistemas agroganaderos alimentarios sostenibles (SAGAS)","Jorge Hugo Calvo Lacosta (jhcalvo@aragon.es) "]
[null,"Técnicas de análisis biológicos: MOLECULAR","Termobloque","Termobloque","QBD2. Grant Instruments™","Brucelosis P3","A13_17R: Zoonosis Bacterianas: Brucelosis y Salmonelosis (ZooBac)","Pilar María Muñoz Álvaro (pmmunnoz@cita-aragon.es)"]
[null,"Técnicas de análisis biológicos: INMUNOENSAYO","ELISA","Lector de placas","Multiskan RC 351. Labsystem","Brucelosis P3","A13_17R: Zoonosis Bacterianas: Brucelosis y Salmonelosis (ZooBac)","Pilar María Muñoz Álvaro (pmmunnoz@cita-aragon.es)"]
[null,"Técnicas de análisis biológicos: INMUNOENSAYO","ELISA","Lavador de placas","Nunc-ImmunoTM Wash ","Brucelosis P3","A13_17R: Zoonosis Bacterianas: Brucelosis y Salmonelosis (ZooBac)","Pilar María Muñoz Álvaro (pmmunnoz@cita-aragon.es)"]
[null,"Técnicas de análisis biológicos: MOLECULAR","Electroforesis","Horizontal","Fuente: Atom","Brucelosis P3","A13_17R: Zoonosis Bacterianas: Brucelosis y Salmonelosis (ZooBac)","Pilar María Muñoz Álvaro (pmmunnoz@cita-aragon.es)"]
[null,"Preparación, procesamiento y conservación de muestras","Bomba de vacío","Bomba de vacío","Millipore","Brucelosis P3","A13_17R: Zoonosis Bacterianas: Brucelosis y Salmonelosis (ZooBac)","Pilar María Muñoz Álvaro (pmmunnoz@cita-aragon.es)"]
[null,"Preparación, procesamiento y conservación de muestras","Sistema automatizado preparación muestras","Autómata preparador de medios","AES 8. APS ","Brucelosis P3","A13_17R: Zoonosis Bacterianas: Brucelosis y Salmonelosis (ZooBac)","Pilar María Muñoz Álvaro (pmmunnoz@cita-aragon.es)"]
[null,"Barreras de protección y seguridad biológica","SAS (Sterile Acces System)",null,"E19690. Matachana","Brucelosis P3","A13_17R: Zoonosis Bacterianas: Brucelosis y Salmonelosis (ZooBac)","Pilar María Muñoz Álvaro (pmmunnoz@cita-aragon.es)"]
[null,"Limpieza y esterilización","Desinfectadora","Formalina / amoniaco","Gteck","Brucelosis P3","A13_17R: Zoonosis Bacterianas: Brucelosis y Salmonelosis (ZooBac)","Pilar María Muñoz Álvaro (pmmunnoz@cita-aragon.es)"]
[null,"Limpieza y esterilización","Termodesinfectadora","Termodesinfectadora","Mielabor G7783. Miele Professional","Brucelosis P3","A13_17R: Zoonosis Bacterianas: Brucelosis y Salmonelosis (ZooBac)","Pilar María Muñoz Álvaro (pmmunnoz@cita-aragon.es)"]
[null,"Barreras de protección y seguridad biológica","Cabina de seguridad biológica ","Clase II-A","Bio-II-A. Telstar® ","Brucelosis P3","A13_17R: Zoonosis Bacterianas: Brucelosis y Salmonelosis (ZooBac)","Pilar María Muñoz Álvaro (pmmunnoz@cita-aragon.es)"]
[null,"Estufas, hornos, incubadoras, baños","Incubadora","CO2","New Brunswick","Brucelosis P3","A13_17R: Zoonosis Bacterianas: Brucelosis y Salmonelosis (ZooBac)","Pilar María Muñoz Álvaro (pmmunnoz@cita-aragon.es)"]
[null,"Estufas, hornos, incubadoras, baños","Incubadora","CO2 / camisa de agua","FormaTM3121. Thermo ScientificTM","Brucelosis P3","A13_17R: Zoonosis Bacterianas: Brucelosis y Salmonelosis (ZooBac)","Pilar María Muñoz Álvaro (pmmunnoz@cita-aragon.es)"]
[null,"Estufas, hornos, incubadoras, baños","Incubadora","CO2","Thermo-Heracell®. Thermo ScientificTM ","Brucelosis P3","A13_17R: Zoonosis Bacterianas: Brucelosis y Salmonelosis (ZooBac)","Pilar María Muñoz Álvaro (pmmunnoz@cita-aragon.es)"]
[null,"Técnicas instrumentales análisis químicos","Espectrofotómetro","UV/Vis","Bio QuestTM ","Brucelosis P3","A13_17R: Zoonosis Bacterianas: Brucelosis y Salmonelosis (ZooBac)","Pilar María Muñoz Álvaro (pmmunnoz@cita-aragon.es)"]
[null,"Preparación, procesamiento y conservación de muestras","Autoclaves","Gran capacidad 70L","Selecta","Brucelosis P3","A13_17R: Zoonosis Bacterianas: Brucelosis y Salmonelosis (ZooBac)","Pilar María Muñoz Álvaro (pmmunnoz@cita-aragon.es)"]
[null,"Microscopía","Microscopio","Convencional","208955 Labophot. Nikon","Brucelosis P3","A13_17R: Zoonosis Bacterianas: Brucelosis y Salmonelosis (ZooBac)","Pilar María Muñoz Álvaro (pmmunnoz@cita-aragon.es)"]
[null,"Microscopía","Microscopio","Invertido","TMS. Nikon","Brucelosis P3","A13_17R: Zoonosis Bacterianas: Brucelosis y Salmonelosis (ZooBac)","Pilar María Muñoz Álvaro (pmmunnoz@cita-aragon.es)"]
[null,"Barreras de protección y seguridad biológica","Cabina de seguridad biológica ","Clase II-A","Telstar® Bio-II-B","Brucelosis P3","A13_17R: Zoonosis Bacterianas: Brucelosis y Salmonelosis (ZooBac)","Pilar María Muñoz Álvaro (pmmunnoz@cita-aragon.es)"]
[null,"Preparación, procesamiento y conservación de muestras","Centrífuga / Ultracentrífuga / Microcentrífuga","Centrífuga Refrigerada - Alta velocidad","Centrikon T124. Kontron Instruments","Brucelosis P3","A13_17R: Zoonosis Bacterianas: Brucelosis y Salmonelosis (ZooBac)","Pilar María Muñoz Álvaro (pmmunnoz@cita-aragon.es)"]
[null,"Preparación, procesamiento y conservación de muestras","Centrífuga / Ultracentrífuga / Microcentrífuga","Ultracentrífuga - Alta velocidad","Centrikon T-2060. Kontron Instruments","Brucelosis P3","A13_17R: Zoonosis Bacterianas: Brucelosis y Salmonelosis (ZooBac)","Pilar María Muñoz Álvaro (pmmunnoz@cita-aragon.es)"]
[null,"Estufas, hornos, incubadoras, baños","Incubadora","Orbital","New Brunswick™ Innova® 43/43R","Brucelosis P3","A13_17R: Zoonosis Bacterianas: Brucelosis y Salmonelosis (ZooBac)","Pilar María Muñoz Álvaro (pmmunnoz@cita-aragon.es)"]
[null,"Preparación, procesamiento y conservación de muestras","Filtro tangencial","Filtración","Pellicon Cassete System con bomba 7518-60. Millipore ","Brucelosis P3","A13_17R: Zoonosis Bacterianas: Brucelosis y Salmonelosis (ZooBac)","Pilar María Muñoz Álvaro (pmmunnoz@cita-aragon.es)"]
[null,"Preparación, procesamiento y conservación de muestras","Autoclaves","Vertical con secado","AE-75 Dry. Raypa","Brucelosis P3","A13_17R: Zoonosis Bacterianas: Brucelosis y Salmonelosis (ZooBac)","Pilar María Muñoz Álvaro (pmmunnoz@cita-aragon.es)"]
[null,"Preparación, procesamiento y conservación de muestras","Liofilizador","Liofilizador","Telstar® Lyoalfa 6","Brucelosis P3","A13_17R: Zoonosis Bacterianas: Brucelosis y Salmonelosis (ZooBac)","Pilar María Muñoz Álvaro (pmmunnoz@cita-aragon.es)"]
[null,"Preparación, procesamiento y conservación de muestras","Homogenizador","Homogenizador ultrasonidos","Labsonic® M. Sartorius ","Brucelosis P3","A13_17R: Zoonosis Bacterianas: Brucelosis y Salmonelosis (ZooBac)","Pilar María Muñoz Álvaro (pmmunnoz@cita-aragon.es)"]
[null,"Técnicas instrumentales análisis químicos","Espectrofotómetro","Microvolúmenes","BioteK-EPOCHTM","Serología","A13_17R: Zoonosis Bacterianas: Brucelosis y Salmonelosis (ZooBac)","Clara María Marín Alcalá (cmarin@cita-aragon.es) "]
[null,"Técnicas de análisis biológicos: INMUNOENSAYO","ELISA","Lavador de placas","Nunc-ImmunoTM Wash ","Serología","A13_17R: Zoonosis Bacterianas: Brucelosis y Salmonelosis (ZooBac)","Clara María Marín Alcalá (cmarin@cita-aragon.es) "]
[null,"Barreras de protección y seguridad biológica","Cabina de extracción de gases",null,"OR-ST1500. Burdinola ","Serología","A13_17R: Zoonosis Bacterianas: Brucelosis y Salmonelosis (ZooBac)","Clara María Marín Alcalá (cmarin@cita-aragon.es) "]
[null,"Barreras de protección y seguridad biológica","Cabina de seguridad biológica ","Clase II-A","Bio-II-A. Telstar® ","Serología","A13_17R: Zoonosis Bacterianas: Brucelosis y Salmonelosis (ZooBac)","Clara María Marín Alcalá (cmarin@cita-aragon.es) "]
[null,"Preparación, procesamiento y conservación de muestras","pHmetro",null,"GLP21. Crison","Serología","A13_17R: Zoonosis Bacterianas: Brucelosis y Salmonelosis (ZooBac)","Clara María Marín Alcalá (cmarin@cita-aragon.es) "]
[null,"Análisis de agua, materia prima y alimentos","NIR / VNIR","Analizador NIR para carne","FoodScan™ 2. FOSS ","Calidad de la canal y la carne","A14_17R: Sistemas agroganaderos alimentarios sostenibles (SAGAS)","Begoña Panea Doblado (bpanea@aragon.es)"]
[null,"Técnicas instrumentales análisis físicos","Texturómetro","Texturómetro","Modelo 5543. Instron","Calidad de la canal y la carne","A14_17R: Sistemas agroganaderos alimentarios sostenibles (SAGAS)","Begoña Panea Doblado (bpanea@aragon.es)"]
[null,"Estufas, hornos, incubadoras, baños","Baño de agua","Agua y aceite","Precisdig. P Selecta","Calidad de la canal y la carne","A14_17R: Sistemas agroganaderos alimentarios sostenibles (SAGAS)","Begoña Panea Doblado (bpanea@aragon.es)"]
[null,"Técnicas instrumentales análisis químicos","Espectrofotómetro","UV/Vis","UV 2600D. Konica Minolta","Calidad de la canal y la carne","A14_17R: Sistemas agroganaderos alimentarios sostenibles (SAGAS)","Begoña Panea Doblado (bpanea@aragon.es)"]
[null,"Análisis de agua, materia prima y alimentos","NIR / VNIR",null,null,"Digestibilidad","A14_17R: Sistemas agroganaderos alimentarios sostenibles (SAGAS)","Margalida Joy Torrens (mjoy@aragon.es)"]
[null,"Análisis de agua, materia prima y alimentos","Análisis fibra","Fibra","Ankom 220 Fiber Analyzer","Digestibilidad","A14_17R: Sistemas agroganaderos alimentarios sostenibles (SAGAS)","Margalida Joy Torrens (mjoy@aragon.es)"]
[null,"Análisis de agua, materia prima y alimentos","Análisis grasa","Solvente","Ankom XT10 Extractor","Digestibilidad","A14_17R: Sistemas agroganaderos alimentarios sostenibles (SAGAS)","Margalida Joy Torrens (mjoy@aragon.es)"]
[null,"Análisis de agua, materia prima y alimentos","Análisis energía","Bomba calorimétrica","Oxygen Bomb Calorimeter. Parr Instruments Company","Digestibilidad","A14_17R: Sistemas agroganaderos alimentarios sostenibles (SAGAS)","Margalida Joy Torrens (mjoy@aragon.es)"]
[null,"Análisis de agua, materia prima y alimentos","Análisis nitrógeno","Dumas","CE Instruments NA 2100 Protein Analyser","Digestibilidad","A14_17R: Sistemas agroganaderos alimentarios sostenibles (SAGAS)","Margalida Joy Torrens (mjoy@aragon.es)"]
[null,"Técnicas instrumentales análisis químicos","Cromatógrafo","Cromatografía líquida ultra alta resolución (UPLC)","Waters® ACQUITY UPLC / Waters® 2475 Fluorescence Multi-λ Detector.","Digestibilidad","A14_17R: Sistemas agroganaderos alimentarios sostenibles (SAGAS)","Margalida Joy Torrens (mjoy@aragon.es)"]
[null,"Técnicas instrumentales análisis químicos","Cromatógrafo","Cromatografía gases (GC)","436-GC de Scion Instruments ","Digestibilidad","A14_17R: Sistemas agroganaderos alimentarios sostenibles (SAGAS)","Margalida Joy Torrens (mjoy@aragon.es)"]
[null,"Técnicas instrumentales análisis químicos","Cromatógrafo","Cromatografía gases (GC)","HP 4890D Gas Chromatograph. Agilent Technologies","Digestibilidad","A14_17R: Sistemas agroganaderos alimentarios sostenibles (SAGAS)","Margalida Joy Torrens (mjoy@aragon.es)"]
[null,"Técnicas instrumentales análisis químicos","Espectrofotómetro ","Portátil","Helios β. Thermo Electron Corporation","Digestibilidad","A14_17R: Sistemas agroganaderos alimentarios sostenibles (SAGAS)","Margalida Joy Torrens (mjoy@aragon.es)"]
[null,"Preparación, procesamiento y conservación de muestras","Centrífuga / Ultracentrífuga / Microcentrífuga","Centrífuga - Microcentrífuga","MC12V. Sorvall","Digestibilidad","A14_17R: Sistemas agroganaderos alimentarios sostenibles (SAGAS)","Margalida Joy Torrens (mjoy@aragon.es)"]
[null,"Preparación, procesamiento y conservación de muestras","Rotavapor","Rotavapor","RVC 2-25. Martin Christ","Digestibilidad","A14_17R: Sistemas agroganaderos alimentarios sostenibles (SAGAS)","Margalida Joy Torrens (mjoy@aragon.es)"]
[null,"Estufas, hornos, incubadoras, baños","Incubadora","Agitación","Daisy II-220 Ankom Technologies.","Digestibilidad","A14_17R: Sistemas agroganaderos alimentarios sostenibles (SAGAS)","Margalida Joy Torrens (mjoy@aragon.es)"]
[null,"Limpieza y esterilización","Baño de ultrasonidos","Baño ultrasonidos","Ultrasons-HD. J.P. Selecta®","Digestibilidad","A14_17R: Sistemas agroganaderos alimentarios sostenibles (SAGAS)","Margalida Joy Torrens (mjoy@aragon.es)"]
[null,"Preparación, procesamiento y conservación de muestras","Liofilizador","Liofilizador","VirTis Genesis Wizard 2.0","Digestibilidad","A14_17R: Sistemas agroganaderos alimentarios sostenibles (SAGAS)","Margalida Joy Torrens (mjoy@aragon.es)"]
[null,"Estufas, hornos, incubadoras, baños","Estufa de secado","Gran capacidad","P Selecta®","Digestibilidad","A14_17R: Sistemas agroganaderos alimentarios sostenibles (SAGAS)","Margalida Joy Torrens (mjoy@aragon.es)"]
[null,"Estufas, hornos, incubadoras, baños","Mufla","Horno de mufla","Heron 10-PR/400 ","Digestibilidad","A14_17R: Sistemas agroganaderos alimentarios sostenibles (SAGAS)","Margalida Joy Torrens (mjoy@aragon.es)"]
[null,"Estufas, hornos, incubadoras, baños","Mufla","Horno de mufla","P Selecta®","Digestibilidad","A14_17R: Sistemas agroganaderos alimentarios sostenibles (SAGAS)","Margalida Joy Torrens (mjoy@aragon.es)"]
[null,"Preparación, procesamiento y conservación de muestras","Molino","Molino","Restch®","Digestibilidad","A14_17R: Sistemas agroganaderos alimentarios sostenibles (SAGAS)","Margalida Joy Torrens (mjoy@aragon.es)"]
[null,"Preparación, procesamiento y conservación de muestras","Molino","Molino grandes dimensiones",null,"Digestibilidad","A14_17R: Sistemas agroganaderos alimentarios sostenibles (SAGAS)","Margalida Joy Torrens (mjoy@aragon.es)"]
[null,"Estufas, hornos, incubadoras, baños","Estufa de secado","Estufa aire forzado","AFA. Dycometal Testing Technology","Digestibilidad","A14_17R: Sistemas agroganaderos alimentarios sostenibles (SAGAS)","Margalida Joy Torrens (mjoy@aragon.es)"]
[null,"Estufas, hornos, incubadoras, baños","Estufa de secado","Estufa de secado","P Selecta®","Digestibilidad","A14_17R: Sistemas agroganaderos alimentarios sostenibles (SAGAS)","Margalida Joy Torrens (mjoy@aragon.es)"]
[null,"Fisiología","Específico: fisiología digestiva","Sistema   de   fermentación in vitro ","Patente  nº P 200600043. ","Nutrición animal","A14_17R: Sistemas agroganaderos alimentarios sostenibles (SAGAS)","Manuel Fondevila Camps (mfonde@unizar.es) "]
[null,"Técnicas instrumentales análisis químicos","Cromatógrafo","Cromatografía gases (GC)","ALS 6890 Series Plus. Agilent","Nutrición animal","A14_17R: Sistemas agroganaderos alimentarios sostenibles (SAGAS)","Manuel Fondevila Camps (mfonde@unizar.es) "]
[null,"Técnicas instrumentales análisis químicos","Cromatógrafo","Cromatografía líquida HPLC","Waters®717plus Autosampler","Nutrición animal","A14_17R: Sistemas agroganaderos alimentarios sostenibles (SAGAS)","Manuel Fondevila Camps (mfonde@unizar.es) "]
[null,"Análisis de agua, materia prima y alimentos","Análisis grasa","Hidrólisis","ANKOM HCL Hydrolysis system","Nutrición animal","A14_17R: Sistemas agroganaderos alimentarios sostenibles (SAGAS)","Manuel Fondevila Camps (mfonde@unizar.es) "]
[null,"Análisis de agua, materia prima y alimentos","Análisis grasa","Solvente","ANKOM XT15 Extraction System","Nutrición animal","A14_17R: Sistemas agroganaderos alimentarios sostenibles (SAGAS)","Manuel Fondevila Camps (mfonde@unizar.es) "]
[null,"Análisis de agua, materia prima y alimentos","Análisis fibra","Fibra","ANKOM 220 Fiber Analyzer","Nutrición animal","A14_17R: Sistemas agroganaderos alimentarios sostenibles (SAGAS)","Manuel Fondevila Camps (mfonde@unizar.es) "]
[null,"Análisis de agua, materia prima y alimentos","Análisis nitrógeno","Kjeldahl","Kjeltec™ 2300Analyzer Unit FOSS","Nutrición animal","A14_17R: Sistemas agroganaderos alimentarios sostenibles (SAGAS)","Manuel Fondevila Camps (mfonde@unizar.es) "]
[null,"Estufas, hornos, incubadoras, baños","Mufla","Horno de mufla",null,"Nutrición animal","A14_17R: Sistemas agroganaderos alimentarios sostenibles (SAGAS)","Manuel Fondevila Camps (mfonde@unizar.es) "]
[null,"Específico: Reproducción","Ecógrafo ","Ecógrafo","ALOKCA","Reproducción pequeños rumiantes","A14_17R: Sistemas agroganaderos alimentarios sostenibles (SAGAS)","José Luis Alabart Álvarez (jalabart@aragon.es)"]
[null,"Específico: Reproducción","Osmómetro ","Osmómetro ","VAPRO®. Wescor","Reproducción pequeños rumiantes","A14_17R: Sistemas agroganaderos alimentarios sostenibles (SAGAS)","José Luis Alabart Álvarez (jalabart@aragon.es)"]
[null,"Específico: Reproducción","Crioconservación","Biocongelador de semen con tanque de nitrógeno",null,"Reproducción pequeños rumiantes","A14_17R: Sistemas agroganaderos alimentarios sostenibles (SAGAS)","José Luis Alabart Álvarez (jalabart@aragon.es)"]
[null,"Estufas, hornos, incubadoras, baños","Incubadora","CO2 / camisa de agua","FormaTM. Thermo ScientificTM","Reproducción pequeños rumiantes","A14_17R: Sistemas agroganaderos alimentarios sostenibles (SAGAS)","José Luis Alabart Álvarez (jalabart@aragon.es)"]
[null,"Estufas, hornos, incubadoras, baños","Incubadora","N2","Heraeus","Reproducción pequeños rumiantes","A14_17R: Sistemas agroganaderos alimentarios sostenibles (SAGAS)","José Luis Alabart Álvarez (jalabart@aragon.es)"]
[null,"Limpieza y esterilización","Baño de ultrasonidos",null,null,"Reproducción pequeños rumiantes","A14_17R: Sistemas agroganaderos alimentarios sostenibles (SAGAS)","José Luis Alabart Álvarez (jalabart@aragon.es)"]
[null,"Estufas, hornos, incubadoras, baños","Incubadora","CO2/camisa de agua","Forma TM Serie II. Thermo ScientificTM","Reproducción pequeños rumiantes","A14_17R: Sistemas agroganaderos alimentarios sostenibles (SAGAS)","José Luis Alabart Álvarez (jalabart@aragon.es)"]
[null,"Estufas, hornos, incubadoras, baños","Incubadora","CO2/N2/O2","Heracell®. Heraeus","Reproducción pequeños rumiantes","A14_17R: Sistemas agroganaderos alimentarios sostenibles (SAGAS)","José Luis Alabart Álvarez (jalabart@aragon.es)"]
[null,"Microscopía","Estereomicroscopio","Estereomicroscopio","SZH10. Olimpus","Reproducción pequeños rumiantes","A14_17R: Sistemas agroganaderos alimentarios sostenibles (SAGAS)","José Luis Alabart Álvarez (jalabart@aragon.es)"]
[null,"Microscopía","Estereomicroscopio","Estereomicroscopio","SMZ 1500. Nikon","Reproducción pequeños rumiantes","A14_17R: Sistemas agroganaderos alimentarios sostenibles (SAGAS)","José Luis Alabart Álvarez (jalabart@aragon.es)"]
[null,"Específico: Reproducción","Selladora de pajuelas","Por ultrasonidos","Cryosealer. Minitube","Reproducción pequeños rumiantes","A14_17R: Sistemas agroganaderos alimentarios sostenibles (SAGAS)","José Luis Alabart Álvarez (jalabart@aragon.es)"]
[null,"Específico: Reproducción","Micromanipulador","Micromanipulador",null,"Reproducción pequeños rumiantes","A14_17R: Sistemas agroganaderos alimentarios sostenibles (SAGAS)","José Luis Alabart Álvarez (jalabart@aragon.es)"]
[null,"Microscopía","Microscopio","Fluorescencia","Axiovert 135 Zeiss ","Reproducción pequeños rumiantes","A14_17R: Sistemas agroganaderos alimentarios sostenibles (SAGAS)","José Luis Alabart Álvarez (jalabart@aragon.es)"]
[null,"Microscopía","Objetivo laser",null,"XYclone® de Hamilton Thorne","Reproducción pequeños rumiantes","A14_17R: Sistemas agroganaderos alimentarios sostenibles (SAGAS)","José Luis Alabart Álvarez (jalabart@aragon.es)"]
[null,"Técnicas de análisis biológicos: CELULAR","Multiporador","Multiporador","Eppendorf","Reproducción pequeños rumiantes","A14_17R: Sistemas agroganaderos alimentarios sostenibles (SAGAS)","José Luis Alabart Álvarez (jalabart@aragon.es)"]
[null,"Técnicas de análisis biológicos: MOLECULAR","Purificación de ácidos nucleicos","Purificador ácidos nucleicos","KingFisher™ Duo Prime","Genética","A16_17R: Zoonosis y enfermedades emergentes de interés en salud pública","Luis Monteagudo Ibáñez (monteagu@unizar.es) "]
[null,"Barreras de protección y seguridad biológica","Cabina de seguridad biológica ","Clase II-B","Streamline Class II Biological Safety Cabinet. ESCO","Protozoosis entéricas","A16_17R: Zoonosis y enfermedades emergentes de interés en salud pública","Joaquín Quílez Cinca (jquilez@unizar.es) "]
[null,"Microscopía","Microscopio","Fluorescencia","DM2500 LED. Leica Microsystems","Reproduccción","A17_17R: RAySA: Reproducción asistida y sanidad animal","Lydia Gil Huerta (lydiagil@unizar.es) "]
[null,"Técnicas instrumentales análisis químicos","Espectrofotómetro","UV/Vis","SmartSpec Plus. BioRAD","Ictiopatología","A17_17R: RAySA: Reproducción asistida y sanidad animal","Imanol Ruiz Zarzuela (imaruiz@unizar.es) "]
[null,"Técnicas instrumentales análisis químicos","Espectrofotómetro","UV/Vis","DR 2800. Hach Lange","Ictiopatología","A17_17R: RAySA: Reproducción asistida y sanidad animal","Imanol Ruiz Zarzuela (imaruiz@unizar.es) "]
[null,"Microscopía","Microscopio","Fluorescencia","Dialux® 20 EB. Leitz","Ictiopatología","A17_17R: RAySA: Reproducción asistida y sanidad animal","Imanol Ruiz Zarzuela (imaruiz@unizar.es) "]
[null,"Microscopía","Microscopio","Convencional","DM 1000. Leica Microsystems","Ictiopatología","A17_17R: RAySA: Reproducción asistida y sanidad animal","Imanol Ruiz Zarzuela (imaruiz@unizar.es) "]
[null,"Microscopía","Microscopio","Invertido","Vert A1 FL. Axio","Ictiopatología","A17_17R: RAySA: Reproducción asistida y sanidad animal","Imanol Ruiz Zarzuela (imaruiz@unizar.es) "]
[null,"Específico: Histología","Específico: Lab. Histología","Microtomo: parafina","HM 350S. Microm Heidelberg","Ictiopatología","A17_17R: RAySA: Reproducción asistida y sanidad animal","Imanol Ruiz Zarzuela (imaruiz@unizar.es) "]
[null,"Específico: Histología","Específico: Lab. Histología","Estación de inclusión modular: parafina","EC 350-2. Myr","Ictiopatología","A17_17R: RAySA: Reproducción asistida y sanidad animal","Imanol Ruiz Zarzuela (imaruiz@unizar.es) "]
[null,"Análisis de agua, materia prima y alimentos","Ánálisis agua","Bomba/filtrado","Pall Gelman Laboratory","Ictiopatología","A17_17R: RAySA: Reproducción asistida y sanidad animal","Imanol Ruiz Zarzuela (imaruiz@unizar.es) "]
[null,"Estufas, hornos, incubadoras, baños","Incubadora","Refrigerada","Binder","Ictiopatología","A17_17R: RAySA: Reproducción asistida y sanidad animal","Imanol Ruiz Zarzuela (imaruiz@unizar.es) "]
[null,"Estufas, hornos, incubadoras, baños","Incubadora","CO2","Sanyo","Ictiopatología","A17_17R: RAySA: Reproducción asistida y sanidad animal","Imanol Ruiz Zarzuela (imaruiz@unizar.es) "]
[null,"Estufas, hornos, incubadoras, baños","Estufa de secado",null,"Binder","Ictiopatología","A17_17R: RAySA: Reproducción asistida y sanidad animal","Imanol Ruiz Zarzuela (imaruiz@unizar.es) "]
[null,"Preparación, procesamiento y conservación de muestras","Centrífuga / Ultracentrífuga / Microcentrífuga","Centrífuga - Microcentrífuga","5415R. Eppendorf","Ictiopatología","A17_17R: RAySA: Reproducción asistida y sanidad animal","Imanol Ruiz Zarzuela (imaruiz@unizar.es) "]
[null,"Específico: Histología","Específico: Lab. Histología","Estación de inclusión: parafina e historesina",null,"Histología y anatomía patológica","A17_17R: RAySA: Reproducción asistida y sanidad animal\nB16_17R: Dieta mediterránea y su potencial nutracéutico","A17_17R: Lluis Luján Lerma (Lluis.Lujan@unizar.es)\nB16_17R: Carmen Arnal Atarés (arnal@unizar.es) "]
[null,"Específico: Histología","Específico: Lab. Histología","Estación de inclusión modular: parafina","DP500. Bio-Optica","Histología y anatomía patológica","A17_17R: RAySA: Reproducción asistida y sanidad animal\nB16_17R: Dieta mediterránea y su potencial nutracéutico","A17_17R: Lluis Luján Lerma (Lluis.Lujan@unizar.es)\nB16_17R: Carmen Arnal Atarés (arnal@unizar.es) "]
[null,"Específico: Histología","Específico: Lab. Histología","Microtomo manual","Shandon™ Finesse™ 325. Thermo Scientific","Histología y anatomía patológica","A17_17R: RAySA: Reproducción asistida y sanidad animal\nB16_17R: Dieta mediterránea y su potencial nutracéutico","A17_17R: Lluis Luján Lerma (Lluis.Lujan@unizar.es)\nB16_17R: Carmen Arnal Atarés (arnal@unizar.es) "]
[null,"Específico: Histología","Específico: Lab. Histología","Batería de tinción",null,"Histología y anatomía patológica","A17_17R: RAySA: Reproducción asistida y sanidad animal\nB16_17R: Dieta mediterránea y su potencial nutracéutico","A17_17R: Lluis Luján Lerma (Lluis.Lujan@unizar.es)\nB16_17R: Carmen Arnal Atarés (arnal@unizar.es) "]
[null,"Microscopía","Microscopio","Convencional","NIKON ECLIPSE E2000/NIKON DS-Fi1 ","Histología y anatomía patológica","A17_17R: RAySA: Reproducción asistida y sanidad animal\nB16_17R: Dieta mediterránea y su potencial nutracéutico","B16_17R: Carmen Arnal Atarés (arnal@unizar.es) "]
[null,"Técnicas de análisis biológicos: GENÉTICA","Secuenciador","Secuenciación automática","ABI PRISM® 3100 Genetic Analyzer. Applied Biosystems","Genética Bioquímica (LAGENBIO)","A19_17R: LAGENBIO","Clementina Rodellar Penella (rodellar@unizar.es)"]
[null,"Técnicas de análisis biológicos: MOLECULAR","PCR","PCR","Applied Biosystems™ ProFlex™ 2 x 384-well PCR System","Genética Bioquímica (LAGENBIO)","A19_17R: LAGENBIO","Clementina Rodellar Penella (rodellar@unizar.es)"]
[null,"Técnicas de análisis biológicos: MOLECULAR","PCR","PCR","Applied Biosystems 2720 Thermal Cycler","Genética Bioquímica (LAGENBIO)","A19_17R: LAGENBIO","Clementina Rodellar Penella (rodellar@unizar.es)"]
[null,"Técnicas de análisis biológicos: MOLECULAR","PCR","PCR","SimpliAmp™ Thermal Cycler ","Genética Bioquímica (LAGENBIO)","A19_17R: LAGENBIO","Clementina Rodellar Penella (rodellar@unizar.es)"]
[null,"Preparación, procesamiento y conservación de muestras","Sistema automatizado preparación muestras","Pipeteo automático","epMotion® 5070. Eppendorf","Genética Bioquímica (LAGENBIO)","A19_17R: LAGENBIO","Clementina Rodellar Penella (rodellar@unizar.es)"]
[null,"Técnicas de análisis biológicos: MOLECULAR","PCR","PCR (qPCR)","StepOnePlus™. Applied Biosystems®","Genética Bioquímica (LAGENBIO)","A19_17R: LAGENBIO","Clementina Rodellar Penella (rodellar@unizar.es)"]
[null,"Técnicas de análisis biológicos: MOLECULAR","PCR","PCR (digital)","QuantStudio™ 3D Digital PCR System. Applied Biosystems™","Genética Bioquímica (LAGENBIO)","A19_17R: LAGENBIO","Clementina Rodellar Penella (rodellar@unizar.es)"]
[null,"Técnicas de análisis biológicos: MOLECULAR","Transiluminador","Transiluminador","MiniBis Pro. Bio-Imaging Systems","Genética Bioquímica (LAGENBIO)","A19_17R: LAGENBIO","Clementina Rodellar Penella (rodellar@unizar.es)"]
[null,"Técnicas instrumentales análisis químicos","Espectrofotómetro","Microvolúmenes","NanoDrop™ 2000/2000c. Thermo Scientific™","Genética Bioquímica (LAGENBIO)","A19_17R: LAGENBIO","Clementina Rodellar Penella (rodellar@unizar.es)"]
[null,"Técnicas instrumentales análisis químicos","Espectrofotómetro","Microplacas","Infinite® F200 Fluorescence Microplate Reader. Tecan","Genética Bioquímica (LAGENBIO)","A19_17R: LAGENBIO","Clementina Rodellar Penella (rodellar@unizar.es)"]
[null,"Preparación, procesamiento y conservación de muestras","Centrífuga / Ultracentrífuga / Microcentrífuga","Ultracentrífuga","Sorvall Instrument","Genética Bioquímica (LAGENBIO)","A19_17R: LAGENBIO","Clementina Rodellar Penella (rodellar@unizar.es)"]
[null,"Técnicas de análisis biológicos: CELULAR","Contador","Contador de células","Z2. Beckman Coulter","Genética Bioquímica (LAGENBIO)","A19_17R: LAGENBIO","Clementina Rodellar Penella (rodellar@unizar.es)"]
[null,"Preparación, procesamiento y conservación de muestras","Sistema automatizado preparación muestras","Dispensador de muestras",null,"Genética Bioquímica (LAGENBIO)","A19_17R: LAGENBIO","Clementina Rodellar Penella (rodellar@unizar.es)"]
[null,"Cámaras, armarios refrigerados","Congelador -150ºC",null,null,"Genética Bioquímica (LAGENBIO)","A19_17R: LAGENBIO","Clementina Rodellar Penella (rodellar@unizar.es)"]
[null,"Específico: Reproducción","Crioconservación","Tanque nitrógeno líquido",null,"Genética Bioquímica (LAGENBIO)","A19_17R: LAGENBIO","Clementina Rodellar Penella (rodellar@unizar.es)"]
[null,"Estufas, hornos, incubadoras, baños","Incubadora","Hipoxia",null,"Genética Bioquímica (LAGENBIO)","A19_17R: LAGENBIO","Clementina Rodellar Penella (rodellar@unizar.es)"]
[null,"Estufas, hornos, incubadoras, baños","Incubadora","Normoxia",null,"Genética Bioquímica (LAGENBIO)","A19_17R: LAGENBIO","Clementina Rodellar Penella (rodellar@unizar.es)"]
[null,"Microscopía","Microscopio","Invertido","Nikon","Genética Bioquímica (LAGENBIO)","A19_17R: LAGENBIO","Clementina Rodellar Penella (rodellar@unizar.es)"]
[null,"Microscopía","Microscopio","Confocal","Zeiss","Genética Bioquímica (LAGENBIO)","A19_17R: LAGENBIO","Clementina Rodellar Penella (rodellar@unizar.es)"]
[null,"Banco de muestras","Colección anticuerpos","Anticuerpos",null,"Bioquímica","B16_17R: Dieta mediterránea y su potencial nutracéutico","Jesús de la Osada García (josada@unizar.es"]
[null,"Técnicas de análisis biológicos: MOLECULAR","PCR","PCR","S1000™ Thermal Cycler. Bio-Rad","Bioquímica","B16_17R: Dieta mediterránea y su potencial nutracéutico","Jesús de la Osada García (josada@unizar.es"]
[null,"Técnicas de análisis biológicos: MOLECULAR","PCR","PCR","PTC-100™. MJ Research Inc.","Bioquímica","B16_17R: Dieta mediterránea y su potencial nutracéutico","Jesús de la Osada García (josada@unizar.es"]
[null,"Técnicas de análisis biológicos: MOLECULAR","Electroforesis","Electroforesis","Fuente: PowerPac™. Bio-Rad","Bioquímica","B16_17R: Dieta mediterránea y su potencial nutracéutico","Jesús de la Osada García (josada@unizar.es"]
[null,"Técnicas de análisis biológicos: MOLECULAR","Electroporación","Electroporador","Gene Pulser® II, con Capacitance Extender Plus y Pulse Controller Plus. Bio-Rad","Bioquímica","B16_17R: Dieta mediterránea y su potencial nutracéutico","Jesús de la Osada García (josada@unizar.es"]
[null,"Técnicas de análisis biológicos: MOLECULAR","PCR","PCR (qPCR)","StepOnePlus™. Applied Biosystems®","Bioquímica","B16_17R: Dieta mediterránea y su potencial nutracéutico","Jesús de la Osada García (josada@unizar.es"]
[null,"Técnicas de análisis biológicos: MOLECULAR","PCR","PCR (qPCR)","StepOne™. Applied Biosystems®","Bioquímica","B16_17R: Dieta mediterránea y su potencial nutracéutico","Jesús de la Osada García (josada@unizar.es"]
[null,"Técnicas de análisis biológicos: MOLECULAR","Documentación de gel","Sistema de documentación de gel","Gel Doc™. Bio-Rad ","Bioquímica","B16_17R: Dieta mediterránea y su potencial nutracéutico","Jesús de la Osada García (josada@unizar.es"]
[null,"Técnicas instrumentales análisis químicos","Cromatógrafo","Cromatografía líquida proteínas alta velocidad (FPLC)","AKTA FPLC System. Amershan Pharmacia Bioteck","Bioquímica","B16_17R: Dieta mediterránea y su potencial nutracéutico","Jesús de la Osada García (josada@unizar.es"]
[null,"Técnicas de análisis biológicos: INMUNOENSAYO","ELISA","Lector de placas","SPECTROstar Nano. BMG Labtech","Bioquímica","B16_17R: Dieta mediterránea y su potencial nutracéutico","Jesús de la Osada García (josada@unizar.es"]
[null,"Técnicas de análisis biológicos: INMUNOENSAYO","ELISA","Lector de placas","Fluostar Omega. BMG Labtech","Bioquímica","B16_17R: Dieta mediterránea y su potencial nutracéutico","Jesús de la Osada García (josada@unizar.es"]
[null,"Preparación, procesamiento y conservación de muestras","Centrífuga / Ultracentrífuga / Microcentrífuga","Ultracentrífuga","Optima™ TLX Ultracentrifuge. Beckman Coulter ","Bioquímica","B16_17R: Dieta mediterránea y su potencial nutracéutico","Jesús de la Osada García (josada@unizar.es"]
[null,"Preparación, procesamiento y conservación de muestras","Centrífuga / Ultracentrífuga / Microcentrífuga","Ultracentrífuga - Refrigerada","RC-5B Plus.  Sorvall","Bioquímica","B16_17R: Dieta mediterránea y su potencial nutracéutico","Jesús de la Osada García (josada@unizar.es"]
[null,"Preparación, procesamiento y conservación de muestras","Centrífuga / Ultracentrífuga / Microcentrífuga","Ultracentrífuga","Sorvall™ Legend™ XT/XF. Thermo Fisher Scientific","Bioquímica","B16_17R: Dieta mediterránea y su potencial nutracéutico","Jesús de la Osada García (josada@unizar.es"]
[null,"Preparación, procesamiento y conservación de muestras","Evaporador / Concentrador","Concentrador de muestras","Concentrator 5301. Eppendorf","Bioquímica","B16_17R: Dieta mediterránea y su potencial nutracéutico","Jesús de la Osada García (josada@unizar.es"]
[null,"Preparación, procesamiento y conservación de muestras","Autoclaves","Gran capacidad","Raypa steam sterilizer ","Bioquímica","B16_17R: Dieta mediterránea y su potencial nutracéutico","Jesús de la Osada García (josada@unizar.es"]
[null,"Preparación, procesamiento y conservación de muestras","Autoclaves","Gran capacidad","Pselecta","Bioquímica","B16_17R: Dieta mediterránea y su potencial nutracéutico","Jesús de la Osada García (josada@unizar.es"]
[null,"Preparación, procesamiento y conservación de muestras","Máquina de hielo","Máquina de hielo",null,"Bioquímica","B16_17R: Dieta mediterránea y su potencial nutracéutico","Jesús de la Osada García (josada@unizar.es"]
[null,"Valoración funcional y de composición corporal","Equipamiento singular para valoración funcional",null,null,"Growth, Exercise, Nutrition and Development (GENUD)","B34_17R: Growth, Exercise, Nutrition and Development (GENUD)","Luis Alberto Moreno Aznar (lmoreno@unizar.es) "]
[null,"Valoración funcional y de composición corporal","Equipamiento singular para estudios de composición corporal",null,null,"Growth, Exercise, Nutrition and Development (GENUD)","B34_17R: Growth, Exercise, Nutrition and Development (GENUD)","Luis Alberto Moreno Aznar (lmoreno@unizar.es) "]
[null,"Técnicas instrumentales análisis químicos","Olfatometría",null,null,"Tecnología de productos vegetales","T07_17R: Alimentos de Origen Vegetal (GIAOVE)","Rosa Oria Almudí (oria@unizar.es) "]
[null,"Estufas, hornos, incubadoras, baños","Estufa de secado",null,"Digitronic. J.P. Selecta®","Tecnología de productos vegetales","T07_17R: Alimentos de Origen Vegetal (GIAOVE)","Rosa Oria Almudí (oria@unizar.es) "]
[null,"Tecnologías de conservación y procesado","Horno","Horno mixto vapor/convección ","Convotherm®","Tecnología de productos vegetales","T07_17R: Alimentos de Origen Vegetal (GIAOVE)","Rosa Oria Almudí (oria@unizar.es) "]
[null,"Análisis de agua, materia prima y alimentos","Análisis grasa","Solvente","FOSS SoxtecTM 2055","Tecnología de productos vegetales","T07_17R: Alimentos de Origen Vegetal (GIAOVE)","Rosa Oria Almudí (oria@unizar.es) "]
[null,"Tecnologías de conservación y procesado","Deshidratadora de alimentos","Deshidratadora de alimentos con bandeja","SEDONA®","Tecnología de productos vegetales","T07_17R: Alimentos de Origen Vegetal (GIAOVE)","Rosa Oria Almudí (oria@unizar.es) "]
[null,"Tecnologías de conservación y procesado","Horno","Horno","SIEMENS","Tecnología de productos vegetales","T07_17R: Alimentos de Origen Vegetal (GIAOVE)","Rosa Oria Almudí (oria@unizar.es) "]
[null,"Tecnologías de conservación y procesado","Placa de inducción","Placa de inducción","Bosch","Tecnología de productos vegetales","T07_17R: Alimentos de Origen Vegetal (GIAOVE)","Rosa Oria Almudí (oria@unizar.es) "]
[null,"Imagen y color","Cámara termográfica","Cámara termográfica. Acoplada a placa de inducción","TESTO 875","Tecnología de productos vegetales","T07_17R: Alimentos de Origen Vegetal (GIAOVE)","Rosa Oria Almudí (oria@unizar.es) "]
[null,"Barreras de protección y seguridad biológica","Cabina de extracción de gases",null,"ST 1500. Burdinola","Tecnología de productos vegetales","T07_17R: Alimentos de Origen Vegetal (GIAOVE)","Rosa Oria Almudí (oria@unizar.es) "]
[null,"Análisis de agua, materia prima y alimentos","Análisis estabilidad oxidativa (RANCIMAT)","Grasa/aceite","Rancimat 743. Metrohm","Tecnología de productos vegetales","T07_17R: Alimentos de Origen Vegetal (GIAOVE)","Rosa Oria Almudí (oria@unizar.es) "]
[null,"Técnicas instrumentales análisis físicos","Texturómetro","Texturómetro","TA XT plus. Texturelab","Tecnología de productos vegetales","T07_17R: Alimentos de Origen Vegetal (GIAOVE)","Rosa Oria Almudí (oria@unizar.es) "]
[null,"Análisis de agua, materia prima y alimentos","Análisis humedad","Humedad","HR 73 Halogan Moisture Analyzer. Mettler-Toledo","Tecnología de productos vegetales","T07_17R: Alimentos de Origen Vegetal (GIAOVE)","Rosa Oria Almudí (oria@unizar.es) "]
[null,"Análisis de agua, materia prima y alimentos","Análisis actividad de agua","Actividad agua","Novasina Labmaster","Tecnología de productos vegetales","T07_17R: Alimentos de Origen Vegetal (GIAOVE)","Rosa Oria Almudí (oria@unizar.es) "]
[null,"Tecnologías de conservación y procesado","Envasador al vacío","Envasado al vacío","VM 12. Orved.","Tecnología de productos vegetales","T07_17R: Alimentos de Origen Vegetal (GIAOVE)","Rosa Oria Almudí (oria@unizar.es) "]
[null,"Análisis de agua, materia prima y alimentos","Analizador de gases","Espacio de cabeza","CheckMate 3. Dansensor ","Tecnología de productos vegetales","T07_17R: Alimentos de Origen Vegetal (GIAOVE)","Rosa Oria Almudí (oria@unizar.es) "]
[null,"Análisis de agua, materia prima y alimentos","Refractómetro",null,"DBX-55A. Atago","Tecnología de productos vegetales","T07_17R: Alimentos de Origen Vegetal (GIAOVE)","Rosa Oria Almudí (oria@unizar.es) "]
[null,"Análisis de agua, materia prima y alimentos","Titulador",null,"Compact Titrator. Crison","Tecnología de productos vegetales","T07_17R: Alimentos de Origen Vegetal (GIAOVE)","Rosa Oria Almudí (oria@unizar.es) "]
[null,"Preparación, procesamiento y conservación de muestras","Rotavapor","Rotavapor",null,"Tecnología de productos vegetales","T07_17R: Alimentos de Origen Vegetal (GIAOVE)","Rosa Oria Almudí (oria@unizar.es) "]
[null,"Técnicas instrumentales análisis químicos","Espectrofotómetro","UV/Vis","Thermo Spectronic Unicam UV-510 UV-Visible","Tecnología de productos vegetales","T07_17R: Alimentos de Origen Vegetal (GIAOVE)","Rosa Oria Almudí (oria@unizar.es) "]
[null,"Técnicas instrumentales análisis químicos","Cromatógrafo","Cromatografía gases (GC)","HP4890","Tecnología de productos vegetales","T07_17R: Alimentos de Origen Vegetal (GIAOVE)","Rosa Oria Almudí (oria@unizar.es) "]
[null,"Técnicas instrumentales análisis químicos","Cromatógrafo","Cromatografía gases (GC)","HP4890","Tecnología de productos vegetales","T07_17R: Alimentos de Origen Vegetal (GIAOVE)","Rosa Oria Almudí (oria@unizar.es) "]
[null,"Cámaras, armarios refrigerados","Cámara refrigeración",null,null,"Tecnología de productos vegetales","T07_17R: Alimentos de Origen Vegetal (GIAOVE)","Rosa Oria Almudí (oria@unizar.es) "]
[null,"Cámaras, armarios refrigerados","Cámara refrigeración",null,null,"Tecnología de productos vegetales","T07_17R: Alimentos de Origen Vegetal (GIAOVE)","Rosa Oria Almudí (oria@unizar.es) "]
[null,"Cámaras, armarios refrigerados","Cámara climática",null,"ICH750 de Memmert","Tecnología de productos vegetales","T07_17R: Alimentos de Origen Vegetal (GIAOVE)","Rosa Oria Almudí (oria@unizar.es) "]
[null,"Técnicas instrumentales análisis físicos","Espectrorradiómetro","Espectrorradiómetro a distancia","CAS140. Instrument System","Análisis digital de la imagen y el color","T07_17R: Alimentos de Origen Vegetal (GIAOVE)","Ángel Ignacio Negueruela Suberviola (neguerue@unizar.es) "]
[null,"Técnicas instrumentales análisis físicos","Espectrómetro","Espectrómetría óptica","AvaSpec 1024 Fibra Óptica / Fuente de alimentación Avantis Avalight DHS","Análisis digital de la imagen y el color","T07_17R: Alimentos de Origen Vegetal (GIAOVE)","Ángel Ignacio Negueruela Suberviola (neguerue@unizar.es) "]
[null,"Imagen y color","Análisis digital de imagen y color","Torre laser con cámara para retrodifusión. Estudios de madurez",null,"Análisis digital de la imagen y el color","T07_17R: Alimentos de Origen Vegetal (GIAOVE)","Ángel Ignacio Negueruela Suberviola (neguerue@unizar.es) "]
[null,"Imagen y color","Fotografía/vídeo","Cámara fotográfica","A3121 Basler Vision Technologies","Análisis digital de la imagen y el color","T07_17R: Alimentos de Origen Vegetal (GIAOVE)","Ángel Ignacio Negueruela Suberviola (neguerue@unizar.es) "]
[null,"Imagen y color","Análisis digital de imagen y color","Software específico control imagen, análisis y tratamiento digital","MATROX®","Análisis digital de la imagen y el color","T07_17R: Alimentos de Origen Vegetal (GIAOVE)","Ángel Ignacio Negueruela Suberviola (neguerue@unizar.es) "]
[null,"Imagen y color","Análisis digital de imagen y color","Sondas para medición por reflexión y para flujo continuo",null,"Análisis digital de la imagen y el color","T07_17R: Alimentos de Origen Vegetal (GIAOVE)","Ángel Ignacio Negueruela Suberviola (neguerue@unizar.es) "]
[null,"Imagen y color","Análisis digital de imagen y color","Fuentes de alimentación, lámparas",null,"Análisis digital de la imagen y el color","T07_17R: Alimentos de Origen Vegetal (GIAOVE)","Ángel Ignacio Negueruela Suberviola (neguerue@unizar.es) "]
[null,"Imagen y color","Análisis digital de imagen y color","Cartas de calibración de color (UNE 48-103-94)",null,"Análisis digital de la imagen y el color","T07_17R: Alimentos de Origen Vegetal (GIAOVE)","Ángel Ignacio Negueruela Suberviola (neguerue@unizar.es) "]
[null,"Barreras de protección y seguridad biológica","Cabina de flujo laminar ","Horizontal","AH-100. Telstar","Truficultura","T07_17R: Alimentos de Origen Vegetal (GIAOVE)","Pedro Marco Montori (pmarcomo@cita-aragon.es) "]
[null,"Barreras de protección y seguridad biológica","Cabina de flujo laminar","Vertical","PV-199 TELSTAR®","Truficultura","T07_17R: Alimentos de Origen Vegetal (GIAOVE)","Pedro Marco Montori (pmarcomo@cita-aragon.es) "]
[null,"Limpieza y esterilización","Baño de ultrasonidos","Baño ultrasonidos","Bandelin SONOREX™ ","Truficultura","T07_17R: Alimentos de Origen Vegetal (GIAOVE)","Pedro Marco Montori (pmarcomo@cita-aragon.es) "]
[null,"Estufas, hornos, incubadoras, baños","Baño de agua","Termostatizado","Memmert","Truficultura","T07_17R: Alimentos de Origen Vegetal (GIAOVE)","Pedro Marco Montori (pmarcomo@cita-aragon.es) "]
[null,"Estufas, hornos, incubadoras, baños","Incubadora ","Refrigerada. Tecnología Peltier","IPP 500. Memmert","Truficultura","T07_17R: Alimentos de Origen Vegetal (GIAOVE)","Pedro Marco Montori (pmarcomo@cita-aragon.es) "]
[null,"Microscopía","Microscopio","Convencional","ZEISS Axio Scope.A1","Truficultura","T07_17R: Alimentos de Origen Vegetal (GIAOVE)","Pedro Marco Montori (pmarcomo@cita-aragon.es) "]
[null,"Microscopía","Estereomicroscopio","Estereomicroscopio","Carl Zeiss™ Stemi 2000-C ","Truficultura","T07_17R: Alimentos de Origen Vegetal (GIAOVE)","Pedro Marco Montori (pmarcomo@cita-aragon.es) "]
[null,"Análisis de agua, materia prima y alimentos","Medidor multiparamétrico",null,"Orion Versa Star Pro. Thermo Scientific","Truficultura","T07_17R: Alimentos de Origen Vegetal (GIAOVE)","Pedro Marco Montori (pmarcomo@cita-aragon.es) "]
[null,"Técnicas de análisis biológicos: MOLECULAR","PCR","PCR","Eppendorf Mastercycler®","Truficultura","T07_17R: Alimentos de Origen Vegetal (GIAOVE)","Pedro Marco Montori (pmarcomo@cita-aragon.es) "]
[null,"Técnicas de análisis biológicos: MOLECULAR","Termobloque","Termobloque","FB15101. Fisher Scientific","Truficultura","T07_17R: Alimentos de Origen Vegetal (GIAOVE)","Pedro Marco Montori (pmarcomo@cita-aragon.es) "]
[null,"Preparación, procesamiento y conservación de muestras","Autoclaves","Gran capacidad 50L","Autester mod 437 G Pselecta","Truficultura","T07_17R: Alimentos de Origen Vegetal (GIAOVE)","Pedro Marco Montori (pmarcomo@cita-aragon.es) "]
[null,"Técnicas de análisis biológicos: MOLECULAR","Electroforesis","Electroforesis",null,"Truficultura","T07_17R: Alimentos de Origen Vegetal (GIAOVE)","Pedro Marco Montori (pmarcomo@cita-aragon.es) "]
[null,"Preparación, procesamiento y conservación de muestras","Liofilizador","Liofilizador","Lyoquest Plus-85ºC Plus/Eco. Telstar","Laboratorio de Análisis de Aroma y Enología (LAAE) ","T29_17R: Laboratorio de Análisis de Aroma y Enología (LAAE) ","Vicente Ferreira González (vferre@unizar.es) "]
[null,"Preparación, procesamiento y conservación de muestras","Sistema automatizado preparación muestras","Dispensador de líquido automatizado","GX-274 liquid handler. Gilson","Laboratorio de Análisis de Aroma y Enología (LAAE) ","T29_17R: Laboratorio de Análisis de Aroma y Enología (LAAE) ","Vicente Ferreira González (vferre@unizar.es) "]
[null,"Técnicas instrumentales análisis químicos","Cromatógrafo","Cromatografía gases (GC)","Varian","Laboratorio de Análisis de Aroma y Enología (LAAE) ","T29_17R: Laboratorio de Análisis de Aroma y Enología (LAAE) ","Vicente Ferreira González (vferre@unizar.es) "]
[null,"Técnicas instrumentales análisis químicos","Cromatógrafo","Cromatografía gases (GC)","Trace GC Thermo Quest; Fisons GC 8000 series","Laboratorio de Análisis de Aroma y Enología (LAAE) ","T29_17R: Laboratorio de Análisis de Aroma y Enología (LAAE) ","Vicente Ferreira González (vferre@unizar.es) "]
[null,"Técnicas instrumentales análisis químicos","Cromatógrafo","Cromatografía gases (GC)","Varian 3800","Laboratorio de Análisis de Aroma y Enología (LAAE) ","T29_17R: Laboratorio de Análisis de Aroma y Enología (LAAE) ","Vicente Ferreira González (vferre@unizar.es) "]
[null,"Técnicas instrumentales análisis químicos","Cromatógrafo","Cromatografía gases (GC)","Agilent 7890B ","Laboratorio de Análisis de Aroma y Enología (LAAE) ","T29_17R: Laboratorio de Análisis de Aroma y Enología (LAAE) ","Vicente Ferreira González (vferre@unizar.es) "]
[null,"Técnicas instrumentales análisis químicos","Cromatógrafo","Cromatografía gases (GC)","Varian 3800","Laboratorio de Análisis de Aroma y Enología (LAAE) ","T29_17R: Laboratorio de Análisis de Aroma y Enología (LAAE) ","Vicente Ferreira González (vferre@unizar.es) "]
[null,"Técnicas instrumentales análisis químicos","Cromatógrafo","Cromatografía gases masas","Shimadzu QP2010","Laboratorio de Análisis de Aroma y Enología (LAAE) ","T29_17R: Laboratorio de Análisis de Aroma y Enología (LAAE) ","Vicente Ferreira González (vferre@unizar.es) "]
[null,"Técnicas instrumentales análisis químicos","Cromatógrafo","Cromatografía gases masas ion trap","Varian CP 3800 (GC-MS-Ion Trap)","Laboratorio de Análisis de Aroma y Enología (LAAE) ","T29_17R: Laboratorio de Análisis de Aroma y Enología (LAAE) ","Vicente Ferreira González (vferre@unizar.es) "]
[null,"Técnicas instrumentales análisis químicos","Cromatógrafo","Cromatografía gases (GC)","Shimadzu QP2010 Plus","Laboratorio de Análisis de Aroma y Enología (LAAE) ","T29_17R: Laboratorio de Análisis de Aroma y Enología (LAAE) ","Vicente Ferreira González (vferre@unizar.es) "]
[null,"Técnicas instrumentales análisis químicos","Cromatógrafo","Cromatografía gases (GC)","7890 Agilent Technologies","Laboratorio de Análisis de Aroma y Enología (LAAE) ","T29_17R: Laboratorio de Análisis de Aroma y Enología (LAAE) ","Vicente Ferreira González (vferre@unizar.es) "]
[null,"Técnicas instrumentales análisis químicos","Cromatógrafo","Cromatografía gases (GC)","Varian 3800","Laboratorio de Análisis de Aroma y Enología (LAAE) ","T29_17R: Laboratorio de Análisis de Aroma y Enología (LAAE) ","Vicente Ferreira González (vferre@unizar.es) "]
[null,"Técnicas instrumentales análisis químicos","Cromatógrafo","Cromatografía líquida HPLC","HPLC 1220 Infinity LC Agilent Technologies","Laboratorio de Análisis de Aroma y Enología (LAAE) ","T29_17R: Laboratorio de Análisis de Aroma y Enología (LAAE) ","Vicente Ferreira González (vferre@unizar.es) "]
[null,"Técnicas instrumentales análisis químicos","Cromatógrafo","Cromatografía líquida HPLC","HPLC Waters 2695 ","Laboratorio de Análisis de Aroma y Enología (LAAE) ","T29_17R: Laboratorio de Análisis de Aroma y Enología (LAAE) ","Vicente Ferreira González (vferre@unizar.es) "]
[null,"Análisis de agua, materia prima y alimentos","Análisis oxígeno",null,"Nomasense","Laboratorio de Análisis de Aroma y Enología (LAAE) ","T29_17R: Laboratorio de Análisis de Aroma y Enología (LAAE) ","Vicente Ferreira González (vferre@unizar.es) "]
[null,"Técnicas instrumentales análisis químicos","Potenciostato","Potenciostato",null,"Laboratorio de Análisis de Aroma y Enología (LAAE) ","T29_17R: Laboratorio de Análisis de Aroma y Enología (LAAE) ","Vicente Ferreira González (vferre@unizar.es) "]

{"sheet":"BD_INFRAESTRUCTURAS","index":6,"n_rows":16,"n_cols":5,"rows_kept":16,"cut":false,"hidden":true,"merged":[]}
["INFRAESTRUCTURA","INSTITUCIÓN","R_LOCALIZACIÓN","R_DESCRIPCIÓN","CONTACTO"]
[" Seleccionar….","  ","  ","  ","  "]
["Animalario","CITA","Campus Aula Dei / Edicio I+D","Cría y mantenimiento de animales de laboratorio (ratón y conejo)\nES502970012005\nhttps://ia2.unizar.es/infraestructuras/animalario","Mª Jesus de Miguel López (mjmiguel@aragon.es)"]
["Centro de Encefalopatías y Enfermedades Transmisibles Emergentes ","UNIZAR","Campus Veterinaria","http://centroeets.unizar.es/  "]
["Fincas experimentales agroganaderas","CITA","Distintas localizaciones","Fincas experimentales para el desarrollo de ensayos de campo como apoyo a la investigación. Cada una de ellas reproduce los sistemas de producción agrícolas y ganaderos más característicos de la geografía aragonesa.\nLa Garcipollera (Bescós de la Garcipollera - Huesca), Finca “Soto Lezcano” (Montañana - Zaragoza), Finca “EL Vedado Bajo el Horno” (Zuera - Zaragoza)","Fernando Jaso Gracia (fjaso@aragon.es)"]
["Hospital Veterinario","UNIZAR","Campus Veterinaria","http://hcv.unizar.es/presentacion.html ","María Teresa Verde Arribas (mverde@unizar.es) "]
["Instalaciones agronómicas","CITA / UNIZAR (EPSH)","Campus Aula Dei / EPSH","Colecciones y ensayos para investigaciones de campo\nFincas exteriores\nInvernaderos\nUmbráculos\n","Fernando Jaso Gracia (fjaso@aragon.es)"]
["Instalaciones ganaderas","CITA","Campus Aula Dei ","Campus Aula Dei:\n- Parque semiabierto para ganado vacuno\n- Tres naves para ganado ovino\n- Una paridera\n- Una nave para reproductores\nVedado Bajo el Horno:\n- Parcelas cercadas para ganado ovino que pasta permanentemente e instalaciones ganaderas para su resguardo\n- Instalaciones especiales para realización de ensayos relacionados con la sanidad de conejos silvestres. \nGarcipollera:\nInstalaciones ganaderas para el mantenimiento de los rebaños","Fernando Jaso Gracia (fjaso@aragon.es)"]
["Matadero y sala de despiece","CITA","Campus Aula Dei","Instalaciones:\n- Matadero para la obtención experimental de canales de ovino.\n- Sala refrigerada de despiece para la obtención y manipulación de piezas de carne de cualquier especie. \n\nMaterial y utillaje propio para desarrollar estas actividades, equipamiento básico para industria cárnica y cámaras para el almacenamiento de los productos en refrigeración y congelación. \n","Guillermo Ripoll García (gripoll@aragon.es)"]
["Piscifactoría experimental","UNIZAR","Campus Veterinaria","Piscifactoría experimental para la realización de estudios in vivo está provista de cinco estanques de 1000 litros de capacidad cada uno, dotados de circuito abierto de agua, oxigenación forzada y regulación de temperatura.\nServicio de Apoyo a la Experimentación Animal de la Universidad de Zaragoza","Ignacio De Blas Giral (deblas@unizar.es) "]
["Planta Piloto de Ciencia y Tecnología de los Alimentos","UNIZAR","Campus Veterinaria","http://ppcta.unizar.es/ ","Cristina Sánchez Gimeno (anacris@unizar.es)"]
["Quirófano de reproducción","CITA","Campus Aula Dei","Instrumentación y equipamiento para la obtención de ovocitos in vivo por LOPU (aspiración de ovocitos por laparoscopía) y obtención de ovocitos en matadero, disección folicular ovárica, transferencia de embriones, inseminación y fecundación in vitro.\nEcógrafo","Jose Luis Alabart Álvarez (jalabart@aragon.es)"]
["Recursos singulares: Banco de Germoplasma de Especies Hortícolas","CITA","Campus Aula Dei","https://sites.cita-aragon.es/BGHZ/ ","Cristina Mallor (cmallor@cita-aragon.es)"]
["Recursos singulares: Insectarios","UNIZAR","Campus Veterinaria","Instalaciones para la cría y mantenimiento de colonias estables y en condiciones de laboratorio de diversas especies de insectos","Javier Lucientes Curdi (jlucien@unizar.es) "]
["Recursos singulares: Jardín botánico de especies arvenses del CITA","CITA","Campus Aula Dei","Colección viva con más de 260 especies diferentes de flora arvense","Alicia Cirujeda Razenberger (acirujeda@aragon.es) "]
["Recursos singulares: Recursos fitogéneticos de especies frutales","CITA","Campus Aula Dei / Otras localizaciones","Colecciones de diversas variedades de albaricoquero, almendro, cerezo, ciruelo, especies silvestres de Prunus, manzano, melocotonero, peral y patrones de hueso y pepita","Pilar Errea"]

{"sheet":"BD_LAB","index":7,"n_rows":37,"n_cols":7,"rows_kept":37,"cut":false,"hidden":true,"merged":[]}
["LABORATORIO ","GRUPO INVESTIGACIÓN","IP","INSTITUCIÓN","LOCALIZACIÓN","RESPONSABLE LAB","FICHA EQUIPOS"]
["Seleccionar…"," "," "," "," "," "," "]
["Bioquímica de proteínas","A02_17R: El efecto del Procesado Tecnológico de los Alimentos en las Patologías Digestivas y Alérgicas (ALIPAT)","Miguel Calvo Rebollar","UNIZAR","F. Veterinaria / Ed. Zootecnia"," Miguel Calvo Rebollar (calvoreb@unizar.es)","Cabina de flujo laminar vertical: Telstar PV-30/70\nCromatógrafo líquido de baja presión: AKTA Start Protein Purification System\nEspectrofotómetro: Jenway 6505 UV/Vis\nLavador de placas multipocillo: Wellwash4MK 2 de Thermo Scientific\nLector de placas ELISA: Multiskan MS versión 3.0 Type352. Labsystems\nSistema de electroforesis horizontal: Phast-System. Pharmacia\nSistema de electroforesis vertical: Mini Protean® 3 Cell. Bio-Rad\nSistema transferencia Western Blotting: TE-70 Semi-Dry-Transfer Unit (14 x16 cm). Amersham Bioscience\n"]
["Cultivos celulares","A02_17R: El efecto del Procesado Tecnológico de los Alimentos en las Patologías Digestivas y Alérgicas (ALIPAT)","Miguel Calvo Rebollar","UNIZAR","F. Veterinaria. Ed. Zootecnia"," Miguel Calvo Rebollar (calvoreb@unizar.es)","Cabina de seguridad biológica : Bio II Advance. Telstar\nCabina flujo laminar: Micro-V. Telstar\nEstufa de incubación termostatizado CO2: B5060 EK/CO2 de Heraeus\nMicroscopio invertido: TMS-F de Nikon\nTermociclador PCR tiempo real: StepOneTM de Applied Biosystems®\n"]
["Fisiología","A02_17R: El efecto del Procesado Tecnológico de los Alimentos en las Patologías Digestivas y Alérgicas (ALIPAT)","Miguel Calvo Rebollar","UNIZAR","F. Veterinaria / Ed. Central","José Emilio Mesonero Gutiérrez (mesonero@unizar.es)","Agitador para placas: Duomax 1030. Heidolph Instruments GmbH & Co. KG\nCabina de flujo laminar vertical: AV-100. Telstar\nCaptación y análisis digital de imágenes: BioDoc-it® Imaging System. UVP\nEstufa de incubación CO2: Heraeus® BB16\nHomogenizador: Precellys® Cryolis®. Bertin Instruments \nMicroscopio invertido: Olympus® CK2. Olympus Corporation \nTermociclador PCR: DNA Engine® Peltier Thermal Cycler. Bio-Rad\nTermociclador PCR tiempo real: StepOneTM PlusTM Real-Time PCR System. Applied Biosystems®. ThermoFisher Scientific\nSecuenciador 3ª generación: MinION. Oxford Nanopore Technologies \nSistema de transferencia húmeda de proteínas: Mini Trans-Blot® Cell. Bio-Rad\nSistema de electroforesis vertical: Mini-PROTEAN® Tetra Cell. Bio-Rad \nHomogenizador por ultrasonidos: HD 2200. BANDELIN electronic GmbH & Co\nBaño de agua: WNB10. Memmert\nBaño de incubación: Digiterm 100. Selecta\nUnidad de registro y análisis de motilidad gastrointestinal\n"]
["Investigación en nuevas tecnologías de procesado y conservación de alimentos","A03_17R: Nuevas tecnologías de procesado de los alimentos","Santiago Condón Usón","UNIZAR","F. Veterinaria / Ed. Zootecnia","Santiago Condón Usón (scondon@unizar.es)","Placa termoagitadora: LabNet AccuThermTM\nBaño de ultrasonidos: Elma\nBaño de ultrasonidos: Bandelin\nCámara: AxioCam MRc\nCámara anaerobiosis: Don Whitley MACS-VA500\nCabina de flujo laminar vertical: Mini-V/PCR. Telstar\nCentrífuga vacío: GeneVacTM miVac\nCitómetro de flujo: Millipore Guava® easyCyte 6-2L\nContador automático de colonias: Prototipo de la Universidad de Zaragoza\nCromatografo líquido: HPLC ProStar 240 (Varian Inc., Walnut Creek, CA)\nSistema de electroporación: Gene Pulse XCellTM. Bio-Rad\nEquipo de pulsos eléctricos de alto voltaje: EPS\nEquipo de pulsos eléctricos de alto voltaje: Scandinova\nEquipo de pulsos eléctricos de alto voltaje: Nutri-pulse e-Cooker\nEquipo de radiación ultravioleta en flujo continuo: desarrollo propio Universidad de Zaragoza\nEspectrofotómetro: Biochrom Libra S12 UV/Vis\nEspectrofotómetro de microvolúmenes: SimpliNanoTM. General Electric \nEstufa de incubación: Selecta Incudigit \nEstufa de incubación: Raypa IRE-160\nEstufa de incubación: Raypa IRE-475\nFluorímetro de placas: TECAN GENios\nHomogenizador: Mini BeadBeater. BioSpec Products\nIncubador placas: FX Incubator, mod. ZE/FX\nManotermosonicadores (2): MTS (Pat. 92-00686, PCT93/00021)\nMicrocentrífugas: Eppendorf MiniSpin® plus\nMicroscopio de fluorescencia con cámara integrada: Nikon® Eclipse E400 / Zeiss AxioCam MRc\nSistema de electroforesis: Fuente: PowerPacTM Basic Power Supply. Bio-Rad\nTermociclador: Labnet MultiGeneTM II\nTermorresistómetros (2): Adaptados de un prototipo de la Universidad de Zaragoza (Pat. ES2004913A6)\nTransiluminador: UV Vilber Lourmat ECX-20.M\n"]
["Bienestar Animal","A04_17R: Calidad y tecnología de la carne","José Antonio Beltrán Gracia","UNIZAR","F. Veterinaria / Ed. Zootecnia","Gustavo María Levrino (levrino@unizar.es) ","Sistema móvil de 12 cámaras digitales de grabación día/noche\nSistema de visualización de los videos de comportamiento animal\nLaberinto en \"T\"\nOpen Field Test"]
["Calidad de la carne y pescado","A04_17R: Calidad y tecnología de la carne","José Antonio Beltrán Gracia","UNIZAR","F. Veterinaria / Ed. Zootecnia","María del Mar Campo Arribas (marimar@unizar.es) ","Colorímetro portátil: CR400. Konica Minolta\nCromatografo de gases: 6890 Series. Hewlett-Packard\nEquipo integrado EQM \nEspectrofotómetro: CM-600d. Konica Minolta\nEspectrofotómetro. ONDA UV-20\nIncubadora: Mod.870-I HLC. Masalles\nTexturómetro: INSTRON® Modelo 4301\nVNIR: ASD LabSpec®4\n"]
["Tecnología de la carne y del pescado","A04_17R: Calidad y tecnología de la carne","José Antonio Beltrán Gracia","UNIZAR","F. Veterinaria / Ed. Zootecnia","José Antonio Beltrán Gracia (jbeltran@unizar.es) ","Calorímetro de Barrido diferencial: 910 DSC 10. Du Pont Instruments\nCentrífuga refrigerada: Universal 320R. Hettich Lab Technology™\nDestilador Kjeldahl: UDK 129. VELP Scientifica \nEspectrofotómetro: ONDA UV-20\nEspectrofotómetro: CM-3610. Konica Minolta\nTexturómetro: TA.XT2i Texture Analyser. Stable Micro Systems\n"]
["Entomología sanitaria","A05_17R: Enfermedades priónicas, vectoriales y zoonosis emergentes","Juan José Badiola Díez","UNIZAR","F. Veterinaria / Ed. Hospital","Javier Lucientes Curdi (jlucien@unizar.es) ","Agitador vortex: Genius 3. IKA®\nArmarios refrigerados: Medilow. JPSelecta\nEstereomicroscopio: SMZ 168 Motic\nEstereomicroscopio: SMZ 745T. Nikon® \nEstereomicroscopio: Optika\nEstufa: Heareus Function Line \nEstufa refrigerada: Serie 639/250. Nahita®\nEstufa refrigerada: Serie 639/150. Nahita®\nIncubadores laboratorio: Incubator S160. Stuart\nMaterial entomológico \nMesa fría: Mod. 1431. Bioquip®Products\nSistema de alimentación artificial de mosquitos a través de membrana: Hemotek® Membrane Feeding System + Power unit PS5\n"]
["Parasitología","A05_17R: Enfermedades priónicas, vectoriales y zoonosis emergentes","Juan José Badiola Díez","CITA","EDIFICIO I+D","Carlos Calvete Margollés (ccalvete@aragon.es)","Cámara climática: Dycometal\nCentrifugadora hematocrito \nContador diferencial de células: DC Counter DBC-8E\nEstereomicroscopio: Wild \nEstereomicroscopio: Nikon\nMicroscopio: Laborlux\nMicroscopio: Leitz\nMicroscopio: Reidret\nMicroscopio: Nikon\nMicroscopio invertido: Microscopio Eclipse TE2000-U. Nikon\n"]
["Análisis y evaluación de la seguridad alimentaria","A06_17R: Análisis y evaluación de la seguridad alimentaria (AESA)","Agustín Ariño Moneva","UNIZAR","F. Veterinaria / Ed. Zootecnia","Agustín Ariño Moneva (aarino@unizar.es) ","Cromatografo de gases: Hewlett-Packard \nCromatografo líquido: Hewlett-Packard\nEspectrofotómetro \nSistema de electroforesis vertical:DCODETM . Bio-Rad\nEspectrofotómetro: Nanodrop™ 2000c. Thermo Scientific\nHomogenizador: Mini BeadBeater. BioSpec Products\nSistema de vacío y Vacuum: Manifold\nTermociclador PCR tiempo real: MiniOpticon Real-Time PCR System. Bio Rad\nLector de placas multipocillo \nSistema de Electroforesis en gel en campo pulsante: CHEF-DR® III Variable Angle System + Cooling module + Variable speed pump. Bio-Rad\nSistema de electroforesis horizontal. Mini-Sub® Cell GT Systems. Bio-Rad \nSistema de electroforesis horizontal: Sub-Cell® Model 192 Cell. Bio-Rad\nSistema de electroforesis \nTermobloque: Grant Bio PCH1. Grant Instruments Ltd\nCámara UV \nHomogenizador: Stomacher®\nEspectrofotómetro \nEquipo de inmunocromatografía de flujo lateral \nCromatografo de permeación gel \nEvaporador: TurboVap® II. Biotage\nEquipo extracción materia grasa: Soxtec® System HT-2\n"]
["Sanidad Vegetal","A11_17R: Producción Vegetal Sostenible (PROVESOS)","Fernando Escriu Paradell","CITA","Ed. Pluridisciplinar","Fernando Escriu Paradell (fescriu@aragon.es)","Crosslinker UV \nMedidor radiación PAR \nLiofilizador \nPenetrómetro \nEstereomiscroscopio : Ivymen\nEstereomiscroscopio : Richer\nEstereomicroscopio con contador de colonias: Euromex\nCámara climática \nCámara saneamiento mat. Vegetal \nCámara condiciones controladas\n"]
["Biología molecular aplicada a la sanidad y producción vegetal.","A11_17R: Producción Vegetal Sostenible (PROVESOS)\nA12_17R: Fruticultura. Caracterización, adaptación y mejora genética","A11_17R: Fernando Escriu Paradell\nA12_17R: Pilar Errea Abad","CITA","Ed. Pluridisciplinar","Pilar Errea Abad (perrea@aragon.es) ","Termociclador \nSistema de electroforesis \nTransiluminador: Syngene™ Gbox\nFluorímetro: Invitrogen™ Qubit™ 3.0\nHomogenizador: TissueLyser II. Qiagen\nEspectrofotómetro: SmartSpec™3000. Bio-Rad \nEspectrofotómetro: Libra S22 UV/Vis. Biochrom\nMicrocentrífugas: 5415D. Eppendorf\nCentrífuga refrigerada: 3-15K. Sigma\nCentrífuga vacío: miVac Duo Concentrator. Genevac™ \nCentrífuga placas: LMC-3000. Biosan\n"]
["Producción Vegetal","A11_17R: Producción Vegetal Sostenible (PROVESOS)\nT07_17R: Alimentos de Origen Vegetal (GIAOVE)","A11_17R: Fernando  Escriu Paradell\nT07_17R: Jesús Val Falcón","UNIZAR","EPSH","A11_17R: Joaquín Aibar Lete (jaibar@unizar.es)\nT07_17R: Juan José Barriuso Vargas (barriuso@unizar.es)","Microscopio: Olympus CX 41\nEstereomicroscopio con cámara integrada: Olympus SZX9 / optika 4083B9 \nCabina de flujo laminar vertical: BV-100. Telstar\nAutoclave: Autester mod 437 G Pselecta\nMedidor de clorofila: Chlorophyll Meter SPAD-502. Konica Minolta\nFluorímetro: Fluorímetro PEA (Plant Eficiencia Analizer). Hansatech Instruments\nMedidor de humedad y peso específico grano: GAC® 2100 Grain Analysis Computer. Dickey John®\nCeptómetro: AccuPAR PAR/LAI Ceptometer. Meter Group\n"]
["Cultivo in vitro de material vegetal","A12_17R: Fruticultura. Caracterización, adaptación y mejora genética","Pilar Errea Abad","CITA","Ed. Pluridisciplinar","Pilar Errea Abad (perrea@aragon.es","Cabina de flujo laminar vertical: Mini V/PCR. Telstar\nCabina de extracción de gases: ESCO SMART CONTROL\nCámara \n"]
["Fisiología vegetal","A12_17R: Fruticultura. Caracterización, adaptación y mejora genética","Pilar Errea Abad","CITA","Ed. Área Vegetal","Pilar Errea Abad (perrea@aragon.es) ","Estación de inclusión: EG-1140. Leica\nMicrotomo: Biocut\nUltramicrotomo: Ultracut-E. Rechert-Jung\nVibratomo: OTS-4500. Warner Instruments\nMicroscopio de fluorescencia: DM2500. Leica Microsystems\nMicroscopio de fluorescencia: BH2-RFCA. Olimpus\nMicroscopio de fluorescencia: Wetzlar Ortholux II. Leitz\nEstereomicroscopio: WildM8. Leica\nAnalizador de imagen: Quantimet 570 C\nAnalizador de imagen: Quantimet Q550\nEstación de dispensación de formaldehido \nPurificador de agua: Wasserlab (tipo II) \n"]
["Material vegetal","A12_17R: Fruticultura. Caracterización, adaptación y mejora genética","Pilar Errea Abad","CITA","Ed. Área Vegetal","Pilar Errea Abad (perrea@aragon.es) ","Penetrómetro \nRefractómetro \nAlmidómetro \nColorímetro \nTitulador: 785DMP Titrino. Metrohm\n"]
["Brucelosis P3","A13_17R: Zoonosis Bacterianas: Brucelosis y Salmonelosis (ZooBac)","Pilar María Muñoz Alvaro","CITA","EDIFICIO I+D","Pilar María Muñoz Álvaro (pmmunnoz@cita-aragon.es)","Sistemas de calefacción de bloque seco: QBD2. Grant Instruments™\nLector de placas ELISA: Multiskan RC 351. Labsystem\nLavador de placas multipocillo: Nunc-ImmunoTM Wash \nSistema de electroforesis horizontal Fuente: Atom\nBomba de vacío: Millipore\nAutomata preparador de medios y autoclave  : AES 8. APS \nSAS (Sterile Acces System): E19690. Matachana\nDesinfectadora Formalina/Amoniaco: Gteck\nTermodesinfectadora: Mielabor G7783. Miele Professional\nCabina de seguridad biológica : Bio-II-A. Telstar® \nEstufa de incubación CO2: New Brunswick\nEstufa de incubación CO2 camisa de agua: FormaTM3121. Thermo ScientificTM\nEstufa de incubación CO2: Thermo-Heracell®. Thermo ScientificTM \nEspectrofotómetro: Bio QuestTM \nAutoclave gran volumen: Selecta\nMicroscopio óptico: 208955 Labophot. Nikon\nMicroscopio invertido: TMS. Nikon\nCabina de seguridad biológica : Telstar® Bio-II-B\nCentrífuga refrigerada de alta velocidad: Centrikon T124. Kontron Instruments\nUltracentrífuga alta velocidad: Centrikon T-2060. Kontron Instruments\nIncubador orbital: New Brunswick™ Innova® 43/43R\nFiltro tangencial: Pellicon Cassete System con bomba 7518-60. Millipore \nAutoclave vertical con secado: AE-75 Dry. Raypa\nLiofilizador: Telstar® Lyoalfa 6\nHomogenizador ultrasónico: Labsonic® M. Sartorius\n"]
["Serología","A13_17R: Zoonosis Bacterianas: Brucelosis y Salmonelosis (ZooBac)","Pilar María Muñoz Alvaro","CITA","EDIFICIO I+D","Clara María Marín Alcalá (cmarin@cita-aragon.es) ","Espectrofotómetro para microplacas: BioteK-EPOCHTM\nLavador de placas multipocillo: Nunc-ImmunoTM Wash \nCabina de extracción de gases: OR-ST1500. Burdinola \nCabina de seguridad biológica: Bio-II-A. Telstar® \npHmetro: GLP21. Crison \n"]
["Biología molecular aplicada a la sanidad y producción animal","A13_17R: Zoonosis Bacterianas: Brucelosis y Salmonelosis (ZooBac)\nA14_17R: Sistemas agroganaderos alimentarios sostenibles (SAGAS)","A13_17R: Pilar María Muñoz Alvaro\nA14_17R: Margalida Joy Torrens","CITA","EDIFICIO I+D","Jorge Hugo Calvo Lacosta (jhcalvo@aragon.es) ","Termociclador PCR tiempo real: BIORAD CFX96TM Real Time System\nTermociclador PCR tiempo real: 7500 Real Time PCR System Applied BiosistemTM\nHorno de hibridación: ECOGEN\nNanofotómetro: IMPLEN\nTermociclador: GeneAmp® PCR System. Applied Biosystems\nTermociclador: MyCycler™ Thermal Cycler. Bio-Rad\nTermociclador: Mastercycler® Gradient. Eppendorf\nTermociclador: Biometra T3000 Thermocycler\nSistema de documentación de gel: Gel Doc™ 2000. Bio-Rad\nSistema extracción ácidos nucleicos: ABI PRISM™ 6100 Nucleic Acid Prep Station. Applied Biosystems\nSistema de electroforesis horizontal: Wide Mini-Sub®Cell GT. Bio-Rad\nSistema de electroforesis horizontal: Mini-Sub® Cell GT Systems. Bio-Rad \nSistema de electroforesis horizontal: Maxigel ECO 2. Apelex\nSistema de electroforesis Fuente: PowerPac™ 200. Bio-Rad\nCabina de extracción de gases : OR-ST 1500. Burdinola\nHomogenizador: Tissuelyser II. Qiagen\nCentrífuga vacío: miVac Duo Concentrator. Genevac™\nPurificador de agua: Ultramatic (tipo 1 y 2). Wasserlab\nTermodesinfectadora: Miele\nEstación de trabajo para análisis masivos de NGS y arrays\n"]
["Calidad de la canal y la carne","A14_17R: Sistemas agroganaderos alimentarios sostenibles (SAGAS)","Margalida Joy Torrens","CITA","Unidad de Tecnología en Producción Animal y Sanidad Animal","Begoña Panea Doblado (bpanea@aragon.es)","Analizador de carne: FoodScan™ 2. FOSS \nTexturómetro: Modelo 5543. Instron\nBaño de agua y aceite: Precisdig. P Selecta\nEspectrofotómetro: UV 2600D. Konica Minolta\n"]
["Digestibilidad","A14_17R: Sistemas agroganaderos alimentarios sostenibles (SAGAS)","Margalida Joy Torrens","CITA","Unidad de Tecnología en Producción Animal y Sanidad Animal","Margalida Joy Torrens (mjoy@aragon.es)","NIR \nEquipo de análisis de fibras: Ankom 220 Fiber Analyzer\nEquipo de análisis de grasas: Ankom XT10 Extractor\nEquipo de determinación de energía bruta: Oxygen Bomb Calorimeter. Parr Instruments Company\nEquipo de análisis de nitrógeno: CE Instruments NA 2100 Protein Analyser\nCromatografo líquido / Detector de fluorescencia: Waters® ACQUITY UPLC / Waters® 2475 Fluorescence Multi-λ Detector.\nCromatografo de gases:  436-GC de Scion Instruments \nCromatografo de gases: HP 4890D Gas Chromatograph. Agilent Technologies\nEspectrofotómetro : Helios β. Thermo Electron Corporation\nMicrocentrífugas: MC12V. Sorvall\nRotavapor: RVC 2-25. Martin Christ\nIncubadora agitación: Daisy II-220 Ankom Technologies.\nBaño de ultrasonidos: Ultrasons-HD. J.P. Selecta®\nLiofilizador: VirTis Genesis Wizard 2.0\nEstufa: P Selecta®\nMufla: Heron 10-PR/400 \nMufla: P Selecta®\nMolino: Restch®\nMolino grandes dimensiones \nEstufa de desecación. Gran capacidad: AFA. Dycometal Testing Technology\nEstufa de desecación. Gran capacidad: P Selecta®\n"]
["Nutrición animal","A14_17R: Sistemas agroganaderos alimentarios sostenibles (SAGAS)","Margalida Joy Torrens","UNIZAR","F. Veterinaria / Ed. Zootecnia","Manuel Fondevila Camps (mfonde@unizar.es) ","Sistema   de   fermentación in vitro: Patente  nº P 200600043. \nCromatografo de gases: ALS 6890 Series Plus. Agilent\nCromatografo líquido HPLC: Waters®717plus Autosampler\nEquipo de extracción de grasa: ANKOM HCL Hydrolysis system\nEquipo de extracción de grasa disolvente: ANKOM XT15 Extraction System\nEquipo de análisis de fibras: ANKOM 220 Fiber Analyzer\nEquipo de análisis de nitrógeno Kjeldahl: Kjeltec™ 2300Analyzer Unit FOSS\nMufla \n"]
["Reproducción pequeños rumiantes","A14_17R: Sistemas agroganaderos alimentarios sostenibles (SAGAS)","Margalida Joy Torrens","CITA","EDIFICIO I+D","José Luis Alabart Álvarez (jalabart@aragon.es)","Ecógrafo: ALOKCA\nLavador de placas \nOsmómetro: VAPRO®. Wescor\nBiocongelador con tanques de nitrógeno \nEstufa de incubación CO2 y N2 con camisa de agua: FormaTM. Thermo ScientificTM\nBaño de ultrasonidos \nEstufa de incubación CO2/aire con camisa de agua: Serie II. Thermo ScientificTM\nEstufa de incubación /N2/O2 con camisa de agua: Heracell®. Heraeus\nEstereomicroscopio: SZH10. Olimpus\nEstereomicroscopio: SMZ 1500. Nikon\nEquipo de crioconservación de material genético \nSelladora de pajuelas por ultrasonidos: Cryosealer. Minitube\nMicromanipulador \nMicroscopio invertido de fluorescencia/cámara integrada: Axiovert 135 Zeiss \nObjetivo laser: XYclone® de Hamilton Thorne\nMultiporador: Eppendorf\n"]
["Genética","A16_17R: Zoonosis y enfermedades emergentes de interés en salud pública","Joaquín Quílez Cinca","UNIZAR","F. Veterinaria / Ed. Central","Luis Monteagudo Ibáñez (monteagu@unizar.es) ","Sistema de purificación de ácidos nucleicos. KingFisher™ Duo Prime"]
["Protozoosis entéricas","A16_17R: Zoonosis y enfermedades emergentes de interés en salud pública","Joaquín Quílez Cinca","UNIZAR","F. Veterinaria / Ed. Hospital","Joaquín Quílez Cinca (jquilez@unizar.es) ","Cabina de seguridad microbiológica clase II: Streamline Class II Biological Safety Cabinet. ESCO"]
["Ictiopatología","A17_17R: RAySA: Reproducción asistida y sanidad animal","Lydia Gil Huerta","UNIZAR","F. Veterinaria / Ed. Hospital","Imanol Ruiz Zarzuela (imaruiz@unizar.es) ","Espectrofotómetro: SmartSpec Plus. BioRAD\nEspectrofotómetro: DR 2800. Hach Lange\nMicroscopio de fluorescencia: Dialux® 20 EB. Leitz\nMicroscopio óptico : DM 1000. Leica Microsystems\nMicroscopio de fluorescencia invertido: Vert A1 FL. Axio\nMicrotomo. HM 350S. Microm Heidelberg\nEstación de inclusión: EC 350-2. Myr\nBomba y rampa de filtrado para análisis físico-químico y microbiológico de aguas: Pall Gelman Laboratory\nEstufa refrigerada: Binder\nEstufa de incubación CO2: Sanyo\nEstufa de secado: Binder\nMicrocentrífugas: 5415R. Eppendorf\n"]
["Reproduccción","A17_17R: RAySA: Reproducción asistida y sanidad animal","Lydia Gil Huerta","UNIZAR","F. Veterinaria / Ed. Hospital","Lydia Gil Huerta (lydiagil@unizar.es) ","Microscopio de fluorescencia: DM2500 LED. Leica Microsystems"]
["Histología y anatomía patológica","A17_17R: RAySA: Reproducción asistida y sanidad animal\nB16_17R: Dieta mediterránea y su potencial nutracéutico","A17_17R: Lydia Gil Huerta\nB16_17R: Jesús de la Osada García","UNIZAR","F. Veterinaria / Ed. Aulario","A17_17R: Lluis Luján Lerma (Lluis.Lujan@unizar.es) / B16_17R: Carmen Arnal Atarés (arnal@unizar.es) ","Inclusor de parafina \nEstación de inclusión: DP500\nMicrotomo: Shandon™ Finesse™ 325. Thermo Scientific\nBatería de tinción \nMicroscopio con cámara integrada: NIKON ECLIPSE E2000/NIKON DS-Fi1\n"]
["Genética Bioquímica (LAGENBIO)","A19_17R: LAGENBIO","Pilar Zaragoza Fernández","UNIZAR","F. Veterinaria / Ed. Central","Clementina Rodellar Penella (rodellar@unizar.es)","Secuenciador automático: ABI PRISM® 3100 Genetic Analyzer. Applied Biosystems\nTermociclador: Applied Biosystems™ ProFlex™ 2 x 384-well PCR System\nTermociclador: Applied Biosystems 2720 Thermal Cycler\nTermociclador: SimpliAmp™ Thermal Cycler \nSistema de pipeteo automático: epMotion® 5070. Eppendorf\ntermociclador PCR tiempo real: StepOnePlus™. Applied Biosystems®\nPCR digital: QuantStudio™ 3D Digital PCR System. Applied Biosystems™\nTransiluminador: MiniBis Pro. Bio-Imaging Systems\nEspectrofotómetro de microvolúmenes: NanoDrop™ 2000/2000c. Thermo Scientific™\nEspectrofotómetro: Infinite® F200 Fluorescence Microplate Reader. Tecan\nUltracentrífuga: Sorvall Instrument\nContador de partículas: Z2. Beckman Coulter\nDispensador de muestras \nCongelador -150ºC \nTanque de nitrógeno líquido \nIncubador de hipoxia \nIncubador de normoxia \nMicroscopio óptico invertido: Nikon\nMicroscopio confocal: Zeiss\n"]
["Bioquímica","B16_17R: Dieta mediterránea y su potencial nutracéutico","Jesús de la Osada García","UNIZAR","F. Veterinaria / Ed. Central","Jesús de la Osada García (josada@unizar.es","Colección de anticuerpos generados por Phage-display \nTermociclador: S1000™ Thermal Cycler. Bio-Rad\nTermociclador: PTC-100™. MJ Research Inc.\nSistema de electroforesis Fuente: PowerPac™. Bio-Rad\nSistema de electroporación: Gene Pulser® II, con Capacitance Extender Plus y Pulse Controller Plus. Bio-Rad\nTermociclador PCR tiempo real. StepOnePlus™. Applied Biosystems®\nTermociclador PCR tiempo real: StepOne™. Applied Biosystems®\nSistema de documentación de gel: Gel Doc™. Bio-Rad \nCromatografo líquido FPLC: AKTA FPLC System. Amershan Pharmacia Bioteck\nLector de placas ELISA: SPECTROstar Nano. BMG Labtech\nLector de placas ELISA: Fluostar Omega. BMG Labtech\nUltracentrífuga: Optima™ TLX Ultracentrifuge. Beckman Coulter \nUltracentrífuga refrigerada: RC-5B Plus.  Sorvall\nUltracentrífuga: Sorvall™ Legend™ XT/XF. Thermo Fisher Scientific\nSistema de evaporación de muestras: Concentrator 5301. Eppendorf\nAutoclave gran volumen: Raypa steam sterilizer \nAutoclave gran volumen: Pselecta\nMáquina de hielo \n"]
["Growth, Exercise, Nutrition and Development (GENUD)","B34_17R: Growth, Exercise, Nutrition and Development (GENUD)","Luis Alberto Moreno Aznar","UNIZAR","F. Ciencias de la salud","Luis Alberto Moreno Aznar (lmoreno@unizar.es) ","Equipamiento singular para valoración funcional \nEquipamiento singular para estudios de composición corporal \n"]
["Análisis digital de la imagen y el color","T07_17R: Alimentos de Origen Vegetal (GIAOVE)","Jesús Val Falcón","UNIZAR","F. Veterinaria / Ed. Central","Ángel Ignacio Negueruela Suberviola (neguerue@unizar.es) ","Espectrorradiómetro a distancia: CAS140. Instrument System\nEspectrómetro: AvaSpec 1024 Fibra Óptica / Fuente de alimentación Avantis Avalight DHS\nTorre láser con cámara de visión para retrodifusión de láser y estudio de madurez \nCámara A3121 Basler Vision Technologies\nSoftware para control de imagen, análisis y tratamiento digital MATROX®\nSondas para medición por reflexión y para flujo continuo \nFuentes de alimentación, lámparas \nCartas de calibración de color (UNE 48-103-94) "]
["Tecnología de productos vegetales","T07_17R: Alimentos de Origen Vegetal (GIAOVE)","Jesús Val Falcón","UNIZAR","F. Veterinaria / Ed. Zootecnia","Rosa Oria Almudí (oria@unizar.es) ","Equipo para olfatometría \nEstufa: Digitronic. J.P. Selecta®\nHorno mixto vapor/convección : Convotherm®\nEquipo de extracción de grasa: FOSS SoxtecTM 2055\nDeshidratadora de alimentos con bandejas: SEDONA®\nHorno: SIEMENS\nPlaca de inducción: Bosch\nCámara termográfica: TESTO 875\nCabina de extracción de gases: ST 1500. Burdinola\nEquipo para medida de la estabilidad oxidativa (RANCIMAT): Rancimat 743. Metrohm\nTexturómetro: TA XT plus. Texturelab\nAnalizador de humedad: HR 73 Halogan Moisture Analyzer. Mettler-Toledo\nMedidor de actividad de agua: Novasina Labmaster\nEnvasador al vacío: VM 12. Orved.\nAnalizador de gases: CheckMate 3. Dansensor \nRefractómetro: DBX-55A. Atago\nTitulador: Compact Titrator. Crison\nRotavapor \nEspectrofotómetro: Thermo Spectronic Unicam UV-510 UV-Visible\nCromatógrafo de gases: HP4890\nCromatógrafo de gases: HP4890\nCámara refrigeración \nCámara refrigeración \nCámara climática: ICH750 de Memmert\n"]
["Truficultura","T07_17R: Alimentos de Origen Vegetal (GIAOVE)","Jesús Val Falcón","CITA","Ed. Pluridisciplinar","Pedro Marco Montori (pmarcomo@cita-aragon.es) ","Cabina de flujo laminar horizontal: AH-100. Telstar\nCabina de flujo laminar vertical: PV-199 TELSTAR®\nBaño de ultrasonidos: Bandelin SONOREX™ \nBaño termostatizado: Memmert\nIncubador refrigerado. IPP 500. Memmert\nMicroscopio de contraste de fases: ZEISS Axio Scope.A1\nEstereomicroscopio: Carl Zeiss™ Stemi 2000-C \nMedidor multiparamétrico: Orion Versa Star Pro. Thermo Scientific\nTermociclador: Eppendorf Mastercycler®\nTermobloque: FB15101. Fisher Scientific\nAutoclave gran volumen: SELECTA 437-G\nSistema de electroforesis \n"]
["Laboratorio de Análisis de Aroma y Enología (LAAE) ","T29_17R: Laboratorio de Análisis de Aroma y Enología (LAAE) ","Vicente Ferreira González","UNIZAR","F. Ciencias","Vicente Ferreira González (vferre@unizar.es) ","Liofilizador: Lyoquest Plus-85ºC Plus/Eco. Telstar\nExtractor automatizado en fase sólida: GX-274 liquid handler. Gilson\nCromatografo de gases: Varian\nCromatografo de gases: Trace GC Thermo Quest; Fisons GC 8000 series\nCromatografo de gases: Varian 3800\nCromatografo de gases: Agilent 7890B \nCromatografo de gases: Varian 3800\nCromatografía de gases masas: Shimadzu QP2010\nCromatografos de gases masas ion trap: Varian CP 3800 (GC-MS-Ion Trap)\nCromatografo de gases: Shimadzu QP2010 Plus\nCromatografo de gases: 7890 Agilent Technologies\nCromatografo de gases: Varian 3800\nCromatografo líquido HPLC: HPLC 1220 Infinity LC Agilent Technologies\nCromatografo líquido HPLC: HPLC Waters 2695 \nAnalizador de oxígeno: Nomasense\nPotenciostato \n"]

{"sheet":"BD_GI_NO TOCAR","index":8,"n_rows":19,"n_cols":44,"rows_kept":19,"cut":false,"hidden":true,"merged":[]}
["Columna1","Columna2","Columna3","Columna4","Columna5","Columna6","Columna7"]
["GI","NOMBRE GI","LABORATORIOS"]
["Seleccionar…"," "," ",null,null,null,null,null,"LABORATORIO",{"$f":"$C$4","v":"Bioquímica de proteínas"},{"$f":"$D$4","v":"Cultivos celulares"},{"$f":"$E$4","v":"Fisiología"},{"$f":"$C$5","v":"Investigación en nuevas tecnologías de procesado y conservación de alimentos"},{"$f":"$C$6","v":"Bienestar Animal"},{"$f":"$D$6","v":"Calidad de la carne y pescado"},{"$f":"$E$6","v":"Tecnología de la carne y del pescado"},{"$f":"$C$7","v":"Entomología sanitaria"},{"$f":"$D$7","v":"Parasitología"},{"$f":"$C$8","v":"Análisis y evaluación de la seguridad alimentaria"},{"$f":"$C$9","v":"Biología molecular aplicada a la sanidad y producción vegetal."},{"$f":"$D$9","v":"Sanidad Vegetal"},{"$f":"$E$9","v":"Producción Vegetal"},{"$f":"$D$10","v":"Cultivo in vitro de material vegetal"},{"$f":"$E$10","v":"Fisiología vegetal"},{"$f":"$F$10","v":"Material vegetal"},{"$f":"$C$11","v":"Biología molecular aplicada a la sanidad y producción animal"},{"$f":"$D$11","v":"Brucelosis P3"},{"$f":"$E$11","v":"Serología"},{"$f":"$D$12","v":"Calidad de la canal y la carne"},{"$f":"$E$12","v":"Digestibilidad"},{"$f":"$F$12","v":"Nutrición animal"},{"$f":"$G$12","v":"Reproducción pequeños rumiantes"},{"$f":"$C$13","v":"Genética"},{"$f":"$D$13","v":"Protozoosis entéricas"},{"$f":"$C$14","v":"Reproduccción"},{"$f":"$D$14","v":"Ictiopatología"},{"$f":"$E$14","v":"Histología y anatomía patológica"},{"$f":"$C$15","v":"Genética Bioquímica (LAGENBIO)"},{"$f":"$C$16","v":"Bioquímica"},{"$f":"$C$17","v":"Growth, Exercise, Nutrition and Development (GENUD)"},{"$f":"$C$18","v":"Tecnología de productos vegetales"},{"$f":"$D$18","v":"Análisis digital de la imagen y el color"},{"$f":"$E$18","v":"Truficultura"},{"$f":"$C$19","v":"Laboratorio de Análisis de Aroma y Enología (LAAE) "}]
["A02_17R","El efecto del Procesado Tecnológico de los Alimentos en las Patologías Digestivas y Alérgicas (ALIPAT)","Bioquímica de proteínas","Cultivos celulares","Fisiología",null,null,null,"IP",{"$f":"BD_LAB!$C$3","v":"Miguel Calvo Rebollar"},{"$f":"BD_LAB!$C$4","v":"Miguel Calvo Rebollar"},{"$f":"BD_LAB!$C$5","v":"Miguel Calvo Rebollar"},{"$f":"BD_LAB!$C$6","v":"Santiago Condón Usón"},{"$f":"BD_LAB!$C$7","v":"José Antonio Beltrán Gracia"},{"$f":"BD_LAB!$C$8","v":"José Antonio Beltrán Gracia"},{"$f":"BD_LAB!$C$9","v":"José Antonio Beltrán Gracia"},{"$f":"BD_LAB!$C$10","v":"Juan José Badiola Díez"},{"$f":"BD_LAB!$C$11","v":"Juan José Badiola Díez"},{"$f":"BD_LAB!$C$12","v":"Agustín Ariño Moneva"},{"$f":"BD_LAB!$C$14","v":"A11_17R: Fernando Escriu Paradell\nA12_17R: Pilar Errea Abad"},{"$f":"BD_LAB!$C$13","v":"Fernando Escriu Paradell"},{"$f":"BD_LAB!$C$15","v":"A11_17R: Fernando  Escriu Paradell\nT07_17R: Jesús Val Falcón"},{"$f":"BD_LAB!$C$16","v":"Pilar Errea Abad"},{"$f":"BD_LAB!$C$17","v":"Pilar Errea Abad"},{"$f":"BD_LAB!$C$18","v":"Pilar Errea Abad"},{"$f":"BD_LAB!$C$21","v":"A13_17R: Pilar María Muñoz Alvaro\nA14_17R: Margalida Joy Torrens"},{"$f":"BD_LAB!$C$19","v":"Pilar María Muñoz Alvaro"},{"$f":"BD_LAB!$C$20","v":"Pilar María Muñoz Alvaro"},{"$f":"BD_LAB!$C$22","v":"Margalida Joy Torrens"},{"$f":"BD_LAB!$C$23","v":"Margalida Joy Torrens"},{"$f":"BD_LAB!$C$24","v":"Margalida Joy Torrens"},{"$f":"BD_LAB!$C$25","v":"Margalida Joy Torrens"},{"$f":"BD_LAB!$C$26","v":"Joaquín Quílez Cinca"},{"$f":"BD_LAB!$C$27","v":"Joaquín Quílez Cinca"},{"$f":"BD_LAB!$C$29","v":"Lydia Gil Huerta"},{"$f":"BD_LAB!$C$28","v":"Lydia Gil Huerta"},{"$f":"BD_LAB!$C$30","v":"A17_17R: Lydia Gil Huerta\nB16_17R: Jesús de la Osada García"},{"$f":"BD_LAB!$C$31","v":"Pilar Zaragoza Fernández"},{"$f":"BD_LAB!$C$32","v":"Jesús de la Osada García"},{"$f":"BD_LAB!$C$33","v":"Luis Alberto Moreno Aznar"},{"$f":"BD_LAB!$C$35","v":"Jesús Val Falcón"},{"$f":"BD_LAB!$C$34","v":"Jesús Val Falcón"},{"$f":"BD_LAB!$C$36","v":"Jesús Val Falcón"},{"$f":"BD_LAB!$C$37","v":"Vicente Ferreira González"}]
["A03_17R","Nuevas tecnologías de procesado de los alimentos","Investigación en nuevas tecnologías de procesado y conservación de alimentos",null,null,null,null,null,"INSTITUCIÓN",{"$f":"BD_LAB!$D$3","v":"UNIZAR"},{"$f":"BD_LAB!$D$4","v":"UNIZAR"},{"$f":"BD_LAB!$D$5","v":"UNIZAR"},{"$f":"BD_LAB!$D$6","v":"UNIZAR"},{"$f":"BD_LAB!$D$7","v":"UNIZAR"},{"$f":"BD_LAB!$D$8","v":"UNIZAR"},{"$f":"BD_LAB!$D$9","v":"UNIZAR"},{"$f":"BD_LAB!$D$10","v":"UNIZAR"},{"$f":"BD_LAB!$D$11","v":"CITA"},{"$f":"BD_LAB!$D$12","v":"UNIZAR"},{"$f":"BD_LAB!$D$14","v":"CITA"},{"$f":"BD_LAB!$D$13","v":"CITA"},{"$f":"BD_LAB!$D$15","v":"UNIZAR"},{"$f":"BD_LAB!$D$16","v":"CITA"},{"$f":"BD_LAB!$D$17","v":"CITA"},{"$f":"BD_LAB!$D$18","v":"CITA"},{"$f":"BD_LAB!$D$21","v":"CITA"},{"$f":"BD_LAB!$D$19","v":"CITA"},{"$f":"BD_LAB!$D$20","v":"CITA"},{"$f":"BD_LAB!$D$22","v":"CITA"},{"$f":"BD_LAB!$D$23","v":"CITA"},{"$f":"BD_LAB!$D$24","v":"UNIZAR"},{"$f":"BD_LAB!$D$25","v":"CITA"},{"$f":"BD_LAB!$D$26","v":"UNIZAR"},{"$f":"BD_LAB!$D$27","v":"UNIZAR"},{"$f":"BD_LAB!$D$29","v":"UNIZAR"},{"$f":"BD_LAB!$D$28","v":"UNIZAR"},{"$f":"BD_LAB!$D$30","v":"UNIZAR"},{"$f":"BD_LAB!$D$31","v":"UNIZAR"},{"$f":"BD_LAB!$D$32","v":"UNIZAR"},{"$f":"BD_LAB!$D$33","v":"UNIZAR"},{"$f":"BD_LAB!$D$35","v":"UNIZAR"},{"$f":"BD_LAB!$D$34","v":"UNIZAR"},{"$f":"BD_LAB!$D$36","v":"CITA"},{"$f":"BD_LAB!$D$37","v":"UNIZAR"}]
["A04_17R","Calidad y tecnología de la carne","Bienestar Animal","Calidad de la carne y pescado","Tecnología de la carne y del pescado",null,null,null,"LOCALIZACIÓN",{"$f":"BD_LAB!$E$3","v":"F. Veterinaria / Ed. Zootecnia"},{"$f":"BD_LAB!$E$4","v":"F. Veterinaria. Ed. Zootecnia"},{"$f":"BD_LAB!$E$5","v":"F. Veterinaria / Ed. Central"},{"$f":"BD_LAB!$E$6","v":"F. Veterinaria / Ed. Zootecnia"},{"$f":"BD_LAB!$E$7","v":"F. Veterinaria / Ed. Zootecnia"},{"$f":"BD_LAB!$E$8","v":"F. Veterinaria / Ed. Zootecnia"},{"$f":"BD_LAB!$E$9","v":"F. Veterinaria / Ed. Zootecnia"},{"$f":"BD_LAB!$E$10","v":"F. Veterinaria / Ed. Hospital"},{"$f":"BD_LAB!$E$11","v":"EDIFICIO I+D"},{"$f":"BD_LAB!$E$12","v":"F. Veterinaria / Ed. Zootecnia"},{"$f":"BD_LAB!$E$14","v":"Ed. Pluridisciplinar"},{"$f":"BD_LAB!$E$13","v":"Ed. Pluridisciplinar"},{"$f":"BD_LAB!$E$15","v":"EPSH"},{"$f":"BD_LAB!$E$16","v":"Ed. Pluridisciplinar"},{"$f":"BD_LAB!$E$17","v":"Ed. Área Vegetal"},{"$f":"BD_LAB!$E$18","v":"Ed. Área Vegetal"},{"$f":"BD_LAB!$E$21","v":"EDIFICIO I+D"},{"$f":"BD_LAB!$E$19","v":"EDIFICIO I+D"},{"$f":"BD_LAB!$E$20","v":"EDIFICIO I+D"},{"$f":"BD_LAB!$E$22","v":"Unidad de Tecnología en Producción Animal y Sanidad Animal"},{"$f":"BD_LAB!$E$23","v":"Unidad de Tecnología en Producción Animal y Sanidad Animal"},{"$f":"BD_LAB!$E$24","v":"F. Veterinaria / Ed. Zootecnia"},{"$f":"BD_LAB!$E$25","v":"EDIFICIO I+D"},{"$f":"BD_LAB!$E$26","v":"F. Veterinaria / Ed. Central"},{"$f":"BD_LAB!$E$27","v":"F. Veterinaria / Ed. Hospital"},{"$f":"BD_LAB!$E$29","v":"F. Veterinaria / Ed. Hospital"},{"$f":"BD_LAB!$E$28","v":"F. Veterinaria / Ed. Hospital"},{"$f":"BD_LAB!$E$30","v":"F. Veterinaria / Ed. Aulario"},{"$f":"BD_LAB!$E$31","v":"F. Veterinaria / Ed. Central"},{"$f":"BD_LAB!$E$32","v":"F. Veterinaria / Ed. Central"},{"$f":"BD_LAB!$E$33","v":"F. Ciencias de la salud"},{"$f":"BD_LAB!$E$35","v":"F. Veterinaria / Ed. Zootecnia"},{"$f":"BD_LAB!$E$34","v":"F. Veterinaria / Ed. Central"},{"$f":"BD_LAB!$E$36","v":"Ed. Pluridisciplinar"},{"$f":"BD_LAB!$E$37","v":"F. Ciencias"}]
["A05_17R","Enfermedades priónicas, vectoriales y zoonosis emergentes","Entomología sanitaria","Parasitología",null,null,null,null,"RBLE. LAB",{"$f":"BD_LAB!$F$3","v":" Miguel Calvo Rebollar (calvoreb@unizar.es)"},{"$f":"BD_LAB!$F$4","v":" Miguel Calvo Rebollar (calvoreb@unizar.es)"},{"$f":"BD_LAB!$F$5","v":"José Emilio Mesonero Gutiérrez (mesonero@unizar.es)"},{"$f":"BD_LAB!$F$6","v":"Santiago Condón Usón (scondon@unizar.es)"},{"$f":"BD_LAB!$F$7","v":"Gustavo María Levrino (levrino@unizar.es) "},{"$f":"BD_LAB!$F$8","v":"María del Mar Campo Arribas (marimar@unizar.es) "},{"$f":"BD_LAB!$F$9","v":"José Antonio Beltrán Gracia (jbeltran@unizar.es) "},{"$f":"BD_LAB!$F$10","v":"Javier Lucientes Curdi (jlucien@unizar.es) "},{"$f":"BD_LAB!$F$11","v":"Carlos Calvete Margollés (ccalvete@aragon.es)"},{"$f":"BD_LAB!$F$12","v":"Agustín Ariño Moneva (aarino@unizar.es) "},{"$f":"BD_LAB!$F$14","v":"Pilar Errea Abad (perrea@aragon.es) "},{"$f":"BD_LAB!$F$13","v":"Fernando Escriu Paradell (fescriu@aragon.es)"},{"$f":"BD_LAB!$F$15","v":"A11_17R: Joaquín Aibar Lete (jaibar@unizar.es)\nT07_17R: Juan José Barriuso Vargas (barriuso@unizar.es)"},{"$f":"BD_LAB!$F$16","v":"Pilar Errea Abad (perrea@aragon.es"},{"$f":"BD_LAB!$F$17","v":"Pilar Errea Abad (perrea@aragon.es) "},{"$f":"BD_LAB!$F$18","v":"Pilar Errea Abad (perrea@aragon.es) "},{"$f":"BD_LAB!$F$21","v":"Jorge Hugo Calvo Lacosta (jhcalvo@aragon.es) "},{"$f":"BD_LAB!$F$19","v":"Pilar María Muñoz Álvaro (pmmunnoz@cita-aragon.es)"},{"$f":"BD_LAB!$F$20","v":"Clara María Marín Alcalá (cmarin@cita-aragon.es) "},{"$f":"BD_LAB!$F$22","v":"Begoña Panea Doblado (bpanea@aragon.es)"},{"$f":"BD_LAB!$F$23","v":"Margalida Joy Torrens (mjoy@aragon.es)"},{"$f":"BD_LAB!$F$24","v":"Manuel Fondevila Camps (mfonde@unizar.es) "},{"$f":"BD_LAB!$F$25","v":"José Luis Alabart Álvarez (jalabart@aragon.es)"},{"$f":"BD_LAB!$F$26","v":"Luis Monteagudo Ibáñez (monteagu@unizar.es) "},{"$f":"BD_LAB!$F$27","v":"Joaquín Quílez Cinca (jquilez@unizar.es) "},{"$f":"BD_LAB!$F$29","v":"Lydia Gil Huerta (lydiagil@unizar.es) "},{"$f":"BD_LAB!$F$28","v":"Imanol Ruiz Zarzuela (imaruiz@unizar.es) "},{"$f":"BD_LAB!$F$30","v":"A17_17R: Lluis Luján Lerma (Lluis.Lujan@unizar.es) / B16_17R: Carmen Arnal Atarés (arnal@unizar.es) "},{"$f":"BD_LAB!$F$31","v":"Clementina Rodellar Penella (rodellar@unizar.es)"},{"$f":"BD_LAB!$F$32","v":"Jesús de la Osada García (josada@unizar.es"},{"$f":"BD_LAB!$F$33","v":"Luis Alberto Moreno Aznar (lmoreno@unizar.es) "},{"$f":"BD_LAB!$F$35","v":"Rosa Oria Almudí (oria@unizar.es) "},{"$f":"BD_LAB!$F$34","v":"Ángel Ignacio Negueruela Suberviola (neguerue@unizar.es) "},{"$f":"BD_LAB!$F$36","v":"Pedro Marco Montori (pmarcomo@cita-aragon.es) "},{"$f":"BD_LAB!$F$37","v":"Vicente Ferreira González (vferre@unizar.es) "}]
["A06_17R","Análisis y Evaluación de la Seguridad Alimentaria (AESA)","Análisis y evaluación de la seguridad alimentaria",null,null,null,null,null,"EQUIPOS",{"$f":"BD_LAB!$G$3","v":"Cabina de flujo laminar vertical: Telstar PV-30/70\nCromatógrafo líquido de baja presión: AKTA Start Protein Purification System\nEspectrofotómetro: Jenway 6505 UV/Vis\nLavador de placas multipocillo: Wellwash4MK 2 de Thermo Scientific\nLector de placas ELISA: Multiskan MS versión 3.0 Type352. Labsystems\nSistema de electroforesis horizontal: Phast-System. Pharmacia\nSistema de electroforesis vertical: Mini Protean® 3 Cell. Bio-Rad\nSistema transferencia Western Blotting: TE-70 Semi-Dry-Transfer Unit (14 x16 cm). Amersham Bioscience\n"},{"$f":"BD_LAB!$G$4","v":"Cabina de seguridad biológica : Bio II Advance. Telstar\nCabina flujo laminar: Micro-V. Telstar\nEstufa de incubación termostatizado CO2: B5060 EK/CO2 de Heraeus\nMicroscopio invertido: TMS-F de Nikon\nTermociclador PCR tiempo real: StepOneTM de Applied Biosystems®\n"},{"$f":"BD_LAB!$G$5","v":"Agitador para placas: Duomax 1030. Heidolph Instruments GmbH & Co. KG\nCabina de flujo laminar vertical: AV-100. Telstar\nCaptación y análisis digital de imágenes: BioDoc-it® Imaging System. UVP\nEstufa de incubación CO2: Heraeus® BB16\nHomogenizador: Precellys® Cryolis®. Bertin Instruments \nMicroscopio invertido: Olympus® CK2. Olympus Corporation \nTermociclador PCR: DNA Engine® Peltier Thermal Cycler. Bio-Rad\nTermociclador PCR tiempo real: StepOneTM PlusTM Real-Time PCR System. Applied Biosystems®. ThermoFisher Scientific\nSecuenciador 3ª generación: MinION. Oxford Nanopore Technologies \nSistema de transferencia húmeda de proteínas: Mini Trans-Blot® Cell. Bio-Rad\nSistema de electroforesis vertical: Mini-PROTEAN® Tetra Cell. Bio-Rad \nHomogenizador por ultrasonidos: HD 2200. BANDELIN electronic GmbH & Co\nBaño de agua: WNB10. Memmert\nBaño de incubación: Digiterm 100. Selecta\nUnidad de registro y análisis de motilidad gastrointestinal\n"},{"$f":"BD_LAB!$G$6","v":"Placa termoagitadora: LabNet AccuThermTM\nBaño de ultrasonidos: Elma\nBaño de ultrasonidos: Bandelin\nCámara: AxioCam MRc\nCámara anaerobiosis: Don Whitley MACS-VA500\nCabina de flujo laminar vertical: Mini-V/PCR. Telstar\nCentrífuga vacío: GeneVacTM miVac\nCitómetro de flujo: Millipore Guava® easyCyte 6-2L\nContador automático de colonias: Prototipo de la Universidad de Zaragoza\nCromatografo líquido: HPLC ProStar 240 (Varian Inc., Walnut Creek, CA)\nSistema de electroporación: Gene Pulse XCellTM. Bio-Rad\nEquipo de pulsos eléctricos de alto voltaje: EPS\nEquipo de pulsos eléctricos de alto voltaje: Scandinova\nEquipo de pulsos eléctricos de alto voltaje: Nutri-pulse e-Cooker\nEquipo de radiación ultravioleta en flujo continuo: desarrollo propio Universidad de Zaragoza\nEspectrofotómetro: Biochrom Libra S12 UV/Vis\nEspectrofotómetro de microvolúmenes: SimpliNanoTM. General Electric \nEstufa de incubación: Selecta Incudigit \nEstufa de incubación: Raypa IRE-160\nEstufa de incubación: Raypa IRE-475\nFluorímetro de placas: TECAN GENios\nHomogenizador: Mini BeadBeater. BioSpec Products\nIncubador placas: FX Incubator, mod. ZE/FX\nManotermosonicadores (2): MTS (Pat. 92-00686, PCT93/00021)\nMicrocentrífugas: Eppendorf MiniSpin® plus\nMicroscopio de fluorescencia con cámara integrada: Nikon® Eclipse E400 / Zeiss AxioCam MRc\nSistema de electroforesis: Fuente: PowerPacTM Basic Power Supply. Bio-Rad\nTermociclador: Labnet MultiGeneTM II\nTermorresistómetros (2): Adaptados de un prototipo de la Universidad de Zaragoza (Pat. ES2004913A6)\nTransiluminador: UV Vilber Lourmat ECX-20.M\n"},{"$f":"BD_LAB!$G$7","v":"Sistema móvil de 12 cámaras digitales de grabación día/noche\nSistema de visualización de los videos de comportamiento animal\nLaberinto en \"T\"\nOpen Field Test"},{"$f":"BD_LAB!$G$8","v":"Colorímetro portátil: CR400. Konica Minolta\nCromatografo de gases: 6890 Series. Hewlett-Packard\nEquipo integrado EQM \nEspectrofotómetro: CM-600d. Konica Minolta\nEspectrofotómetro. ONDA UV-20\nIncubadora: Mod.870-I HLC. Masalles\nTexturómetro: INSTRON® Modelo 4301\nVNIR: ASD LabSpec®4\n"},{"$f":"BD_LAB!$G$9","v":"Calorímetro de Barrido diferencial: 910 DSC 10. Du Pont Instruments\nCentrífuga refrigerada: Universal 320R. Hettich Lab Technology™\nDestilador Kjeldahl: UDK 129. VELP Scientifica \nEspectrofotómetro: ONDA UV-20\nEspectrofotómetro: CM-3610. Konica Minolta\nTexturómetro: TA.XT2i Texture Analyser. Stable Micro Systems\n"},{"$f":"BD_LAB!$G$10","v":"Agitador vortex: Genius 3. IKA®\nArmarios refrigerados: Medilow. JPSelecta\nEstereomicroscopio: SMZ 168 Motic\nEstereomicroscopio: SMZ 745T. Nikon® \nEstereomicroscopio: Optika\nEstufa: Heareus Function Line \nEstufa refrigerada: Serie 639/250. Nahita®\nEstufa refrigerada: Serie 639/150. Nahita®\nIncubadores laboratorio: Incubator S160. Stuart\nMaterial entomológico \nMesa fría: Mod. 1431. Bioquip®Products\nSistema de alimentación artificial de mosquitos a través de membrana: Hemotek® Membrane Feeding System + Power unit PS5\n"},{"$f":"BD_LAB!$G$11","v":"Cámara climática: Dycometal\nCentrifugadora hematocrito \nContador diferencial de células: DC Counter DBC-8E\nEstereomicroscopio: Wild \nEstereomicroscopio: Nikon\nMicroscopio: Laborlux\nMicroscopio: Leitz\nMicroscopio: Reidret\nMicroscopio: Nikon\nMicroscopio invertido: Microscopio Eclipse TE2000-U. Nikon\n"},{"$f":"BD_LAB!$G$12","v":"Cromatografo de gases: Hewlett-Packard \nCromatografo líquido: Hewlett-Packard\nEspectrofotómetro \nSistema de electroforesis vertical:DCODETM . Bio-Rad\nEspectrofotómetro: Nanodrop™ 2000c. Thermo Scientific\nHomogenizador: Mini BeadBeater. BioSpec Products\nSistema de vacío y Vacuum: Manifold\nTermociclador PCR tiempo real: MiniOpticon Real-Time PCR System. Bio Rad\nLector de placas multipocillo \nSistema de Electroforesis en gel en campo pulsante: CHEF-DR® III Variable Angle System + Cooling module + Variable speed pump. Bio-Rad\nSistema de electroforesis horizontal. Mini-Sub® Cell GT Systems. Bio-Rad \nSistema de electroforesis horizontal: Sub-Cell® Model 192 Cell. Bio-Rad\nSistema de electroforesis \nTermobloque: Grant Bio PCH1. Grant Instruments Ltd\nCámara UV \nHomogenizador: Stomacher®\nEspectrofotómetro \nEquipo de inmunocromatografía de flujo lateral \nCromatografo de permeación gel \nEvaporador: TurboVap® II. Biotage\nEquipo extracción materia grasa: Soxtec® System HT-2\n"},{"$f":"BD_LAB!$G$14","v":"Termociclador \nSistema de electroforesis \nTransiluminador: Syngene™ Gbox\nFluorímetro: Invitrogen™ Qubit™ 3.0\nHomogenizador: TissueLyser II. Qiagen\nEspectrofotómetro: SmartSpec™3000. Bio-Rad \nEspectrofotómetro: Libra S22 UV/Vis. Biochrom\nMicrocentrífugas: 5415D. Eppendorf\nCentrífuga refrigerada: 3-15K. Sigma\nCentrífuga vacío: miVac Duo Concentrator. Genevac™ \nCentrífuga placas: LMC-3000. Biosan\n"},{"$f":"BD_LAB!$G$13","v":"Crosslinker UV \nMedidor radiación PAR \nLiofilizador \nPenetrómetro \nEstereomiscroscopio : Ivymen\nEstereomiscroscopio : Richer\nEstereomicroscopio con contador de colonias: Euromex\nCámara climática \nCámara saneamiento mat. Vegetal \nCámara condiciones controladas\n"},{"$f":"BD_LAB!$G$15","v":"Microscopio: Olympus CX 41\nEstereomicroscopio con cámara integrada: Olympus SZX9 / optika 4083B9 \nCabina de flujo laminar vertical: BV-100. Telstar\nAutoclave: Autester mod 437 G Pselecta\nMedidor de clorofila: Chlorophyll Meter SPAD-502. Konica Minolta\nFluorímetro: Fluorímetro PEA (Plant Eficiencia Analizer). Hansatech Instruments\nMedidor de humedad y peso específico grano: GAC® 2100 Grain Analysis Computer. Dickey John®\nCeptómetro: AccuPAR PAR/LAI Ceptometer. Meter Group\n"},{"$f":"BD_LAB!$G$16","v":"Cabina de flujo laminar vertical: Mini V/PCR. Telstar\nCabina de extracción de gases: ESCO SMART CONTROL\nCámara \n"},{"$f":"BD_LAB!$G$17","v":"Estación de inclusión: EG-1140. Leica\nMicrotomo: Biocut\nUltramicrotomo: Ultracut-E. Rechert-Jung\nVibratomo: OTS-4500. Warner Instruments\nMicroscopio de fluorescencia: DM2500. Leica Microsystems\nMicroscopio de fluorescencia: BH2-RFCA. Olimpus\nMicroscopio de fluorescencia: Wetzlar Ortholux II. Leitz\nEstereomicroscopio: WildM8. Leica\nAnalizador de imagen: Quantimet 570 C\nAnalizador de imagen: Quantimet Q550\nEstación de dispensación de formaldehido \nPurificador de agua: Wasserlab (tipo II) \n"},{"$f":"BD_LAB!$G$18","v":"Penetrómetro \nRefractómetro \nAlmidómetro \nColorímetro \nTitulador: 785DMP Titrino. Metrohm\n"},{"$f":"BD_LAB!$G$21","v":"Termociclador PCR tiempo real: BIORAD CFX96TM Real Time System\nTermociclador PCR tiempo real: 7500 Real Time PCR System Applied BiosistemTM\nHorno de hibridación: ECOGEN\nNanofotómetro: IMPLEN\nTermociclador: GeneAmp® PCR System. Applied Biosystems\nTermociclador: MyCycler™ Thermal Cycler. Bio-Rad\nTermociclador: Mastercycler® Gradient. Eppendorf\nTermociclador: Biometra T3000 Thermocycler\nSistema de documentación de gel: Gel Doc™ 2000. Bio-Rad\nSistema extracción ácidos nucleicos: ABI PRISM™ 6100 Nucleic Acid Prep Station. Applied Biosystems\nSistema de electroforesis horizontal: Wide Mini-Sub®Cell GT. Bio-Rad\nSistema de electroforesis horizontal: Mini-Sub® Cell GT Systems. Bio-Rad \nSistema de electroforesis horizontal: Maxigel ECO 2. Apelex\nSistema de electroforesis Fuente: PowerPac™ 200. Bio-Rad\nCabina de extracción de gases : OR-ST 1500. Burdinola\nHomogenizador: Tissuelyser II. Qiagen\nCentrífuga vacío: miVac Duo Concentrator. Genevac™\nPurificador de agua: Ultramatic (tipo 1 y 2). Wasserlab\nTermodesinfectadora: Miele\nEstación de trabajo para análisis masivos de NGS y arrays\n"},{"$f":"BD_LAB!$G$19","v":"Sistemas de calefacción de bloque seco: QBD2. Grant Instruments™\nLector de placas ELISA: Multiskan RC 351. Labsystem\nLavador de placas multipocillo: Nunc-ImmunoTM Wash \nSistema de electroforesis horizontal Fuente: Atom\nBomba de vacío: Millipore\nAutomata preparador de medios y autoclave  : AES 8. APS \nSAS (Sterile Acces System): E19690. Matachana\nDesinfectadora Formalina/Amoniaco: Gteck\nTermodesinfectadora: Mielabor G7783. Miele Professional\nCabina de seguridad biológica : Bio-II-A. Telstar® \nEstufa de incubación CO2: New Brunswick\nEstufa de incubación CO2 camisa de agua: FormaTM3121. Thermo ScientificTM\nEstufa de incubación CO2: Thermo-Heracell®. Thermo ScientificTM \nEspectrofotómetro: Bio QuestTM \nAutoclave gran volumen: Selecta\nMicroscopio óptico: 208955 Labophot. Nikon\nMicroscopio invertido: TMS. Nikon\nCabina de seguridad biológica : Telstar® Bio-II-B\nCentrífuga refrigerada de alta velocidad: Centrikon T124. Kontron Instruments\nUltracentrífuga alta velocidad: Centrikon T-2060. Kontron Instruments\nIncubador orbital: New Brunswick™ Innova® 43/43R\nFiltro tangencial: Pellicon Cassete System con bomba 7518-60. Millipore \nAutoclave vertical con secado: AE-75 Dry. Raypa\nLiofilizador: Telstar® Lyoalfa 6\nHomogenizador ultrasónico: Labsonic® M. Sartorius\n"},{"$f":"BD_LAB!$G$20","v":"Espectrofotómetro para microplacas: BioteK-EPOCHTM\nLavador de placas multipocillo: Nunc-ImmunoTM Wash \nCabina de extracción de gases: OR-ST1500. Burdinola \nCabina de seguridad biológica: Bio-II-A. Telstar® \npHmetro: GLP21. Crison \n"},{"$f":"BD_LAB!$G$22","v":"Analizador de carne: FoodScan™ 2. FOSS \nTexturómetro: Modelo 5543. Instron\nBaño de agua y aceite: Precisdig. P Selecta\nEspectrofotómetro: UV 2600D. Konica Minolta\n"},{"$f":"BD_LAB!$G$23","v":"NIR \nEquipo de análisis de fibras: Ankom 220 Fiber Analyzer\nEquipo de análisis de grasas: Ankom XT10 Extractor\nEquipo de determinación de energía bruta: Oxygen Bomb Calorimeter. Parr Instruments Company\nEquipo de análisis de nitrógeno: CE Instruments NA 2100 Protein Analyser\nCromatografo líquido / Detector de fluorescencia: Waters® ACQUITY UPLC / Waters® 2475 Fluorescence Multi-λ Detector.\nCromatografo de gases:  436-GC de Scion Instruments \nCromatografo de gases: HP 4890D Gas Chromatograph. Agilent Technologies\nEspectrofotómetro : Helios β. Thermo Electron Corporation\nMicrocentrífugas: MC12V. Sorvall\nRotavapor: RVC 2-25. Martin Christ\nIncubadora agitación: Daisy II-220 Ankom Technologies.\nBaño de ultrasonidos: Ultrasons-HD. J.P. Selecta®\nLiofilizador: VirTis Genesis Wizard 2.0\nEstufa: P Selecta®\nMufla: Heron 10-PR/400 \nMufla: P Selecta®\nMolino: Restch®\nMolino grandes dimensiones \nEstufa de desecación. Gran capacidad: AFA. Dycometal Testing Technology\nEstufa de desecación. Gran capacidad: P Selecta®\n"},{"$f":"BD_LAB!$G$24","v":"Sistema   de   fermentación in vitro: Patente  nº P 200600043. \nCromatografo de gases: ALS 6890 Series Plus. Agilent\nCromatografo líquido HPLC: Waters®717plus Autosampler\nEquipo de extracción de grasa: ANKOM HCL Hydrolysis system\nEquipo de extracción de grasa disolvente: ANKOM XT15 Extraction System\nEquipo de análisis de fibras: ANKOM 220 Fiber Analyzer\nEquipo de análisis de nitrógeno Kjeldahl: Kjeltec™ 2300Analyzer Unit FOSS\nMufla \n"},{"$f":"BD_LAB!$G$25","v":"Ecógrafo: ALOKCA\nLavador de placas \nOsmómetro: VAPRO®. Wescor\nBiocongelador con tanques de nitrógeno \nEstufa de incubación CO2 y N2 con camisa de agua: FormaTM. Thermo ScientificTM\nBaño de ultrasonidos \nEstufa de incubación CO2/aire con camisa de agua: Serie II. Thermo ScientificTM\nEstufa de incubación /N2/O2 con camisa de agua: Heracell®. Heraeus\nEstereomicroscopio: SZH10. Olimpus\nEstereomicroscopio: SMZ 1500. Nikon\nEquipo de crioconservación de material genético \nSelladora de pajuelas por ultrasonidos: Cryosealer. Minitube\nMicromanipulador \nMicroscopio invertido de fluorescencia/cámara integrada: Axiovert 135 Zeiss \nObjetivo laser: XYclone® de Hamilton Thorne\nMultiporador: Eppendorf\n"},{"$f":"BD_LAB!$G$26","v":"Sistema de purificación de ácidos nucleicos. KingFisher™ Duo Prime"},{"$f":"BD_LAB!$G$27","v":"Cabina de seguridad microbiológica clase II: Streamline Class II Biological Safety Cabinet. ESCO"},{"$f":"BD_LAB!$G$29","v":"Microscopio de fluorescencia: DM2500 LED. Leica Microsystems"},{"$f":"BD_LAB!$G$28","v":"Espectrofotómetro: SmartSpec Plus. BioRAD\nEspectrofotómetro: DR 2800. Hach Lange\nMicroscopio de fluorescencia: Dialux® 20 EB. Leitz\nMicroscopio óptico : DM 1000. Leica Microsystems\nMicroscopio de fluorescencia invertido: Vert A1 FL. Axio\nMicrotomo. HM 350S. Microm Heidelberg\nEstación de inclusión: EC 350-2. Myr\nBomba y rampa de filtrado para análisis físico-químico y microbiológico de aguas: Pall Gelman Laboratory\nEstufa refrigerada: Binder\nEstufa de incubación CO2: Sanyo\nEstufa de secado: Binder\nMicrocentrífugas: 5415R. Eppendorf\n"},{"$f":"BD_LAB!$G$30","v":"Inclusor de parafina \nEstación de inclusión: DP500\nMicrotomo: Shandon™ Finesse™ 325. Thermo Scientific\nBatería de tinción \nMicroscopio con cámara integrada: NIKON ECLIPSE E2000/NIKON DS-Fi1\n"},{"$f":"BD_LAB!$G$31","v":"Secuenciador automático: ABI PRISM® 3100 Genetic Analyzer. Applied Biosystems\nTermociclador: Applied Biosystems™ ProFlex™ 2 x 384-well PCR System\nTermociclador: Applied Biosystems 2720 Thermal Cycler\nTermociclador: SimpliAmp™ Thermal Cycler \nSistema de pipeteo automático: epMotion® 5070. Eppendorf\ntermociclador PCR tiempo real: StepOnePlus™. Applied Biosystems®\nPCR digital: QuantStudio™ 3D Digital PCR System. Applied Biosystems™\nTransiluminador: MiniBis Pro. Bio-Imaging Systems\nEspectrofotómetro de microvolúmenes: NanoDrop™ 2000/2000c. Thermo Scientific™\nEspectrofotómetro: Infinite® F200 Fluorescence Microplate Reader. Tecan\nUltracentrífuga: Sorvall Instrument\nContador de partículas: Z2. Beckman Coulter\nDispensador de muestras \nCongelador -150ºC \nTanque de nitrógeno líquido \nIncubador de hipoxia \nIncubador de normoxia \nMicroscopio óptico invertido: Nikon\nMicroscopio confocal: Zeiss\n"},{"$f":"BD_LAB!$G$32","v":"Colección de anticuerpos generados por Phage-display \nTermociclador: S1000™ Thermal Cycler. Bio-Rad\nTermociclador: PTC-100™. MJ Research Inc.\nSistema de electroforesis Fuente: PowerPac™. Bio-Rad\nSistema de electroporación: Gene Pulser® II, con Capacitance Extender Plus y Pulse Controller Plus. Bio-Rad\nTermociclador PCR tiempo real. StepOnePlus™. Applied Biosystems®\nTermociclador PCR tiempo real: StepOne™. Applied Biosystems®\nSistema de documentación de gel: Gel Doc™. Bio-Rad \nCromatografo líquido FPLC: AKTA FPLC System. Amershan Pharmacia Bioteck\nLector de placas ELISA: SPECTROstar Nano. BMG Labtech\nLector de placas ELISA: Fluostar Omega. BMG Labtech\nUltracentrífuga: Optima™ TLX Ultracentrifuge. Beckman Coulter \nUltracentrífuga refrigerada: RC-5B Plus.  Sorvall\nUltracentrífuga: Sorvall™ Legend™ XT/XF. Thermo Fisher Scientific\nSistema de evaporación de muestras: Concentrator 5301. Eppendorf\nAutoclave gran volumen: Raypa steam sterilizer \nAutoclave gran volumen: Pselecta\nMáquina de hielo \n"},{"$f":"BD_LAB!$G$33","v":"Equipamiento singular para valoración funcional \nEquipamiento singular para estudios de composición corporal \n"},{"$f":"BD_LAB!$G$35","v":"Equipo para olfatometría \nEstufa: Digitronic. J.P. Selecta®\nHorno mixto vapor/convección : Convotherm®\nEquipo de extracción de grasa: FOSS SoxtecTM 2055\nDeshidratadora de alimentos con bandejas: SEDONA®\nHorno: SIEMENS\nPlaca de inducción: Bosch\nCámara termográfica: TESTO 875\nCabina de extracción de gases: ST 1500. Burdinola\nEquipo para medida de la estabilidad oxidativa (RANCIMAT): Rancimat 743. Metrohm\nTexturómetro: TA XT plus. Texturelab\nAnalizador de humedad: HR 73 Halogan Moisture Analyzer. Mettler-Toledo\nMedidor de actividad de agua: Novasina Labmaster\nEnvasador al vacío: VM 12. Orved.\nAnalizador de gases: CheckMate 3. Dansensor \nRefractómetro: DBX-55A. Atago\nTitulador: Compact Titrator. Crison\nRotavapor \nEspectrofotómetro: Thermo Spectronic Unicam UV-510 UV-Visible\nCromatógrafo de gases: HP4890\nCromatógrafo de gases: HP4890\nCámara refrigeración \nCámara refrigeración \nCámara climática: ICH750 de Memmert\n"},{"$f":"BD_LAB!$G$34","v":"Espectrorradiómetro a distancia: CAS140. Instrument System\nEspectrómetro: AvaSpec 1024 Fibra Óptica / Fuente de alimentación Avantis Avalight DHS\nTorre láser con cámara de visión para retrodifusión de láser y estudio de madurez \nCámara A3121 Basler Vision Technologies\nSoftware para control de imagen, análisis y tratamiento digital MATROX®\nSondas para medición por reflexión y para flujo continuo \nFuentes de alimentación, lámparas \nCartas de calibración de color (UNE 48-103-94) "},{"$f":"BD_LAB!$G$36","v":"Cabina de flujo laminar horizontal: AH-100. Telstar\nCabina de flujo laminar vertical: PV-199 TELSTAR®\nBaño de ultrasonidos: Bandelin SONOREX™ \nBaño termostatizado: Memmert\nIncubador refrigerado. IPP 500. Memmert\nMicroscopio de contraste de fases: ZEISS Axio Scope.A1\nEstereomicroscopio: Carl Zeiss™ Stemi 2000-C \nMedidor multiparamétrico: Orion Versa Star Pro. Thermo Scientific\nTermociclador: Eppendorf Mastercycler®\nTermobloque: FB15101. Fisher Scientific\nAutoclave gran volumen: SELECTA 437-G\nSistema de electroforesis \n"},{"$f":"BD_LAB!$G$37","v":"Liofilizador: Lyoquest Plus-85ºC Plus/Eco. Telstar\nExtractor automatizado en fase sólida: GX-274 liquid handler. Gilson\nCromatografo de gases: Varian\nCromatografo de gases: Trace GC Thermo Quest; Fisons GC 8000 series\nCromatografo de gases: Varian 3800\nCromatografo de gases: Agilent 7890B \nCromatografo de gases: Varian 3800\nCromatografía de gases masas: Shimadzu QP2010\nCromatografos de gases masas ion trap: Varian CP 3800 (GC-MS-Ion Trap)\nCromatografo de gases: Shimadzu QP2010 Plus\nCromatografo de gases: 7890 Agilent Technologies\nCromatografo de gases: Varian 3800\nCromatografo líquido HPLC: HPLC 1220 Infinity LC Agilent Technologies\nCromatografo líquido HPLC: HPLC Waters 2695 \nAnalizador de oxígeno: Nomasense\nPotenciostato \n"}]
["A11_17R","Producción Vegetal Sostenible (PROVESOS)","Biología molecular aplicada a la sanidad y producción vegetal.","Sanidad Vegetal","Producción Vegetal"]
["A12_17R","Fruticultura. Caracterización, adaptación y mejora genética","Biología molecular aplicada a la sanidad y producción vegetal.","Cultivo in vitro de material vegetal","Fisiología vegetal","Material vegetal"]
["A13_17R","Zoonosis Bacterianas: Brucelosis y Salmonelosis (ZooBac)","Biología molecular aplicada a la sanidad y producción animal","Brucelosis P3","Serología"]
["A14_17R","Sistemas Agroganaderos Alimentarios Sostenibles (SAGAS)","Biología molecular aplicada a la sanidad y producción animal","Calidad de la canal y la carne","Digestibilidad","Nutrición animal","Reproducción pequeños rumiantes"]
["A16_17R","Zoonosis y enfermedades emergentes de interés en salud pública","Genética","Protozoosis entéricas"]
["A17_17R","RAYSA: Reproducción Asistida y Sanidad Animal","Reproduccción","Ictiopatología","Histología y anatomía patológica"]
["A19_17R","LAGENBIO","Genética Bioquímica (LAGENBIO)"]
["B16_17R","Dieta mediterránea y su potencial nutracéutico","Bioquímica","Histología y anatomía patológica"]
["B34_17R","Growth, Exercise, Nutrition and Development (GENUD)","Growth, Exercise, Nutrition and Development (GENUD)"]
["T07_17R","Alimentos de Origen Vegetal (GIAOVE)","Tecnología de productos vegetales","Análisis digital de la imagen y el color","Truficultura","Producción Vegetal"]
["T29_17R","Laboratorio de Análisis de Aroma y Enología (LAAE) ","Laboratorio de Análisis de Aroma y Enología (LAAE) "]

{"sheet":"BD_EQ","index":9,"n_rows":386,"n_cols":15,"rows_kept":386,"cut":false,"hidden":true,"merged":[]}
["ID","EQUIPO","DETALLE","MARCA/MODELO","CLASIFICACIÓN","SUBCLASIFICACIÓN 1","DESCRIPCIÓN","MÁS INFORMACIÓN","FICHA LABORATORIO","LABORATORIO ","GRUPO INVESTIGACIÓN","IP","INSTITUCIÓN","LOCALIZACIÓN","RESPONSABLE LABORATORIO"]
[1,"Cabina de flujo laminar","Vertical","Telstar PV-30/70","Barreras de protección y seguridad biológica",null,null,null,"LAB_01","Bioquímica de proteínas","A02_17R: El efecto del Procesado Tecnológico de los Alimentos en las Patologías Digestivas y Alérgicas (ALIPAT)","Miguel Calvo Rebollar","UNIZAR","F. Veterinaria / Ed. Zootecnia"," Miguel calvo (calvoreb@unizar.es)"]
[2,"Cromatógrafo","Cromatografía líquida. Purificación de proteinas","AKTA Start Protein Purification System","Técnicas instrumentales análisis químicos","Cromatografía","Purificación de proteínas","https://cdn.gelifesciences.com/dmm3bwsv3/AssetStream.aspx?mediaformatid=10061&destinationid=10016&assetid=16705","LAB_01","Bioquímica de proteínas","A02_17R: El efecto del Procesado Tecnológico de los Alimentos en las Patologías Digestivas y Alérgicas (ALIPAT)","Miguel Calvo Rebollar","UNIZAR","F. Veterinaria / Ed. Zootecnia"," Miguel calvo (calvoreb@unizar.es)"]
[3,"Espectrofotómetro","UV/Vis","Jenway 6505 UV/Vis","Técnicas instrumentales análisis químicos","Espectrofotómetría","UV/Vis",null,"LAB_01","Bioquímica de proteínas","A02_17R: El efecto del Procesado Tecnológico de los Alimentos en las Patologías Digestivas y Alérgicas (ALIPAT)","Miguel Calvo Rebollar","UNIZAR","F. Veterinaria / Ed. Zootecnia"," Miguel calvo (calvoreb@unizar.es)"]
[4,"ELISA","Lavador de placas","Wellwash4MK 2. Thermo Scientific","Técnicas de análisis biológicos: INMUNOENSAYO","Inmunoensayo","Wash volumen: 50 - 750 μl in 50 μl increments\nNo of washing cycles: 1 - 15 cycles with programmable card\nResidual aspiration volumen: ≤ 5 μl\nSoaking time: 1 - 10 min\nWash time: 120 s, 3 x 350 μl with 12-way wash head / 165 s, 3 x 350 μl with 8-way wash head\nPriming and rinsing volumen: 15 - 20 ml","http://www.tslabor.hu/depo/Fotometer-ELIZA/Wellwash4Mk2.pdf","LAB_01","Bioquímica de proteínas","A02_17R: El efecto del Procesado Tecnológico de los Alimentos en las Patologías Digestivas y Alérgicas (ALIPAT)","Miguel Calvo Rebollar","UNIZAR","F. Veterinaria / Ed. Zootecnia"," Miguel calvo (calvoreb@unizar.es)"]
[5,"ELISA","Lector de placas","Multiskan MS versión 3.0 Type352. Labsystems","Técnicas de análisis biológicos: INMUNOENSAYO","Inmunoensayo",null,null,"LAB_01","Bioquímica de proteínas","A02_17R: El efecto del Procesado Tecnológico de los Alimentos en las Patologías Digestivas y Alérgicas (ALIPAT)","Miguel Calvo Rebollar","UNIZAR","F. Veterinaria / Ed. Zootecnia"," Miguel calvo (calvoreb@unizar.es)"]
[6,"Electroforesis","Horizontal","Phast-System. Pharmacia","Técnicas de análisis biológicos: MOLECULAR","Biología Molecular",null,null,"LAB_01","Bioquímica de proteínas","A02_17R: El efecto del Procesado Tecnológico de los Alimentos en las Patologías Digestivas y Alérgicas (ALIPAT)","Miguel Calvo Rebollar","UNIZAR","F. Veterinaria / Ed. Zootecnia"," Miguel calvo (calvoreb@unizar.es)"]
[7,"Electroforesis","Vertical","Mini Protean® 3 Cell. Bio-Rad","Técnicas de análisis biológicos: MOLECULAR","Biología Molecular",null,"http://www.bio-rad.com/webroot/web/pdf/lsr/literature/4006157B.pdf","LAB_01","Bioquímica de proteínas","A02_17R: El efecto del Procesado Tecnológico de los Alimentos en las Patologías Digestivas y Alérgicas (ALIPAT)","Miguel Calvo Rebollar","UNIZAR","F. Veterinaria / Ed. Zootecnia"," Miguel calvo (calvoreb@unizar.es)"]
[8,"Western Blotting","Sistema transferencia Western Blotting","TE-70 Semi-Dry-Transfer Unit . Amersham Bioscience","Técnicas de análisis biológicos: INMUNOENSAYO","Inmunoensayo","TE 70 Semi-Dry Transfer Unit, 14 × 16 cm\n- Application: Designed to deliver outstanding electrophoretic transfer results using low current and voltage with a minimal amount of buffer \n- Compliance: The product fulfills valid directives and standards when used within the conditions specified in the user manual. The product must also be used in the same state as it was delivered from GE Healthcare and connected only to other CE labeled GE Healthcare modules or other products as recommended. For regulatory details please see declaration of conformity. \n- Depth: 46 cm \n- Height: 9 cm \nOperating Conditions:  Indoor use: 4 – 40°C operating conditions: Humidity up to: 80% Altitude up to: 2000 m Installation category: II Pollution degree: 2 \nOutput Current: 0.5 A\nOutput Voltage: 30 V\nWeight  3.7 kg\nWidth  38 cm\nBuilt-in Power  No \nGel Size  14 x 16 cm ","https://cdn.gelifesciences.com/dmm3bwsv3/AssetStream.aspx?mediaformatid=10061&destinationid=10016&assetid=13863","LAB_01","Bioquímica de proteínas","A02_17R: El efecto del Procesado Tecnológico de los Alimentos en las Patologías Digestivas y Alérgicas (ALIPAT)","Miguel Calvo Rebollar","UNIZAR","F. Veterinaria / Ed. Zootecnia"," Miguel calvo (calvoreb@unizar.es)"]
[9,"Cabina de seguridad biológica ","Clase II","Bio II Advance. Telstar","Barreras de protección y seguridad biológica",null,"Clase II",null,"LAB_02","Cultivos celulares","A02_17R: El efecto del Procesado Tecnológico de los Alimentos en las Patologías Digestivas y Alérgicas (ALIPAT)","Miguel Calvo Rebollar","UNIZAR","F. Veterinaria. Ed. Zootecnia"," Miguel calvo (calvoreb@unizar.es)"]
[10,"Cabina de flujo laminar","Vertical/PCR","Micro-V. Telstar","Barreras de protección y seguridad biológica",null,null,null,"LAB_02","Cultivos celulares","A02_17R: El efecto del Procesado Tecnológico de los Alimentos en las Patologías Digestivas y Alérgicas (ALIPAT)","Miguel Calvo Rebollar","UNIZAR","F. Veterinaria. Ed. Zootecnia"," Miguel calvo (calvoreb@unizar.es)"]
[11,"Incubadora","CO2","B5060 EK/CO2. Heraeus","Estufas, hornos, incubadoras, baños","Incubadora",null,null,"LAB_02","Cultivos celulares","A02_17R: El efecto del Procesado Tecnológico de los Alimentos en las Patologías Digestivas y Alérgicas (ALIPAT)","Miguel Calvo Rebollar","UNIZAR","F. Veterinaria. Ed. Zootecnia"," Miguel calvo (calvoreb@unizar.es)"]
[12,"Microscopio","Invertido","TMS-F. Nikon","Microscopía",null,"10x, 20x 40x Plan Objectives",null,"LAB_02","Cultivos celulares","A02_17R: El efecto del Procesado Tecnológico de los Alimentos en las Patologías Digestivas y Alérgicas (ALIPAT)","Miguel Calvo Rebollar","UNIZAR","F. Veterinaria. Ed. Zootecnia"," Miguel calvo (calvoreb@unizar.es)"]
[13,"PCR","PCR (qPCR)","StepOneTM. Applied Biosystems®","Técnicas de análisis biológicos: MOLECULAR","Biología Molecular","48 pocillos","https://www.gene-quantification.de/ab-step-one-brochure.pdf","LAB_02","Cultivos celulares","A02_17R: El efecto del Procesado Tecnológico de los Alimentos en las Patologías Digestivas y Alérgicas (ALIPAT)","Miguel Calvo Rebollar","UNIZAR","F. Veterinaria. Ed. Zootecnia"," Miguel calvo (calvoreb@unizar.es)"]
[14,"Agitadores","Agitador- plataforma","Duomax 1030. Heidolph Instruments GmbH & Co. KG","Preparación, procesamiento y conservación de muestras",null,"Agitador mecedor de plataforma",null,"LAB_03","Fisiología","A02_17R: El efecto del Procesado Tecnológico de los Alimentos en las Patologías Digestivas y Alérgicas (ALIPAT)","Miguel Calvo Rebollar","UNIZAR","F. Veterinaria / Ed. Central","José Emilio Mesonero Gutiérrez (mesonero@unizar.es)"]
[15,"Cabina de flujo laminar","Vertical","AV-100. Telstar","Barreras de protección y seguridad biológica",null,"Handling of non-pathogenic biological samples, cell and tissue cultures, controls in microbiology, pharmaceutics, electronics, optics, etc.",null,"LAB_03","Fisiología","A02_17R: El efecto del Procesado Tecnológico de los Alimentos en las Patologías Digestivas y Alérgicas (ALIPAT)","Miguel Calvo Rebollar","UNIZAR","F. Veterinaria / Ed. Central","José Emilio Mesonero Gutiérrez (mesonero@unizar.es)"]
[16,"Documentación de gel","Sistema de documentación de gel","BioDoc-it® Imaging System. UVP","Técnicas de análisis biológicos: MOLECULAR","Biología Molecular",null,"https://d1jxr8mzr163g2.cloudfront.net/03500db1-f09e-4b5d-bf41-bc493f43aefc/478075cf-8e55-40d8-93c2-3e930e9b8bd8.pdf","LAB_03","Fisiología","A02_17R: El efecto del Procesado Tecnológico de los Alimentos en las Patologías Digestivas y Alérgicas (ALIPAT)","Miguel Calvo Rebollar","UNIZAR","F. Veterinaria / Ed. Central","José Emilio Mesonero Gutiérrez (mesonero@unizar.es)"]
[17,"Incubadora","CO2","Heraeus® BB16","Estufas, hornos, incubadoras, baños","Incubadora","Temp range: ambient + 5 to 50°C (manufacturer’s spec)\nCO₂ range 0 to 20% (manufacturer’s spec)",null,"LAB_03","Fisiología","A02_17R: El efecto del Procesado Tecnológico de los Alimentos en las Patologías Digestivas y Alérgicas (ALIPAT)","Miguel Calvo Rebollar","UNIZAR","F. Veterinaria / Ed. Central","José Emilio Mesonero Gutiérrez (mesonero@unizar.es)"]
[18,"Homogenizador","Homogenizador","Precellys® Cryolis®. Bertin Instruments ","Preparación, procesamiento y conservación de muestras",null,"Homogenizador de muestras blandas y duras para extracción de DNA, RNA o proteínas. Sistema de enfriamiento Criyolis integrado\nCapacity: From 8 to 96 wells, 300µL / From 1 to 24 tubes, 2mL/0.5mL / From 1 to 12 tubes, 7mL / From 1 to 6 tubes, 15mL\nSpeed range: From 4,500 rpm to 10,000 rpm (increment by 100 rpm)\nLocking system: Automatic tubes locking system – patented\nPrograms:  The software allows users to save an unlimited number of protocols\nNumber of cycles: up to 10\nCycles time: up to 90sec (increment by 1sec)\nWeight:  60lb / 27kg\nDimensions:  L: 378mm, W: 515mm, H: 400mm (632mm with open lid)\nPower requirement:  90 – 250VAC / 50-60 Hz Power: 1 kVA",null,"LAB_03","Fisiología","A02_17R: El efecto del Procesado Tecnológico de los Alimentos en las Patologías Digestivas y Alérgicas (ALIPAT)","Miguel Calvo Rebollar","UNIZAR","F. Veterinaria / Ed. Central","José Emilio Mesonero Gutiérrez (mesonero@unizar.es)"]
[19,"Microscopio","Invertido","Olympus® CK2. Olympus Corporation ","Microscopía",null,"Objectives 10x, 20x Phase",null,"LAB_03","Fisiología","A02_17R: El efecto del Procesado Tecnológico de los Alimentos en las Patologías Digestivas y Alérgicas (ALIPAT)","Miguel Calvo Rebollar","UNIZAR","F. Veterinaria / Ed. Central","José Emilio Mesonero Gutiérrez (mesonero@unizar.es)"]
[20,"PCR","PCR (RT-PCR)","DNA Engine® Peltier Thermal Cycler. Bio-Rad","Técnicas de análisis biológicos: MOLECULAR","Biología Molecular",null,"http://www.bio-rad.com/webroot/web/pdf/lsr/literature/Bulletin_05434.pdf","LAB_03","Fisiología","A02_17R: El efecto del Procesado Tecnológico de los Alimentos en las Patologías Digestivas y Alérgicas (ALIPAT)","Miguel Calvo Rebollar","UNIZAR","F. Veterinaria / Ed. Central","José Emilio Mesonero Gutiérrez (mesonero@unizar.es)"]
[21,"PCR","PCR (qPCR)","StepOnePlusTM Real-Time PCR System. Applied Biosystems®. ThermoFisher Scientific","Técnicas de análisis biológicos: MOLECULAR","Biología Molecular","96 pocillos","https://www.gene-quantification.de/ab-step-one-brochure.pdf","LAB_03","Fisiología","A02_17R: El efecto del Procesado Tecnológico de los Alimentos en las Patologías Digestivas y Alérgicas (ALIPAT)","Miguel Calvo Rebollar","UNIZAR","F. Veterinaria / Ed. Central","José Emilio Mesonero Gutiérrez (mesonero@unizar.es)"]
[22,"Secuenciador","3ª generación","MinION. Oxford Nanopore Technologies ","Técnicas de análisis biológicos: GENÉTICA","Genética","Secuenciador portátil 3ª generación\nhttps://nanoporetech.com/sites/default/files/s3/literature/MinION-Brochure-14Mar2019.pdf",null,"LAB_03","Fisiología","A02_17R: El efecto del Procesado Tecnológico de los Alimentos en las Patologías Digestivas y Alérgicas (ALIPAT)","Miguel Calvo Rebollar","UNIZAR","F. Veterinaria / Ed. Central","José Emilio Mesonero Gutiérrez (mesonero@unizar.es)"]
[23,"Western Blotting","Sistema de transferencia húmeda de proteínas","Mini Trans-Blot® Cell. Bio-Rad","Técnicas de análisis biológicos: INMUNOENSAYO","Inmunoensayo"," Transfer 2 10 x 7.5 cm gels in just 1 hr; low-intensity overnight transfers are also possible\nWire electrodes placed 4 cm apart provide strong electrical fields and efficient protein transfer\nMaximum gel size (W x L), cm  10 x 7.5\nBuffer requirement, ml  450\nGel capacity  2 Mini-PROTEAN precast or handcast gels, or 2 Ready Gel® precast gels\nRecommended power supply  PowerPac™ HC (PowerPac Basic is a suitable alternative)","http://www.bio-rad.com/webroot/web/pdf/lsr/literature/M1703930.pdf","LAB_03","Fisiología","A02_17R: El efecto del Procesado Tecnológico de los Alimentos en las Patologías Digestivas y Alérgicas (ALIPAT)","Miguel Calvo Rebollar","UNIZAR","F. Veterinaria / Ed. Central","José Emilio Mesonero Gutiérrez (mesonero@unizar.es)"]
[24,"Electroforesis","Vertical","Mini-PROTEAN® Tetra Cell. Bio-Rad ","Técnicas de análisis biológicos: MOLECULAR","Biología Molecular","Number of gels  1–4\nPrecast gels  Ready Gel precast gels\nHandcast gels  Cast using Mini-PROTEAN spacer plates\nGel size (W x L)  Precast: 8.6 x 6.8 cm Handcast: 8.3 x 7.3 cm\nGlass plate size (W x L)   \n   Short plate  10.1 x 7.3 cm\n   Spacer plate  10.1 x 8.2 cm\nTotal buffer volume for 2 gels  700 ml\nTotal buffer volume for 4 gels  1,000 ml\nTypical run times for SDS-PAGE  35–45 min (at 200 V constant)\nRecommended power supply  PowerPac Basic or PowerPac HC (High Current)\nDimensions (W x L x H)  12 x 16 x 18 cm\nWeight  1.0 kg (2.2 lb)","http://www.bio-rad.com/webroot/web/pdf/lsr/literature/10007296D.pdf","LAB_03","Fisiología","A02_17R: El efecto del Procesado Tecnológico de los Alimentos en las Patologías Digestivas y Alérgicas (ALIPAT)","Miguel Calvo Rebollar","UNIZAR","F. Veterinaria / Ed. Central","José Emilio Mesonero Gutiérrez (mesonero@unizar.es)"]
[25,"Homogenizador","Homogenizador ultrasonidos","HD 2200. BANDELIN electronic GmbH & Co","Preparación, procesamiento y conservación de muestras",null,"Para volúmenes de 2 - 1000 ml. Equipo básico listo para el uso para volúmenes de 20 ml a 900 ml compuesto por: - Generador GM 2200.2 - Transductor ultrasónico UW 2200 - Sonotrodo SH 213 G - Placa de titanio TT 13, Ø 13 mm SONOPULS Homogeneizadores con control de amplitud del 10 al 100 % y visualización del valor real, pulsación, conmutación AMPLICHRON® (garantiza una amplitud constante independiente de las condiciones de cambio), temporizador integrado, control remoto.  Campos de aplicación - Digestión de células, bacterias, virus, tejidos (disrupción celular) - Producción de emulsiones finas - Homogeneización de sustancias - Desgasificación de líquidos - Preparación de muestras para el análisis del tamaño de las partículas - Aceleración de las reacciones químicas ",null,"LAB_03","Fisiología","A02_17R: El efecto del Procesado Tecnológico de los Alimentos en las Patologías Digestivas y Alérgicas (ALIPAT)","Miguel Calvo Rebollar","UNIZAR","F. Veterinaria / Ed. Central","José Emilio Mesonero Gutiérrez (mesonero@unizar.es)"]
[26,"Baño de agua","Baño de agua","WNB10. Memmert","Estufas, hornos, incubadoras, baños","Baño","https://www.memmert.com/es/el-producto/banos-de-agua-aceite/bano-de-agua/WNB-10/pdf/",null,"LAB_03","Fisiología","A02_17R: El efecto del Procesado Tecnológico de los Alimentos en las Patologías Digestivas y Alérgicas (ALIPAT)","Miguel Calvo Rebollar","UNIZAR","F. Veterinaria / Ed. Central","José Emilio Mesonero Gutiérrez (mesonero@unizar.es)"]
[27,"Termostato de inmersión",null,"Digiterm 100. Selecta","Estufas, hornos, incubadoras, baños",null,"http://www.lumaquin.com/productos/pdf/TERMOST._INM._DIGITERM_100.pdf",null,"LAB_03","Fisiología","A02_17R: El efecto del Procesado Tecnológico de los Alimentos en las Patologías Digestivas y Alérgicas (ALIPAT)","Miguel Calvo Rebollar","UNIZAR","F. Veterinaria / Ed. Central","José Emilio Mesonero Gutiérrez (mesonero@unizar.es)"]
[28,"Específico: fisiología digestiva","Unidad de registro y análisis de motilidad gastrointestinal",null,"Fisiología",null,"Amplificadores de alta ganancia, filtros pasa-altos, conversor analógico digital, software de adquisición y análisis de señales fisiológicas (AcqKnowledge® v3.8.)",null,"LAB_03","Fisiología","A02_17R: El efecto del Procesado Tecnológico de los Alimentos en las Patologías Digestivas y Alérgicas (ALIPAT)","Miguel Calvo Rebollar","UNIZAR","F. Veterinaria / Ed. Central","José Emilio Mesonero Gutiérrez (mesonero@unizar.es)"]
[29,"Incubadora","Agitación","LabNet AccuThermTM","Estufas, hornos, incubadoras, baños","Incubadora","https://www.labnetinternational.com/sites/www.labnetinternational.com/files/product-documents/Accutherm%20Brochure_0.pdfermoagitadora. LabNet AccuThermTM",null,"LAB_04","Investigación en nuevas tecnologías de procesado y conservación de alimentos","A03_17R: Nuevas tecnologías de procesado de los alimentos","Santiago Condón Usón","UNIZAR","F. Veterinaria / Ed. Zootecnia","Santiago Condón Usón (scondon@unizar.es)"]
[30,"Baño de ultrasonidos","Baño ultrasonidos","Elma","Limpieza y esterilización",null,"10 L, 35-130 kHz. ",null,"LAB_04","Investigación en nuevas tecnologías de procesado y conservación de alimentos","A03_17R: Nuevas tecnologías de procesado de los alimentos","Santiago Condón Usón","UNIZAR","F. Veterinaria / Ed. Zootecnia","Santiago Condón Usón (scondon@unizar.es)"]
[31,"Baño de ultrasonidos","Baño ultrasonidos","Bandelin","Limpieza y esterilización",null,"15 L, 40 kHz",null,"LAB_04","Investigación en nuevas tecnologías de procesado y conservación de alimentos","A03_17R: Nuevas tecnologías de procesado de los alimentos","Santiago Condón Usón","UNIZAR","F. Veterinaria / Ed. Zootecnia","Santiago Condón Usón (scondon@unizar.es)"]
[32,"Fotografía/vídeo","Cámara fotográfica integrada","AxioCam MRc","Imagen y color",null,"Integrada en Microscopio de fluorescencia Nikon® Eclipse E400",null,"LAB_04","Investigación en nuevas tecnologías de procesado y conservación de alimentos","A03_17R: Nuevas tecnologías de procesado de los alimentos","Santiago Condón Usón","UNIZAR","F. Veterinaria / Ed. Zootecnia","Santiago Condón Usón (scondon@unizar.es)"]
[33,"Incubadora","Anaerobiosis","Don Whitley MACS-VA500","Estufas, hornos, incubadoras, baños","Incubadora","Cámara de cultivo en condiciones de microaerobiosis Don Whitley MACS-VA500",null,"LAB_04","Investigación en nuevas tecnologías de procesado y conservación de alimentos","A03_17R: Nuevas tecnologías de procesado de los alimentos","Santiago Condón Usón","UNIZAR","F. Veterinaria / Ed. Zootecnia","Santiago Condón Usón (scondon@unizar.es)"]
[34,"Cabina de flujo laminar","Vertical/PCR","Mini-V/PCR. Telstar","Barreras de protección y seguridad biológica",null," ISO 3. Equipada con UV para la disociación de oligonucleótidos que impide la contaminación al realizar PCR","https://www.telstar.com/es/equipos-para-laboratorios-del-sector-de-las-ciencias-de-la-vida-y-para-hospitales/cabinas-de-flujo-de-aire-laminar/cabina-de-flujo-de-aire-laminar-vertical-mini/","LAB_04","Investigación en nuevas tecnologías de procesado y conservación de alimentos","A03_17R: Nuevas tecnologías de procesado de los alimentos","Santiago Condón Usón","UNIZAR","F. Veterinaria / Ed. Zootecnia","Santiago Condón Usón (scondon@unizar.es)"]
[35,"Centrífuga / Ultracentrífuga / Microcentrífuga","Centrífuga Vacío","GeneVacTM miVac","Preparación, procesamiento y conservación de muestras",null,null,"https://www.fishersci.es/shop/products/genevac-centrifugal-concentrator/10110113","LAB_04","Investigación en nuevas tecnologías de procesado y conservación de alimentos","A03_17R: Nuevas tecnologías de procesado de los alimentos","Santiago Condón Usón","UNIZAR","F. Veterinaria / Ed. Zootecnia","Santiago Condón Usón (scondon@unizar.es)"]
[36,"Citómetro de flujo","Citómetro de flujo","Millipore Guava® easyCyte 6-2L","Técnicas de análisis biológicos: CELULAR","Biología celular","https://www.luminexcorp.com/wp-content/uploads/2019/05/BR168323.FlowCyt.Guava_.easyCyte.WR_.pdf",null,"LAB_04","Investigación en nuevas tecnologías de procesado y conservación de alimentos","A03_17R: Nuevas tecnologías de procesado de los alimentos","Santiago Condón Usón","UNIZAR","F. Veterinaria / Ed. Zootecnia","Santiago Condón Usón (scondon@unizar.es)"]
[37,"Contador","Contador automático de colonias","Prototipo de la Universidad de Zaragoza","Técnicas de análisis biológicos: CELULAR","Biología celular",null,null,"LAB_04","Investigación en nuevas tecnologías de procesado y conservación de alimentos","A03_17R: Nuevas tecnologías de procesado de los alimentos","Santiago Condón Usón","UNIZAR","F. Veterinaria / Ed. Zootecnia","Santiago Condón Usón (scondon@unizar.es)"]
[38,"Cromatógrafo","Cromatografía líquida HPLC","HPLC ProStar 240 (Varian Inc., Walnut Creek, CA)","Técnicas instrumentales análisis químicos","Cromatografía",null,null,"LAB_04","Investigación en nuevas tecnologías de procesado y conservación de alimentos","A03_17R: Nuevas tecnologías de procesado de los alimentos","Santiago Condón Usón","UNIZAR","F. Veterinaria / Ed. Zootecnia","Santiago Condón Usón (scondon@unizar.es)"]
[39,"Electroporación","Electroporador","Gene Pulse XCellTM. Bio-Rad","Técnicas de análisis biológicos: MOLECULAR","Biología Molecular","http://www.bio-rad.com/webroot/web/pdf/lsr/literature/Bulletin_5542.pdf",null,"LAB_04","Investigación en nuevas tecnologías de procesado y conservación de alimentos","A03_17R: Nuevas tecnologías de procesado de los alimentos","Santiago Condón Usón","UNIZAR","F. Veterinaria / Ed. Zootecnia","Santiago Condón Usón (scondon@unizar.es)"]
[40,"Pulsos eléctricos alto voltaje","Pulsos eléctricos alto voltaje","EPS","Tecnologías de conservación y procesado","Conservación","10 kV and 240 A.",null,"LAB_04","Investigación en nuevas tecnologías de procesado y conservación de alimentos","A03_17R: Nuevas tecnologías de procesado de los alimentos","Santiago Condón Usón","UNIZAR","F. Veterinaria / Ed. Zootecnia","Santiago Condón Usón (scondon@unizar.es)"]
[41,"Pulsos eléctricos alto voltaje","Pulsos eléctricos alto voltaje","Scandinova","Tecnologías de conservación y procesado","Conservación","30 kV and 200 A.",null,"LAB_04","Investigación en nuevas tecnologías de procesado y conservación de alimentos","A03_17R: Nuevas tecnologías de procesado de los alimentos","Santiago Condón Usón","UNIZAR","F. Veterinaria / Ed. Zootecnia","Santiago Condón Usón (scondon@unizar.es)"]
[42,"Pulsos eléctricos alto voltaje","Pulsos eléctricos alto voltaje","Nutri-pulse e-Cooker","Tecnologías de conservación y procesado","Conservación",null,null,"LAB_04","Investigación en nuevas tecnologías de procesado y conservación de alimentos","A03_17R: Nuevas tecnologías de procesado de los alimentos","Santiago Condón Usón","UNIZAR","F. Veterinaria / Ed. Zootecnia","Santiago Condón Usón (scondon@unizar.es)"]
[43,"Radiación UV","Equipo de radiación ultravioleta en flujo continuo","desarrollo propio Universidad de Zaragoza","Tecnologías de conservación y procesado","Conservación","Equipo de radiación ultravioleta en flujo continuo para el tratamiento combinado con calor hasta 60ºC",null,"LAB_04","Investigación en nuevas tecnologías de procesado y conservación de alimentos","A03_17R: Nuevas tecnologías de procesado de los alimentos","Santiago Condón Usón","UNIZAR","F. Veterinaria / Ed. Zootecnia","Santiago Condón Usón (scondon@unizar.es)"]
[44,"Espectrofotómetro","UV/Vis","Biochrom Libra S12 UV/Vis","Técnicas instrumentales análisis químicos","Espectrofotómetría","UV/Vis","Copiar especificaciones: http://www.biochrom.co.uk/product/14/biochrom-libra-s12-uv-vis-spectrophotometer.html","LAB_04","Investigación en nuevas tecnologías de procesado y conservación de alimentos","A03_17R: Nuevas tecnologías de procesado de los alimentos","Santiago Condón Usón","UNIZAR","F. Veterinaria / Ed. Zootecnia","Santiago Condón Usón (scondon@unizar.es)"]
[45,"Espectrofotómetro","Microvolúmenes","SimpliNanoTM. General Electric ","Técnicas instrumentales análisis químicos","Espectrofotómetría","Espectofotómetro de microvolúmenes","https://us.vwr.com/assetsvc/asset/en_US/id/13635266/contents","LAB_04","Investigación en nuevas tecnologías de procesado y conservación de alimentos","A03_17R: Nuevas tecnologías de procesado de los alimentos","Santiago Condón Usón","UNIZAR","F. Veterinaria / Ed. Zootecnia","Santiago Condón Usón (scondon@unizar.es)"]
[46,"Incubadora","Estufas bacteriológicas y de cultivo","Selecta Incudigit ","Estufas, hornos, incubadoras, baños","Estufas","A convección natural. Termostato regulador de temperatura y termómetro analógicos. Para temperaturas regulables desde ambiente +5 °C hasta 80 °C. Estabilidad: ±0,1 °C, a 37 °C. Homogeneidad: ±0,5 °C, a 37 °C. Puerta interior de cristal templado. Doble cámara, interior sin aperturas fácil de limpiar.",null,"LAB_04","Investigación en nuevas tecnologías de procesado y conservación de alimentos","A03_17R: Nuevas tecnologías de procesado de los alimentos","Santiago Condón Usón","UNIZAR","F. Veterinaria / Ed. Zootecnia","Santiago Condón Usón (scondon@unizar.es)"]
[47,"Incubadora","Refrigerada","Raypa IRE-160","Estufas, hornos, incubadoras, baños","Incubadora","160 L.","http://www.raypa.com/wp-content/uploads/2017/10/IRE-ES.pdf","LAB_04","Investigación en nuevas tecnologías de procesado y conservación de alimentos","A03_17R: Nuevas tecnologías de procesado de los alimentos","Santiago Condón Usón","UNIZAR","F. Veterinaria / Ed. Zootecnia","Santiago Condón Usón (scondon@unizar.es)"]
[48,"Incubadora","Refrigerada","Raypa IRE-475","Estufas, hornos, incubadoras, baños","Incubadora","475 L.","http://www.raypa.com/wp-content/uploads/2017/10/IRE-ES.pdf","LAB_04","Investigación en nuevas tecnologías de procesado y conservación de alimentos","A03_17R: Nuevas tecnologías de procesado de los alimentos","Santiago Condón Usón","UNIZAR","F. Veterinaria / Ed. Zootecnia","Santiago Condón Usón (scondon@unizar.es)"]
[49,"Fluorímetro","Placas","TECAN GENios","Técnicas instrumentales análisis químicos","Fluorometria","UV/Vis","http://www.citrinesolutions.co.il/userfiles/documents/Tecan%20Genios%20FL%20Fluorescence%20Plate%20Reader%20Operating%20Manual.pdf","LAB_04","Investigación en nuevas tecnologías de procesado y conservación de alimentos","A03_17R: Nuevas tecnologías de procesado de los alimentos","Santiago Condón Usón","UNIZAR","F. Veterinaria / Ed. Zootecnia","Santiago Condón Usón (scondon@unizar.es)"]
[50,"Homogenizador","Homogenizador","Mini BeadBeater. BioSpec Products","Preparación, procesamiento y conservación de muestras",null,"Homogenizador celular\nHomogenizing chamber made of shatter-proof polycarbonate, 350 ml total volume, 200 ml working\n15,800 rpm, 3/8 HP single speed motor",null,"LAB_04","Investigación en nuevas tecnologías de procesado y conservación de alimentos","A03_17R: Nuevas tecnologías de procesado de los alimentos","Santiago Condón Usón","UNIZAR","F. Veterinaria / Ed. Zootecnia","Santiago Condón Usón (scondon@unizar.es)"]
[51,"Incubadora","Placas","FX Incubator, mod. ZE/FX","Estufas, hornos, incubadoras, baños","Incubadora","Equipo termostático para las etapas de incubación de los tests de diagnóstico.",null,"LAB_04","Investigación en nuevas tecnologías de procesado y conservación de alimentos","A03_17R: Nuevas tecnologías de procesado de los alimentos","Santiago Condón Usón","UNIZAR","F. Veterinaria / Ed. Zootecnia","Santiago Condón Usón (scondon@unizar.es)"]
[52,"Manotermosonicador","Manotemosonicador","MTS (Pat. 92-00686, PCT93/00021)","Tecnologías de conservación y procesado","Conservación",null,null,"LAB_04","Investigación en nuevas tecnologías de procesado y conservación de alimentos","A03_17R: Nuevas tecnologías de procesado de los alimentos","Santiago Condón Usón","UNIZAR","F. Veterinaria / Ed. Zootecnia","Santiago Condón Usón (scondon@unizar.es)"]
[53,"Centrífuga / Ultracentrífuga / Microcentrífuga","Centrífuga - Microcentrífuga","Eppendorf MiniSpin® plus","Preparación, procesamiento y conservación de muestras",null,null,null,"LAB_04","Investigación en nuevas tecnologías de procesado y conservación de alimentos","A03_17R: Nuevas tecnologías de procesado de los alimentos","Santiago Condón Usón","UNIZAR","F. Veterinaria / Ed. Zootecnia","Santiago Condón Usón (scondon@unizar.es)"]
[54,"Microscopio","Fluorescencia","Nikon® Eclipse E400 / Zeiss AxioCam MRc","Microscopía",null,"Equipado con cámara Zeiss AxioCam MRc. Contraste de fases",null,"LAB_04","Investigación en nuevas tecnologías de procesado y conservación de alimentos","A03_17R: Nuevas tecnologías de procesado de los alimentos","Santiago Condón Usón","UNIZAR","F. Veterinaria / Ed. Zootecnia","Santiago Condón Usón (scondon@unizar.es)"]
[55,"Electroforesis","Electroforesis","Fuente: PowerPacTM Basic Power Supply. Bio-Rad","Técnicas de análisis biológicos: MOLECULAR","Biología Molecular","Fuente: Bio-Rad PowerPacTM Basic",null,"LAB_04","Investigación en nuevas tecnologías de procesado y conservación de alimentos","A03_17R: Nuevas tecnologías de procesado de los alimentos","Santiago Condón Usón","UNIZAR","F. Veterinaria / Ed. Zootecnia","Santiago Condón Usón (scondon@unizar.es)"]
[56,"PCR","PCR","Labnet MultiGeneTM II","Técnicas de análisis biológicos: MOLECULAR","Biología Molecular",null,null,"LAB_04","Investigación en nuevas tecnologías de procesado y conservación de alimentos","A03_17R: Nuevas tecnologías de procesado de los alimentos","Santiago Condón Usón","UNIZAR","F. Veterinaria / Ed. Zootecnia","Santiago Condón Usón (scondon@unizar.es)"]
[57,"Termorresistómetro","Termorresistómetros","Adaptados de un prototipo de la Universidad de Zaragoza (Pat. ES2004913A6)","Tecnologías de conservación y procesado","Conservación",null,null,"LAB_04","Investigación en nuevas tecnologías de procesado y conservación de alimentos","A03_17R: Nuevas tecnologías de procesado de los alimentos","Santiago Condón Usón","UNIZAR","F. Veterinaria / Ed. Zootecnia","Santiago Condón Usón (scondon@unizar.es)"]
[58,"Transiluminador","Transiluminador","UV Vilber Lourmat ECX-20.M","Técnicas de análisis biológicos: MOLECULAR","Biología Molecular",null,null,"LAB_04","Investigación en nuevas tecnologías de procesado y conservación de alimentos","A03_17R: Nuevas tecnologías de procesado de los alimentos","Santiago Condón Usón","UNIZAR","F. Veterinaria / Ed. Zootecnia","Santiago Condón Usón (scondon@unizar.es)"]
[59,"Fotografía/vídeo","Sistema móvil de 12 cámaras digitales de grabación día/noche",null,"Imagen y color",null,null,null,"LAB_05","Bienestar Animal","A04_17R: Calidad y tecnología de la carne","José Antonio Beltrán Gracia","UNIZAR","F. Veterinaria / Ed. Zootecnia","Gustavo María Levrino (levrino@unizar.es) "]
[60,"Fotografía/vídeo","Sistema de visualización de los videos de comportamiento animal",null,"Imagen y color",null,null,null,"LAB_05","Bienestar Animal","A04_17R: Calidad y tecnología de la carne","José Antonio Beltrán Gracia","UNIZAR","F. Veterinaria / Ed. Zootecnia","Gustavo María Levrino (levrino@unizar.es) "]
[61,"Específico: Lab. Bienestar Animal","Laberinto en \"T\"",null,"Específico: Bienestar animal",null,null,null,"LAB_05","Bienestar Animal","A04_17R: Calidad y tecnología de la carne","José Antonio Beltrán Gracia","UNIZAR","F. Veterinaria / Ed. Zootecnia","Gustavo María Levrino (levrino@unizar.es) "]
[62,"Específico: Lab. Bienestar Animal","Open Field Test",null,"Específico: Bienestar animal",null,null,null,"LAB_05","Bienestar Animal","A04_17R: Calidad y tecnología de la carne","José Antonio Beltrán Gracia","UNIZAR","F. Veterinaria / Ed. Zootecnia","Gustavo María Levrino (levrino@unizar.es) "]
[63,"Colorímetro","Portátil","CR400. Konica Minolta","Técnicas instrumentales análisis físicos","Colorimetría","Portátil\nEspecificaciones: http://sensing.konicaminolta.com.mx/products/cr-400-410-chroma-meter-difference-with-colorimeter/",null,"LAB_06","Calidad de la carne y pescado","A04_17R: Calidad y tecnología de la carne","José Antonio Beltrán Gracia","UNIZAR","F. Veterinaria / Ed. Zootecnia","María del Mar Campo Arribas (marimar@unizar.es) "]
[64,"Cromatógrafo","Cromatografía gases (GC)","6890 Series. Hewlett-Packard","Técnicas instrumentales análisis químicos","Cromatografía","Software ChemStation,  detector de ionización de flama (FID) y detector de conductividad térmica (TCD), inyector dual Split/ splitless. Esta adaptado para trabajar con columnas capilares y empacadas.",null,"LAB_06","Calidad de la carne y pescado","A04_17R: Calidad y tecnología de la carne","José Antonio Beltrán Gracia","UNIZAR","F. Veterinaria / Ed. Zootecnia","María del Mar Campo Arribas (marimar@unizar.es) "]
[65,"Equipo integrado EQM","Calidad huevo",null,"Análisis de agua, materia prima y alimentos",null,"Equipo integrado EQM para calidad de huevo",null,"LAB_06","Calidad de la carne y pescado","A04_17R: Calidad y tecnología de la carne","José Antonio Beltrán Gracia","UNIZAR","F. Veterinaria / Ed. Zootecnia","María del Mar Campo Arribas (marimar@unizar.es) "]
[66,"Espectrofotómetro","Portátil","CM-600d. Konica Minolta","Técnicas instrumentales análisis químicos","Espectrofotómetría","Portátil",null,"LAB_06","Calidad de la carne y pescado","A04_17R: Calidad y tecnología de la carne","José Antonio Beltrán Gracia","UNIZAR","F. Veterinaria / Ed. Zootecnia","María del Mar Campo Arribas (marimar@unizar.es) "]
[67,"Espectrofotómetro","UV/Vis","ONDA UV-20","Técnicas instrumentales análisis químicos","Espectrofotómetría","UV/Vis",null,"LAB_06","Calidad de la carne y pescado","A04_17R: Calidad y tecnología de la carne","José Antonio Beltrán Gracia","UNIZAR","F. Veterinaria / Ed. Zootecnia","María del Mar Campo Arribas (marimar@unizar.es) "]
[68,"Incubadora","Huevo","Mod.870-I HLC. Masalles","Estufas, hornos, incubadoras, baños","Incubadora",null,null,"LAB_06","Calidad de la carne y pescado","A04_17R: Calidad y tecnología de la carne","José Antonio Beltrán Gracia","UNIZAR","F. Veterinaria / Ed. Zootecnia","María del Mar Campo Arribas (marimar@unizar.es) "]
[69,"Texturómetro",null,"INSTRON® Modelo 4301","Técnicas instrumentales análisis físicos","Texturómetro",null,null,"LAB_06","Calidad de la carne y pescado","A04_17R: Calidad y tecnología de la carne","José Antonio Beltrán Gracia","UNIZAR","F. Veterinaria / Ed. Zootecnia","María del Mar Campo Arribas (marimar@unizar.es) "]
[70,"NIR / VNIR","VNIR","ASD LabSpec®4","Análisis de agua, materia prima y alimentos",null,"Espectroscopía de infrarrojo cercano (VNIR)\n Resolución espectral de  3 nm  en el rango VNIR (350-1000 nm)\n    Resolución espectral de 10 nm en el rango SWIR (1001-2500 nm )","https://www.bonsaiadvanced.com/wp-content/uploads/docs/Analisis%20Espectral/Labspec%204%20SR/LabSpec%204%20Std-Res%20vF.PDF","LAB_06","Calidad de la carne y pescado","A04_17R: Calidad y tecnología de la carne","José Antonio Beltrán Gracia","UNIZAR","F. Veterinaria / Ed. Zootecnia","María del Mar Campo Arribas (marimar@unizar.es) "]
[71,"Calorímetro","Calorímetro de barrido diferencial","910 DSC 10. Du Pont Instruments","Técnicas instrumentales análisis químicos","Calorímetro",null,null,"LAB_07","Tecnología de la carne y del pescado","A04_17R: Calidad y tecnología de la carne","José Antonio Beltrán Gracia","UNIZAR","F. Veterinaria / Ed. Zootecnia","José Antonio Beltrán Gracia (jbeltran@unizar.es) "]
[72,"Centrífuga / Ultracentrífuga / Microcentrífuga","Centrífuga Refrigerada","Universal 320R. Hettich Lab Technology™","Preparación, procesamiento y conservación de muestras",null,"320 R",null,"LAB_07","Tecnología de la carne y del pescado","A04_17R: Calidad y tecnología de la carne","José Antonio Beltrán Gracia","UNIZAR","F. Veterinaria / Ed. Zootecnia","José Antonio Beltrán Gracia (jbeltran@unizar.es) "]
[73,"Análisis nitrógeno","Kjeldahl","UDK 129. VELP Scientifica ","Análisis de agua, materia prima y alimentos",null,"Determinación de nitrógeno amoniacal, nitrógeno proteínico (Kjeldahl), nitrógeno nítrico (después de la reducción / Devarda), fenoles, ácidos volátiles, cianuros y contenido alcohólico.","https://www.velp.com/euronet/contenuti/image/thumb/2019-06-25%20UDK(1).pdf","LAB_07","Tecnología de la carne y del pescado","A04_17R: Calidad y tecnología de la carne","José Antonio Beltrán Gracia","UNIZAR","F. Veterinaria / Ed. Zootecnia","José Antonio Beltrán Gracia (jbeltran@unizar.es) "]
[74,"Espectrofotómetro","UV/Vis","ONDA UV-20","Técnicas instrumentales análisis químicos","Espectrofotómetría","UV/Vis",null,"LAB_07","Tecnología de la carne y del pescado","A04_17R: Calidad y tecnología de la carne","José Antonio Beltrán Gracia","UNIZAR","F. Veterinaria / Ed. Zootecnia","José Antonio Beltrán Gracia (jbeltran@unizar.es) "]
[75,"Espectrofotómetro","UV","CM-3610. Konica Minolta","Técnicas instrumentales análisis químicos","Espectrofotómetría",null,null,"LAB_07","Tecnología de la carne y del pescado","A04_17R: Calidad y tecnología de la carne","José Antonio Beltrán Gracia","UNIZAR","F. Veterinaria / Ed. Zootecnia","José Antonio Beltrán Gracia (jbeltran@unizar.es) "]
[76,"Texturómetro",null,"TA.XT2i Texture Analyser. Stable Micro Systems","Técnicas instrumentales análisis físicos","Texturómetro","Texturómetro de alimentos",null,"LAB_07","Tecnología de la carne y del pescado","A04_17R: Calidad y tecnología de la carne","José Antonio Beltrán Gracia","UNIZAR","F. Veterinaria / Ed. Zootecnia","José Antonio Beltrán Gracia (jbeltran@unizar.es) "]
[77,"Agitadores","Agitador - vortex","Genius 3. IKA®","Preparación, procesamiento y conservación de muestras",null,null,null,"LAB_08","Entomología sanitaria","A05_17R: Enfermedades priónicas, vectoriales y zoonosis emergentes","Juan José Badiola Díez","UNIZAR","F. Veterinaria / Ed. Hospital","Javier Lucientes Curdi (jlucien@unizar.es) "]
[78,"Armarios refrigerados",null,null,"Cámaras, armarios refrigerados","Armario refrigerado","Aire forzado. Temperaturas regulables desde +1 °C hasta +40 °C. Estabilidad  ±1,5 °C. Resolución 1 °C.",null,"LAB_08","Entomología sanitaria","A05_17R: Enfermedades priónicas, vectoriales y zoonosis emergentes","Juan José Badiola Díez","UNIZAR","F. Veterinaria / Ed. Hospital","Javier Lucientes Curdi (jlucien@unizar.es) "]
[79,"Estereomicroscopio","Estereomicroscopio","SMZ 168 Motic","Microscopía",null,null,null,"LAB_08","Entomología sanitaria","A05_17R: Enfermedades priónicas, vectoriales y zoonosis emergentes","Juan José Badiola Díez","UNIZAR","F. Veterinaria / Ed. Hospital","Javier Lucientes Curdi (jlucien@unizar.es) "]
[80,"Estereomicroscopio","Estereomicroscopio","SMZ 745T. Nikon® ","Microscopía",null,"Luz fría\n7.5x",null,"LAB_08","Entomología sanitaria","A05_17R: Enfermedades priónicas, vectoriales y zoonosis emergentes","Juan José Badiola Díez","UNIZAR","F. Veterinaria / Ed. Hospital","Javier Lucientes Curdi (jlucien@unizar.es) "]
[81,"Estereomicroscopio","Estereomicroscopio","Optika","Microscopía",null,null,null,"LAB_08","Entomología sanitaria","A05_17R: Enfermedades priónicas, vectoriales y zoonosis emergentes","Juan José Badiola Díez","UNIZAR","F. Veterinaria / Ed. Hospital","Javier Lucientes Curdi (jlucien@unizar.es) "]
[82,"Estufa de secado",null,"Heareus Function Line ","Estufas, hornos, incubadoras, baños","Estufas",null,null,"LAB_08","Entomología sanitaria","A05_17R: Enfermedades priónicas, vectoriales y zoonosis emergentes","Juan José Badiola Díez","UNIZAR","F. Veterinaria / Ed. Hospital","Javier Lucientes Curdi (jlucien@unizar.es) "]
[83,"Incubadora","Refrigerada","Serie 639/250. Nahita®","Estufas, hornos, incubadoras, baños","Incubadora","250 L. Rango temperatura 5-60 ºC. Resolución / 0.1 ºC. Precisión ± 0.5 ºC. Homogeneidad ± 1 ºC. Nº alturas: 7 (cada 5 cm)","Cleaning BeadBeater Chambers","LAB_08","Entomología sanitaria","A05_17R: Enfermedades priónicas, vectoriales y zoonosis emergentes","Juan José Badiola Díez","UNIZAR","F. Veterinaria / Ed. Hospital","Javier Lucientes Curdi (jlucien@unizar.es) "]
[84,"Incubadora","Refrigerada","Serie 639/150. Nahita®","Estufas, hornos, incubadoras, baños","Incubadora","150 L. Rango temperatura 5-60 ºC. Resolución / 0.1 ºC. Precisión ± 0.5 ºC. Homogeneidad ± 1 ºC. Nº alturas: 7 (cada 5 cm)",null,"LAB_08","Entomología sanitaria","A05_17R: Enfermedades priónicas, vectoriales y zoonosis emergentes","Juan José Badiola Díez","UNIZAR","F. Veterinaria / Ed. Hospital","Javier Lucientes Curdi (jlucien@unizar.es) "]
[85,"Incubadora","Visualización íntegra de muestras","Incubator S160. Stuart","Estufas, hornos, incubadoras, baños","Incubadora","Dos incubadores con visualización íntegra de las muestras","http://www.stuart-equipment.com/adminimages/Stuart_page_58_SI60_Incubator.pdf","LAB_08","Entomología sanitaria","A05_17R: Enfermedades priónicas, vectoriales y zoonosis emergentes","Juan José Badiola Díez","UNIZAR","F. Veterinaria / Ed. Hospital","Javier Lucientes Curdi (jlucien@unizar.es) "]
[86,"Específico: Lab. Entomología","Material entomológico",null,"Específico: entomología",null,"Trampas, jaulas",null,"LAB_08","Entomología sanitaria","A05_17R: Enfermedades priónicas, vectoriales y zoonosis emergentes","Juan José Badiola Díez","UNIZAR","F. Veterinaria / Ed. Hospital","Javier Lucientes Curdi (jlucien@unizar.es) "]
[87,"Mesa fría","Mesa fría","Mod. 1431. Bioquip®Products","Preparación, procesamiento y conservación de muestras",null,null,"Rapid chill down to -5°C (23°F) or lower\nFoam insulating cap speeds chilling and minimizes frost buildup\n  Defroster melts frost accumulation in than less than 1 minute\nAllows tor variation in chill surface temperature\n110 /220 volt AC capacity; detachable power supply\nIndicates chill surface temperature by digital centigrade thermometer\n8 x 10\" (20.3 x 25.4 cm) chill surface\n  Accommodates up to five100 mm petri dishes\n  Dimensions: 10 x 12 x 4.25\" (25.4 x 30.5 x 10.8 cm)\n  Weight: 12 pounds","LAB_08","Entomología sanitaria","A05_17R: Enfermedades priónicas, vectoriales y zoonosis emergentes","Juan José Badiola Díez","UNIZAR","F. Veterinaria / Ed. Hospital","Javier Lucientes Curdi (jlucien@unizar.es) "]
[88,"Específico: Lab. Entomología","Sistema alimentación artificial mosquito","Hemotek® Membrane Feeding System + Power unit PS5","Específico: entomología",null,null,null,"LAB_08","Entomología sanitaria","A05_17R: Enfermedades priónicas, vectoriales y zoonosis emergentes","Juan José Badiola Díez","UNIZAR","F. Veterinaria / Ed. Hospital","Javier Lucientes Curdi (jlucien@unizar.es) "]
[89,"Cámara climática",null,"Dycometal","Cámaras, armarios refrigerados","Cámara climática",null,null,"LAB_09","Parasitología","A05_17R: Enfermedades priónicas, vectoriales y zoonosis emergentes","Juan José Badiola Díez","CITA","EDIFICIO I+D","Carlos Calvete Margollés (ccalvete@aragon.es)"]
[90,"Centrífuga / Ultracentrífuga / Microcentrífuga","Centrífuga Hematocrito",null,"Preparación, procesamiento y conservación de muestras",null,null,null,"LAB_09","Parasitología","A05_17R: Enfermedades priónicas, vectoriales y zoonosis emergentes","Juan José Badiola Díez","CITA","EDIFICIO I+D","Carlos Calvete Margollés (ccalvete@aragon.es)"]
[91,"Contador","Contador diferencial de células","DC Counter DBC-8E","Técnicas de análisis biológicos: CELULAR","Biología celular","Hematologia\n8 keys laboratory counter with totalizer. It facilitates leukocyte differential count (CBC Schilling).   \n• Including basophils, eosinophils, lymphocytes, monocytes, myelocytes, segmented and band(neutrophils).\n• Each key registers a unit corresponding to the identified leukocyte and a unit to the totalizer\n• After having counted 100 units of leukocytes, a bell sounds, and then the percentage of every type of leukocytes can be directly read","http://bio-chemistry.com/files/dbc-8e.pdf","LAB_09","Parasitología","A05_17R: Enfermedades priónicas, vectoriales y zoonosis emergentes","Juan José Badiola Díez","CITA","EDIFICIO I+D","Carlos Calvete Margollés (ccalvete@aragon.es)"]
[92,"Estereomicroscopio","Estereomicroscopio","Wild ","Microscopía",null,null,null,"LAB_09","Parasitología","A05_17R: Enfermedades priónicas, vectoriales y zoonosis emergentes","Juan José Badiola Díez","CITA","EDIFICIO I+D","Carlos Calvete Margollés (ccalvete@aragon.es)"]
[93,"Estereomicroscopio","Estereomicroscopio","Nikon","Microscopía",null,null,null,"LAB_09","Parasitología","A05_17R: Enfermedades priónicas, vectoriales y zoonosis emergentes","Juan José Badiola Díez","CITA","EDIFICIO I+D","Carlos Calvete Margollés (ccalvete@aragon.es)"]
[94,"Microscopio","Convencional","Laborlux","Microscopía",null,null,null,"LAB_09","Parasitología","A05_17R: Enfermedades priónicas, vectoriales y zoonosis emergentes","Juan José Badiola Díez","CITA","EDIFICIO I+D","Carlos Calvete Margollés (ccalvete@aragon.es)"]
[95,"Microscopio","Convencional","Leitz","Microscopía",null,null,null,"LAB_09","Parasitología","A05_17R: Enfermedades priónicas, vectoriales y zoonosis emergentes","Juan José Badiola Díez","CITA","EDIFICIO I+D","Carlos Calvete Margollés (ccalvete@aragon.es)"]
[96,"Microscopio","Convencional","Reidret","Microscopía",null,null,null,"LAB_09","Parasitología","A05_17R: Enfermedades priónicas, vectoriales y zoonosis emergentes","Juan José Badiola Díez","CITA","EDIFICIO I+D","Carlos Calvete Margollés (ccalvete@aragon.es)"]
[97,"Microscopio","Convencional","Nikon","Microscopía",null,null,null,"LAB_09","Parasitología","A05_17R: Enfermedades priónicas, vectoriales y zoonosis emergentes","Juan José Badiola Díez","CITA","EDIFICIO I+D","Carlos Calvete Margollés (ccalvete@aragon.es)"]
[98,"Microscopio","Invertido","Microscopio Eclipse TE2000-U. Nikon","Microscopía",null,"Epifluorescencia, con técnicas de luz transmitida (campo claro y contraste de fases) y filtros (DAPI, FITC y TxRed)",null,"LAB_09","Parasitología","A05_17R: Enfermedades priónicas, vectoriales y zoonosis emergentes","Juan José Badiola Díez","CITA","EDIFICIO I+D","Carlos Calvete Margollés (ccalvete@aragon.es)"]
[99,"Cromatógrafo","Cromatografía gases (GC)","Hewlett-Packard ","Técnicas instrumentales análisis químicos","Cromatografía","Cromatógrafos de gases GC Hewlett-Packard con inyector automático, detectores FID, ECD, NPD y MS (ion trap) y PC con software ChemStation",null,"LAB_10","Análisis y evaluación de la seguridad alimentaria","A06_17R: Análisis y evaluación de la seguridad alimentaria (AESA)","Agustín Ariño Moneva","UNIZAR","F. Veterinaria / Ed. Zootecnia","Agustín Ariño Moneva (aarino@unizar.es) "]
[100,"Cromatógrafo","Cromatografía líquida","Hewlett-Packard","Técnicas instrumentales análisis químicos","Cromatografía","Sistema binario de bombas con desgasificador, horno de columna, detectores DAD, FLD y PHRED y PC con software ChemStation",null,"LAB_10","Análisis y evaluación de la seguridad alimentaria","A06_17R: Análisis y evaluación de la seguridad alimentaria (AESA)","Agustín Ariño Moneva","UNIZAR","F. Veterinaria / Ed. Zootecnia","Agustín Ariño Moneva (aarino@unizar.es) "]
[101,"Espectrofotómetro",null,null,"Técnicas instrumentales análisis químicos","Espectrofotómetría","Espectrofotómetro fluorescente con software de análisis de datos",null,"LAB_10","Análisis y evaluación de la seguridad alimentaria","A06_17R: Análisis y evaluación de la seguridad alimentaria (AESA)","Agustín Ariño Moneva","UNIZAR","F. Veterinaria / Ed. Zootecnia","Agustín Ariño Moneva (aarino@unizar.es) "]
[102,"Electroforesis","Vertical","DCODETM . Bio-Rad","Técnicas de análisis biológicos: MOLECULAR","Biología Molecular","DCODETM – Sistema Universal de Detección de Mutaciones","http://www.bio-rad.com/webroot/web/pdf/lsr/literature/M1709080C.pdf","LAB_10","Análisis y evaluación de la seguridad alimentaria","A06_17R: Análisis y evaluación de la seguridad alimentaria (AESA)","Agustín Ariño Moneva","UNIZAR","F. Veterinaria / Ed. Zootecnia","Agustín Ariño Moneva (aarino@unizar.es) "]
[103,"Espectrofotómetro","Microvolúmenes","Nanodrop™ 2000c. Thermo Scientific","Técnicas instrumentales análisis químicos","Espectrofotómetría","Espectrofotometro de micromuestras ","Especificaciones: https://www.thermofisher.com/order/catalog/product/ND-2000\nhttps://www.thermofisher.com/document-connect/document-connect.html?url=https%3A%2F%2Fassets.thermofisher.com%2FTFS-Assets%2FCAD%2Fmanuals%2FNanoDrop-2000-User-Manual-EN.pdf&title=TmFub0Ryb3AgMjAwMC8yMDAwYyBTcGVjdHJvcGhvdG9tZXRlcnMgLSBVc2VyIE1hbnVhbA==","LAB_10","Análisis y evaluación de la seguridad alimentaria","A06_17R: Análisis y evaluación de la seguridad alimentaria (AESA)","Agustín Ariño Moneva","UNIZAR","F. Veterinaria / Ed. Zootecnia","Agustín Ariño Moneva (aarino@unizar.es) "]
[104,"Homogenizador","Homogenizador","Mini BeadBeater. BioSpec Products","Preparación, procesamiento y conservación de muestras",null,"Homogenizador celular\nHomogenizing chamber made of shatter-proof polycarbonate, 350 ml total volume, 200 ml working\n15,800 rpm, 3/8 HP single speed motor",null,"LAB_10","Análisis y evaluación de la seguridad alimentaria","A06_17R: Análisis y evaluación de la seguridad alimentaria (AESA)","Agustín Ariño Moneva","UNIZAR","F. Veterinaria / Ed. Zootecnia","Agustín Ariño Moneva (aarino@unizar.es) "]
[105,"Vacío","Sistema de vacío y vacuum","Manifold","Preparación, procesamiento y conservación de muestras",null,null,null,"LAB_10","Análisis y evaluación de la seguridad alimentaria","A06_17R: Análisis y evaluación de la seguridad alimentaria (AESA)","Agustín Ariño Moneva","UNIZAR","F. Veterinaria / Ed. Zootecnia","Agustín Ariño Moneva (aarino@unizar.es) "]
[106,"PCR","PCR (qPCR)","MiniOpticon Real-Time PCR System. Bio Rad","Técnicas de análisis biológicos: MOLECULAR","Biología Molecular","MiniOpticon System Specifications: \nFusesTwo 6.3 A, 250 V, 5 x 20 mm\nWeight6.8 kg (15 lb)\nDimensions (W x D x H)18 x 32 x 33 cm (7 x 13 x 13\")\nExcitation range 470–500 nm\nDetection ranges Channel 1: 523–543 nm / Channel 2: 540–700 nm\nGradient Specifications:\n Gradient accuracy±0.4°C of programmable target at end rows within 10 sec, NIST-traceable\nRow uniformity±0.4°C well-to-well (within row) within 30 sec of reaching target temperature\nCalculator accuracy±0.4°C of actual row temperature\nGradient range 35–99°C\nTemperature  1–16°C differential range \nComputer Specifications:\n Minimum specifications required for running a MiniOpticon system and Opticon Monitor™ software version 3.1\nOperating system Windows XP Professional\nProcessor speed1.5 GHz\nDisplay1,024 x 768 screen resolution\nMemory512 MB RAM\nStorage20 GB hard drive",null,"LAB_10","Análisis y evaluación de la seguridad alimentaria","A06_17R: Análisis y evaluación de la seguridad alimentaria (AESA)","Agustín Ariño Moneva","UNIZAR","F. Veterinaria / Ed. Zootecnia","Agustín Ariño Moneva (aarino@unizar.es) "]
[107,"ELISA","Lector de placas",null,"Técnicas de análisis biológicos: INMUNOENSAYO","Inmunoensayo",null,null,"LAB_10","Análisis y evaluación de la seguridad alimentaria","A06_17R: Análisis y evaluación de la seguridad alimentaria (AESA)","Agustín Ariño Moneva","UNIZAR","F. Veterinaria / Ed. Zootecnia","Agustín Ariño Moneva (aarino@unizar.es) "]
[108,"Electroforesis","Electroforesis gel de campo pulsante PFGE","CHEF-DR® III Variable Angle System + Cooling module + Variable speed pump. Bio-Rad","Técnicas de análisis biológicos: MOLECULAR","Biología Molecular","The CHEF-DR® III variable angle system combines patented PACE technology and proven CHEF technology into one easy-to-use instrument that lets you use up to three blocks of run conditions to generate high-resolution separations; specify any electrophoresis angle from 90 to 120°. Separation of chromosome-sized DNA can be achieved in almost half the time previously possible, without sacrificing resolution.\n\nEach CHEF-DR III system is supplied with a power module, electrophoresis cell, variable-speed pump, and accessory kit.The CHEF-DR III chiller systems also come with a cooling module.\n\nAutomation\nThe CHEF-DR III system has built-in automation. It will recall the last conditions and use them as the default protocol. The CHEF-DR III system will also recall current run conditions and run progress if interrupted by power failure and resume the run without user intervention.\n\nCustomization\nWith the CHEF-DR III system, conditions are entered by the user. The instruction manual describes extensive examples of run conditions based on a variety of size separation ranges.\n\nApplication Versatility\nThe ability to program the angle of electrophoresis with the CHEF-DR III system enables fast, high-resolution separations of DNA molecules ranging from 200 kb to >6 Mb. The CHEF-DR III system allows selection of the optimal voltage gradient, switch time, and angle for the specific DNA size range. Separations can be further optimized by programming up to three consecutively executing blocks of run conditions, increasing the variety of possible run conditions.\n",null,"LAB_10","Análisis y evaluación de la seguridad alimentaria","A06_17R: Análisis y evaluación de la seguridad alimentaria (AESA)","Agustín Ariño Moneva","UNIZAR","F. Veterinaria / Ed. Zootecnia","Agustín Ariño Moneva (aarino@unizar.es) "]
[109,"Electroforesis","Horizontal","Mini-Sub® Cell GT Systems. Bio-Rad ","Técnicas de análisis biológicos: MOLECULAR","Biología Molecular","The Mini-Sub cell GT cell holds either a 7 x 7 cm or a 7 x 10 cm gel tray. A 10 cm agarose gel poured with two 8-well combs easily accommodates two student teams at a time. At 100 V, this cell resolves DNA fragments from 20–20,000 base pairs in just under 30 min.",null,"LAB_10","Análisis y evaluación de la seguridad alimentaria","A06_17R: Análisis y evaluación de la seguridad alimentaria (AESA)","Agustín Ariño Moneva","UNIZAR","F. Veterinaria / Ed. Zootecnia","Agustín Ariño Moneva (aarino@unizar.es) "]
[110,"Electroforesis","Horizontal","Sub-Cell® Model 192 Cell. Bio-Rad","Técnicas de análisis biológicos: MOLECULAR","Biología Molecular","The Sub-Cell Model 192 cell offers even higher throughput capabilities than the Sub-Cell Model 96 cell and is also compatible with multichannel pipets. The cell accommodates gels up to 25 cm long. Using four or more 51-well analytical combs, more than two 96-well microplates of samples can be run. The longer gels and buffer recirculation ports of the Sub-Cell Model 192 cell make this cell ideal for Southern and northern blotting and separation of cosmid DNA restriction digests. The 25 x 10 cm and 25 x 15 cm trays, comb holder and combs, and electrode assemblies are interchangeable between the Sub-Cell Model 96 and Sub-Cell Model 192 electrophoresis cells.",null,"LAB_10","Análisis y evaluación de la seguridad alimentaria","A06_17R: Análisis y evaluación de la seguridad alimentaria (AESA)","Agustín Ariño Moneva","UNIZAR","F. Veterinaria / Ed. Zootecnia","Agustín Ariño Moneva (aarino@unizar.es) "]
[111,"Electroforesis","Electroforesis","Fuente: PowerPacTM Basic Power Supply. Bio-Rad","Técnicas de análisis biológicos: MOLECULAR","Biología Molecular","Fuente: Bio-Rad PowerPacTM Basic",null,"LAB_10","Análisis y evaluación de la seguridad alimentaria","A06_17R: Análisis y evaluación de la seguridad alimentaria (AESA)","Agustín Ariño Moneva","UNIZAR","F. Veterinaria / Ed. Zootecnia","Agustín Ariño Moneva (aarino@unizar.es) "]
[112,"Termobloque","Termobloque","Grant Bio PCH1. Grant Instruments Ltd","Técnicas de análisis biológicos: MOLECULAR","Biología Molecular","para 20 tubos de 0,5 ml y 12 tubos de 1,5 ml",null,"LAB_10","Análisis y evaluación de la seguridad alimentaria","A06_17R: Análisis y evaluación de la seguridad alimentaria (AESA)","Agustín Ariño Moneva","UNIZAR","F. Veterinaria / Ed. Zootecnia","Agustín Ariño Moneva (aarino@unizar.es) "]
[113,"Cámara UV","Cámara UV",null,"Limpieza y esterilización",null,null,null,"LAB_10","Análisis y evaluación de la seguridad alimentaria","A06_17R: Análisis y evaluación de la seguridad alimentaria (AESA)","Agustín Ariño Moneva","UNIZAR","F. Veterinaria / Ed. Zootecnia","Agustín Ariño Moneva (aarino@unizar.es) "]
[114,"Homogenizador","Homogenizador","Stomacher®","Preparación, procesamiento y conservación de muestras",null,null,null,"LAB_10","Análisis y evaluación de la seguridad alimentaria","A06_17R: Análisis y evaluación de la seguridad alimentaria (AESA)","Agustín Ariño Moneva","UNIZAR","F. Veterinaria / Ed. Zootecnia","Agustín Ariño Moneva (aarino@unizar.es) "]
[115,"Espectrofotómetro","UV/Vis",null,"Técnicas instrumentales análisis químicos","Espectrofotómetría","UV/Vis",null,"LAB_10","Análisis y evaluación de la seguridad alimentaria","A06_17R: Análisis y evaluación de la seguridad alimentaria (AESA)","Agustín Ariño Moneva","UNIZAR","F. Veterinaria / Ed. Zootecnia","Agustín Ariño Moneva (aarino@unizar.es) "]
[116,"Cromatógrafo","Inmunocromatografía",null,"Técnicas instrumentales análisis químicos","Cromatografía","Flujo lateral\nLector - incubador",null,"LAB_10","Análisis y evaluación de la seguridad alimentaria","A06_17R: Análisis y evaluación de la seguridad alimentaria (AESA)","Agustín Ariño Moneva","UNIZAR","F. Veterinaria / Ed. Zootecnia","Agustín Ariño Moneva (aarino@unizar.es) "]
[117,"Cromatógrafo","Cromatografía permeación en gel (GPC)",null,"Técnicas instrumentales análisis químicos","Cromatografía",null,null,"LAB_10","Análisis y evaluación de la seguridad alimentaria","A06_17R: Análisis y evaluación de la seguridad alimentaria (AESA)","Agustín Ariño Moneva","UNIZAR","F. Veterinaria / Ed. Zootecnia","Agustín Ariño Moneva (aarino@unizar.es) "]
[118,"Evaporador / Concentrador","Evaporador","TurboVap® II. Biotage","Preparación, procesamiento y conservación de muestras",null,"The unit provides parallel evaporation of up to 6 samples in either 50 mL or 200 mL glassware with or without end point detection",null,"LAB_10","Análisis y evaluación de la seguridad alimentaria","A06_17R: Análisis y evaluación de la seguridad alimentaria (AESA)","Agustín Ariño Moneva","UNIZAR","F. Veterinaria / Ed. Zootecnia","Agustín Ariño Moneva (aarino@unizar.es) "]
[119,"Análisis grasa","Grasa Soxhlet","Soxtec® System HT-2","Análisis de agua, materia prima y alimentos",null,"Grasa Soxhlet",null,"LAB_10","Análisis y evaluación de la seguridad alimentaria","A06_17R: Análisis y evaluación de la seguridad alimentaria (AESA)","Agustín Ariño Moneva","UNIZAR","F. Veterinaria / Ed. Zootecnia","Agustín Ariño Moneva (aarino@unizar.es) "]
[120,"PCR","PCR",null,"Técnicas de análisis biológicos: MOLECULAR","Biología Molecular",null,"Extraction is used to isolate soluble matter such as crude","LAB_11","Biología molecular aplicada a la sanidad y producción vegetal.","A11_17R: Producción Vegetal Sostenible (PROVESOS)\nA12_17R: Fruticultura. Caracterización, adaptación y mejora genética","A11_17R: Fernando Escriu Paradell\nA12_17R: Pilar Errea Abad","CITA","Ed. Pluridisciplinar","Pilar Errea Abad (perrea@aragon.es) "]
[121,"Electroforesis","Electroforesis",null,"Técnicas de análisis biológicos: MOLECULAR","Biología Molecular",null,"fat, additives, pesticides and critical minor constituents","LAB_11","Biología molecular aplicada a la sanidad y producción vegetal.","A11_17R: Producción Vegetal Sostenible (PROVESOS)\nA12_17R: Fruticultura. Caracterización, adaptación y mejora genética","A11_17R: Fernando Escriu Paradell\nA12_17R: Pilar Errea Abad","CITA","Ed. Pluridisciplinar","Pilar Errea Abad (perrea@aragon.es) "]
[122,"Transiluminador","Transiluminador","Syngene™ Gbox","Técnicas de análisis biológicos: MOLECULAR","Biología Molecular",null,"from complex materials","LAB_11","Biología molecular aplicada a la sanidad y producción vegetal.","A11_17R: Producción Vegetal Sostenible (PROVESOS)\nA12_17R: Fruticultura. Caracterización, adaptación y mejora genética","A11_17R: Fernando Escriu Paradell\nA12_17R: Pilar Errea Abad","CITA","Ed. Pluridisciplinar","Pilar Errea Abad (perrea@aragon.es) "]
[123,"Fluorímetro","Fluorometría","Invitrogen™ Qubit™ 3.0","Técnicas de análisis biológicos: MOLECULAR","Biología Molecular","Especificaciones: https://www.fishersci.co.uk/shop/products/qubit-3-0-fluorometer/15387293",null,"LAB_11","Biología molecular aplicada a la sanidad y producción vegetal.","A11_17R: Producción Vegetal Sostenible (PROVESOS)\nA12_17R: Fruticultura. Caracterización, adaptación y mejora genética","A11_17R: Fernando Escriu Paradell\nA12_17R: Pilar Errea Abad","CITA","Ed. Pluridisciplinar","Pilar Errea Abad (perrea@aragon.es) "]
[124,"Homogenizador","Homogenizador","TissueLyser II. Qiagen","Preparación, procesamiento y conservación de muestras",null,"Disruption principle:  High-speed shaking of samples in 1.2 ml collection tubes or 2 ml microcentrifuge tubes with stainless steel or glass beads\nReproducible results with difficult-to-lyse tissues. \nKits compatible with instrument: All kits for purifying RNA/DNA/Protein\nVariable speeds from 3 to 30 Hz (180–1800 oscillations/minute)",null,"LAB_11","Biología molecular aplicada a la sanidad y producción vegetal.","A11_17R: Producción Vegetal Sostenible (PROVESOS)\nA12_17R: Fruticultura. Caracterización, adaptación y mejora genética","A11_17R: Fernando Escriu Paradell\nA12_17R: Pilar Errea Abad","CITA","Ed. Pluridisciplinar","Pilar Errea Abad (perrea@aragon.es) "]
[125,"Espectrofotómetro","UV/Vis","SmartSpec™3000. Bio-Rad ","Técnicas instrumentales análisis químicos","Espectrofotómetría","UV/Vis",null,"LAB_11","Biología molecular aplicada a la sanidad y producción vegetal.","A11_17R: Producción Vegetal Sostenible (PROVESOS)\nA12_17R: Fruticultura. Caracterización, adaptación y mejora genética","A11_17R: Fernando Escriu Paradell\nA12_17R: Pilar Errea Abad","CITA","Ed. Pluridisciplinar","Pilar Errea Abad (perrea@aragon.es) "]
[126,"Espectrofotómetro","UV/Vis","Libra S22 UV/Vis. Biochrom","Técnicas instrumentales análisis químicos","Espectrofotómetría","UV/Vis",null,"LAB_11","Biología molecular aplicada a la sanidad y producción vegetal.","A11_17R: Producción Vegetal Sostenible (PROVESOS)\nA12_17R: Fruticultura. Caracterización, adaptación y mejora genética","A11_17R: Fernando Escriu Paradell\nA12_17R: Pilar Errea Abad","CITA","Ed. Pluridisciplinar","Pilar Errea Abad (perrea@aragon.es) "]
[127,"Centrífuga / Ultracentrífuga / Microcentrífuga","Centrífuga - Microcentrífuga","5415D. Eppendorf","Preparación, procesamiento y conservación de muestras",null,"Alta velocidad",null,"LAB_11","Biología molecular aplicada a la sanidad y producción vegetal.","A11_17R: Producción Vegetal Sostenible (PROVESOS)\nA12_17R: Fruticultura. Caracterización, adaptación y mejora genética","A11_17R: Fernando Escriu Paradell\nA12_17R: Pilar Errea Abad","CITA","Ed. Pluridisciplinar","Pilar Errea Abad (perrea@aragon.es) "]
[128,"Centrífuga / Ultracentrífuga / Microcentrífuga","Centrífuga Refrigerada","3-15K. Sigma","Preparación, procesamiento y conservación de muestras",null,"Refrigerada",null,"LAB_11","Biología molecular aplicada a la sanidad y producción vegetal.","A11_17R: Producción Vegetal Sostenible (PROVESOS)\nA12_17R: Fruticultura. Caracterización, adaptación y mejora genética","A11_17R: Fernando Escriu Paradell\nA12_17R: Pilar Errea Abad","CITA","Ed. Pluridisciplinar","Pilar Errea Abad (perrea@aragon.es) "]
[129,"Centrífuga / Ultracentrífuga / Microcentrífuga","Centrífuga Vacío","miVac Duo Concentrator. Genevac™ ","Preparación, procesamiento y conservación de muestras","Concentrador de muestras","Vacío",null,"LAB_11","Biología molecular aplicada a la sanidad y producción vegetal.","A11_17R: Producción Vegetal Sostenible (PROVESOS)\nA12_17R: Fruticultura. Caracterización, adaptación y mejora genética","A11_17R: Fernando Escriu Paradell\nA12_17R: Pilar Errea Abad","CITA","Ed. Pluridisciplinar","Pilar Errea Abad (perrea@aragon.es) "]
[130,"Centrífuga / Ultracentrífuga / Microcentrífuga","Placas","LMC-3000. Biosan","Preparación, procesamiento y conservación de muestras",null,null,null,"LAB_11","Biología molecular aplicada a la sanidad y producción vegetal.","A11_17R: Producción Vegetal Sostenible (PROVESOS)\nA12_17R: Fruticultura. Caracterización, adaptación y mejora genética","A11_17R: Fernando Escriu Paradell\nA12_17R: Pilar Errea Abad","CITA","Ed. Pluridisciplinar","Pilar Errea Abad (perrea@aragon.es) "]
[131,"Crosslinker UV","Crosslinker",null,"Técnicas de análisis biológicos: MOLECULAR","Biología Molecular",null,null,"LAB_13","Sanidad Vegetal","A11_17R: Producción Vegetal Sostenible (PROVESOS)","A11_17R: Fernando Escriu Paradell\nA12_17R: Pilar Errea Abad","CITA","Ed. Pluridisciplinar","Fernando Escriu Paradell (fescriu@aragon.es) "]
[132,"Medidor radiación PAR","Fotosíntesis",null,"Análisis de agua, materia prima y alimentos",null,"Medidor de radiación fotosintéticamente activa (PAR)",null,"LAB_13","Sanidad Vegetal","A11_17R: Producción Vegetal Sostenible (PROVESOS)","A11_17R: Fernando Escriu Paradell\nA12_17R: Pilar Errea Abad","CITA","Ed. Pluridisciplinar","Fernando Escriu Paradell (fescriu@aragon.es) "]
[133,"Liofilizador","Liofilizador",null,"Preparación, procesamiento y conservación de muestras",null,null,null,"LAB_13","Sanidad Vegetal","A11_17R: Producción Vegetal Sostenible (PROVESOS)","A11_17R: Fernando Escriu Paradell\nA12_17R: Pilar Errea Abad","CITA","Ed. Pluridisciplinar","Fernando Escriu Paradell (fescriu@aragon.es) "]
[134,"Penetrómetro",null,null,"Análisis de agua, materia prima y alimentos",null,null,null,"LAB_13","Sanidad Vegetal","A11_17R: Producción Vegetal Sostenible (PROVESOS)","A11_17R: Fernando Escriu Paradell\nA12_17R: Pilar Errea Abad","CITA","Ed. Pluridisciplinar","Fernando Escriu Paradell (fescriu@aragon.es) "]
[135,"Estereomicroscopio","Estereomicroscopio","Ivymen","Microscopía",null,null,null,"LAB_13","Sanidad Vegetal","A11_17R: Producción Vegetal Sostenible (PROVESOS)","A11_17R: Fernando Escriu Paradell\nA12_17R: Pilar Errea Abad","CITA","Ed. Pluridisciplinar","Fernando Escriu Paradell (fescriu@aragon.es) "]
[136,"Estereomicroscopio","Estereomicroscopio","Richer","Microscopía",null,null,null,"LAB_13","Sanidad Vegetal","A11_17R: Producción Vegetal Sostenible (PROVESOS)","A11_17R: Fernando Escriu Paradell\nA12_17R: Pilar Errea Abad","CITA","Ed. Pluridisciplinar","Fernando Escriu Paradell (fescriu@aragon.es) "]
[137,"Estereomicroscopio","Estereomicroscopio","Euromex","Microscopía",null,null,null,"LAB_13","Sanidad Vegetal","A11_17R: Producción Vegetal Sostenible (PROVESOS)","A11_17R: Fernando Escriu Paradell\nA12_17R: Pilar Errea Abad","CITA","Ed. Pluridisciplinar","Fernando Escriu Paradell (fescriu@aragon.es) "]
[138,"Cámara climática",null,null,"Cámaras, armarios refrigerados","Cámara climática","Control de temperatura, humedad y fotoperiodo ",null,"LAB_13","Sanidad Vegetal","A11_17R: Producción Vegetal Sostenible (PROVESOS)","A11_17R: Fernando Escriu Paradell\nA12_17R: Pilar Errea Abad","CITA","Ed. Pluridisciplinar","Fernando Escriu Paradell (fescriu@aragon.es) "]
[139,"Cámara saneamiento","Material vegetal",null,"Cámaras, armarios refrigerados","Cámara climática",null,null,"LAB_13","Sanidad Vegetal","A11_17R: Producción Vegetal Sostenible (PROVESOS)","A11_17R: Fernando Escriu Paradell\nA12_17R: Pilar Errea Abad","CITA","Ed. Pluridisciplinar","Fernando Escriu Paradell (fescriu@aragon.es) "]
[140,"Cámara climática",null,null,"Cámaras, armarios refrigerados","Cámara climática","Cámaras con condiciones controladas de luz, temperatura, CO2 y nutrientes",null,"LAB_13","Sanidad Vegetal","A11_17R: Producción Vegetal Sostenible (PROVESOS)","A11_17R: Fernando Escriu Paradell\nA12_17R: Pilar Errea Abad","CITA","Ed. Pluridisciplinar","Fernando Escriu Paradell (fescriu@aragon.es) "]
[141,"Microscopio","Fluorescencia","Olympus CX 41","Microscopía",null,"Contrate de fases, fluorescencia. Permite objetivos planos acrobáticos, sin aberración. (x 60)",null,"LAB_14","Producción Vegetal","A11_17R: Producción Vegetal Sostenible (PROVESOS)\nT07_17R: Alimentos de Origen Vegetal (GIAOVE)","A11_17R: Fernando  Escriu Paradell\nT07_17R: Jesús Val Falcón","UNIZAR","EPSH","A11_17R: Joaquín Aibar Lete (jaibar@unizar.es)\nT07_17R: Juan José Barriuso Vargas (barriuso@unizar.es)\n"]
[142,"Estereomicroscopio","Estereomicroscopio","Olympus SZX9 / optika 4083B9 ","Microscopía",null,"Luz fría. ",null,"LAB_14","Producción Vegetal","A11_17R: Producción Vegetal Sostenible (PROVESOS)\nT07_17R: Alimentos de Origen Vegetal (GIAOVE)","A11_17R: Fernando  Escriu Paradell\nT07_17R: Jesús Val Falcón","UNIZAR","EPSH","A11_17R: Joaquín Aibar Lete (jaibar@unizar.es)\nT07_17R: Juan José Barriuso Vargas (barriuso@unizar.es)\n"]
[143,"Cabina de flujo laminar","Vertical","BV-100. Telstar","Barreras de protección y seguridad biológica",null,"ISO 14644-1 (Class 5)",null,"LAB_14","Producción Vegetal","A11_17R: Producción Vegetal Sostenible (PROVESOS)\nT07_17R: Alimentos de Origen Vegetal (GIAOVE)","A11_17R: Fernando  Escriu Paradell\nT07_17R: Jesús Val Falcón","UNIZAR","EPSH","A11_17R: Joaquín Aibar Lete (jaibar@unizar.es)\nT07_17R: Juan José Barriuso Vargas (barriuso@unizar.es)\n"]
[144,"Autoclaves","Gran capacidad 50L","Autester mod 437 G Pselecta","Preparación, procesamiento y conservación de muestras",null,"50 L",null,"LAB_14","Producción Vegetal","A11_17R: Producción Vegetal Sostenible (PROVESOS)\nT07_17R: Alimentos de Origen Vegetal (GIAOVE)","A11_17R: Fernando  Escriu Paradell\nT07_17R: Jesús Val Falcón","UNIZAR","EPSH","A11_17R: Joaquín Aibar Lete (jaibar@unizar.es)\nT07_17R: Juan José Barriuso Vargas (barriuso@unizar.es)\n"]
[145,"Medidor de clorofila","Clorofila","Chlorophyll Meter SPAD-502. Konica Minolta","Técnicas instrumentales análisis físicos","Medición","Equipamiento específico\nEspecificaciones: https://www5.konicaminolta.eu/en/measuring-instruments/products/colour-measurement/chlorophyll-meter/spad-502plus/specifications.html","https://www5.konicaminolta.eu/fileadmin/content/eu/Measuring_Instruments/2_Products/1_Colour_Measurement/6_Chlorophyll_Meter/PDF/Spad502plus_EN.pdf","LAB_14","Producción Vegetal","A11_17R: Producción Vegetal Sostenible (PROVESOS)","A11_17R: Fernando  Escriu Paradell\nT07_17R: Jesús Val Falcón","UNIZAR","EPSH","A11_17R: Joaquín Aibar Lete (jaibar@unizar.es)"]
[146,"Fluorímetro","Clorofila","Fluorímetro PEA (Plant Eficiencia Analizer). Hansatech Instruments","Técnicas instrumentales análisis químicos","Fluorometria","Equipamiento específico. Dispositivo para mediar la fluorescencia de la clorofila","http://www.hansatech-instruments.com/product/m-pea/","LAB_14","Producción Vegetal","A11_17R: Producción Vegetal Sostenible (PROVESOS)","A11_17R: Fernando  Escriu Paradell\nT07_17R: Jesús Val Falcón","UNIZAR","EPSH","A11_17R: Joaquín Aibar Lete (jaibar@unizar.es)"]
[147,"Medidor de humedad y peso específico grano",null,"GAC® 2100 Grain Analysis Computer. Dickey John®","Análisis de agua, materia prima y alimentos",null,"Equipamiento específico\nPara análisis de grano","http://www.dickey-john.com/_media/6010864%20Rev%20A%20GAC%202100%20Blue%20Gray%20AGRI%20Operators%20Manual_web.pdf","LAB_14","Producción Vegetal","A11_17R: Producción Vegetal Sostenible (PROVESOS)","A11_17R: Fernando  Escriu Paradell\nT07_17R: Jesús Val Falcón","UNIZAR","EPSH","A11_17R: Joaquín Aibar Lete (jaibar@unizar.es)"]
[148,"Ceptómetro",null,"AccuPAR PAR/LAI Ceptometer. Meter Group","Análisis de agua, materia prima y alimentos",null,"Equipamiento específico. Ceptómetro para el cálculo del índice de área folicular (LAI), para evaluación de densidad y biomasa de la cubierta vegetal","http://manuals.decagon.com/Manuals/10242_Accupar%20LP80_Web.pdf","LAB_14","Producción Vegetal","A11_17R: Producción Vegetal Sostenible (PROVESOS)","A11_17R: Fernando  Escriu Paradell\nT07_17R: Jesús Val Falcón","UNIZAR","EPSH","A11_17R: Joaquín Aibar Lete (jaibar@unizar.es)"]
[149,"Cabina de flujo laminar","Vertical/PCR","Mini V/PCR. Telstar","Barreras de protección y seguridad biológica",null," ISO 3. Equipada con UV para la disociación de oligonucleótidos que impide la contaminación al realizar PCR","https://www.telstar.com/es/equipos-para-laboratorios-del-sector-de-las-ciencias-de-la-vida-y-para-hospitales/cabinas-de-flujo-de-aire-laminar/cabina-de-flujo-de-aire-laminar-vertical-mini/","LAB_15","Cultivo in vitro de material vegetal","A12_17R: Fruticultura. Caracterización, adaptación y mejora genética","Pilar Errea Abad","CITA","Ed. Pluridisciplinar","Pilar Errea Abad (perrea@aragon.es"]
[150,"Cabina de extracción de gases",null,"ESCO SMART CONTROL","Barreras de protección y seguridad biológica",null,null,null,"LAB_15","Cultivo in vitro de material vegetal","A12_17R: Fruticultura. Caracterización, adaptación y mejora genética","Pilar Errea Abad","CITA","Ed. Pluridisciplinar","Pilar Errea Abad (perrea@aragon.es"]
[151,"Cámara","Cámara cultivo material vegetal in vitro",null,"Cámaras, armarios refrigerados","Cámara climática","Cámara de cultivo, para el establecimiento y propagación de material vegetal in vitro, con temperatura y fotoperiodo controlado para el crecimiento de las plantas.",null,"LAB_15","Cultivo in vitro de material vegetal","A12_17R: Fruticultura. Caracterización, adaptación y mejora genética","Pilar Errea Abad","CITA","Ed. Pluridisciplinar","Pilar Errea Abad (perrea@aragon.es"]
[152,"Específico: Lab. Histología","Estación de inclusión: parafina e historesina","EG-1140. Leica","Específico: Histología",null,"Estación automática para inclusión en parafina e historesina",null,"LAB_16","Fisiología vegetal","A12_17R: Fruticultura. Caracterización, adaptación y mejora genética","Pilar Errea Abad","CITA","Ed. Área Vegetal","Pilar Errea Abad (perrea@aragon.es) "]
[153,"Específico: Lab. Histología","Microtomo de rotación","Biocut","Específico: Histología",null,"Microtomo de rotación para parafina",null,"LAB_16","Fisiología vegetal","A12_17R: Fruticultura. Caracterización, adaptación y mejora genética","Pilar Errea Abad","CITA","Ed. Área Vegetal","Pilar Errea Abad (perrea@aragon.es) "]
[154,"Específico: Lab. Histología","Ultramicrotomo: parafina y resina","Ultracut-E. Rechert-Jung","Específico: Histología",null,"Ultramicrotomo de rotación para parafina y para resina",null,"LAB_16","Fisiología vegetal","A12_17R: Fruticultura. Caracterización, adaptación y mejora genética","Pilar Errea Abad","CITA","Ed. Área Vegetal","Pilar Errea Abad (perrea@aragon.es) "]
[155,"Específico: Lab. Histología","Vibratomo","OTS-4500. Warner Instruments","Específico: Histología",null,"Vibratomo, para corte en fresco",null,"LAB_16","Fisiología vegetal","A12_17R: Fruticultura. Caracterización, adaptación y mejora genética","Pilar Errea Abad","CITA","Ed. Área Vegetal","Pilar Errea Abad (perrea@aragon.es) "]
[156,"Microscopio","Fluorescencia","DM2500. Leica Microsystems","Microscopía",null,"Fluorescencia y luz normal con cámara integrada",null,"LAB_16","Fisiología vegetal","A12_17R: Fruticultura. Caracterización, adaptación y mejora genética","Pilar Errea Abad","CITA","Ed. Área Vegetal","Pilar Errea Abad (perrea@aragon.es) "]
[157,"Microscopio","Fluorescencia","BH2-RFCA. Olimpus","Microscopía",null,"Fluorescencia y luz normal",null,"LAB_16","Fisiología vegetal","A12_17R: Fruticultura. Caracterización, adaptación y mejora genética","Pilar Errea Abad","CITA","Ed. Área Vegetal","Pilar Errea Abad (perrea@aragon.es) "]
[158,"Microscopio","Fluorescencia","Wetzlar Ortholux II. Leitz","Microscopía",null,"Fluorescencia y luz normal",null,"LAB_16","Fisiología vegetal","A12_17R: Fruticultura. Caracterización, adaptación y mejora genética","Pilar Errea Abad","CITA","Ed. Área Vegetal","Pilar Errea Abad (perrea@aragon.es) "]
[159,"Estereomicroscopio","Estereomicroscopio","WildM8. Leica","Microscopía",null,null,null,"LAB_16","Fisiología vegetal","A12_17R: Fruticultura. Caracterización, adaptación y mejora genética","Pilar Errea Abad","CITA","Ed. Área Vegetal","Pilar Errea Abad (perrea@aragon.es) "]
[160,"Análisis de imagen","Analizador de imagen","Quantimet 570 C","Imagen y color",null,null,null,"LAB_16","Fisiología vegetal","A12_17R: Fruticultura. Caracterización, adaptación y mejora genética","Pilar Errea Abad","CITA","Ed. Área Vegetal","Pilar Errea Abad (perrea@aragon.es) "]
[161,"Análisis de imagen","Analizador de imagen","Quantimet Q550","Imagen y color",null,null,null,"LAB_16","Fisiología vegetal","A12_17R: Fruticultura. Caracterización, adaptación y mejora genética","Pilar Errea Abad","CITA","Ed. Área Vegetal","Pilar Errea Abad (perrea@aragon.es) "]
[162,"Específico: Lab. Histología","Dispensador de formaldehido",null,"Específico: Histología",null,"Formaldehido",null,"LAB_16","Fisiología vegetal","A12_17R: Fruticultura. Caracterización, adaptación y mejora genética","Pilar Errea Abad","CITA","Ed. Área Vegetal","Pilar Errea Abad (perrea@aragon.es) "]
[163,"Purificador de agua","Purificador agua","Wasserlab (tipo II)","Preparación, procesamiento y conservación de muestras",null,null,null,"LAB_16","Fisiología vegetal","A12_17R: Fruticultura. Caracterización, adaptación y mejora genética","Pilar Errea Abad","CITA","Ed. Área Vegetal","Pilar Errea Abad (perrea@aragon.es) "]
[164,"Penetrómetro",null,null,"Análisis de agua, materia prima y alimentos",null,"Instrumental de medición de calidad de la fruta",null,"LAB_17","Material vegetal","A12_17R: Fruticultura. Caracterización, adaptación y mejora genética","Pilar Errea Abad","CITA","Ed. Área Vegetal","Pilar Errea Abad (perrea@aragon.es) "]
[165,"Refractómetro",null,null,"Análisis de agua, materia prima y alimentos",null,"Instrumental de medición de calidad de la fruta",null,"LAB_17","Material vegetal","A12_17R: Fruticultura. Caracterización, adaptación y mejora genética","Pilar Errea Abad","CITA","Ed. Área Vegetal","Pilar Errea Abad (perrea@aragon.es) "]
[166,"Almidómetro",null,null,"Análisis de agua, materia prima y alimentos",null,"Instrumental de medición de calidad de la fruta",null,"LAB_17","Material vegetal","A12_17R: Fruticultura. Caracterización, adaptación y mejora genética","Pilar Errea Abad","CITA","Ed. Área Vegetal","Pilar Errea Abad (perrea@aragon.es) "]
[167,"Colorímetro","Colorimetría",null,"Técnicas instrumentales análisis físicos",null,"Instrumental de medición de calidad de la fruta",null,"LAB_17","Material vegetal","A12_17R: Fruticultura. Caracterización, adaptación y mejora genética","Pilar Errea Abad","CITA","Ed. Área Vegetal","Pilar Errea Abad (perrea@aragon.es) "]
[168,"Titulador",null,"785DMP Titrino. Metrohm","Análisis de agua, materia prima y alimentos",null,"Sistema de Valoración potenciométrica",null,"LAB_17","Material vegetal","A12_17R: Fruticultura. Caracterización, adaptación y mejora genética","Pilar Errea Abad","CITA","Ed. Área Vegetal","Pilar Errea Abad (perrea@aragon.es) "]
[169,"PCR","PCR (qPCR)","BIORAD CFX96TM Real Time System","Técnicas de análisis biológicos: MOLECULAR","Biología Molecular","BIORAD CFX96TM Real Time System con ordenador CoolBox\nhttp://www.bio-rad.com/webroot/web/pdf/lsr/literature/Bulletin_6093.pdf","http://www.bio-rad.com/webroot/web/pdf/lsr/literature/10000068706.pdf","LAB_18","Biología molecular aplicada a la sanidad y producción animal","A13_17R: Zoonosis Bacterianas: Brucelosis y Salmonelosis (ZooBac)\nA14_17R: Sistemas agroganaderos alimentarios sostenibles (SAGAS)","A13_17R: Pilar María Muñoz Alvaro\nA14_17R: Margalida Joy Torrens","CITA","EDIFICIO I+D","Jorge Hugo Calvo Lacosta (jhcalvo@aragon.es) "]
[170,"PCR","PCR (qPCR)","7500 Real Time PCR System Applied BiosistemTM","Técnicas de análisis biológicos: MOLECULAR","Biología Molecular","https://www.thermofisher.com/content/dam/LifeTech/migration/en/filelibrary/nucleic-acid-amplification-expression-profiling/pdfs.par.74023.file.dat/7300-7500-7500-fast-real-time-pcr-systems.pdf\nhttps://www.thermofisher.com/content/dam/LifeTech/migration/en/filelibrary/nucleic-acid-amplification-expression-profiling/pdfs.par.83765.file.dat/relative-quant-ct.pdf",null,"LAB_18","Biología molecular aplicada a la sanidad y producción animal","A13_17R: Zoonosis Bacterianas: Brucelosis y Salmonelosis (ZooBac)\nA14_17R: Sistemas agroganaderos alimentarios sostenibles (SAGAS)","A13_17R: Pilar María Muñoz Alvaro\nA14_17R: Margalida Joy Torrens","CITA","EDIFICIO I+D","Jorge Hugo Calvo Lacosta (jhcalvo@aragon.es) "]
[171,"Horno de hibridación","Horno de hibridación","ECOGEN","Técnicas de análisis biológicos: MOLECULAR","Biología Molecular",null,null,"LAB_18","Biología molecular aplicada a la sanidad y producción animal","A13_17R: Zoonosis Bacterianas: Brucelosis y Salmonelosis (ZooBac)\nA14_17R: Sistemas agroganaderos alimentarios sostenibles (SAGAS)","A13_17R: Pilar María Muñoz Alvaro\nA14_17R: Margalida Joy Torrens","CITA","EDIFICIO I+D","Jorge Hugo Calvo Lacosta (jhcalvo@aragon.es) "]
[172,"Nanofotómetro",null,"IMPLEN","Técnicas instrumentales análisis químicos","Nanofotómetro",null,null,"LAB_18","Biología molecular aplicada a la sanidad y producción animal","A13_17R: Zoonosis Bacterianas: Brucelosis y Salmonelosis (ZooBac)\nA14_17R: Sistemas agroganaderos alimentarios sostenibles (SAGAS)","A13_17R: Pilar María Muñoz Alvaro\nA14_17R: Margalida Joy Torrens","CITA","EDIFICIO I+D","Jorge Hugo Calvo Lacosta (jhcalvo@aragon.es) "]
[173,"PCR","PCR (qPCR)","GeneAmp® PCR System. Applied Biosystems","Técnicas de análisis biológicos: MOLECULAR","Biología Molecular",null,null,"LAB_18","Biología molecular aplicada a la sanidad y producción animal","A13_17R: Zoonosis Bacterianas: Brucelosis y Salmonelosis (ZooBac)\nA14_17R: Sistemas agroganaderos alimentarios sostenibles (SAGAS)","A13_17R: Pilar María Muñoz Alvaro\nA14_17R: Margalida Joy Torrens","CITA","EDIFICIO I+D","Jorge Hugo Calvo Lacosta (jhcalvo@aragon.es) "]
[174,"PCR","PCR","MyCycler™ Thermal Cycler. Bio-Rad","Técnicas de análisis biológicos: MOLECULAR","Biología Molecular","96\n\nhttp://www.bio-rad.com/webroot/web/pdf/lsr/literature/Bulletin_2855F.pdf","http://photos.labwrench.com/equipmentManuals/7368-2676.pdf","LAB_18","Biología molecular aplicada a la sanidad y producción animal","A13_17R: Zoonosis Bacterianas: Brucelosis y Salmonelosis (ZooBac)\nA14_17R: Sistemas agroganaderos alimentarios sostenibles (SAGAS)","A13_17R: Pilar María Muñoz Alvaro\nA14_17R: Margalida Joy Torrens","CITA","EDIFICIO I+D","Jorge Hugo Calvo Lacosta (jhcalvo@aragon.es) "]
[175,"PCR","PCR","Mastercycler® Gradient. Eppendorf","Técnicas de análisis biológicos: MOLECULAR","Biología Molecular",96,"http://www.biology.ualberta.ca/facilities/MBSU/uploads/services_pdf/mastercycler_gradient%5B1%5D.pdf","LAB_18","Biología molecular aplicada a la sanidad y producción animal","A13_17R: Zoonosis Bacterianas: Brucelosis y Salmonelosis (ZooBac)\nA14_17R: Sistemas agroganaderos alimentarios sostenibles (SAGAS)","A13_17R: Pilar María Muñoz Alvaro\nA14_17R: Margalida Joy Torrens","CITA","EDIFICIO I+D","Jorge Hugo Calvo Lacosta (jhcalvo@aragon.es) "]
[176,"PCR","PCR","Biometra T3000 Thermocycler","Técnicas de análisis biológicos: MOLECULAR","Biología Molecular","3 bloques independientes",null,"LAB_18","Biología molecular aplicada a la sanidad y producción animal","A13_17R: Zoonosis Bacterianas: Brucelosis y Salmonelosis (ZooBac)\nA14_17R: Sistemas agroganaderos alimentarios sostenibles (SAGAS)","A13_17R: Pilar María Muñoz Alvaro\nA14_17R: Margalida Joy Torrens","CITA","EDIFICIO I+D","Jorge Hugo Calvo Lacosta (jhcalvo@aragon.es) "]
[177,"Documentación de gel","Sistema de documentación de gel","Gel Doc™ 2000. Bio-Rad","Técnicas de análisis biológicos: MOLECULAR","Biología Molecular",null,null,"LAB_18","Biología molecular aplicada a la sanidad y producción animal","A13_17R: Zoonosis Bacterianas: Brucelosis y Salmonelosis (ZooBac)\nA14_17R: Sistemas agroganaderos alimentarios sostenibles (SAGAS)","A13_17R: Pilar María Muñoz Alvaro\nA14_17R: Margalida Joy Torrens","CITA","EDIFICIO I+D","Jorge Hugo Calvo Lacosta (jhcalvo@aragon.es) "]
[178,"Extracción ácidos nucleicos","Extracción ácidos nucleicos","ABI PRISM™ 6100 Nucleic Acid Prep Station. Applied Biosystems","Técnicas de análisis biológicos: MOLECULAR","Biología Molecular","https://assets.thermofisher.com/TFS-Assets/LSG/Warranties/cms_039756.pdf",null,"LAB_18","Biología molecular aplicada a la sanidad y producción animal","A13_17R: Zoonosis Bacterianas: Brucelosis y Salmonelosis (ZooBac)\nA14_17R: Sistemas agroganaderos alimentarios sostenibles (SAGAS)","A13_17R: Pilar María Muñoz Alvaro\nA14_17R: Margalida Joy Torrens","CITA","EDIFICIO I+D","Jorge Hugo Calvo Lacosta (jhcalvo@aragon.es) "]
[179,"Electroforesis","Horizontal","Wide Mini-Sub®Cell GT. Bio-Rad","Técnicas de análisis biológicos: MOLECULAR","Biología Molecular","15- or 20-well combs","http://www.bio-rad.com/webroot/web/pdf/lsr/literature/M1704400B.PDF","LAB_18","Biología molecular aplicada a la sanidad y producción animal","A13_17R: Zoonosis Bacterianas: Brucelosis y Salmonelosis (ZooBac)\nA14_17R: Sistemas agroganaderos alimentarios sostenibles (SAGAS)","A13_17R: Pilar María Muñoz Alvaro\nA14_17R: Margalida Joy Torrens","CITA","EDIFICIO I+D","Jorge Hugo Calvo Lacosta (jhcalvo@aragon.es) "]
[180,"Electroforesis","Horizontal","Mini-Sub® Cell GT Systems. Bio-Rad ","Técnicas de análisis biológicos: MOLECULAR","Biología Molecular","The Mini-Sub cell GT cell holds either a 7 x 7 cm or a 7 x 10 cm gel tray. A 10 cm agarose gel poured with two 8-well combs easily accommodates two student teams at a time. At 100 V, this cell resolves DNA fragments from 20–20,000 base pairs in just under 30 min.","http://www.bio-rad.com/webroot/web/pdf/lsr/literature/10016027C.pdf","LAB_18","Biología molecular aplicada a la sanidad y producción animal","A13_17R: Zoonosis Bacterianas: Brucelosis y Salmonelosis (ZooBac)\nA14_17R: Sistemas agroganaderos alimentarios sostenibles (SAGAS)","A13_17R: Pilar María Muñoz Alvaro\nA14_17R: Margalida Joy Torrens","CITA","EDIFICIO I+D","Jorge Hugo Calvo Lacosta (jhcalvo@aragon.es) "]
[181,"Electroforesis","Horizontal","Maxigel ECO 2. Apelex","Técnicas de análisis biológicos: MOLECULAR","Biología Molecular","APPLICATION: DNA/RNA analysis and quick screening of all samples from 3 x 96 position PCR® thermal cycler on one gel, restriction fragments screening.\n\n• Long length separation, 12 cm or 24 cm according the selected Gel Tray.\n• Maximum number of samples 352 using 8 combs #334421 or #334422 compatible with multi-channels pipette.\n• Gel tray 20 x 24 cm has 8 spaces for comb insertion.\n• Gel tray 20 x 12 cm has 2 spaces for combs insertion.\n• Combs 10, 20, 30 teeth and preparative models.\n• Double combs 44 / 21 teeth compatible with multi-channel pipettes.\n• 4 adjustable feet and bubble level.\n• Red strips for wells vizualisation.\n• Ports for buffer circulation.","http://www.apelex.fr/media/file/MAXIGEL%20ECO2(1).pdf","LAB_18","Biología molecular aplicada a la sanidad y producción animal","A13_17R: Zoonosis Bacterianas: Brucelosis y Salmonelosis (ZooBac)\nA14_17R: Sistemas agroganaderos alimentarios sostenibles (SAGAS)","A13_17R: Pilar María Muñoz Alvaro\nA14_17R: Margalida Joy Torrens","CITA","EDIFICIO I+D","Jorge Hugo Calvo Lacosta (jhcalvo@aragon.es) "]
[182,"Electroforesis","Electroforesis","Fuente: PowerPac™ 200. Bio-Rad","Técnicas de análisis biológicos: MOLECULAR","Biología Molecular",null,null,"LAB_18","Biología molecular aplicada a la sanidad y producción animal","A13_17R: Zoonosis Bacterianas: Brucelosis y Salmonelosis (ZooBac)\nA14_17R: Sistemas agroganaderos alimentarios sostenibles (SAGAS)","A13_17R: Pilar María Muñoz Alvaro\nA14_17R: Margalida Joy Torrens","CITA","EDIFICIO I+D","Jorge Hugo Calvo Lacosta (jhcalvo@aragon.es) "]
[183,"Cabina de extracción de gases ",null,"OR-ST 1500. Burdinola","Barreras de protección y seguridad biológica",null,null,null,"LAB_18","Biología molecular aplicada a la sanidad y producción animal","A13_17R: Zoonosis Bacterianas: Brucelosis y Salmonelosis (ZooBac)\nA14_17R: Sistemas agroganaderos alimentarios sostenibles (SAGAS)","A13_17R: Pilar María Muñoz Alvaro\nA14_17R: Margalida Joy Torrens","CITA","EDIFICIO I+D","Jorge Hugo Calvo Lacosta (jhcalvo@aragon.es) "]
[184,"Homogenizador","Homogenizador","Tissuelyser II. Qiagen","Preparación, procesamiento y conservación de muestras",null,"Disruption principle:  High-speed shaking of samples in 1.2 ml collection tubes or 2 ml microcentrifuge tubes with stainless steel or glass beads\nFeatures: Convenient and secure disruption process. Adapter sets optimized for high-throughput disruption. Wide range of accessories available (e.g.,grinding jar set to process large samples). Reproducible results with difficult-to-lyse tissues. Front-end solution for QIAGEN automation.\nKits compatible with instrument: All kits for purifying RNA/DNA/Protein\nProtocol/main application on this intrument:  Sample preparation/sample disruption\nTechnical data: 100–120/220–240 V, 50/60Hz; variable speeds from 3 to 30 Hz (180–1800 oscillations/minute)\nTechnology: Bead Mill\nThroughput: 2 x 96 collection microtubes (1.2 ml) or 2 x 24 microcentrifuge tubes (2ml)\nTypical run time: 15 sec - 2 x 3 minutes at 15–30 Hz",null,"LAB_18","Biología molecular aplicada a la sanidad y producción animal","A13_17R: Zoonosis Bacterianas: Brucelosis y Salmonelosis (ZooBac)\nA14_17R: Sistemas agroganaderos alimentarios sostenibles (SAGAS)","A13_17R: Pilar María Muñoz Alvaro\nA14_17R: Margalida Joy Torrens","CITA","EDIFICIO I+D","Jorge Hugo Calvo Lacosta (jhcalvo@aragon.es) "]
[185,"Centrífuga / Ultracentrífuga / Microcentrífuga","Centrífuga Vacío","miVac Duo Concentrator. Genevac™","Preparación, procesamiento y conservación de muestras",null,"Vacío","https://www.fishersci.es/shop/products/genevac-centrifugal-concentrator/10110113","LAB_18","Biología molecular aplicada a la sanidad y producción animal","A13_17R: Zoonosis Bacterianas: Brucelosis y Salmonelosis (ZooBac)\nA14_17R: Sistemas agroganaderos alimentarios sostenibles (SAGAS)","A13_17R: Pilar María Muñoz Alvaro\nA14_17R: Margalida Joy Torrens","CITA","EDIFICIO I+D","Jorge Hugo Calvo Lacosta (jhcalvo@aragon.es) "]
[186,"Purificador de agua","Purificador agua","Ultramatic (tipo 1 y 2). Wasserlab","Preparación, procesamiento y conservación de muestras",null,null,null,"LAB_18","Biología molecular aplicada a la sanidad y producción animal","A13_17R: Zoonosis Bacterianas: Brucelosis y Salmonelosis (ZooBac)\nA14_17R: Sistemas agroganaderos alimentarios sostenibles (SAGAS)","A13_17R: Pilar María Muñoz Alvaro\nA14_17R: Margalida Joy Torrens","CITA","EDIFICIO I+D","Jorge Hugo Calvo Lacosta (jhcalvo@aragon.es) "]
[187,"Termodesinfectadora","Termodesinfectadora","Miele","Limpieza y esterilización",null,null,null,"LAB_18","Biología molecular aplicada a la sanidad y producción animal","A13_17R: Zoonosis Bacterianas: Brucelosis y Salmonelosis (ZooBac)\nA14_17R: Sistemas agroganaderos alimentarios sostenibles (SAGAS)","A13_17R: Pilar María Muñoz Alvaro\nA14_17R: Margalida Joy Torrens","CITA","EDIFICIO I+D","Jorge Hugo Calvo Lacosta (jhcalvo@aragon.es) "]
[188,"NGS y Arrays","Estación de trabajo para análisis masivos de NGS y arrays",null,"Técnicas de análisis biológicos: GENÉTICA","Genética",null,null,"LAB_18","Biología molecular aplicada a la sanidad y producción animal","A13_17R: Zoonosis Bacterianas: Brucelosis y Salmonelosis (ZooBac)\nA14_17R: Sistemas agroganaderos alimentarios sostenibles (SAGAS)","A13_17R: Pilar María Muñoz Alvaro\nA14_17R: Margalida Joy Torrens","CITA","EDIFICIO I+D","Jorge Hugo Calvo Lacosta (jhcalvo@aragon.es) "]
[189,"Termobloque","Termobloque","QBD2. Grant Instruments™","Técnicas de análisis biológicos: MOLECULAR","Biología Molecular","Dimensions (h x d x w) 120 x 285 x 200mm\nTemperature range @37°C Ambient +5 to 130°C\nStability @37°C 0.1±ºC\nUniformity within the block @37°C 0.1±ºC\nUniformity across similar blocks @37°C 0.2±ºC\nDisplay resolution 0.1°C\nHeat up time 25ºC to 100ºC 20 minutes\nThree programmable temperature/ time segments plus end-of-program segments -\nReaction timer, with audible buzzer 1 to 999 minutes\nFunction timer for delay of heater start-up/switch-off Up to 72 hours\nSafety Thermal fuse\nHeater power - 230V 300W\nHeater power - 120V 200W\nSupply voltage 120 or 230V\nWeight 2.7kg\n","https://www.grantinstruments.com/sites/www.grantinstruments.com/files/downloads/32331v1-QBA-QBD-QBH-Block-Heater-Operating-Manual-ML.pdf","LAB_19","Brucelosis P3","A13_17R: Zoonosis Bacterianas: Brucelosis y Salmonelosis (ZooBac)","Pilar María Muñoz Alvaro","CITA","EDIFICIO I+D","Pilar María Muñoz Álvaro (pmmunnoz@cita-aragon.es)"]
[190,"ELISA","Lector de placas","Multiskan RC 351. Labsystem","Técnicas de análisis biológicos: INMUNOENSAYO","Inmunoensayo",null,null,"LAB_19","Brucelosis P3","A13_17R: Zoonosis Bacterianas: Brucelosis y Salmonelosis (ZooBac)","Pilar María Muñoz Alvaro","CITA","EDIFICIO I+D","Pilar María Muñoz Álvaro (pmmunnoz@cita-aragon.es)"]
[191,"ELISA","Lavador de placas","Nunc-ImmunoTM Wash ","Técnicas de análisis biológicos: INMUNOENSAYO","Inmunoensayo","12 canales\nManual",null,"LAB_19","Brucelosis P3","A13_17R: Zoonosis Bacterianas: Brucelosis y Salmonelosis (ZooBac)","Pilar María Muñoz Alvaro","CITA","EDIFICIO I+D","Pilar María Muñoz Álvaro (pmmunnoz@cita-aragon.es)"]
[192,"Electroforesis","Horizontal","Fuente: Atom","Técnicas de análisis biológicos: MOLECULAR","Biología Molecular",null,null,"LAB_19","Brucelosis P3","A13_17R: Zoonosis Bacterianas: Brucelosis y Salmonelosis (ZooBac)","Pilar María Muñoz Alvaro","CITA","EDIFICIO I+D","Pilar María Muñoz Álvaro (pmmunnoz@cita-aragon.es)"]
[193,"Bomba de vacío","Bomba de vacío","Millipore","Preparación, procesamiento y conservación de muestras","Filtración",null,null,"LAB_19","Brucelosis P3","A13_17R: Zoonosis Bacterianas: Brucelosis y Salmonelosis (ZooBac)","Pilar María Muñoz Alvaro","CITA","EDIFICIO I+D","Pilar María Muñoz Álvaro (pmmunnoz@cita-aragon.es)"]
[194,"Sistema automatizado preparación muestras","Autómata preparador de medios","AES 8. APS ","Preparación, procesamiento y conservación de muestras",null,"Sistema automatizado de dispensación de medios de cultivo en placa.\n\n    Volumen de dosificación: de 1 a 50 mL\n    Sistema de enfriamiento de placas integrado \n    Pantalla gráfica multilingüe:, español, inglés, francés, italiano y alemán\n    Se pueden almacenar 20 programas\n    Teclado integrado\n    Registros de trazabilidad\n    Puerto Ethernet\n    Lámpara ultravioleta con protección del usuario\n    Detección de placas defectuosas\n    Modo de dosificación manual para tubos, frascos...\n    Conexión para bomba externa (PMiTM)\n    Dimensiones: 890 x 720 x 640 mm (altura x anchura x fondo)\n    Peso: 60 kg\n    Potencia: 115-230 V +/- 10% 50/60 Hz\n",null,"LAB_19","Brucelosis P3","A13_17R: Zoonosis Bacterianas: Brucelosis y Salmonelosis (ZooBac)","Pilar María Muñoz Alvaro","CITA","EDIFICIO I+D","Pilar María Muñoz Álvaro (pmmunnoz@cita-aragon.es)"]
[195,"SAS (Sterile Acces System)",null,"E19690. Matachana","Barreras de protección y seguridad biológica",null,null,null,"LAB_19","Brucelosis P3","A13_17R: Zoonosis Bacterianas: Brucelosis y Salmonelosis (ZooBac)","Pilar María Muñoz Alvaro","CITA","EDIFICIO I+D","Pilar María Muñoz Álvaro (pmmunnoz@cita-aragon.es)"]
[196,"Desinfectadora","Formalina / amoniaco","Gteck","Limpieza y esterilización",null,null,null,"LAB_19","Brucelosis P3","A13_17R: Zoonosis Bacterianas: Brucelosis y Salmonelosis (ZooBac)","Pilar María Muñoz Alvaro","CITA","EDIFICIO I+D","Pilar María Muñoz Álvaro (pmmunnoz@cita-aragon.es)"]
[197,"Termodesinfectadora","Termodesinfectadora","Mielabor G7783. Miele Professional","Limpieza y esterilización",null,null,null,"LAB_19","Brucelosis P3","A13_17R: Zoonosis Bacterianas: Brucelosis y Salmonelosis (ZooBac)","Pilar María Muñoz Alvaro","CITA","EDIFICIO I+D","Pilar María Muñoz Álvaro (pmmunnoz@cita-aragon.es)"]
[198,"Cabina de seguridad biológica ","Clase II-A","Bio-II-A. Telstar® ","Barreras de protección y seguridad biológica",null,null,null,"LAB_19","Brucelosis P3","A13_17R: Zoonosis Bacterianas: Brucelosis y Salmonelosis (ZooBac)","Pilar María Muñoz Alvaro","CITA","EDIFICIO I+D","Pilar María Muñoz Álvaro (pmmunnoz@cita-aragon.es)"]
[199,"Incubadora","CO2","New Brunswick","Estufas, hornos, incubadoras, baños","Incubadora","CO2",null,"LAB_19","Brucelosis P3","A13_17R: Zoonosis Bacterianas: Brucelosis y Salmonelosis (ZooBac)","Pilar María Muñoz Alvaro","CITA","EDIFICIO I+D","Pilar María Muñoz Álvaro (pmmunnoz@cita-aragon.es)"]
[200,"Incubadora","CO2 / camisa de agua","FormaTM3121. Thermo ScientificTM","Estufas, hornos, incubadoras, baños","Incubadora","CO2 camisa de agua",null,"LAB_19","Brucelosis P3","A13_17R: Zoonosis Bacterianas: Brucelosis y Salmonelosis (ZooBac)","Pilar María Muñoz Alvaro","CITA","EDIFICIO I+D","Pilar María Muñoz Álvaro (pmmunnoz@cita-aragon.es)"]
[201,"Incubadora","CO2","Thermo-Heracell®. Thermo ScientificTM ","Estufas, hornos, incubadoras, baños","Incubadora","Estufa de cultivo con CO2",null,"LAB_19","Brucelosis P3","A13_17R: Zoonosis Bacterianas: Brucelosis y Salmonelosis (ZooBac)","Pilar María Muñoz Alvaro","CITA","EDIFICIO I+D","Pilar María Muñoz Álvaro (pmmunnoz@cita-aragon.es)"]
[202,"Espectrofotómetro","UV/Vis","Bio QuestTM ","Técnicas instrumentales análisis químicos","Espectrofotómetría","UV/Vis","http://pdf.directindustry.es/pdf-en/cecil-instruments/cecil-bioquest-uv-visible-spectrophotometers/27680-684801-_2.html","LAB_19","Brucelosis P3","A13_17R: Zoonosis Bacterianas: Brucelosis y Salmonelosis (ZooBac)","Pilar María Muñoz Alvaro","CITA","EDIFICIO I+D","Pilar María Muñoz Álvaro (pmmunnoz@cita-aragon.es)"]
[203,"Autoclaves","Gran capacidad 70L","Selecta","Preparación, procesamiento y conservación de muestras",null,"70 L",null,"LAB_19","Brucelosis P3","A13_17R: Zoonosis Bacterianas: Brucelosis y Salmonelosis (ZooBac)","Pilar María Muñoz Alvaro","CITA","EDIFICIO I+D","Pilar María Muñoz Álvaro (pmmunnoz@cita-aragon.es)"]
[204,"Microscopio","Convencional","208955 Labophot. Nikon","Microscopía",null,"módulo PFX para fotografía",null,"LAB_19","Brucelosis P3","A13_17R: Zoonosis Bacterianas: Brucelosis y Salmonelosis (ZooBac)","Pilar María Muñoz Alvaro","CITA","EDIFICIO I+D","Pilar María Muñoz Álvaro (pmmunnoz@cita-aragon.es)"]
[205,"Microscopio","Invertido","TMS. Nikon","Microscopía",null,null,null,"LAB_19","Brucelosis P3","A13_17R: Zoonosis Bacterianas: Brucelosis y Salmonelosis (ZooBac)","Pilar María Muñoz Alvaro","CITA","EDIFICIO I+D","Pilar María Muñoz Álvaro (pmmunnoz@cita-aragon.es)"]
[206,"Cabina de seguridad biológica ","Clase II-A","Telstar® Bio-II-B","Barreras de protección y seguridad biológica",null,null,null,"LAB_19","Brucelosis P3","A13_17R: Zoonosis Bacterianas: Brucelosis y Salmonelosis (ZooBac)","Pilar María Muñoz Alvaro","CITA","EDIFICIO I+D","Pilar María Muñoz Álvaro (pmmunnoz@cita-aragon.es)"]
[207,"Centrífuga / Ultracentrífuga / Microcentrífuga","Centrífuga Refrigerada - Alta velocidad","Centrikon T124. Kontron Instruments","Preparación, procesamiento y conservación de muestras",null,"24.000 rpm. Refrigerada. Gran tamaño",null,"LAB_19","Brucelosis P3","A13_17R: Zoonosis Bacterianas: Brucelosis y Salmonelosis (ZooBac)","Pilar María Muñoz Alvaro","CITA","EDIFICIO I+D","Pilar María Muñoz Álvaro (pmmunnoz@cita-aragon.es)"]
[208,"Centrífuga / Ultracentrífuga / Microcentrífuga","Ultracentrífuga - Alta velocidad","Centrikon T-2060. Kontron Instruments","Preparación, procesamiento y conservación de muestras",null,null,null,"LAB_19","Brucelosis P3","A13_17R: Zoonosis Bacterianas: Brucelosis y Salmonelosis (ZooBac)","Pilar María Muñoz Alvaro","CITA","EDIFICIO I+D","Pilar María Muñoz Álvaro (pmmunnoz@cita-aragon.es)"]
[209,"Incubadora","Orbital","New Brunswick™ Innova® 43/43R","Estufas, hornos, incubadoras, baños","Incubadora","Grandes volúmenes de cultivos (matraces de hasta 6 L)","carpeta descarga","LAB_19","Brucelosis P3","A13_17R: Zoonosis Bacterianas: Brucelosis y Salmonelosis (ZooBac)","Pilar María Muñoz Alvaro","CITA","EDIFICIO I+D","Pilar María Muñoz Álvaro (pmmunnoz@cita-aragon.es)"]
[210,"Filtro tangencial","Filtración","Pellicon Cassete System con bomba 7518-60. Millipore ","Preparación, procesamiento y conservación de muestras",null,null,null,"LAB_19","Brucelosis P3","A13_17R: Zoonosis Bacterianas: Brucelosis y Salmonelosis (ZooBac)","Pilar María Muñoz Alvaro","CITA","EDIFICIO I+D","Pilar María Muñoz Álvaro (pmmunnoz@cita-aragon.es)"]
[211,"Autoclaves","Vertical con secado","AE-75 Dry. Raypa","Preparación, procesamiento y conservación de muestras",null,"Uso polivalente",null,"LAB_19","Brucelosis P3","A13_17R: Zoonosis Bacterianas: Brucelosis y Salmonelosis (ZooBac)","Pilar María Muñoz Alvaro","CITA","EDIFICIO I+D","Pilar María Muñoz Álvaro (pmmunnoz@cita-aragon.es)"]
[212,"Liofilizador","Liofilizador","Telstar® Lyoalfa 6","Preparación, procesamiento y conservación de muestras",null,"http://arpival.es/files/lyoalfa_6.pdf",null,"LAB_19","Brucelosis P3","A13_17R: Zoonosis Bacterianas: Brucelosis y Salmonelosis (ZooBac)","Pilar María Muñoz Alvaro","CITA","EDIFICIO I+D","Pilar María Muñoz Álvaro (pmmunnoz@cita-aragon.es)"]
[213,"Homogenizador","Homogenizador ultrasonidos","Labsonic® M. Sartorius ","Preparación, procesamiento y conservación de muestras",null,"Sonication amplitude can be set between 20 and100% of the maximum output of 100 W, activetime interval between 0,2 and 1,0 sec. This helps toprevent sample denaturation by heating or foaming. Service life of the titanium sonotrodes is increased by automatic length determination andfrequency adjustment. Maximum sample volume is 750 ml in batch mode or up to several liters2using a flow cell",null,"LAB_19","Brucelosis P3","A13_17R: Zoonosis Bacterianas: Brucelosis y Salmonelosis (ZooBac)","Pilar María Muñoz Alvaro","CITA","EDIFICIO I+D","Pilar María Muñoz Álvaro (pmmunnoz@cita-aragon.es)"]
[214,"Espectrofotómetro","Microvolúmenes","BioteK-EPOCHTM","Técnicas instrumentales análisis químicos","Espectrofotómetría","UV/Vis. Microvolúmenes. Espectrofotómetro para microplacas","https://www.biotek.es/es/products/detection-microplate-readers/epoch-microplate-spectrophotometer/technical-details/","LAB_20","Serología","A13_17R: Zoonosis Bacterianas: Brucelosis y Salmonelosis (ZooBac)","Pilar María Muñoz Alvaro","CITA","EDIFICIO I+D","Clara María Marín Alcalá (cmarin@cita-aragon.es) "]
[215,"ELISA","Lavador de placas","Nunc-ImmunoTM Wash ","Técnicas de análisis biológicos: INMUNOENSAYO","Inmunoensayo","Manual",null,"LAB_20","Serología","A13_17R: Zoonosis Bacterianas: Brucelosis y Salmonelosis (ZooBac)","Pilar María Muñoz Alvaro","CITA","EDIFICIO I+D","Clara María Marín Alcalá (cmarin@cita-aragon.es) "]
[216,"Cabina de extracción de gases",null,"OR-ST1500. Burdinola ","Barreras de protección y seguridad biológica",null,null,null,"LAB_20","Serología","A13_17R: Zoonosis Bacterianas: Brucelosis y Salmonelosis (ZooBac)","Pilar María Muñoz Alvaro","CITA","EDIFICIO I+D","Clara María Marín Alcalá (cmarin@cita-aragon.es) "]
[217,"Cabina de seguridad biológica ","Clase II-A","Bio-II-A. Telstar® ","Barreras de protección y seguridad biológica",null,null,null,"LAB_20","Serología","A13_17R: Zoonosis Bacterianas: Brucelosis y Salmonelosis (ZooBac)","Pilar María Muñoz Alvaro","CITA","EDIFICIO I+D","Clara María Marín Alcalá (cmarin@cita-aragon.es) "]
[218,"pHmetro",null,"GLP21. Crison","Preparación, procesamiento y conservación de muestras","pHmetro",null,"carpeta de descargas","LAB_20","Serología","A13_17R: Zoonosis Bacterianas: Brucelosis y Salmonelosis (ZooBac)","Pilar María Muñoz Alvaro","CITA","EDIFICIO I+D","Clara María Marín Alcalá (cmarin@cita-aragon.es) "]
[219,"NIR / VNIR","Analizador NIR para carne","FoodScan™ 2. FOSS ","Análisis de agua, materia prima y alimentos",null,"Analizador NIR carne",null,"LAB_21","Calidad de la canal y la carne","A14_17R: Sistemas agroganaderos alimentarios sostenibles (SAGAS)","Margalida Joy Torrens","CITA","Unidad de Tecnología en Producción Animal y Sanidad Animal","Begoña Panea Doblado (bpanea@aragon.es)"]
[220,"Texturómetro","Texturómetro","Modelo 5543. Instron","Técnicas instrumentales análisis físicos",null,null,"http://bcodata.whoi.edu/Carrington/Instron_5565_Materials_Testing_Frame_M10-14190-EN(RevA).pdf","LAB_21","Calidad de la canal y la carne","A14_17R: Sistemas agroganaderos alimentarios sostenibles (SAGAS)","Margalida Joy Torrens","CITA","Unidad de Tecnología en Producción Animal y Sanidad Animal","Begoña Panea Doblado (bpanea@aragon.es)"]
[221,"Baño de agua","Agua y aceite","Precisdig. P Selecta","Estufas, hornos, incubadoras, baños","Baño","http://www.grupo-selecta.com/pdfs/es/pages/prodpdf_es_6001195.pdf",null,"LAB_21","Calidad de la canal y la carne","A14_17R: Sistemas agroganaderos alimentarios sostenibles (SAGAS)","Margalida Joy Torrens","CITA","Unidad de Tecnología en Producción Animal y Sanidad Animal","Begoña Panea Doblado (bpanea@aragon.es)"]
[222,"Espectrofotómetro","UV/Vis","UV 2600D. Konica Minolta","Técnicas instrumentales análisis químicos","Espectrofotómetría","Portátil","http://sensing.konicaminolta.com.mx/products/cm-2600d-spectrophotometer/support/CM-2600d_ESP_071014.pdf\nhttps://www5.konicaminolta.eu/en/measuring-instruments/products/colour-measurement/spectrophotometers-portable/cm-2600d-cm-2500d/specifications.html","LAB_21","Calidad de la canal y la carne","A14_17R: Sistemas agroganaderos alimentarios sostenibles (SAGAS)","Margalida Joy Torrens","CITA","Unidad de Tecnología en Producción Animal y Sanidad Animal","Begoña Panea Doblado (bpanea@aragon.es)"]
[223,"NIR / VNIR",null,null,"Análisis de agua, materia prima y alimentos",null,"Espectroscopia de infrarrojo cercano",null,"LAB_22","Digestibilidad","A14_17R: Sistemas agroganaderos alimentarios sostenibles (SAGAS)","Margalida Joy Torrens","CITA","Unidad de Tecnología en Producción Animal y Sanidad Animal","Margalida Joy Torrens (mjoy@aragon.es)"]
[224,"Análisis fibra","Fibra","Ankom 220 Fiber Analyzer","Análisis de agua, materia prima y alimentos",null,"Acid Detergent Fiber, Neutral Detergent Fiber, and Crude Fiber for all feeds and forages.\nPara la determinación del contenido de fibra bruta, fibra detergente ácida y neutra",null,"LAB_22","Digestibilidad","A14_17R: Sistemas agroganaderos alimentarios sostenibles (SAGAS)","Margalida Joy Torrens","CITA","Unidad de Tecnología en Producción Animal y Sanidad Animal","Margalida Joy Torrens (mjoy@aragon.es)"]
[225,"Análisis grasa","Solvente","Ankom XT10 Extractor","Análisis de agua, materia prima y alimentos",null,null,"https://www.ankom.com/sites/default/files/document-files/XT10_Manual.pdf","LAB_22","Digestibilidad","A14_17R: Sistemas agroganaderos alimentarios sostenibles (SAGAS)","Margalida Joy Torrens","CITA","Unidad de Tecnología en Producción Animal y Sanidad Animal","Margalida Joy Torrens (mjoy@aragon.es)"]
[226,"Análisis energía","Bomba calorimétrica","Oxygen Bomb Calorimeter. Parr Instruments Company","Análisis de agua, materia prima y alimentos",null,null,null,"LAB_22","Digestibilidad","A14_17R: Sistemas agroganaderos alimentarios sostenibles (SAGAS)","Margalida Joy Torrens","CITA","Unidad de Tecnología en Producción Animal y Sanidad Animal","Margalida Joy Torrens (mjoy@aragon.es)"]
[227,"Análisis nitrógeno","Dumas","CE Instruments NA 2100 Protein Analyser","Análisis de agua, materia prima y alimentos",null,null,null,"LAB_22","Digestibilidad","A14_17R: Sistemas agroganaderos alimentarios sostenibles (SAGAS)","Margalida Joy Torrens","CITA","Unidad de Tecnología en Producción Animal y Sanidad Animal","Margalida Joy Torrens (mjoy@aragon.es)"]
[228,"Cromatógrafo","Cromatografía líquida ultra alta resolución (UPLC)","Waters® ACQUITY UPLC / Waters® 2475 Fluorescence Multi-λ Detector.","Técnicas instrumentales análisis químicos","Cromatografía",null,"Para descargar las especificaciones hay que registrarse.\nhttps://www.waters.com/waters/library.htm?locale=es_ES&cid=514434&lid=134889761","LAB_22","Digestibilidad","A14_17R: Sistemas agroganaderos alimentarios sostenibles (SAGAS)","Margalida Joy Torrens","CITA","Unidad de Tecnología en Producción Animal y Sanidad Animal","Margalida Joy Torrens (mjoy@aragon.es)"]
[229,"Cromatógrafo","Cromatografía gases (GC)","436-GC de Scion Instruments ","Técnicas instrumentales análisis químicos","Cromatografía",null,"http://scioninstruments.es/wp-content/uploads/2015/04/SI_LabGC_Brochure.pdf","LAB_22","Digestibilidad","A14_17R: Sistemas agroganaderos alimentarios sostenibles (SAGAS)","Margalida Joy Torrens","CITA","Unidad de Tecnología en Producción Animal y Sanidad Animal","Margalida Joy Torrens (mjoy@aragon.es)"]
[230,"Cromatógrafo","Cromatografía gases (GC)","HP 4890D Gas Chromatograph. Agilent Technologies","Técnicas instrumentales análisis químicos","Cromatografía",null,"https://www.agilent.com/cs/library/support/documents/a15289.pdf","LAB_22","Digestibilidad","A14_17R: Sistemas agroganaderos alimentarios sostenibles (SAGAS)","Margalida Joy Torrens","CITA","Unidad de Tecnología en Producción Animal y Sanidad Animal","Margalida Joy Torrens (mjoy@aragon.es)"]
[231,"Espectrofotómetro ","Portátil","Helios β. Thermo Electron Corporation","Técnicas instrumentales análisis químicos","Espectrofotómetría","UV/Vis","http://www.vtpup.cz/common/manual/PrF_rustreglab_Unicam_Helios_datasheet_EN.pdf","LAB_22","Digestibilidad","A14_17R: Sistemas agroganaderos alimentarios sostenibles (SAGAS)","Margalida Joy Torrens","CITA","Unidad de Tecnología en Producción Animal y Sanidad Animal","Margalida Joy Torrens (mjoy@aragon.es)"]
[232,"Centrífuga / Ultracentrífuga / Microcentrífuga","Centrífuga - Microcentrífuga","MC12V. Sorvall","Preparación, procesamiento y conservación de muestras",null,null,null,"LAB_22","Digestibilidad","A14_17R: Sistemas agroganaderos alimentarios sostenibles (SAGAS)","Margalida Joy Torrens","CITA","Unidad de Tecnología en Producción Animal y Sanidad Animal","Margalida Joy Torrens (mjoy@aragon.es)"]
[233,"Rotavapor","Rotavapor","RVC 2-25. Martin Christ","Preparación, procesamiento y conservación de muestras",null,"Suitable for typical solvents: e.g. acetonitrile, acetone, chloroform, dioxane, methylenchloride, ethanol, hexane, methanol, TFA, water.",null,"LAB_22","Digestibilidad","A14_17R: Sistemas agroganaderos alimentarios sostenibles (SAGAS)","Margalida Joy Torrens","CITA","Unidad de Tecnología en Producción Animal y Sanidad Animal","Margalida Joy Torrens (mjoy@aragon.es)"]
[234,"Incubadora","Agitación","Daisy II-220 Ankom Technologies.","Estufas, hornos, incubadoras, baños","Incubadora","https://www.ankom.com/sites/default/files/document-files/D200_D200I_Manual.pdf","https://www.ankom.com/sites/default/files/document-files/ANKOM%20Daisy%20Incubator%20Info.pdf","LAB_22","Digestibilidad","A14_17R: Sistemas agroganaderos alimentarios sostenibles (SAGAS)","Margalida Joy Torrens","CITA","Unidad de Tecnología en Producción Animal y Sanidad Animal","Margalida Joy Torrens (mjoy@aragon.es)"]
[235,"Baño de ultrasonidos","Baño ultrasonidos","Ultrasons-HD. J.P. Selecta®","Limpieza y esterilización",null,"Ultrasonidos con calefacción",null,"LAB_22","Digestibilidad","A14_17R: Sistemas agroganaderos alimentarios sostenibles (SAGAS)","Margalida Joy Torrens","CITA","Unidad de Tecnología en Producción Animal y Sanidad Animal","Margalida Joy Torrens (mjoy@aragon.es)"]
[236,"Liofilizador","Liofilizador","VirTis Genesis Wizard 2.0","Preparación, procesamiento y conservación de muestras",null,null,"carpeta de descargas","LAB_22","Digestibilidad","A14_17R: Sistemas agroganaderos alimentarios sostenibles (SAGAS)","Margalida Joy Torrens","CITA","Unidad de Tecnología en Producción Animal y Sanidad Animal","Margalida Joy Torrens (mjoy@aragon.es)"]
[237,"Estufa de secado","Gran capacidad","P Selecta®","Estufas, hornos, incubadoras, baños","Estufas","Gran capacidad",null,"LAB_22","Digestibilidad","A14_17R: Sistemas agroganaderos alimentarios sostenibles (SAGAS)","Margalida Joy Torrens","CITA","Unidad de Tecnología en Producción Animal y Sanidad Animal","Margalida Joy Torrens (mjoy@aragon.es)"]
[238,"Mufla","Horno de mufla","Heron 10-PR/400 ","Estufas, hornos, incubadoras, baños","Horno de mufla","1.000ºC. Horno eléctrico de mufla",null,"LAB_22","Digestibilidad","A14_17R: Sistemas agroganaderos alimentarios sostenibles (SAGAS)","Margalida Joy Torrens","CITA","Unidad de Tecnología en Producción Animal y Sanidad Animal","Margalida Joy Torrens (mjoy@aragon.es)"]
[239,"Mufla","Horno de mufla","P Selecta®","Estufas, hornos, incubadoras, baños","Horno de mufla","Horno eléctrico de mufla",null,"LAB_22","Digestibilidad","A14_17R: Sistemas agroganaderos alimentarios sostenibles (SAGAS)","Margalida Joy Torrens","CITA","Unidad de Tecnología en Producción Animal y Sanidad Animal","Margalida Joy Torrens (mjoy@aragon.es)"]
[240,"Molino","Molino","Restch®","Preparación, procesamiento y conservación de muestras",null,null,null,"LAB_22","Digestibilidad","A14_17R: Sistemas agroganaderos alimentarios sostenibles (SAGAS)","Margalida Joy Torrens","CITA","Unidad de Tecnología en Producción Animal y Sanidad Animal","Margalida Joy Torrens (mjoy@aragon.es)"]
[241,"Molino","Molino grandes dimensiones",null,"Preparación, procesamiento y conservación de muestras",null,null,null,"LAB_22","Digestibilidad","A14_17R: Sistemas agroganaderos alimentarios sostenibles (SAGAS)","Margalida Joy Torrens","CITA","Unidad de Tecnología en Producción Animal y Sanidad Animal","Margalida Joy Torrens (mjoy@aragon.es)"]
[242,"Estufa de secado","Estufa aire forzado","AFA. Dycometal Testing Technology","Estufas, hornos, incubadoras, baños","Estufas","Estufa de desecación. Gran capacidad. Aire forzado\nRango de temperatura oscilante  entre Ambiente  y  200ºC/  250ºC  y",null,"LAB_22","Digestibilidad","A14_17R: Sistemas agroganaderos alimentarios sostenibles (SAGAS)","Margalida Joy Torrens","CITA","Unidad de Tecnología en Producción Animal y Sanidad Animal","Margalida Joy Torrens (mjoy@aragon.es)"]
[243,"Estufa de secado","Estufa de secado","P Selecta®","Estufas, hornos, incubadoras, baños","Estufas","Gran capacidad",null,"LAB_22","Digestibilidad","A14_17R: Sistemas agroganaderos alimentarios sostenibles (SAGAS)","Margalida Joy Torrens","CITA","Unidad de Tecnología en Producción Animal y Sanidad Animal","Margalida Joy Torrens (mjoy@aragon.es)"]
[244,"Específico: fisiología digestiva","Sistema   de   fermentación in vitro ","Patente  nº P 200600043. ","Fisiología",null,"Sistema   de   fermentación in vitro con flujo discontinuo de las fases líquida y sólida, que simula las condiciones de fermentación ruminal. Patente  nº P 200600043. ",null,"LAB_23","Nutrición animal","A14_17R: Sistemas agroganaderos alimentarios sostenibles (SAGAS)","Margalida Joy Torrens","UNIZAR","F. Veterinaria / Ed. Zootecnia","Manuel Fondevila Camps (mfonde@unizar.es) "]
[245,"Cromatógrafo","Cromatografía gases (GC)","ALS 6890 Series Plus. Agilent","Técnicas instrumentales análisis químicos","Cromatografía",null,"http://old.vtpup.cz/common/manual/PrF_RCPTM_Agilent_GC6890_manual_EN.pdf","LAB_23","Nutrición animal","A14_17R: Sistemas agroganaderos alimentarios sostenibles (SAGAS)","Margalida Joy Torrens","UNIZAR","F. Veterinaria / Ed. Zootecnia","Manuel Fondevila Camps (mfonde@unizar.es) "]
[246,"Cromatógrafo","Cromatografía líquida HPLC","Waters®717plus Autosampler","Técnicas instrumentales análisis químicos","Cromatografía",null,"http://conquerscientific.com/wp-content/product-images/Waters-717plus-Autosampler.pdf\nhttps://www.meadowshplc.com/sites/default/files/products/attachments/717plus.pdf","LAB_23","Nutrición animal","A14_17R: Sistemas agroganaderos alimentarios sostenibles (SAGAS)","Margalida Joy Torrens","UNIZAR","F. Veterinaria / Ed. Zootecnia","Manuel Fondevila Camps (mfonde@unizar.es) "]
[247,"Análisis grasa","Hidrólisis","ANKOM HCL Hydrolysis system","Análisis de agua, materia prima y alimentos",null,"Total fat/oil analysis","https://www.ankom.com/sites/default/files/document-files/HCL_Manual.pdf\nhttps://www.ankom.com/sites/default/files/document-files/ANKOM%20HCl%20System%20Info.pdf","LAB_23","Nutrición animal","A14_17R: Sistemas agroganaderos alimentarios sostenibles (SAGAS)","Margalida Joy Torrens","UNIZAR","F. Veterinaria / Ed. Zootecnia","Manuel Fondevila Camps (mfonde@unizar.es) "]
[248,"Análisis grasa","Solvente","ANKOM XT15 Extraction System","Análisis de agua, materia prima y alimentos",null,null,"https://www.ankom.com/sites/default/files/document-files/XT15_Manual.pdf\nhttps://www.ankom.com/sites/default/files/document-files/ANKOM_XT15_XT10_Info.pdf","LAB_23","Nutrición animal","A14_17R: Sistemas agroganaderos alimentarios sostenibles (SAGAS)","Margalida Joy Torrens","UNIZAR","F. Veterinaria / Ed. Zootecnia","Manuel Fondevila Camps (mfonde@unizar.es) "]
[249,"Análisis fibra","Fibra","ANKOM 220 Fiber Analyzer","Análisis de agua, materia prima y alimentos",null,"Acid Detergent Fiber, Neutral Detergent Fiber, and Crude Fiber for all feeds and forages.\nPara la determinación del contenido de fibra bruta, fibra detergente ácida y neutra",null,"LAB_23","Nutrición animal","A14_17R: Sistemas agroganaderos alimentarios sostenibles (SAGAS)","Margalida Joy Torrens","UNIZAR","F. Veterinaria / Ed. Zootecnia","Manuel Fondevila Camps (mfonde@unizar.es) "]
[250,"Análisis nitrógeno","Kjeldahl","Kjeltec™ 2300Analyzer Unit FOSS","Análisis de agua, materia prima y alimentos",null,"Automatic distillation procedure, incl. sample dilution, al-kali and receiver addition, distillation, titration, calculation, reporting and tube draining.Officially approved colorimetric titration system (AOAC, EPA, DIN, ISO etc) simplifies validation",null,"LAB_23","Nutrición animal","A14_17R: Sistemas agroganaderos alimentarios sostenibles (SAGAS)","Margalida Joy Torrens","UNIZAR","F. Veterinaria / Ed. Zootecnia","Manuel Fondevila Camps (mfonde@unizar.es) "]
[251,"Mufla","Horno de mufla",null,"Estufas, hornos, incubadoras, baños","Horno de mufla",null,null,"LAB_23","Nutrición animal","A14_17R: Sistemas agroganaderos alimentarios sostenibles (SAGAS)","Margalida Joy Torrens","UNIZAR","F. Veterinaria / Ed. Zootecnia","Manuel Fondevila Camps (mfonde@unizar.es) "]
[252,"Ecógrafo ","Ecógrafo","ALOKCA","Específico: Reproducción",null,null,null,"LAB_24","Reproducción pequeños rumiantes","A14_17R: Sistemas agroganaderos alimentarios sostenibles (SAGAS)","Margalida Joy Torrens","CITA","EDIFICIO I+D","José Luis Alabart Álvarez (jalabart@aragon.es)"]
[254,"Osmómetro ","Osmómetro ","VAPRO®. Wescor","Específico: Reproducción",null,"Osmómetro de presión de vapor para medir calidad de semen\nhttps://www.elitechgroup.com/benelux/wp-content/uploads/sites/2/2015/12/vapro_2014.pdf",null,"LAB_24","Reproducción pequeños rumiantes","A14_17R: Sistemas agroganaderos alimentarios sostenibles (SAGAS)","Margalida Joy Torrens","CITA","EDIFICIO I+D","José Luis Alabart Álvarez (jalabart@aragon.es)"]
[255,"Crioconservación","Biocongelador de semen con tanque de nitrógeno",null,"Específico: Reproducción",null,null,null,"LAB_24","Reproducción pequeños rumiantes","A14_17R: Sistemas agroganaderos alimentarios sostenibles (SAGAS)","Margalida Joy Torrens","CITA","EDIFICIO I+D","José Luis Alabart Álvarez (jalabart@aragon.es)"]
[256,"Incubadora","CO2 / camisa de agua","FormaTM. Thermo ScientificTM","Estufas, hornos, incubadoras, baños","Incubadora","Estufa de incubación CO2 y N2 con camisa de agua",null,"LAB_24","Reproducción pequeños rumiantes","A14_17R: Sistemas agroganaderos alimentarios sostenibles (SAGAS)","Margalida Joy Torrens","CITA","EDIFICIO I+D","José Luis Alabart Álvarez (jalabart@aragon.es)"]
[257,"Incubadora","N2","Heraeus","Estufas, hornos, incubadoras, baños","Incubadora",null,null,"LAB_24","Reproducción pequeños rumiantes","A14_17R: Sistemas agroganaderos alimentarios sostenibles (SAGAS)","Margalida Joy Torrens","CITA","EDIFICIO I+D","José Luis Alabart Álvarez (jalabart@aragon.es)"]
[258,"Baño de ultrasonidos",null,null,"Limpieza y esterilización",null,null,null,"LAB_24","Reproducción pequeños rumiantes","A14_17R: Sistemas agroganaderos alimentarios sostenibles (SAGAS)","Margalida Joy Torrens","CITA","EDIFICIO I+D","José Luis Alabart Álvarez (jalabart@aragon.es)"]
[259,"Incubadora","CO2/camisa de agua","Forma TM Serie II. Thermo ScientificTM","Estufas, hornos, incubadoras, baños","Incubadora","Estufa de incubación CO2/aire con camisa de agua",null,"LAB_24","Reproducción pequeños rumiantes","A14_17R: Sistemas agroganaderos alimentarios sostenibles (SAGAS)","Margalida Joy Torrens","CITA","EDIFICIO I+D","José Luis Alabart Álvarez (jalabart@aragon.es)"]
[260,"Incubadora","CO2/N2/O2","Heracell®. Heraeus","Estufas, hornos, incubadoras, baños","Incubadora","Estufa de incubación /N2/O2 con camisa de agua",null,"LAB_24","Reproducción pequeños rumiantes","A14_17R: Sistemas agroganaderos alimentarios sostenibles (SAGAS)","Margalida Joy Torrens","CITA","EDIFICIO I+D","José Luis Alabart Álvarez (jalabart@aragon.es)"]
[261,"Estereomicroscopio","Estereomicroscopio","SZH10. Olimpus","Microscopía",null,null,null,"LAB_24","Reproducción pequeños rumiantes","A14_17R: Sistemas agroganaderos alimentarios sostenibles (SAGAS)","Margalida Joy Torrens","CITA","EDIFICIO I+D","José Luis Alabart Álvarez (jalabart@aragon.es)"]
[262,"Estereomicroscopio","Estereomicroscopio","SMZ 1500. Nikon","Microscopía",null,null,null,"LAB_24","Reproducción pequeños rumiantes","A14_17R: Sistemas agroganaderos alimentarios sostenibles (SAGAS)","Margalida Joy Torrens","CITA","EDIFICIO I+D","José Luis Alabart Álvarez (jalabart@aragon.es)"]
[263,"Selladora de pajuelas","Por ultrasonidos","Cryosealer. Minitube","Específico: Reproducción",null,"Sellado por ultrasonido\nApta para sellado de pajuelas de 0.25, 0.5 ml y\n0,3 ml CBS™ criopajuelas. ",null,"LAB_24","Reproducción pequeños rumiantes","A14_17R: Sistemas agroganaderos alimentarios sostenibles (SAGAS)","Margalida Joy Torrens","CITA","EDIFICIO I+D","José Luis Alabart Álvarez (jalabart@aragon.es)"]
[264,"Micromanipulador","Micromanipulador",null,"Específico: Reproducción",null,null,null,"LAB_24","Reproducción pequeños rumiantes","A14_17R: Sistemas agroganaderos alimentarios sostenibles (SAGAS)","Margalida Joy Torrens","CITA","EDIFICIO I+D","José Luis Alabart Álvarez (jalabart@aragon.es)"]
[265,"Microscopio","Fluorescencia","Axiovert 135 Zeiss ","Microscopía",null,"Cámara integrada",null,"LAB_24","Reproducción pequeños rumiantes","A14_17R: Sistemas agroganaderos alimentarios sostenibles (SAGAS)","Margalida Joy Torrens","CITA","EDIFICIO I+D","José Luis Alabart Álvarez (jalabart@aragon.es)"]
[266,"Objetivo laser",null,"XYclone® de Hamilton Thorne","Microscopía",null,"integrado Xyclone® Laptop System ",null,"LAB_24","Reproducción pequeños rumiantes","A14_17R: Sistemas agroganaderos alimentarios sostenibles (SAGAS)","Margalida Joy Torrens","CITA","EDIFICIO I+D","José Luis Alabart Álvarez (jalabart@aragon.es)"]
[267,"Multiporador","Multiporador","Eppendorf","Técnicas de análisis biológicos: CELULAR","Biología celular",null,null,"LAB_24","Reproducción pequeños rumiantes","A14_17R: Sistemas agroganaderos alimentarios sostenibles (SAGAS)","Margalida Joy Torrens","CITA","EDIFICIO I+D","José Luis Alabart Álvarez (jalabart@aragon.es)"]
[268,"Purificación de ácidos nucleicos","Purificador ácidos nucleicos","KingFisher™ Duo Prime","Técnicas de análisis biológicos: MOLECULAR","Biología Molecular",null,null,"LAB_25","Genética","A16_17R: Zoonosis y enfermedades emergentes de interés en salud pública","Joaquín Quílez Cinca","UNIZAR","F. Veterinaria / Ed. Central","Luis Monteagudo Ibáñez (monteagu@unizar.es) "]
[269,"Cabina de seguridad biológica ","Clase II-B","Streamline Class II Biological Safety Cabinet. ESCO","Barreras de protección y seguridad biológica",null,"Cabina de seguridad microbiológica ","http://www.escoglobal.com/products/download/1334038968.pdf","LAB_26","Protozoosis entéricas","A16_17R: Zoonosis y enfermedades emergentes de interés en salud pública","Joaquín Quílez Cinca","UNIZAR","F. Veterinaria / Ed. Hospital","Joaquín Quílez Cinca (jquilez@unizar.es) "]
[270,"Microscopio","Fluorescencia","DM2500 LED. Leica Microsystems","Microscopía",null,null,null,"LAB_27","Reproduccción","A17_17R: RAySA: Reproducción asistida y sanidad animal","Lydia Gil Huerta","UNIZAR","F. Veterinaria / Ed. Hospital","Lydia Gil Huerta (lydiagil@unizar.es) "]
[271,"Espectrofotómetro","UV/Vis","SmartSpec Plus. BioRAD","Técnicas instrumentales análisis químicos","Espectrofotómetría","UV/Vis","http://www.bio-rad.com/es-es/product/smartspec-plus-spectrophotometer?ID=e12b12ef-e6e2-4ae3-9faa-fd4bfb60ccca\nhttp://www.bio-rad.com/webroot/web/pdf/lsr/literature/4006221A.pdf","LAB_28","Ictiopatología","A17_17R: RAySA: Reproducción asistida y sanidad animal","Lydia Gil Huerta","UNIZAR","F. Veterinaria / Ed. Hospital","Imanol Ruiz Zarzuela (imaruiz@unizar.es) "]
[272,"Espectrofotómetro","UV/Vis","DR 2800. Hach Lange","Técnicas instrumentales análisis químicos","Espectrofotómetría","UV/Vis. Para análisis de calidad del agua",null,"LAB_28","Ictiopatología","A17_17R: RAySA: Reproducción asistida y sanidad animal","Lydia Gil Huerta","UNIZAR","F. Veterinaria / Ed. Hospital","Imanol Ruiz Zarzuela (imaruiz@unizar.es) "]
[273,"Microscopio","Fluorescencia","Dialux® 20 EB. Leitz","Microscopía",null,null,null,"LAB_28","Ictiopatología","A17_17R: RAySA: Reproducción asistida y sanidad animal","Lydia Gil Huerta","UNIZAR","F. Veterinaria / Ed. Hospital","Imanol Ruiz Zarzuela (imaruiz@unizar.es) "]
[274,"Microscopio","Convencional","DM 1000. Leica Microsystems","Microscopía",null,"8x",null,"LAB_28","Ictiopatología","A17_17R: RAySA: Reproducción asistida y sanidad animal","Lydia Gil Huerta","UNIZAR","F. Veterinaria / Ed. Hospital","Imanol Ruiz Zarzuela (imaruiz@unizar.es) "]
[275,"Microscopio","Invertido","Vert A1 FL. Axio","Microscopía",null,"Campo claro, contraste de fases, PlasDIC, contraste de modulación Hoffman mejorado (iHMC), contraste de fluorescencia,  contraste de interferencia diferencial (DIC)\nLED",null,"LAB_28","Ictiopatología","A17_17R: RAySA: Reproducción asistida y sanidad animal","Lydia Gil Huerta","UNIZAR","F. Veterinaria / Ed. Hospital","Imanol Ruiz Zarzuela (imaruiz@unizar.es) "]
[276,"Específico: Lab. Histología","Microtomo: parafina","HM 350S. Microm Heidelberg","Específico: Histología",null,"Parafina",null,"LAB_28","Ictiopatología","A17_17R: RAySA: Reproducción asistida y sanidad animal","Lydia Gil Huerta","UNIZAR","F. Veterinaria / Ed. Hospital","Imanol Ruiz Zarzuela (imaruiz@unizar.es) "]
[277,"Específico: Lab. Histología","Estación de inclusión modular: parafina","EC 350-2. Myr","Específico: Histología",null,"Centro de inclusión de parafina modular ",null,"LAB_28","Ictiopatología","A17_17R: RAySA: Reproducción asistida y sanidad animal","Lydia Gil Huerta","UNIZAR","F. Veterinaria / Ed. Hospital","Imanol Ruiz Zarzuela (imaruiz@unizar.es) "]
[278,"Ánálisis agua","Bomba/filtrado","Pall Gelman Laboratory","Análisis de agua, materia prima y alimentos",null,"Bomba y rampa de filtrado para análisis físico-químico y microbiológico de aguas",null,"LAB_28","Ictiopatología","A17_17R: RAySA: Reproducción asistida y sanidad animal","Lydia Gil Huerta","UNIZAR","F. Veterinaria / Ed. Hospital","Imanol Ruiz Zarzuela (imaruiz@unizar.es) "]
[279,"Incubadora","Refrigerada","Binder","Estufas, hornos, incubadoras, baños","Incubadora",null,null,"LAB_28","Ictiopatología","A17_17R: RAySA: Reproducción asistida y sanidad animal","Lydia Gil Huerta","UNIZAR","F. Veterinaria / Ed. Hospital","Imanol Ruiz Zarzuela (imaruiz@unizar.es) "]
[280,"Incubadora","CO2","Sanyo","Estufas, hornos, incubadoras, baños","Incubadora",null,null,"LAB_28","Ictiopatología","A17_17R: RAySA: Reproducción asistida y sanidad animal","Lydia Gil Huerta","UNIZAR","F. Veterinaria / Ed. Hospital","Imanol Ruiz Zarzuela (imaruiz@unizar.es) "]
[281,"Estufa de secado",null,"Binder","Estufas, hornos, incubadoras, baños","Estufas","Estufa de secado y tratamiento térmico",null,"LAB_28","Ictiopatología","A17_17R: RAySA: Reproducción asistida y sanidad animal","Lydia Gil Huerta","UNIZAR","F. Veterinaria / Ed. Hospital","Imanol Ruiz Zarzuela (imaruiz@unizar.es) "]
[282,"Centrífuga / Ultracentrífuga / Microcentrífuga","Centrífuga - Microcentrífuga","5415R. Eppendorf","Preparación, procesamiento y conservación de muestras",null,"Alta velocidad","5415D. Eppendorf del LAB 11","LAB_28","Ictiopatología","A17_17R: RAySA: Reproducción asistida y sanidad animal","Lydia Gil Huerta","UNIZAR","F. Veterinaria / Ed. Aulario","Imanol Ruiz Zarzuela (imaruiz@unizar.es) "]
[283,"Específico: Lab. Histología","Estación de inclusión: parafina e historesina",null,"Específico: Histología",null,"Parafina",null,"LAB_29","Histología y anatomía patológica","A17_17R: RAySA: Reproducción asistida y sanidad animal\nB16_17R: Dieta mediterránea y su potencial nutracéutico","A17_17R: Lydia Gil Huerta\nB16_17R: Jesús de la Osada García","UNIZAR","F. Veterinaria / Ed. Aulario","A17_17R: Lluis Luján Lerma (Lluis.Lujan@unizar.es)\nB16_17R: Carmen Arnal Atarés (arnal@unizar.es) "]
[284,"Específico: Lab. Histología","Estación de inclusión modular: parafina","DP500. Bio-Optica","Específico: Histología",null,"Centro de inclusión de parafina modular, con módulo de dispensación de parafina DP500 y consola térmica. Bio-optica UT200.",null,"LAB_29","Histología y anatomía patológica","A17_17R: RAySA: Reproducción asistida y sanidad animal\nB16_17R: Dieta mediterránea y su potencial nutracéutico","A17_17R: Lydia Gil Huerta\nB16_17R: Jesús de la Osada García","UNIZAR","F. Veterinaria / Ed. Aulario","A17_17R: Lluis Luján Lerma (Lluis.Lujan@unizar.es)\nB16_17R: Carmen Arnal Atarés (arnal@unizar.es) "]
[285,"Específico: Lab. Histología","Microtomo manual","Shandon™ Finesse™ 325. Thermo Scientific","Específico: Histología",null,"Microtomo manual\nResolución de sección precisa: 0.5 to 2µm in 0.5µm increments, 2 to 10µm in 1µm increments, 10 to 20µm in 2µm increments, 20 to 60µm in 5µm increments\nIntervalo de seccionamiento:  0.5 to 60µm\nOrientación de las muestras:  ±5 degrees using X-Y micro adjustment",null,"LAB_29","Histología y anatomía patológica","A17_17R: RAySA: Reproducción asistida y sanidad animal\nB16_17R: Dieta mediterránea y su potencial nutracéutico","A17_17R: Lydia Gil Huerta\nB16_17R: Jesús de la Osada García","UNIZAR","F. Veterinaria / Ed. Aulario","A17_17R: Lluis Luján Lerma (Lluis.Lujan@unizar.es)\nB16_17R: Carmen Arnal Atarés (arnal@unizar.es) "]
[286,"Específico: Lab. Histología","Batería de tinción",null,"Específico: Histología",null,null,null,"LAB_29","Histología y anatomía patológica","A17_17R: RAySA: Reproducción asistida y sanidad animal\nB16_17R: Dieta mediterránea y su potencial nutracéutico","A17_17R: Lydia Gil Huerta\nB16_17R: Jesús de la Osada García","UNIZAR","F. Veterinaria / Ed. Aulario","A17_17R: Lluis Luján Lerma (Lluis.Lujan@unizar.es)\nB16_17R: Carmen Arnal Atarés (arnal@unizar.es) "]
[287,"Microscopio","Convencional","NIKON ECLIPSE E2000/NIKON DS-Fi1 ","Microscopía",null,"Microscopio NIKON ECLIPSE E2000 con cámara acoplada NIKON DS-Fi1 y software específico \nhttps://www.microscope.healthcare.nikon.com/es_AMS/products/upright-microscopes/eclipse-e200/specifications",null,"LAB_29","Histología y anatomía patológica","A17_17R: RAySA: Reproducción asistida y sanidad animal\nB16_17R: Dieta mediterránea y su potencial nutracéutico","A17_17R: Lydia Gil Huerta\nB16_17R: Jesús de la Osada García","UNIZAR","F. Veterinaria / Ed. Aulario","B16_17R: Carmen Arnal Atarés (arnal@unizar.es) "]
[288,"Secuenciador","Secuenciación automática","ABI PRISM® 3100 Genetic Analyzer. Applied Biosystems","Técnicas de análisis biológicos: GENÉTICA","Genética",null,"carpeta descargas\nhttps://btiscience.org/wp-content/uploads/2014/04/Sequencer_Manual.pdf","LAB_30","Genética Bioquímica (LAGENBIO)","A19_17R: LAGENBIO","Pilar Zaragoza Fernández","UNIZAR","F. Veterinaria / Ed. Central","Clementina Rodellar Penella (rodellar@unizar.es)"]
[289,"PCR","PCR","Applied Biosystems™ ProFlex™ 2 x 384-well PCR System","Técnicas de análisis biológicos: MOLECULAR","Biología Molecular","Termociclador para placas de 384\nEspecificaciones:\nCapacity:  2 x 384-well plate, 768 x 0.02 ml tubes\nDimensions:  Height: 27 cm (10.6 in), Width: 33 cm (13 in), Depth: 56.5 cm (22 in)\nDisplay Interface:  Touchscreen (8.4 in. TFT LCD)\nFor Use With (Equipment):  ProFlex™ PCR System\nFormat:  384-well plate\nHigh Throughput Compatibility:  High Throughput-Compatible\nInstrument Memory:  USB and On-board\nPeak Block Ramp Rate:  3.0°C⁄sec\nPower Requirements:  100-240V, 50-60 Hz Max: 950 VA\nProduct Line:  ProFlex™\nProduct Size:  1 instrument\nProgram Features:  Auto re-start (after power outages), Program overwrite protection\nReaction Speed:  Fast, Standard\nSample Ramp Rate:  Standard mode: ± 1.6°C⁄sec\nTemperature Accuracy:  ±0.25°C (35°C to 99.9°C)\nTemperature Range (Metric):  0 to 100.0 °C\nTemperature Uniformity:  <0.5 °C (20 sec after reaching 95 °C)\nWeight:  18.75 kg (41 lb) ","carpeta descargas","LAB_30","Genética Bioquímica (LAGENBIO)","A19_17R: LAGENBIO","Pilar Zaragoza Fernández","UNIZAR","F. Veterinaria / Ed. Central","Clementina Rodellar Penella (rodellar@unizar.es)"]
[290,"PCR","PCR","Applied Biosystems 2720 Thermal Cycler","Técnicas de análisis biológicos: MOLECULAR","Biología Molecular","Termociclador para placas de 384\nhttps://assets.fishersci.com/TFS-Assets/LSG/brochures/2720_Thermal_Cycler_Spec_Sheet.pdf?_ga=2.68993297.1460684765.1564134848-502800931.1549536724","https://assets.fishersci.com/TFS-Assets/LSG/manuals/cms_041483.pdf?_ga=2.3526064.1460684765.1564134848-502800931.1549536724","LAB_30","Genética Bioquímica (LAGENBIO)","A19_17R: LAGENBIO","Pilar Zaragoza Fernández","UNIZAR","F. Veterinaria / Ed. Central","Clementina Rodellar Penella (rodellar@unizar.es)"]
[291,"PCR","PCR","SimpliAmp™ Thermal Cycler ","Técnicas de análisis biológicos: MOLECULAR","Biología Molecular","Termociclador para placas de 384\nhttp://assets.thermofisher.com/TFS-Assets/BID/brochures/simpliamp-thermal-cycler-spec-sheet.pdf","https://assets.thermofisher.com/TFS-Assets/LSG/manuals/A24827.pdf\nhttps://tools.thermofisher.com/content/sfs/manuals/MAN0009889_SimpliAmp_ThermalCycler_UserGuide.pdf","LAB_30","Genética Bioquímica (LAGENBIO)","A19_17R: LAGENBIO","Pilar Zaragoza Fernández","UNIZAR","F. Veterinaria / Ed. Central","Clementina Rodellar Penella (rodellar@unizar.es)"]
[292,"Sistema automatizado preparación muestras","Pipeteo automático","epMotion® 5070. Eppendorf","Preparación, procesamiento y conservación de muestras",null,null,null,"LAB_30","Genética Bioquímica (LAGENBIO)","A19_17R: LAGENBIO","Pilar Zaragoza Fernández","UNIZAR","F. Veterinaria / Ed. Central","Clementina Rodellar Penella (rodellar@unizar.es)"]
[293,"PCR","PCR (qPCR)","StepOnePlus™. Applied Biosystems®","Técnicas de análisis biológicos: MOLECULAR","Biología Molecular","96 pocillos","https://www.gene-quantification.de/ab-step-one-brochure.pdf","LAB_30","Genética Bioquímica (LAGENBIO)","A19_17R: LAGENBIO","Pilar Zaragoza Fernández","UNIZAR","F. Veterinaria / Ed. Central","Clementina Rodellar Penella (rodellar@unizar.es)"]
[294,"PCR","PCR (digital)","QuantStudio™ 3D Digital PCR System. Applied Biosystems™","Técnicas de análisis biológicos: MOLECULAR","Biología Molecular",null,"https://tools.thermofisher.com/content/sfs/manuals/MAN0007720.pdf","LAB_30","Genética Bioquímica (LAGENBIO)","A19_17R: LAGENBIO","Pilar Zaragoza Fernández","UNIZAR","F. Veterinaria / Ed. Central","Clementina Rodellar Penella (rodellar@unizar.es)"]
[295,"Transiluminador","Transiluminador","MiniBis Pro. Bio-Imaging Systems","Técnicas de análisis biológicos: MOLECULAR","Biología Molecular",null,"http://dnr-is.com/wp-content/uploads/2016/11/MiniBIS-brochure.pdf","LAB_30","Genética Bioquímica (LAGENBIO)","A19_17R: LAGENBIO","Pilar Zaragoza Fernández","UNIZAR","F. Veterinaria / Ed. Central","Clementina Rodellar Penella (rodellar@unizar.es)"]
[296,"Espectrofotómetro","Microvolúmenes","NanoDrop™ 2000/2000c. Thermo Scientific™","Técnicas instrumentales análisis químicos","Espectrofotómetría","UV/Vis","Especificaciones: https://www.thermofisher.com/order/catalog/product/ND-2000\nhttps://www.thermofisher.com/document-connect/document-connect.html?url=https%3A%2F%2Fassets.thermofisher.com%2FTFS-Assets%2FCAD%2Fmanuals%2FNanoDrop-2000-User-Manual-EN.pdf&title=TmFub0Ryb3AgMjAwMC8yMDAwYyBTcGVjdHJvcGhvdG9tZXRlcnMgLSBVc2VyIE1hbnVhbA==","LAB_30","Genética Bioquímica (LAGENBIO)","A19_17R: LAGENBIO","Pilar Zaragoza Fernández","UNIZAR","F. Veterinaria / Ed. Central","Clementina Rodellar Penella (rodellar@unizar.es)"]
[297,"Espectrofotómetro","Microplacas","Infinite® F200 Fluorescence Microplate Reader. Tecan","Técnicas instrumentales análisis químicos","Espectrofotómetría",null,"https://lifesciences.tecan.com/plate_readers/infinite_200_pro","LAB_30","Genética Bioquímica (LAGENBIO)","A19_17R: LAGENBIO","Pilar Zaragoza Fernández","UNIZAR","F. Veterinaria / Ed. Central","Clementina Rodellar Penella (rodellar@unizar.es)"]
[298,"Centrífuga / Ultracentrífuga / Microcentrífuga","Ultracentrífuga","Sorvall Instrument","Preparación, procesamiento y conservación de muestras",null,null,null,"LAB_30","Genética Bioquímica (LAGENBIO)","A19_17R: LAGENBIO","Pilar Zaragoza Fernández","UNIZAR","F. Veterinaria / Ed. Central","Clementina Rodellar Penella (rodellar@unizar.es)"]
[299,"Contador","Contador de células","Z2. Beckman Coulter","Técnicas de análisis biológicos: CELULAR","Biología celular",null,"carpeta de descargas","LAB_30","Genética Bioquímica (LAGENBIO)","A19_17R: LAGENBIO","Pilar Zaragoza Fernández","UNIZAR","F. Veterinaria / Ed. Central","Clementina Rodellar Penella (rodellar@unizar.es)"]
[300,"Sistema automatizado preparación muestras","Dispensador de muestras",null,"Preparación, procesamiento y conservación de muestras",null,"Modelo robotizado",null,"LAB_30","Genética Bioquímica (LAGENBIO)","A19_17R: LAGENBIO","Pilar Zaragoza Fernández","UNIZAR","F. Veterinaria / Ed. Central","Clementina Rodellar Penella (rodellar@unizar.es)"]
[301,"Congelador -150ºC",null,null,"Cámaras, armarios refrigerados","Congelador",null,null,"LAB_30","Genética Bioquímica (LAGENBIO)","A19_17R: LAGENBIO","Pilar Zaragoza Fernández","UNIZAR","F. Veterinaria / Ed. Central","Clementina Rodellar Penella (rodellar@unizar.es)"]
[302,"Crioconservación","Tanque nitrógeno líquido",null,"Específico: Reproducción",null,"110 litros",null,"LAB_30","Genética Bioquímica (LAGENBIO)","A19_17R: LAGENBIO","Pilar Zaragoza Fernández","UNIZAR","F. Veterinaria / Ed. Central","Clementina Rodellar Penella (rodellar@unizar.es)"]
[303,"Incubadora","Hipoxia",null,"Estufas, hornos, incubadoras, baños","Incubadora",null,null,"LAB_30","Genética Bioquímica (LAGENBIO)","A19_17R: LAGENBIO","Pilar Zaragoza Fernández","UNIZAR","F. Veterinaria / Ed. Central","Clementina Rodellar Penella (rodellar@unizar.es)"]
[304,"Incubadora","Normoxia",null,"Estufas, hornos, incubadoras, baños","Incubadora",null,null,"LAB_30","Genética Bioquímica (LAGENBIO)","A19_17R: LAGENBIO","Pilar Zaragoza Fernández","UNIZAR","F. Veterinaria / Ed. Central","Clementina Rodellar Penella (rodellar@unizar.es)"]
[305,"Microscopio","Invertido","Nikon","Microscopía",null,null,null,"LAB_30","Genética Bioquímica (LAGENBIO)","A19_17R: LAGENBIO","Pilar Zaragoza Fernández","UNIZAR","F. Veterinaria / Ed. Central","Clementina Rodellar Penella (rodellar@unizar.es)"]
[306,"Microscopio","Confocal","Zeiss","Microscopía",null,null,null,"LAB_30","Genética Bioquímica (LAGENBIO)","A19_17R: LAGENBIO","Pilar Zaragoza Fernández","UNIZAR","F. Veterinaria / Ed. Central","Clementina Rodellar Penella (rodellar@unizar.es)"]
[307,"Colección anticuerpos","Anticuerpos",null,"Banco de muestras",null,"colección de anticuerpos generados por Phage-display",null,"LAB_31","Bioquímica","B16_17R: Dieta mediterránea y su potencial nutracéutico","Jesús de la Osada García","UNIZAR","F. Veterinaria / Ed. Central","Jesús de la Osada García (josada@unizar.es"]
[308,"PCR","PCR","S1000™ Thermal Cycler. Bio-Rad","Técnicas de análisis biológicos: MOLECULAR","Biología Molecular","http://www.bio-rad.com/es-es/product/s1000-thermal-cycler?ID=ab2cabb3-9299-489f-93fe-754e14301ac6\nhttp://www.bio-rad.com/webroot/web/pdf/lsr/literature/Bulletin_6094.pdf\nhttp://www.bio-rad.com/webroot/web/pdf/lse/literature/Bulletin_5277_EDU.pdf","http://www.bio-rad.com/webroot/web/pdf/lsr/literature/10010306.pdf","LAB_31","Bioquímica","B16_17R: Dieta mediterránea y su potencial nutracéutico","Jesús de la Osada García","UNIZAR","F. Veterinaria / Ed. Central","Jesús de la Osada García (josada@unizar.es"]
[309,"PCR","PCR","PTC-100™. MJ Research Inc.","Técnicas de análisis biológicos: MOLECULAR","Biología Molecular","Thermal range:0–100°C\nAccuracy:±0.5°C of programmed target at 60°C\nThermal uniformity:±0.4°C well-to-well within 30 sec of arrival at 60°C\nRamping rate:60-well block: up to 1°C/sec. 96-well: up to 1.2°C/sec\nSample capacity:60-well block: 60 x 0.5 ml tubes. 96-well block: 96 x 0.2 ml tubes or one 96-well plate \nLine voltage:100–240  VAC  rms  (no  adjustment  needed  among  volt-ages within these ranges)\nFrequency:50/60 Hz single phase\nPower:350 W maximum (momentary 4.5 A)\nFuses:Two 4 A, 5 x 20 mm (4 ampere) \nDisplays:One 4 x 20 LCD alphanumeric display\nMemory:99 typical programs in up to 12 individual folders\nWeight:7.0kgDimensions:PTC-100 cycler with Hot Bonnet lid, 23 x 28 x 26 cm","https://www.labmakelaar.com/fjc_documents/11183_ptc%20100.pdf","LAB_31","Bioquímica","B16_17R: Dieta mediterránea y su potencial nutracéutico","Jesús de la Osada García","UNIZAR","F. Veterinaria / Ed. Central","Jesús de la Osada García (josada@unizar.es"]
[310,"Electroforesis","Electroforesis","Fuente: PowerPac™. Bio-Rad","Técnicas de análisis biológicos: MOLECULAR","Biología Molecular",null,null,"LAB_31","Bioquímica","B16_17R: Dieta mediterránea y su potencial nutracéutico","Jesús de la Osada García","UNIZAR","F. Veterinaria / Ed. Central","Jesús de la Osada García (josada@unizar.es"]
[311,"Electroporación","Electroporador","Gene Pulser® II, con Capacitance Extender Plus y Pulse Controller Plus. Bio-Rad","Técnicas de análisis biológicos: MOLECULAR","Biología Molecular","http://www.bio-rad.com/webroot/web/pdf/lsr/literature/Bulletin_5542.pdf",null,"LAB_31","Bioquímica","B16_17R: Dieta mediterránea y su potencial nutracéutico","Jesús de la Osada García","UNIZAR","F. Veterinaria / Ed. Central","Jesús de la Osada García (josada@unizar.es"]
[312,"PCR","PCR (qPCR)","StepOnePlus™. Applied Biosystems®","Técnicas de análisis biológicos: MOLECULAR","Biología Molecular","96 pocillos","https://www.gene-quantification.de/ab-step-one-brochure.pdf","LAB_31","Bioquímica","B16_17R: Dieta mediterránea y su potencial nutracéutico","Jesús de la Osada García","UNIZAR","F. Veterinaria / Ed. Central","Jesús de la Osada García (josada@unizar.es"]
[313,"PCR","PCR (qPCR)","StepOne™. Applied Biosystems®","Técnicas de análisis biológicos: MOLECULAR","Biología Molecular","48 pocillos","https://www.gene-quantification.de/ab-step-one-brochure.pdf","LAB_31","Bioquímica","B16_17R: Dieta mediterránea y su potencial nutracéutico","Jesús de la Osada García","UNIZAR","F. Veterinaria / Ed. Central","Jesús de la Osada García (josada@unizar.es"]
[314,"Documentación de gel","Sistema de documentación de gel","Gel Doc™. Bio-Rad ","Técnicas de análisis biológicos: MOLECULAR","Biología Molecular",null,null,"LAB_31","Bioquímica","B16_17R: Dieta mediterránea y su potencial nutracéutico","Jesús de la Osada García","UNIZAR","F. Veterinaria / Ed. Central","Jesús de la Osada García (josada@unizar.es"]
[315,"Cromatógrafo","Cromatografía líquida proteínas alta velocidad (FPLC)","AKTA FPLC System. Amershan Pharmacia Bioteck","Técnicas instrumentales análisis químicos","Cromatografía","Purificación de proteínas",null,"LAB_31","Bioquímica","B16_17R: Dieta mediterránea y su potencial nutracéutico","Jesús de la Osada García","UNIZAR","F. Veterinaria / Ed. Central","Jesús de la Osada García (josada@unizar.es"]
[316,"ELISA","Lector de placas","SPECTROstar Nano. BMG Labtech","Técnicas de análisis biológicos: INMUNOENSAYO","Inmunoensayo","https://www.bmglabtech.com/fileadmin/06_Support/Download_Documents/Brochures/microplate-reader-spectrostar-nano-brochure.pdf\nSPECTROstar Nano\n\nDetection Modes: UV/vis absorbance spectra\nMeasurement Modes: Endpoint and kinetic / Spectral scanning (absorbance) / Well scanning\nMicroplate Formats: 6 to 1536-well plates, user-definable / LVis Plate with 16 low-volume microspots (2 μL)\nMicroplate Carrier: Robot compatible\nLight Sources: High energy xenon flash lamp\nDetectors: CCD Spectrometer\nWavelength Selection: UV/vis absorbance spectrometer /  Full spectra or 8 distinct wavelengths in < 1 sec / well\nSpectral Range: 220 - 1000 nm\nSensitivity: Full spectrum captured in < 1 s/well /  Selectable spectral resolution: 1, 2, 5, and 10 nm / OD range: 0 to 4 OD /  Accuracy: < 1% at 2 OD / Precision: < 0.5% at 1 OD and < 0.8% at 2 OD\nRead Times: Full spectrum from 220 to 1000 nm in less than 1 sec/well\nShaking:   Linear, orbital, and double-orbital with user-definable time and speed\nPurge Gas Vent: System to inject an atmosphere or to pull a vacuum into the reader\nIncubation:   +3°C above ambient up to 45 °C / The upper heating plate of the incubation chamber operates at 0.5 °C more than the lower plate / This prevents condensation build-up on the lid or sealer.\nSoftware: Multi-user Reader Control and MARS Data Analysis Software included / FDA 21 CFR Part 11 compliant\nDimensions:     Width: 36 cm, depth: 50 cm, height: 16 cm; weight: 10 kg",null,"LAB_31","Bioquímica","B16_17R: Dieta mediterránea y su potencial nutracéutico","Jesús de la Osada García","UNIZAR","F. Veterinaria / Ed. Central","Jesús de la Osada García (josada@unizar.es"]
[317,"ELISA","Lector de placas","Fluostar Omega. BMG Labtech","Técnicas de análisis biológicos: INMUNOENSAYO","Inmunoensayo","https://www.bmglabtech.com/fileadmin/06_Support/Download_Documents/Brochures/microplate-reader-fluostar-omega-broschure.pdf\nhttps://www.bmglabtech.com/es/fluostar-omega/",null,"LAB_31","Bioquímica","B16_17R: Dieta mediterránea y su potencial nutracéutico","Jesús de la Osada García","UNIZAR","F. Veterinaria / Ed. Central","Jesús de la Osada García (josada@unizar.es"]
[318,"Centrífuga / Ultracentrífuga / Microcentrífuga","Ultracentrífuga","Optima™ TLX Ultracentrifuge. Beckman Coulter ","Preparación, procesamiento y conservación de muestras",null,"120.000 rpm","Descargar: https://sydney.edu.au/medicine/bosch/facilities/molecular-biology/centrifugation/Optima%20TLX%20Ultracentrifuge_Instruction%20Manual.pdf","LAB_31","Bioquímica","B16_17R: Dieta mediterránea y su potencial nutracéutico","Jesús de la Osada García","UNIZAR","F. Veterinaria / Ed. Central","Jesús de la Osada García (josada@unizar.es"]
[319,"Centrífuga / Ultracentrífuga / Microcentrífuga","Ultracentrífuga - Refrigerada","RC-5B Plus.  Sorvall","Preparación, procesamiento y conservación de muestras",null,"21.000 rpm",null,"LAB_31","Bioquímica","B16_17R: Dieta mediterránea y su potencial nutracéutico","Jesús de la Osada García","UNIZAR","F. Veterinaria / Ed. Central","Jesús de la Osada García (josada@unizar.es"]
[320,"Centrífuga / Ultracentrífuga / Microcentrífuga","Ultracentrífuga","Sorvall™ Legend™ XT/XF. Thermo Fisher Scientific","Preparación, procesamiento y conservación de muestras",null,"Refriger\n15.000 rpm","https://www.thermofisher.com/document-connect/document-connect.html?url=https%3A%2F%2Fassets.thermofisher.com%2FTFS-Assets%2FLED%2Fmanuals%2FD21709.pdf&title=U29ydmFsbCBMZWdlbmQgWFQgYW5kIFNvcnZhbGwgTGVnZW5kIFhUUiBDZW50cmlmdWdlcw==","LAB_31","Bioquímica","B16_17R: Dieta mediterránea y su potencial nutracéutico","Jesús de la Osada García","UNIZAR","F. Veterinaria / Ed. Central","Jesús de la Osada García (josada@unizar.es"]
[321,"Evaporador / Concentrador","Concentrador de muestras","Concentrator 5301. Eppendorf","Preparación, procesamiento y conservación de muestras",null,null,null,"LAB_31","Bioquímica","B16_17R: Dieta mediterránea y su potencial nutracéutico","Jesús de la Osada García","UNIZAR","F. Veterinaria / Ed. Central","Jesús de la Osada García (josada@unizar.es"]
[322,"Autoclaves","Gran capacidad","Raypa steam sterilizer ","Preparación, procesamiento y conservación de muestras",null,null,null,"LAB_31","Bioquímica","B16_17R: Dieta mediterránea y su potencial nutracéutico","Jesús de la Osada García","UNIZAR","F. Veterinaria / Ed. Central","Jesús de la Osada García (josada@unizar.es"]
[323,"Autoclaves","Gran capacidad","Pselecta","Preparación, procesamiento y conservación de muestras",null,"Gran capacidad",null,"LAB_31","Bioquímica","B16_17R: Dieta mediterránea y su potencial nutracéutico","Jesús de la Osada García","UNIZAR","F. Veterinaria / Ed. Central","Jesús de la Osada García (josada@unizar.es"]
[324,"Máquina de hielo","Máquina de hielo",null,"Preparación, procesamiento y conservación de muestras",null,null,null,"LAB_31","Bioquímica","B16_17R: Dieta mediterránea y su potencial nutracéutico","Jesús de la Osada García","UNIZAR","F. Veterinaria / Ed. Central","Jesús de la Osada García (josada@unizar.es"]
[325,"Equipamiento singular para valoración funcional",null,null,"Valoración funcional y de composición corporal",null,null,null,"LAB_32","Growth, Exercise, Nutrition and Development (GENUD)","B34_17R: Growth, Exercise, Nutrition and Development (GENUD)","Luis Alberto Moreno Aznar","UNIZAR","F. Ciencias de la salud","Luis Alberto Moreno Aznar (lmoreno@unizar.es) "]
[326,"Equipamiento singular para estudios de composición corporal",null,null,"Valoración funcional y de composición corporal",null,null,null,"LAB_32","Growth, Exercise, Nutrition and Development (GENUD)","B34_17R: Growth, Exercise, Nutrition and Development (GENUD)","Luis Alberto Moreno Aznar","UNIZAR","F. Ciencias de la salud","Luis Alberto Moreno Aznar (lmoreno@unizar.es) "]
[327,"Olfatometría",null,null,"Técnicas instrumentales análisis químicos","Olfatometría","Estación de extracción de compuestos orgánicos volátiles por microextracción en fase sólida del espacio de cabeza (HS-SPME): placa calefactora OVAN MCG05E y bloque, holder SPME y fibras SPME de SUPELCO, acoplada a cromatógrafo de gases HP-4890 con detector FID y puerto con nariz de vidrio para la detección olfatométrica de compuestos volátiles.",null,"LAB_33","Tecnología de productos vegetales","T07_17R: Alimentos de Origen Vegetal (GIAOVE)","Jesús Val Falcón","UNIZAR","F. Veterinaria / Ed. Zootecnia","Rosa Oria Almudí (oria@unizar.es) "]
[328,"Estufa de secado",null,"Digitronic. J.P. Selecta®","Estufas, hornos, incubadoras, baños","Estufas","Con circulación por aire forzado. Para ensayos bacteriológicos, procesos de secado y esterilización. Regulación por microprocesador y control por pantalla táctil con tecnología TFT. Para temperaturas regulables desde ambiente +5 °C hasta 250 °C. Estabilidad: ±0,3 °C, a 100 °C. Homogeneidad: ±1 °C, a 100 °C. Error de consigna: ±2%, a temperatura de trabajo. Resolución: 1 °C. Hasta 6 rampas de temperatura programables.",null,"LAB_33","Tecnología de productos vegetales","T07_17R: Alimentos de Origen Vegetal (GIAOVE)","Jesús Val Falcón","UNIZAR","F. Veterinaria / Ed. Zootecnia","Rosa Oria Almudí (oria@unizar.es) "]
[329,"Horno","Horno mixto vapor/convección ","Convotherm®","Tecnologías de conservación y procesado","Procesado",null,null,"LAB_33","Tecnología de productos vegetales","T07_17R: Alimentos de Origen Vegetal (GIAOVE)","Jesús Val Falcón","UNIZAR","F. Veterinaria / Ed. Zootecnia","Rosa Oria Almudí (oria@unizar.es) "]
[330,"Análisis grasa","Solvente","FOSS SoxtecTM 2055","Análisis de agua, materia prima y alimentos",null,null,null,"LAB_33","Tecnología de productos vegetales","T07_17R: Alimentos de Origen Vegetal (GIAOVE)","Jesús Val Falcón","UNIZAR","F. Veterinaria / Ed. Zootecnia","Rosa Oria Almudí (oria@unizar.es) "]
[331,"Deshidratadora de alimentos","Deshidratadora de alimentos con bandeja","SEDONA®","Tecnologías de conservación y procesado","Procesado",null,null,"LAB_33","Tecnología de productos vegetales","T07_17R: Alimentos de Origen Vegetal (GIAOVE)","Jesús Val Falcón","UNIZAR","F. Veterinaria / Ed. Zootecnia","Rosa Oria Almudí (oria@unizar.es) "]
[332,"Horno","Horno","SIEMENS","Tecnologías de conservación y procesado","Procesado",null,null,"LAB_33","Tecnología de productos vegetales","T07_17R: Alimentos de Origen Vegetal (GIAOVE)","Jesús Val Falcón","UNIZAR","F. Veterinaria / Ed. Zootecnia","Rosa Oria Almudí (oria@unizar.es) "]
[333,"Placa de inducción","Placa de inducción","Bosch","Tecnologías de conservación y procesado","Procesado","Con cámara termográfica acoplada",null,"LAB_33","Tecnología de productos vegetales","T07_17R: Alimentos de Origen Vegetal (GIAOVE)","Jesús Val Falcón","UNIZAR","F. Veterinaria / Ed. Zootecnia","Rosa Oria Almudí (oria@unizar.es) "]
[334,"Cámara termográfica","Cámara termográfica. Acoplada a placa de inducción","TESTO 875","Imagen y color",null,"Acoplada a placa de inducción",null,"LAB_33","Tecnología de productos vegetales","T07_17R: Alimentos de Origen Vegetal (GIAOVE)","Jesús Val Falcón","UNIZAR","F. Veterinaria / Ed. Zootecnia","Rosa Oria Almudí (oria@unizar.es) "]
[335,"Cabina de extracción de gases",null,"ST 1500. Burdinola","Barreras de protección y seguridad biológica",null,null,null,"LAB_33","Tecnología de productos vegetales","T07_17R: Alimentos de Origen Vegetal (GIAOVE)","Jesús Val Falcón","UNIZAR","F. Veterinaria / Ed. Zootecnia","Rosa Oria Almudí (oria@unizar.es) "]
[336,"Análisis estabilidad oxidativa (RANCIMAT)","Grasa/aceite","Rancimat 743. Metrohm","Análisis de agua, materia prima y alimentos",null,"Aparato para la determinación automática de la estabilidad a la oxidación de grasas y aceites naturales o productos que contienen grasa. Indicación conductimétrica. Aparato para 230 V y 50 ... 60 Hz. ",null,"LAB_33","Tecnología de productos vegetales","T07_17R: Alimentos de Origen Vegetal (GIAOVE)","Jesús Val Falcón","UNIZAR","F. Veterinaria / Ed. Zootecnia","Rosa Oria Almudí (oria@unizar.es) "]
[337,"Texturómetro","Texturómetro","TA XT plus. Texturelab","Técnicas instrumentales análisis físicos",null,"Especificaciones: https://texturolab.com/analizador-de-texturas-ta-xt-plus/",null,"LAB_33","Tecnología de productos vegetales","T07_17R: Alimentos de Origen Vegetal (GIAOVE)","Jesús Val Falcón","UNIZAR","F. Veterinaria / Ed. Zootecnia","Rosa Oria Almudí (oria@unizar.es) "]
[338,"Análisis humedad","Humedad","HR 73 Halogan Moisture Analyzer. Mettler-Toledo","Análisis de agua, materia prima y alimentos",null,"Analizador halógeno de humedad","https://www.mt.com/mt_ext_files/Editorial/Generic/4/HR_HG_2_0x000010083e71a4d3400031bf_files/HR-HG_BA_SP.pdf","LAB_33","Tecnología de productos vegetales","T07_17R: Alimentos de Origen Vegetal (GIAOVE)","Jesús Val Falcón","UNIZAR","F. Veterinaria / Ed. Zootecnia","Rosa Oria Almudí (oria@unizar.es) "]
[339,"Análisis actividad de agua","Actividad agua","Novasina Labmaster","Análisis de agua, materia prima y alimentos",null,null,null,"LAB_33","Tecnología de productos vegetales","T07_17R: Alimentos de Origen Vegetal (GIAOVE)","Jesús Val Falcón","UNIZAR","F. Veterinaria / Ed. Zootecnia","Rosa Oria Almudí (oria@unizar.es) "]
[340,"Envasador al vacío","Envasado al vacío","VM 12. Orved.","Tecnologías de conservación y procesado","Conservación",null,null,"LAB_33","Tecnología de productos vegetales","T07_17R: Alimentos de Origen Vegetal (GIAOVE)","Jesús Val Falcón","UNIZAR","F. Veterinaria / Ed. Zootecnia","Rosa Oria Almudí (oria@unizar.es) "]
[341,"Analizador de gases","Espacio de cabeza","CheckMate 3. Dansensor ","Análisis de agua, materia prima y alimentos","Análisis de espacio de cabeza","Análisis de espacio de cabeza para el control de calidad en el envasado en atmósfera modificada","https://dansensor.es/products/headspace-analysers/checkmate-3","LAB_33","Tecnología de productos vegetales","T07_17R: Alimentos de Origen Vegetal (GIAOVE)","Jesús Val Falcón","UNIZAR","F. Veterinaria / Ed. Zootecnia","Rosa Oria Almudí (oria@unizar.es) "]
[342,"Refractómetro",null,"DBX-55A. Atago","Análisis de agua, materia prima y alimentos",null,"Refractómetro digital",null,"LAB_33","Tecnología de productos vegetales","T07_17R: Alimentos de Origen Vegetal (GIAOVE)","Jesús Val Falcón","UNIZAR","F. Veterinaria / Ed. Zootecnia","Rosa Oria Almudí (oria@unizar.es) "]
[343,"Titulador",null,"Compact Titrator. Crison","Análisis de agua, materia prima y alimentos",null,"Titulador automático de niveles de acidez",null,"LAB_33","Tecnología de productos vegetales","T07_17R: Alimentos de Origen Vegetal (GIAOVE)","Jesús Val Falcón","UNIZAR","F. Veterinaria / Ed. Zootecnia","Rosa Oria Almudí (oria@unizar.es) "]
[344,"Rotavapor","Rotavapor",null,"Preparación, procesamiento y conservación de muestras",null,null,null,"LAB_33","Tecnología de productos vegetales","T07_17R: Alimentos de Origen Vegetal (GIAOVE)","Jesús Val Falcón","UNIZAR","F. Veterinaria / Ed. Zootecnia","Rosa Oria Almudí (oria@unizar.es) "]
[345,"Espectrofotómetro","UV/Vis","Thermo Spectronic Unicam UV-510 UV-Visible","Técnicas instrumentales análisis químicos","Espectrofotómetría","UV/Vis",null,"LAB_33","Tecnología de productos vegetales","T07_17R: Alimentos de Origen Vegetal (GIAOVE)","Jesús Val Falcón","UNIZAR","F. Veterinaria / Ed. Zootecnia","Rosa Oria Almudí (oria@unizar.es) "]
[346,"Cromatógrafo","Cromatografía gases (GC)","HP4890","Técnicas instrumentales análisis químicos","Cromatografía","detector TCD ",null,"LAB_33","Tecnología de productos vegetales","T07_17R: Alimentos de Origen Vegetal (GIAOVE)","Jesús Val Falcón","UNIZAR","F. Veterinaria / Ed. Zootecnia","Rosa Oria Almudí (oria@unizar.es) "]
[347,"Cromatógrafo","Cromatografía gases (GC)","HP4890","Técnicas instrumentales análisis químicos","Cromatografía","detector FID",null,"LAB_33","Tecnología de productos vegetales","T07_17R: Alimentos de Origen Vegetal (GIAOVE)","Jesús Val Falcón","UNIZAR","F. Veterinaria / Ed. Zootecnia","Rosa Oria Almudí (oria@unizar.es) "]
[348,"Cámara refrigeración",null,null,"Cámaras, armarios refrigerados","Cámara refrigeración","6m2",null,"LAB_33","Tecnología de productos vegetales","T07_17R: Alimentos de Origen Vegetal (GIAOVE)","Jesús Val Falcón","UNIZAR","F. Veterinaria / Ed. Zootecnia","Rosa Oria Almudí (oria@unizar.es) "]
[349,"Cámara refrigeración",null,null,"Cámaras, armarios refrigerados","Cámara refrigeración","12m2",null,"LAB_33","Tecnología de productos vegetales","T07_17R: Alimentos de Origen Vegetal (GIAOVE)","Jesús Val Falcón","UNIZAR","F. Veterinaria / Ed. Zootecnia","Rosa Oria Almudí (oria@unizar.es) "]
[350,"Cámara climática",null,"ICH750 de Memmert","Cámaras, armarios refrigerados","Cámara climática","Control temperatura y humedad","https://www.memmert.com/es/el-producto/camaras-climaticas/camara-climatica/ICH750/pdf/","LAB_33","Tecnología de productos vegetales","T07_17R: Alimentos de Origen Vegetal (GIAOVE)","Jesús Val Falcón","UNIZAR","F. Veterinaria / Ed. Zootecnia","Rosa Oria Almudí (oria@unizar.es) "]
[351,"Espectrorradiómetro","Espectrorradiómetro a distancia","CAS140. Instrument System","Técnicas instrumentales análisis físicos","Espectrorradiometría","UV-VIS-NIR","http://www.instrumentsystems.com/fileadmin/editors/downloads/Products/CAS140CT_e.pdf","LAB_34","Análisis digital de la imagen y el color","T07_17R: Alimentos de Origen Vegetal (GIAOVE)","Jesús Val Falcón","UNIZAR","F. Veterinaria / Ed. Central","Ángel Ignacio Negueruela Suberviola (neguerue@unizar.es) "]
[352,"Espectrómetro","Espectrómetría óptica","AvaSpec 1024 Fibra Óptica / Fuente de alimentación Avantis Avalight DHS","Técnicas instrumentales análisis físicos","Espectómetría óptica","Analizador de espectro\nUV-VIS\nFibra óptica","carpeta descargas","LAB_34","Análisis digital de la imagen y el color","T07_17R: Alimentos de Origen Vegetal (GIAOVE)","Jesús Val Falcón","UNIZAR","F. Veterinaria / Ed. Central","Ángel Ignacio Negueruela Suberviola (neguerue@unizar.es) "]
[353,"Análisis digital de imagen y color","Torre laser con cámara para retrodifusión. Estudios de madurez",null,"Imagen y color",null,null,null,"LAB_34","Análisis digital de la imagen y el color","T07_17R: Alimentos de Origen Vegetal (GIAOVE)","Jesús Val Falcón","UNIZAR","F. Veterinaria / Ed. Central","Ángel Ignacio Negueruela Suberviola (neguerue@unizar.es) "]
[354,"Fotografía/vídeo","Cámara fotográfica","A3121 Basler Vision Technologies","Imagen y color",null,null,null,"LAB_34","Análisis digital de la imagen y el color","T07_17R: Alimentos de Origen Vegetal (GIAOVE)","Jesús Val Falcón","UNIZAR","F. Veterinaria / Ed. Central","Ángel Ignacio Negueruela Suberviola (neguerue@unizar.es) "]
[355,"Análisis digital de imagen y color","Software específico control imagen, análisis y tratamiento digital","MATROX®","Imagen y color",null,null,null,"LAB_34","Análisis digital de la imagen y el color","T07_17R: Alimentos de Origen Vegetal (GIAOVE)","Jesús Val Falcón","UNIZAR","F. Veterinaria / Ed. Central","Ángel Ignacio Negueruela Suberviola (neguerue@unizar.es) "]
[356,"Análisis digital de imagen y color","Sondas para medición por reflexión y para flujo continuo",null,"Imagen y color",null,null,null,"LAB_34","Análisis digital de la imagen y el color","T07_17R: Alimentos de Origen Vegetal (GIAOVE)","Jesús Val Falcón","UNIZAR","F. Veterinaria / Ed. Central","Ángel Ignacio Negueruela Suberviola (neguerue@unizar.es) "]
[357,"Análisis digital de imagen y color","Fuentes de alimentación, lámparas",null,"Imagen y color",null,null,null,"LAB_34","Análisis digital de la imagen y el color","T07_17R: Alimentos de Origen Vegetal (GIAOVE)","Jesús Val Falcón","UNIZAR","F. Veterinaria / Ed. Central","Ángel Ignacio Negueruela Suberviola (neguerue@unizar.es) "]
[358,"Análisis digital de imagen y color","Cartas de calibración de color (UNE 48-103-94)",null,"Imagen y color",null,null,null,"LAB_34","Análisis digital de la imagen y el color","T07_17R: Alimentos de Origen Vegetal (GIAOVE)","Jesús Val Falcón","UNIZAR","F. Veterinaria / Ed. Central","Ángel Ignacio Negueruela Suberviola (neguerue@unizar.es) "]
[359,"Cabina de flujo laminar ","Horizontal","AH-100. Telstar","Barreras de protección y seguridad biológica",null,"CLASE 3, prefiltro G3 para minimizar la colmatación del filtro principal\nFiltro HEPA/ULPA  H14","https://www.telstar-lifesciences.com/files/BR-AeolusH-SP-1117.pdf","LAB_35","Truficultura","T07_17R: Alimentos de Origen Vegetal (GIAOVE)","Jesús Val Falcón","CITA","Ed. Pluridisciplinar","Pedro Marco Montori (pmarcomo@cita-aragon.es) "]
[360,"Cabina de flujo laminar","Vertical","PV-199 TELSTAR®","Barreras de protección y seguridad biológica",null,null,null,"LAB_35","Truficultura","T07_17R: Alimentos de Origen Vegetal (GIAOVE)","Jesús Val Falcón","CITA","Ed. Pluridisciplinar","Pedro Marco Montori (pmarcomo@cita-aragon.es) "]
[361,"Baño de ultrasonidos","Baño ultrasonidos","Bandelin SONOREX™ ","Limpieza y esterilización",null,null,null,"LAB_35","Truficultura","T07_17R: Alimentos de Origen Vegetal (GIAOVE)","Jesús Val Falcón","CITA","Ed. Pluridisciplinar","Pedro Marco Montori (pmarcomo@cita-aragon.es) "]
[362,"Baño de agua","Termostatizado","Memmert","Estufas, hornos, incubadoras, baños","Baño",null,null,"LAB_35","Truficultura","T07_17R: Alimentos de Origen Vegetal (GIAOVE)","Jesús Val Falcón","CITA","Ed. Pluridisciplinar","Pedro Marco Montori (pmarcomo@cita-aragon.es) "]
[363,"Incubadora ","Refrigerada. Tecnología Peltier","IPP 500. Memmert","Estufas, hornos, incubadoras, baños","Incubadora","Tecnología Peltier",null,"LAB_35","Truficultura","T07_17R: Alimentos de Origen Vegetal (GIAOVE)","Jesús Val Falcón","CITA","Ed. Pluridisciplinar","Pedro Marco Montori (pmarcomo@cita-aragon.es) "]
[364,"Microscopio","Convencional","ZEISS Axio Scope.A1","Microscopía",null,null,null,"LAB_35","Truficultura","T07_17R: Alimentos de Origen Vegetal (GIAOVE)","Jesús Val Falcón","CITA","Ed. Pluridisciplinar","Pedro Marco Montori (pmarcomo@cita-aragon.es) "]
[365,"Estereomicroscopio","Estereomicroscopio","Carl Zeiss™ Stemi 2000-C ","Microscopía",null,null,null,"LAB_35","Truficultura","T07_17R: Alimentos de Origen Vegetal (GIAOVE)","Jesús Val Falcón","CITA","Ed. Pluridisciplinar","Pedro Marco Montori (pmarcomo@cita-aragon.es) "]
[366,"Medidor multiparamétrico",null,"Orion Versa Star Pro. Thermo Scientific","Análisis de agua, materia prima y alimentos",null,"Medidor de sobremesa con módulos de pH/electrodo de ión selectivo (ISE)/conductividad y oxígeno disuelto/oxígeno disuelto resistente (RDO)",null,"LAB_35","Truficultura","T07_17R: Alimentos de Origen Vegetal (GIAOVE)","Jesús Val Falcón","CITA","Ed. Pluridisciplinar","Pedro Marco Montori (pmarcomo@cita-aragon.es) "]
[367,"PCR","PCR","Eppendorf Mastercycler®","Técnicas de análisis biológicos: MOLECULAR","Biología Molecular",null,null,"LAB_35","Truficultura","T07_17R: Alimentos de Origen Vegetal (GIAOVE)","Jesús Val Falcón","CITA","Ed. Pluridisciplinar","Pedro Marco Montori (pmarcomo@cita-aragon.es) "]
[368,"Termobloque","Termobloque","FB15101. Fisher Scientific","Técnicas de análisis biológicos: MOLECULAR","Biología Molecular","Digital.\nRange ambient +5ºC to 150ºC in 0.1ºC increments",null,"LAB_35","Truficultura","T07_17R: Alimentos de Origen Vegetal (GIAOVE)","Jesús Val Falcón","CITA","Ed. Pluridisciplinar","Pedro Marco Montori (pmarcomo@cita-aragon.es) "]
[369,"Autoclaves","Gran capacidad 50L","Autester mod 437 G Pselecta","Preparación, procesamiento y conservación de muestras",null,"50 L",null,"LAB_35","Truficultura","T07_17R: Alimentos de Origen Vegetal (GIAOVE)","Jesús Val Falcón","CITA","Ed. Pluridisciplinar","Pedro Marco Montori (pmarcomo@cita-aragon.es) "]
[370,"Electroforesis","Electroforesis",null,"Técnicas de análisis biológicos: MOLECULAR","Biología Molecular",null,null,"LAB_35","Truficultura","T07_17R: Alimentos de Origen Vegetal (GIAOVE)","Jesús Val Falcón","CITA","Ed. Pluridisciplinar","Pedro Marco Montori (pmarcomo@cita-aragon.es) "]
[371,"Liofilizador","Liofilizador","Lyoquest Plus-85ºC Plus/Eco. Telstar","Preparación, procesamiento y conservación de muestras",null,null,null,"LAB_36","Laboratorio de Análisis de Aroma y Enología (LAAE) ","T29_17R: Laboratorio de Análisis de Aroma y Enología (LAAE) ","Vicente Ferreira González","UNIZAR","F. Ciencias","Vicente Ferreira González (vferre@unizar.es) "]
[372,"Sistema automatizado preparación muestras","Dispensador de líquido automatizado","GX-274 liquid handler. Gilson","Preparación, procesamiento y conservación de muestras",null,"Sistema de extracción en fase sólida automático Gilson (GX-274 liquid handler)",null,"LAB_36","Laboratorio de Análisis de Aroma y Enología (LAAE) ","T29_17R: Laboratorio de Análisis de Aroma y Enología (LAAE) ","Vicente Ferreira González","UNIZAR","F. Ciencias","Vicente Ferreira González (vferre@unizar.es) "]
[373,"Cromatógrafo","Cromatografía gases (GC)","Varian","Técnicas instrumentales análisis químicos","Cromatografía","dual Varian con 2 hornos, 2 puntos de olfación y detector de espectrometría de masas (GC-O-GC-O-MS)",null,"LAB_36","Laboratorio de Análisis de Aroma y Enología (LAAE) ","T29_17R: Laboratorio de Análisis de Aroma y Enología (LAAE) ","Vicente Ferreira González","UNIZAR","F. Ciencias","Vicente Ferreira González (vferre@unizar.es) "]
[374,"Cromatógrafo","Cromatografía gases (GC)","Trace GC Thermo Quest; Fisons GC 8000 series","Técnicas instrumentales análisis químicos","Cromatografía","con detector FID y puerto de olfacción (GC-O)",null,"LAB_36","Laboratorio de Análisis de Aroma y Enología (LAAE) ","T29_17R: Laboratorio de Análisis de Aroma y Enología (LAAE) ","Vicente Ferreira González","UNIZAR","F. Ciencias","Vicente Ferreira González (vferre@unizar.es) "]
[375,"Cromatógrafo","Cromatografía gases (GC)","Varian 3800","Técnicas instrumentales análisis químicos","Cromatografía","GC-pFPD\nCon detector fotométrico de llama por pulsos ","http://www.ecs.umass.edu/eve/facilities/equipment/Varian2200/914648.pdf","LAB_36","Laboratorio de Análisis de Aroma y Enología (LAAE) ","T29_17R: Laboratorio de Análisis de Aroma y Enología (LAAE) ","Vicente Ferreira González","UNIZAR","F. Ciencias","Vicente Ferreira González (vferre@unizar.es) "]
[376,"Cromatógrafo","Cromatografía gases (GC)","Agilent 7890B ","Técnicas instrumentales análisis químicos","Cromatografía","Con detector de quimioluminescencia de azufre ","https://www.agilent.com/cs/library/datasheets/public/5991-1436EN.pdf","LAB_36","Laboratorio de Análisis de Aroma y Enología (LAAE) ","T29_17R: Laboratorio de Análisis de Aroma y Enología (LAAE) ","Vicente Ferreira González","UNIZAR","F. Ciencias","Vicente Ferreira González (vferre@unizar.es) "]
[377,"Cromatógrafo","Cromatografía gases (GC)","Varian 3800","Técnicas instrumentales análisis químicos","Cromatografía","GC-FID/ECD\nCon detector de ionización en llama y detector de captura de electrones","http://www.ecs.umass.edu/eve/facilities/equipment/Varian2200/914648.pdf","LAB_36","Laboratorio de Análisis de Aroma y Enología (LAAE) ","T29_17R: Laboratorio de Análisis de Aroma y Enología (LAAE) ","Vicente Ferreira González","UNIZAR","F. Ciencias","Vicente Ferreira González (vferre@unizar.es) "]
[378,"Cromatógrafo","Cromatografía gases masas","Shimadzu QP2010","Técnicas instrumentales análisis químicos","Cromatografía","GC-MS-Quadruopolo",null,"LAB_36","Laboratorio de Análisis de Aroma y Enología (LAAE) ","T29_17R: Laboratorio de Análisis de Aroma y Enología (LAAE) ","Vicente Ferreira González","UNIZAR","F. Ciencias","Vicente Ferreira González (vferre@unizar.es) "]
[379,"Cromatógrafo","Cromatografía gases masas ion trap","Varian CP 3800 (GC-MS-Ion Trap)","Técnicas instrumentales análisis químicos","Cromatografía","Cromatografos de gases masas ion trap  Varian CP 3800 (GC-MS-Ion Trap)",null,"LAB_36","Laboratorio de Análisis de Aroma y Enología (LAAE) ","T29_17R: Laboratorio de Análisis de Aroma y Enología (LAAE) ","Vicente Ferreira González","UNIZAR","F. Ciencias","Vicente Ferreira González (vferre@unizar.es) "]
[380,"Cromatógrafo","Cromatografía gases (GC)","Shimadzu QP2010 Plus","Técnicas instrumentales análisis químicos","Cromatografía","GC-MS-cuadrupolo \nCromatógrafo de gases multidimensional con espectrómetro de masas con cuadrupolo ",null,"LAB_36","Laboratorio de Análisis de Aroma y Enología (LAAE) ","T29_17R: Laboratorio de Análisis de Aroma y Enología (LAAE) ","Vicente Ferreira González","UNIZAR","F. Ciencias","Vicente Ferreira González (vferre@unizar.es) "]
[381,"Cromatógrafo","Cromatografía gases (GC)","7890 Agilent Technologies","Técnicas instrumentales análisis químicos","Cromatografía","Cromatógrafo de gases multidimensional con espectrómetro de masas con cuadrupolo y sistema de desorción térmica y de extracción dinámica de espacio de cabeza ","https://www.agilent.com/cs/library/datasheets/public/5991-1436EN.pdf","LAB_36","Laboratorio de Análisis de Aroma y Enología (LAAE) ","T29_17R: Laboratorio de Análisis de Aroma y Enología (LAAE) ","Vicente Ferreira González","UNIZAR","F. Ciencias","Vicente Ferreira González (vferre@unizar.es) "]
[382,"Cromatógrafo","Cromatografía gases (GC)","Varian 3800","Técnicas instrumentales análisis químicos","Cromatografía","FID","http://www.ecs.umass.edu/eve/facilities/equipment/Varian2200/914648.pdf","LAB_36","Laboratorio de Análisis de Aroma y Enología (LAAE) ","T29_17R: Laboratorio de Análisis de Aroma y Enología (LAAE) ","Vicente Ferreira González","UNIZAR","F. Ciencias","Vicente Ferreira González (vferre@unizar.es) "]
[383,"Cromatógrafo","Cromatografía líquida HPLC","HPLC 1220 Infinity LC Agilent Technologies","Técnicas instrumentales análisis químicos","Cromatografía","con detector UV ","https://www.agilent.com/cs/library/usermanuals/Public/G4280-95016_1220InfinityLC_USR_ES.pdf","LAB_36","Laboratorio de Análisis de Aroma y Enología (LAAE) ","T29_17R: Laboratorio de Análisis de Aroma y Enología (LAAE) ","Vicente Ferreira González","UNIZAR","F. Ciencias","Vicente Ferreira González (vferre@unizar.es) "]
[384,"Cromatógrafo","Cromatografía líquida HPLC","HPLC Waters 2695 ","Técnicas instrumentales análisis químicos","Cromatografía","con detector UV y de fluorescencia",null,"LAB_36","Laboratorio de Análisis de Aroma y Enología (LAAE) ","T29_17R: Laboratorio de Análisis de Aroma y Enología (LAAE) ","Vicente Ferreira González","UNIZAR","F. Ciencias","Vicente Ferreira González (vferre@unizar.es) "]
[385,"Análisis oxígeno",null,"Nomasense","Análisis de agua, materia prima y alimentos",null,"Sistemas de medición de oxígeno por sensores de fluorescencia ",null,"LAB_36","Laboratorio de Análisis de Aroma y Enología (LAAE) ","T29_17R: Laboratorio de Análisis de Aroma y Enología (LAAE) ","Vicente Ferreira González","UNIZAR","F. Ciencias","Vicente Ferreira González (vferre@unizar.es) "]
[386,"Potenciostato","Potenciostato",null,"Técnicas instrumentales análisis químicos",null,"para medidas voltamperométricas",null,"LAB_36","Laboratorio de Análisis de Aroma y Enología (LAAE) ","T29_17R: Laboratorio de Análisis de Aroma y Enología (LAAE) ","Vicente Ferreira González","UNIZAR","F. Ciencias","Vicente Ferreira González (vferre@unizar.es) "]

{"sheet":"INSTRUCCIONES INTERNAS","index":10,"n_rows":6,"n_cols":5,"rows_kept":6,"cut":false,"hidden":true,"merged":[[0,3,0,4],[3,1,4,1],[3,0,4,0]]}
[null,"HOJA","TABLAS","ETIQUETAS"]
["INFRAESTRUCTURAS","BD_INFRAESTRUCTURAS","TABLA_BD_INFR","ET_BD_INFR_INFR"]
["LABORATORIO","BD_LAB","TABLA_BD_LAB","ET_BD_LAB_LAB"]
["GRUPOS DE INVESTIGACIÓN","BD_GI_NO TOCAR","TABLA_BD_GI_GI","ET_BD_GI_GI","A02_17R / A03_17R / ……."]
[null,null,"TABLA_BD_GI_HORIZ"]
["EQUIPOS","BD_EQ","TABLA_BD_EQ"]

{"sheet":"CONTROL DE CAMBIOS","index":11,"n_rows":2,"n_cols":4,"rows_kept":2,"cut":false,"hidden":true,"merged":[]}
[null,"VERSIÓN","FECHA DE MODIFICACIÓN","MODIFICACIÓN"]
[2019,{"$f":"\"00\"","v":"00"},"2019-10-08","Versión 00"]